Workbook

Sheet Notes
A1: FmStrategy.xlsm; Traders Tip spreadsheet created for the June 2021 Issue
A2: Coded beginning 2021-April-09 by Ronald McAllister (rpmac_xltt@sprynet.com)
A4: This Workbook demonstrates an EXCEL version of the ideas presented
A5: by John F. Ehlers in an article titled "Creating More Robust Trading Strategies With The FM Demodulator"
A6: which originally appeared in the June 2021 issue of
A7: "Technical Analysis of Stocks and Commodities" magazine.
A9: * * * * * * * * * * * * * * * *
A11: Development Notes for: June 2021
A13: Warning: This is a !! SLOW !! Spreadsheet. It takes a relatively long time to complete computations!
A15: As is true with most of Mr. Ehlers articles, the basic computations are straight forward. And relatively quick.
A17: It is modeling of the scenarios to create the surface charts that take up the calculation time.
A18: This modeling requires one complete computation for each of the possible combinations of Sig Period and ROC Period.
A19: Capture the result of this computation, and then compute again using the next combination of Sig Period and ROC period.
A20: For this spreadsheet that works out to 36 full computations for the Simple Strategy and another 36 for the Simple Strategy with FM.
A22: Enter Data Tables - An EXCEL built-in What-If analysis tool.
A23: A Data Table can manage the cycling of up to two distinct parameter sets into their respective control points, calculate the spreadsheet, and then
A24: capture the result of each such combination in an X by Y table.
A26: On the CalculationsAndCharts tab there are two data tables to the right of the Price chart. (Scroll right to view columns U thru AM).
A27: The data table for Simple Strategy occupies cells V3:AB9 and the Simple Strategy with FM occupies cells AF3:AL9.
A29: The scenario analysis surface charts appear just below their respective Data Tables.
A31: Waterlines!
A32: We are primarily interested if finding the best parameter combinations.
A33: So the lowest returns do not contribute much to our studies andmay take up valuable vertical space on our charts.
A35: In this article Mr. Ehlers, as I have here, uses a "Water Line" to ignore the lower, less interesting values
A36: which in turn provides more vertical room to spread the points of more direct interest.
A38: New for May 2021
A39: Upgraded the data download logic to do a better job of catching the common data download errors and provide a more graceful resolution.
A40: This includes better user notification of the nature of the error and some user control over how the error should be handled.
A41: User notification comes in the form of a MSGbox display that includes the (sometimes cryptic) description of the error and offers the user three options.
A43: Abort - If I could customize the title, I would rename this button to "Debug"
A44: This choice places you in Debug mode at the failing VBA statement.
A45: Unless you are feeling good about your VBA (and Network) debugging skills, this is probably not for you.
A47: Retry
A48: Lets the code retry the failed download request.
A49: This is a reasonable option if the download request timed out (similar to video buffering) or your network connection has dropped out..
A50: Probably a good idea to make sure your internet connection is alive and well before you select Retry.
A52: Ignore
A53: Lets the code fall thru to a (hopefully) graceful error completion with the error indicated at the top of the InputPriceData tab
A55: New for August 2020
A56: Restructured my Symbol-Not-Found detection and now stop further processing in the not found case
A58: New with the May 2020 version of my T-Tips template: VBA to implement a "Perpetual" U.S. Markets Closed Holiday Calendar.
A60: Why we need one: The Yahoo Finance recently has begun having occasional filtration problems where bars for U.S. Market Closed Holidays
A61: make their way onto the Historical Data web page and into the Historical Data download.
A63: While testing this May 2020 spreadsheet with different symbols, I found that I sometimes had bars with the text "null" in the price fields.
A64: My code always translates the "null" text price values to zeros.
A65: The resulting zeros cause real problems with indicator computations and the amount of blank space below price candles on the price chart.
A67: "null" price bars can be valid for very lightly traded penny sheet symbols which may not trade every day the markets are open.
A68: But is definitely not normal for symbols on the big boards.
A70: A closer look determined that these "bars" were for holiday dates when the US markets are normally closed.
A71: I found it interesting that some times the next download for the same symbol would not contain any of these "holiday" bars. Weird!
A73: My approach here was to write code to determine if the DATE on a null price values bar falls on one of the 9 market closed U.S. Holidays.
A74: If the bar date corresponds to one of these market closed holidays, I drop the bar before it reaches the InputPriceData tab.
A75: If the date is not a holiday, I let the bar through with the resulting zero values.
A77: No messy tables to update over the years as there are good solid rules that can be used in VBA or any other programming language to determine
A78: the dates for U.S. Market Closed Holidays for any given calendar year.
A80: This workbook contains and uses VBA macros and may take advantage of user defined VBA Class structures.
A81: Input Data:
A82: The data in this workbook is sorted date-descending (most recent date at the top). All cell formulas and
A83: VBA routines are built assuming this date sequence.
A85: ERROR 9 (already fixed in this spreadsheet)
A86: On or about Jan 29, 2020 Yahoo Finance changed the format of the split factor expression used their historical data downloads.
A87: The Split expression went from using "/" as in "New Share Number/Old Share Number",
A88: to using ":" as in "New Share Number:Old Share Number".
A89: This caused the then current version of my VBA code to fail with a "Runtime Error '9': subscript out of range".
A91: Fix for this ERROR 9
A92: For T-Tip spreadsheets from September 2018 up to present:
A93: Selecting the Debug option takes one into the VBA at the code line which causes the failure:
A94: CellArray(C_A_RowNdx, C_A_ColNdx + 1) = SplitFactors(1)
A95: Two lines above the failing VBA line is a line that reads:
A96: SplitFactors = Split(CsvColumns(CsvColNdx), "/")
A97: Change the / to a :
A98: The corrected line should now read
A99: SplitFactors = Split(CsvColumns(CsvColNdx), ":")
A101: If you are fixing several spreadsheets and do not want to use the failure to find the fix location,
A102: you can use VBA’s FIND dialog (Ctrl F) to look for the substring
A103: SplitFactors =
A104: Do include one space and the equal sign in your FIND string
A105: Select the "Current Project" option
A106: There should only be one instance.
A108: T-Tip spreadsheets prior to the September 2018 spreadsheet do not hard fail.
A110: They just get weird results in the split columns of the Input Price Data tab (soft fail).
A111: These older spreadsheets used different data retrieval and formatting logic.
A113: To fix these older spreadsheets:
A114: In the VBA editor, use find (CTRL-F).
A115: Select the "Current Project" option, and search for the following:
A116: OtherChar:="/"
A117: You are looking for a hit in a line reading:
A118: Other:=True, OtherChar:="/", _
A119: This line is part of a multiline block of code starting with a line that reads:
A120: SplitRange.Offset(0, 1).Resize(SpRows, 1).TextToColumns
A121: Change the / to a : so that the line reads
A122: Other:=True, OtherChar:=":", _
A125: 2019-04-04 Finally came up with a mechanism to align the left location and overall length of the cursor scroll bar so that the left most and right most
A126: scroll bar thumb positions visually align reasonably well with the left and right ends of the price chart horizontal axis.
A127: Makes it a little easier to visually align the Thumb and thus the cursor with points of interest on the charts.
A129: Older:
B130: My sincere apologies to our Macintosh based readers: Neither MSXML nor WinHttpRequest are supported in your environment. So as it stands this version of the spreadsheet will not work for you.
B131: See "Why this approach does not work for Macintosh" below.
B132: I am investigating cURL as a non-Querytable based approach for the Macintosh environment.
A134: The new Yahoo Finance history download interface has changed rather radically. The biggest hurdle being a pseudo-security requirement of adding a
B135: crumb character string to any URL requesting any type of history download. That crumb must match up (by way of some sort of hash algorithm) with
B136: the Yahoo Finance cookie that must also be sent with any request to the new Yahoo History down load interface.
B138: A crumb value is returned, buried in the HTML for any of what I call the "entry level" Yahoo Finance web pages (no crumb security requirement for entry level pages).
B139: A crumb may come with other Yahoo Finance pages. A crumb may even accompany some of the secured pages as well. I have not checked.
B141: Entry level pages are the top level pages of the various Yahoo Finance dialogs and include: Quote Lookup, Stock Summary Quote, and any of the pages
B142: with links in the horizontal row with the "Summary" link on the quote summary page such as Options, Historical Data, and the rest.
B144: To date I have found no way to get at this crumb value using any native EXCEL capabilities.
B146: So this crumb requirement effectively shuts out any solution that attempts to exclusively use built-in facilities of EXCEL, which is to say a purely Querytables solution.
B148: The approach built for this Traders Tip spreadsheet uses WINHTTP calls to Load the InputPriceData worksheet.
B150: First I call to get the HTML text for the Yahoo Summary Quote page using the requested symbol. From this HTML text I extract the full company name,
B151: the market it trades, the market status and time stamp, and finally the associated crumb string. There is a bunch of other useful bits buried in this HTML
B152: text that do not necessarily appear on the web page your browser presents. Perhaps some day I will go after and build a worksheet with these other bits.
B154: Next I add the freshly extracted crumb string to the URLs I use in three separate WINHTTP calls to retrieve Price history, Split history, and Dividend history respectively.
B156: From there VBA code proceeds as in the past to fill in the cell formulas and formatting that make the "prettied up" InputPriceData sheet.
A158: Why this approach works for Windows:
B159: WINHTTP maintains a temporary computer memory cache where cookies are maintained for as long as the WINHTTP object is instantiated.
B160: WINHTTP updates this cache any time a "set cookie" header accompanies a web response.
B161: Subsequent WINHTTP calls automatically search this cache for cookies and add any "appropriate" cookies to the headers
B162: of any web requests that get sent out.
B163: This cookie handling automation means that even if the response to our WINHTTP call for the Summary web page includes a new version of
B164: the Yahoo Finance cookie, the imbedded Crumb value will always match the cookie newly installed in the cache!
A167: Why this approach does not work for Macintosh:
B168: For what it is worth, the Macintosh version of the MS Office suite of products do in fact maintain a special, shared amongst themselves only, cookie cache.
B169: They automate cookie handling into and from this cache JUST for the Office products and any Querytable activity they might originate.
B171: This cache is not tied to, nor shared with, any browser that might be installed on the MAC. And I have not found anything with HTTP capabilities similar to
B172: MSXML that can work with that Office product cookie cache.
B174: When working in the MAC EXCEL environment, I have not yet become conversant with a Mac based WINHTTP like capability.
B175: So l currently have no mechanism to replicate the non-Querytable data retrieval process I am using in Windows environments.
B176: A software product called CURL has been suggested as providing this capability in the MAC environment.
B177: A version of CURL is available for the Windows So some day I may explore its capabilities and how to access those capabilities from VBA.
A179: Calculation and Chart Worksheet Usage Comments:
C180: In General, Items in Bolded BLUE are items you may freely change to play what-if games.
C181: Be sure to have a backup copy of the spreadsheet before you alter anything else.
A183: Features carried forward from the June 2016 version of my T-Tips Template
A184: Added a pair of buttons near cell F12 that will allow the user to step the charting window forward or backward one bar for each click.
A185: I find this to be a good way to test my understanding of the author's ideas as I step through the evolution of the price behavior and the indicators.
B187: First: In the "Help! I would like to plot data" area.
B188: Added button to resolve #NA problems by locating the bar in the input data with a slightly more recent date than what the user actually requested.
B189: I find this particularly useful when I have a general idea of where I want to be date wise. Now I can pick a set of dates "out of the air".
B190: If either (or both) of my date specifications fall between dates that are available in the price history,
B191: this button will resolve them to the dates of the nearest, slightly more recent input bars.
B192: I can then refine my data interval search as necessary from there.
B193: Really great when working with Weekly or Monthly studies!
C194: 2016Jun11 - added logic to the "I would like to chart.." button to detect #N/A values and terminate
C195: gracefully with a message instead of blowing up in the charting logic.
B197: Second: In the "Price Chart Windowing Controls" area. (A11 and A12)
B198: When retrieving data for a new symbol or when changing from daily to weekly or monthly data, there was the possibility that the
B199: residual settings in A11 and A12 would fall outside of the number bars available on the input data tab after the new data retrieval.
B200: In certain combinations, this could create a serious error in the chart sizing logic and crash the spreadsheet.
B201: I have taken this opportunity to update the validity checking logic used in the chart sizing macros
B202: to adjust these values as necessary so that they fall within the boundaries of the newly retrieved input data.
A203: Features carried forward from the October 2015 Traders Tips Template
B204: Improved automation: changes to any of the following will automatically initiate calculations appropriate to reflect a change.
C205: Changing either of cells A11 (pan) or A12 (zoom) will automatically initiate the same chart sizing macros that the manual
C206: "Set Chart" button uses.

Sheet InputPriceData
A1: SPDR S&P 500 ETF Trust (SPY) -NYSEArca (Daily)
M2: To retrieve data for symbols traded on non US Exchanges, | II2: 241.79
A3: Request Online Yahoo History for: | F3: Market State == > | G3: At close: | H3: 16:00:00 | I3: EDT | M3: you will need to append the dot-suffix for the exchange to the symbol.
A4: Symbol | B4: SPY | D4: Valid | I4: =OFFSET(I4,-2,0,1,1) -> 0 | M4: The following links provide a description of how to use the exchange suffix
A5: From | B5: 1950-10-01 | D5: Data | M5: along with a list of suffixes for the major world exchanges. | AD5: Trailing 12 Div return (Cur Close)
A6: To | B6: =NOW() -> 2021-04-15T17:24:32.800 | D6: Types | E6: =VLOOKUP(B7,D7:E10,2,FALSE) -> d | M6: https://help.yahoo.com/kb/finance/SLN2310.html
A7: Data Type | B7: Daily | D7: Daily | E7: d | M7: And
A8: Crumb | B8: NBZv3G6BYCh | D8: Weekly | E8: w | M8: https://www.stockmarketeye.com/users-guide/ticker-symbols-and-data-providers/data-providers.html
A9: Available Data | D9: Monthly | E9: m
A10: Bar Count: | B10: 7103 | M10: You may search on “exchange suffixes” for additional discussions | AD10: =OFFSET(AC15,1,0,1,1)/OFFSET(N15,1,0,1,1) -> 0.01352047636
A11: From: | B11: =IF(B10<=0,"",OFFSET(B15,B10,IF(HistReqDataType="v",1,0),1,1)) -> 1993-01-29 | W11: Trailing 12 Month Dividend Returns
A12: To: | B12: =IF(B10<=0,"",IF(HistReqDataType="v",OFFSET(B15,2,1,1,1),OFFSET(B15,1,0,1,1))) -> 2021-04-14 | W12: Raw Close price on Dividend date | X12: Div Year and Month | Y12: Looking for year ago Div Year and Month | Z12: Year ago Div Date we found | AA12: row offset to year ago div Date | AB12: Same month flag | AC12: Trailing 12 Div Total | AD12: Trailing 12 Div return
Q13: Split History | S13: 0 | T13: Running | U13: Dividend History
B14: Raw Data Values | H14: Adjusted | I14: Price Adjust | J14: Vol Adjust | K14: Adjusted Values | P14: Last | Q14: Effective | R14: Shares | T14: Vol Adjust | V14: 114
A15: RelRow | B15: Date | C15: Open | D15: High | E15: Low | F15: Close | G15: Volume | H15: Close | I15: Factor | J15: Factor | K15: Open | L15: High | M15: Low | N15: Close | O15: Volume | P15: Trade | Q15: 44301 | R15: New | S15: Old | T15: 1 | U15: Date | V15: $ / Share
A16: 1 | B16: 2021-04-14 | C16: 412.829987 | D16: 413.954987 | E16: 410.869995 | F16: 411.450012 | G16: 61786318 | H16: 411.450012 | I16: =IF(F16=0,1,H16/F16) -> 1 | J16: =INDEX(OFFSET($T$15,0,0,$S$13+1,1),MATCH(B16,OFFSET($Q$15,0,0,$S$13+1,1),-1)) -> 1 | K16: =ROUND($I16*C16,2) -> 412.83 | L16: =ROUND($I16*D16,2) -> 413.95 | M16: 410.87 | N16: 411.45 | O16: =G16*J16 -> 61786318 | U16: 2021-03-19 | V16: 1.278 | W16: =(INDEX(OFFSET($F$15,1,0,$B$10,1),MATCH(U16,OFFSET($B$15,1,0,$B$10,1),-1))) -> 389.480011 | X16: =YEAR(U16)&RIGHT("0"&MONTH(U16),2) -> 202103 | Y16: =YEAR(U16)-1&RIGHT("0"&MONTH(U16),2) -> 202003 | Z16: =OFFSET(U15,AA16,0,1,1) -> 2020-03-20 | AA16: =MATCH(Y16,OFFSET($X$15,A16,0,$V$14+1-A16,1),-1) -> 5 | AB16: =IF(OR(AND(YEAR(U16)=YEAR(Z16),MONTH(U16)=MONTH(Z16)),MONTH(U16)=MONTH(Z16)),1,0) -> 1 | AC16: =(V16+IF(AA16-AB16=0,0,IFERROR(SUM(OFFSET(V16,1,0,AA16-AB16-1,1)),0))) -> 5.563 | AD16: =AC16/(INDEX(OFFSET($F$15,1,0,$B$10,1),MATCH(U16,OFFSET($B$15,1,0,$B$10,1),-1))) -> 0.01428314636
A17: 2 | B17: 2021-04-13 | C17: 411.529999 | D17: 413.529999 | E17: 411.119995 | F17: 412.859985 | G17: 56453800 | H17: 412.859985 | I17: =IF(F17=0,1,H17/F17) -> 1 | J17: =INDEX(OFFSET($T$15,0,0,$S$13+1,1),MATCH(B17,OFFSET($Q$15,0,0,$S$13+1,1),-1)) -> 1 | K17: =ROUND($I17*C17,2) -> 411.53 | L17: =ROUND($I17*D17,2) -> 413.53 | M17: =ROUND($I17*E17,2) -> 411.12 | N17: =ROUND($I17*F17,2) -> 412.86 | O17: =G17*J17 -> 56453800 | U17: 2020-12-18 | V17: 1.58 | W17: =(INDEX(OFFSET($F$15,1,0,$B$10,1),MATCH(U17,OFFSET($B$15,1,0,$B$10,1),-1))) -> 369.179993 | X17: =YEAR(U17)&RIGHT("0"&MONTH(U17),2) -> 202012 | Y17: =YEAR(U17)-1&RIGHT("0"&MONTH(U17),2) -> 201912 | Z17: =OFFSET(U16,AA17,0,1,1) -> 2019-12-20 | AA17: =MATCH(Y17,OFFSET($X$15,A17,0,$V$14+1-A17,1),-1) -> 5 | AB17: =IF(OR(AND(YEAR(U17)=YEAR(Z17),MONTH(U17)=MONTH(Z17)),MONTH(U17)=MONTH(Z17)),1,0) -> 1 | AC17: =(V17+IF(AA17-AB17=0,0,IFERROR(SUM(OFFSET(V17,1,0,AA17-AB17-1,1)),0))) -> 5.691 | AD17: =AC17/(INDEX(OFFSET($F$15,1,0,$B$10,1),MATCH(U17,OFFSET($B$15,1,0,$B$10,1),-1))) -> 0.01541524489
A18: 3 | B18: 2021-04-12 | C18: 410.850006 | D18: 411.929993 | E18: 410.200012 | F18: 411.640015 | G18: 56704900 | H18: 411.640015 | I18: 1 | J18: 1 | K18: 410.85 | L18: 411.93 | M18: 410.2 | N18: 411.64 | O18: 56704900 | U18: 2020-09-18 | V18: 1.339 | W18: 330.649994 | X18: 202009 | Y18: 201909 | Z18: 2019-09-20 | AA18: 5 | AB18: 1 | AC18: 5.681 | AD18: 0.01718130985
A19: 4 | B19: 2021-04-09 | C19: 408.390015 | D19: 411.670013 | E19: 408.26001 | F19: 411.48999 | G19: 61060100 | H19: 411.48999 | I19: 1 | J19: 1 | K19: 408.39 | L19: 411.67 | M19: 408.26 | N19: 411.49 | O19: 61060100 | U19: 2020-06-19 | V19: 1.366 | W19: 308.640015 | X19: 202006 | Y19: 201906 | Z19: 2019-06-21 | AA19: 5 | AB19: 1 | AC19: 5.726 | AD19: 0.01855235783
A20: 5 | B20: 2021-04-08 | C20: 407.929993 | D20: 408.579987 | E20: 406.929993 | F20: 408.519989 | G20: 57863100 | H20: 408.519989 | I20: 1 | J20: 1 | K20: 407.93 | L20: 408.58 | M20: 406.93 | N20: 408.52 | O20: 57863100 | U20: 2020-03-20 | V20: 1.406 | W20: 228.800003 | X20: 202003 | Y20: 201903 | Z20: 2019-03-15 | AA20: 5 | AB20: 1 | AC20: 5.792 | AD20: 0.02531468498
A21: 6 | B21: 2021-04-07 | C21: 405.940002 | D21: 406.959991 | E21: 405.450012 | F21: 406.589996 | G21: 55836300 | H21: 406.589996 | I21: 1 | J21: 1 | K21: 405.94 | L21: 406.96 | M21: 405.45 | N21: 406.59 | O21: 55836300 | U21: 2019-12-20 | V21: 1.57 | W21: 320.730011 | X21: 201912 | Y21: 201812 | Z21: 2018-12-21 | AA21: 5 | AB21: 1 | AC21: 5.619 | AD21: 0.01751940825
A22: 7 | B22: 2021-04-06 | C22: 405.76001 | D22: 407.23999 | E22: 405.399994 | F22: 406.119995 | G22: 62021000 | H22: 406.119995 | I22: 1 | J22: 1 | K22: 405.76 | L22: 407.24 | M22: 405.4 | N22: 406.12 | O22: 62021000 | U22: 2019-09-20 | V22: 1.384 | W22: 298.279999 | X22: 201909 | Y22: 201809 | Z22: 2018-09-21 | AA22: 5 | AB22: 1 | AC22: 5.484 | AD22: 0.01838540974
A23: 8 | B23: 2021-04-05 | C23: 403.459991 | D23: 406.940002 | E23: 403.380005 | F23: 406.359985 | G23: 91684800 | H23: 406.359985 | I23: 1 | J23: 1 | K23: 403.46 | L23: 406.94 | M23: 403.38 | N23: 406.36 | O23: 91684800 | U23: 2019-06-21 | V23: 1.432 | W23: 294 | X23: 201906 | Y23: 201806 | Z23: 2018-06-15 | AA23: 5 | AB23: 1 | AC23: 5.423 | AD23: 0.01844557823
A24: 9 | B24: 2021-04-01 | C24: 398.399994 | D24: 400.670013 | E24: 398.179993 | F24: 400.609985 | G24: 99599100 | H24: 400.609985 | I24: 1 | J24: 1 | K24: 398.4 | L24: 400.67 | M24: 398.18 | N24: 400.61 | O24: 99599100 | U24: 2019-03-15 | V24: 1.233 | W24: 281.309998 | X24: 201903 | Y24: 201803 | Z24: 2018-03-16 | AA24: 5 | AB24: 1 | AC24: 5.237 | AD24: 0.01861647306
A25: 10 | B25: 2021-03-31 | C25: 395.339996 | D25: 398 | E25: 395.309998 | F25: 396.329987 | G25: 112734200 | H25: 396.329987 | I25: 1 | J25: 1 | K25: 395.34 | L25: 398 | M25: 395.31 | N25: 396.33 | O25: 112734200 | U25: 2018-12-21 | V25: 1.435 | W25: 240.699997 | X25: 201812 | Y25: 201712 | Z25: 2017-12-15 | AA25: 5 | AB25: 1 | AC25: 5.101 | AD25: 0.02119235589
A26: 11 | B26: 2021-03-30 | C26: 394.420013 | D26: 395.450012 | E26: 393.019989 | F26: 394.730011 | G26: 76262200 | H26: 394.730011 | I26: 1 | J26: 1 | K26: 394.42 | L26: 395.45 | M26: 393.02 | N26: 394.73 | O26: 76262200 | U26: 2018-09-21 | V26: 1.323 | W26: 291.98999 | X26: 201809 | Y26: 201709 | Z26: 2017-09-15 | AA26: 5 | AB26: 1 | AC26: 5.017 | AD26: 0.01718209587
A27: 12 | B27: 2021-03-29 | C27: 394.399994 | D27: 396.75 | E27: 392.809998 | F27: 395.779999 | G27: 108107600 | H27: 395.779999 | I27: 1 | J27: 1 | K27: 394.4 | L27: 396.75 | M27: 392.81 | N27: 395.78 | O27: 108107600 | U27: 2018-06-15 | V27: 1.246 | W27: 277.130005 | X27: 201806 | Y27: 201706 | Z27: 2017-06-16 | AA27: 5 | AB27: 1 | AC27: 4.929 | AD27: 0.01778587634
A28: 13 | B28: 2021-03-26 | C28: 390.929993 | D28: 396.410004 | E28: 390.290009 | F28: 395.980011 | G28: 113023400 | H28: 395.980011 | I28: 1 | J28: 1 | K28: 390.93 | L28: 396.41 | M28: 390.29 | N28: 395.98 | O28: 113023400 | U28: 2018-03-16 | V28: 1.097 | W28: 274.200012 | X28: 201803 | Y28: 201703 | Z28: 2017-03-17 | AA28: 5 | AB28: 1 | AC28: 4.866 | AD28: 0.0177461699
A29: 14 | B29: 2021-03-25 | C29: 385.980011 | D29: 390.549988 | E29: 383.899994 | F29: 389.700012 | G29: 116128600 | H29: 389.700012 | I29: 1 | J29: 1 | K29: 385.98 | L29: 390.55 | M29: 383.9 | N29: 389.7 | O29: 116128600 | U29: 2017-12-15 | V29: 1.351 | W29: 266.51001 | X29: 201712 | Y29: 201612 | Z29: 2016-12-16 | AA29: 5 | AB29: 1 | AC29: 4.802 | AD29: 0.01801808495
A30: 15 | B30: 2021-03-24 | C30: 391 | D30: 392.75 | E30: 387.470001 | F30: 387.519989 | G30: 97588600 | H30: 387.519989 | I30: 1 | J30: 1 | K30: 391 | L30: 392.75 | M30: 387.47 | N30: 387.52 | O30: 97588600 | U30: 2017-09-15 | V30: 1.235 | W30: 249.190002 | X30: 201709 | Y30: 201609 | Z30: 2016-09-16 | AA30: 5 | AB30: 1 | AC30: 4.78 | AD30: 0.01918215001
A31: 16 | B31: 2021-03-23 | C31: 391.910004 | D31: 393.459991 | E31: 388.660004 | F31: 389.5 | G31: 90686600 | H31: 389.5 | I31: 1 | J31: 1 | K31: 391.91 | L31: 393.46 | M31: 388.66 | N31: 389.5 | O31: 90686600 | U31: 2017-06-16 | V31: 1.183 | W31: 242.639999 | X31: 201706 | Y31: 201606 | Z31: 2016-06-17 | AA31: 5 | AB31: 1 | AC31: 4.627 | AD31: 0.01906940331
A32: 17 | B32: 2021-03-22 | C32: 390.029999 | D32: 394.070007 | E32: 389.970001 | F32: 392.589996 | G32: 73778600 | H32: 392.589996 | I32: 1 | J32: 1 | K32: 390.03 | L32: 394.07 | M32: 389.97 | N32: 392.59 | O32: 73778600 | U32: 2017-03-17 | V32: 1.033 | W32: 237.029999 | X32: 201703 | Y32: 201603 | Z32: 2016-03-18 | AA32: 5 | AB32: 1 | AC32: 4.522 | AD32: 0.01907775395
A33: 18 | B33: 2021-03-19 | C33: 389.880005 | D33: 391.570007 | E33: 387.149994 | F33: 389.480011 | G33: 112777800 | H33: 389.480011 | I33: 1 | J33: 1 | K33: 389.88 | L33: 391.57 | M33: 387.15 | N33: 389.48 | O33: 112777800 | U33: 2016-12-16 | V33: 1.329 | W33: 225.039993 | X33: 201612 | Y33: 201512 | Z33: 2015-12-18 | AA33: 5 | AB33: 1 | AC33: 4.539 | AD33: 0.02016974823
A34: 19 | B34: 2021-03-18 | C34: 394.480011 | D34: 396.720001 | E34: 390.75 | F34: 391.480011 | G34: 115112500 | H34: 390.201996 | I34: 0.9967354272 | J34: 1 | K34: 393.19 | L34: 395.42 | M34: 389.47 | N34: 390.2 | O34: 115112500 | U34: 2016-09-16 | V34: 1.082 | W34: 213.369995 | X34: 201609 | Y34: 201509 | Z34: 2015-09-18 | AA34: 5 | AB34: 1 | AC34: 4.422 | AD34: 0.02072456345
A35: 20 | B35: 2021-03-17 | C35: 394.529999 | D35: 398.119995 | E35: 393.299988 | F35: 397.26001 | G35: 91822000 | H35: 395.963135 | I35: 0.9967354504 | J35: 1 | K35: 393.24 | L35: 396.82 | M35: 392.02 | N35: 395.96 | O35: 91822000 | U35: 2016-06-17 | V35: 1.078 | W35: 206.520004 | X35: 201606 | Y35: 201506 | Z35: 2015-06-19 | AA35: 5 | AB35: 1 | AC35: 4.373 | AD35: 0.02117470422
A36: 21 | B36: 2021-03-16 | C36: 397.070007 | D36: 397.829987 | E36: 395.079987 | F36: 395.910004 | G36: 72958000 | H36: 394.617523 | I36: 0.9967354172 | J36: 1 | K36: 395.77 | L36: 396.53 | M36: 393.79 | N36: 394.62 | O36: 72958000 | U36: 2016-03-18 | V36: 1.05 | W36: 204.380005 | X36: 201603 | Y36: 201503 | Z36: 2015-03-20 | AA36: 5 | AB36: 1 | AC36: 4.325 | AD36: 0.02116156128
A37: 22 | B37: 2021-03-15 | C37: 394.329987 | D37: 396.690002 | E37: 392.029999 | F37: 396.410004 | G37: 73427200 | H37: 395.115906 | I37: 0.9967354557 | J37: 1 | K37: 393.04 | L37: 395.39 | M37: 390.75 | N37: 395.12 | O37: 73427200 | U37: 2015-12-18 | V37: 1.212 | W37: 200.020004 | X37: 201512 | Y37: 201412 | Z37: 2014-12-19 | AA37: 5 | AB37: 1 | AC37: 4.206 | AD37: 0.02102789679
A38: 23 | B38: 2021-03-12 | C38: 392.070007 | D38: 394.209991 | E38: 391.200012 | F38: 394.059998 | G38: 64608100 | H38: 392.77356 | I38: 0.9967354261 | J38: 1 | K38: 390.79 | L38: 392.92 | M38: 389.92 | N38: 392.77 | O38: 64608100 | U38: 2015-09-18 | V38: 1.033 | W38: 195.449997 | X38: 201509 | Y38: 201409 | Z38: 2014-09-19 | AA38: 5 | AB38: 1 | AC38: 4.129 | AD38: 0.0211256079
A39: 24 | B39: 2021-03-11 | C39: 392.230011 | D39: 395.649994 | E39: 391.73999 | F39: 393.529999 | G39: 86027400 | H39: 392.2453 | I39: 0.9967354484 | J39: 1 | K39: 390.95 | L39: 394.36 | M39: 390.46 | N39: 392.25 | O39: 86027400 | U39: 2015-06-19 | V39: 1.03 | W39: 210.809998 | X39: 201506 | Y39: 201406 | Z39: 2014-06-20 | AA39: 5 | AB39: 1 | AC39: 4.035 | AD39: 0.01914045841
A40: 25 | B40: 2021-03-10 | C40: 389.690002 | D40: 391.399994 | E40: 388.170013 | F40: 389.579987 | G40: 109660800 | H40: 388.308197 | I40: 0.9967354843 | J40: 1 | K40: 388.42 | L40: 390.12 | M40: 386.9 | N40: 388.31 | O40: 109660800 | U40: 2015-03-20 | V40: 0.931 | W40: 210.410004 | X40: 201503 | Y40: 201403 | Z40: 2014-03-21 | AA40: 5 | AB40: 1 | AC40: 3.942 | AD40: 0.01873485065
A41: 26 | B41: 2021-03-09 | C41: 385.850006 | D41: 389.910004 | E41: 385.309998 | F41: 387.170013 | G41: 113457800 | H41: 385.906067 | I41: 0.9967354238 | J41: 1 | K41: 384.59 | L41: 388.64 | M41: 384.05 | N41: 385.91 | O41: 113457800 | U41: 2014-12-19 | V41: 1.135 | W41: 206.520004 | X41: 201412 | Y41: 201312 | Z41: 2013-12-20 | AA41: 5 | AB41: 1 | AC41: 3.836 | AD41: 0.01857447185
A42: 27 | B42: 2021-03-08 | C42: 384.660004 | D42: 387.679993 | E42: 381.420013 | F42: 381.720001 | G42: 122957100 | H42: 380.473846 | I42: 0.9967354213 | J42: 1 | K42: 383.4 | L42: 386.41 | M42: 380.17 | N42: 380.47 | O42: 122957100 | U42: 2014-09-19 | V42: 0.939 | W42: 200.699997 | X42: 201409 | Y42: 201309 | Z42: 2013-09-20 | AA42: 5 | AB42: 1 | AC42: 3.681 | AD42: 0.01834080745
A43: 28 | B43: 2021-03-05 | C43: 380.459991 | D43: 384.76001 | E43: 372.640015 | F43: 383.630005 | G43: 151959800 | H43: 382.377625 | I43: 0.9967354483 | J43: 1 | K43: 379.22 | L43: 383.5 | M43: 371.42 | N43: 382.38 | O43: 151959800 | U43: 2014-06-20 | V43: 0.937 | W43: 195.940002 | X43: 201406 | Y43: 201306 | Z43: 2013-06-21 | AA43: 5 | AB43: 1 | AC43: 3.58 | AD43: 0.01827089907
A44: 29 | B44: 2021-03-04 | C44: 381.220001 | D44: 384 | E44: 371.880005 | F44: 376.700012 | G44: 182856500 | H44: 375.470245 | I44: 0.9967354209 | J44: 1 | K44: 379.98 | L44: 382.75 | M44: 370.67 | N44: 375.47 | O44: 182856500 | U44: 2014-03-21 | V44: 0.825 | W44: 186.199997 | X44: 201403 | Y44: 201303 | Z44: 2013-03-15 | AA44: 5 | AB44: 1 | AC44: 3.482 | AD44: 0.01870032254
A45: 30 | B45: 2021-03-03 | C45: 385.790009 | D45: 386.829987 | E45: 381.309998 | F45: 381.420013 | G45: 119482700 | H45: 380.174835 | I45: 0.9967354151 | J45: 1 | K45: 384.53 | L45: 385.57 | M45: 380.07 | N45: 380.17 | O45: 119482700 | U45: 2013-12-20 | V45: 0.98 | W45: 181.559998 | X45: 201312 | Y45: 201212 | Z45: 2012-12-21 | AA45: 5 | AB45: 1 | AC45: 3.351 | AD45: 0.01845670873
A46: 31 | B46: 2021-03-02 | C46: 389.820007 | D46: 390.070007 | E46: 386 | F46: 386.540009 | G46: 79389200 | H46: 385.278137 | I46: 0.9967354686 | J46: 1 | K46: 388.55 | L46: 388.8 | M46: 384.74 | N46: 385.28 | O46: 79389200 | U46: 2013-09-20 | V46: 0.838 | W46: 170.720001 | X46: 201309 | Y46: 201209 | Z46: 2012-09-21 | AA46: 5 | AB46: 1 | AC46: 3.393 | AD46: 0.01987464843
A47: 32 | B47: 2021-03-01 | C47: 385.589996 | D47: 390.920013 | E47: 380.570007 | F47: 389.579987 | G47: 104945700 | H47: 388.308197 | I47: 0.9967354843 | J47: 1 | K47: 384.33 | L47: 389.64 | M47: 379.33 | N47: 388.31 | O47: 104945700 | U47: 2013-06-21 | V47: 0.839 | W47: 159.070007 | X47: 201306 | Y47: 201206 | Z47: 2012-06-15 | AA47: 5 | AB47: 1 | AC47: 3.334 | AD47: 0.02095932516
A48: 33 | B48: 2021-02-26 | C48: 384.350006 | D48: 385.579987 | E48: 378.230011 | F48: 380.359985 | G48: 152534900 | H48: 379.118286 | I48: 0.9967354636 | J48: 1 | K48: 383.1 | L48: 384.32 | M48: 377 | N48: 379.12 | O48: 152534900 | U48: 2013-03-15 | V48: 0.694 | W48: 155.830002 | X48: 201303 | Y48: 201203 | Z48: 2012-03-16 | AA48: 5 | AB48: 1 | AC48: 3.183 | AD48: 0.02042610511
A49: 34 | B49: 2021-02-25 | C49: 390.410004 | D49: 391.880005 | E49: 380.779999 | F49: 382.329987 | G49: 146670500 | H49: 381.081848 | I49: 0.9967354405 | J49: 1 | K49: 389.14 | L49: 390.6 | M49: 379.54 | N49: 381.08 | O49: 146670500 | U49: 2012-12-21 | V49: 1.022 | W49: 142.789993 | X49: 201212 | Y49: 201112 | Z49: 2011-12-16 | AA49: 5 | AB49: 1 | AC49: 3.103 | AD49: 0.02173121474
A50: 35 | B50: 2021-02-24 | C50: 386.329987 | D50: 392.230011 | E50: 385.269989 | F50: 391.769989 | G50: 72433900 | H50: 390.491028 | I50: 0.9967354289 | J50: 1 | K50: 385.07 | L50: 390.95 | M50: 384.01 | N50: 390.49 | O50: 72433900 | U50: 2012-09-21 | V50: 0.779 | W50: 145.869995 | X50: 201209 | Y50: 201109 | Z50: 2011-09-16 | AA50: 5 | AB50: 1 | AC50: 2.851 | AD50: 0.01954480083
A51: 36 | B51: 2021-02-23 | C51: 384.660004 | D51: 388.950012 | E51: 380.200012 | F51: 387.5 | G51: 107284100 | H51: 386.234985 | I51: 0.9967354452 | J51: 1 | K51: 383.4 | L51: 387.68 | M51: 378.96 | N51: 386.23 | O51: 107284100 | U51: 2012-06-15 | V51: 0.688 | W51: 134.139999 | X51: 201206 | Y51: 201106 | Z51: 2011-06-17 | AA51: 5 | AB51: 1 | AC51: 2.697 | AD51: 0.0201058597
A52: 37 | B52: 2021-02-22 | C52: 387.059998 | D52: 389.619995 | E52: 386.73999 | F52: 387.029999 | G52: 67414200 | H52: 385.76651 | I52: 0.9967354236 | J52: 1 | K52: 385.8 | L52: 388.35 | M52: 385.48 | N52: 385.77 | O52: 67414200 | U52: 2012-03-16 | V52: 0.614 | W52: 140.300003 | X52: 201203 | Y52: 201103 | Z52: 2011-03-18 | AA52: 5 | AB52: 1 | AC52: 2.637 | AD52: 0.01879543794
A53: 38 | B53: 2021-02-19 | C53: 392.070007 | D53: 392.380005 | E53: 389.549988 | F53: 390.029999 | G53: 83241000 | H53: 388.756714 | I53: 0.9967354178 | J53: 1 | K53: 390.79 | L53: 391.1 | M53: 388.28 | N53: 388.76 | O53: 83241000 | U53: 2011-12-16 | V53: 0.77 | W53: 121.589996 | X53: 201112 | Y53: 201012 | Z53: 2010-12-17 | AA53: 5 | AB53: 1 | AC53: 2.576 | AD53: 0.02118595349
A54: 39 | B54: 2021-02-18 | C54: 389.589996 | D54: 391.519989 | E54: 387.73999 | F54: 390.720001 | G54: 59712800 | H54: 389.444489 | I54: 0.9967354832 | J54: 1 | K54: 388.32 | L54: 390.24 | M54: 386.47 | N54: 389.44 | O54: 59712800 | U54: 2011-09-16 | V54: 0.625 | W54: 121.519997 | X54: 201109 | Y54: 201009 | Z54: 2010-09-17 | AA54: 5 | AB54: 1 | AC54: 2.459 | AD54: 0.0202353527
A55: 40 | B55: 2021-02-17 | C55: 390.420013 | D55: 392.660004 | E55: 389.329987 | F55: 392.390015 | G55: 52290600 | H55: 391.109039 | I55: 0.9967354521 | J55: 1 | K55: 389.15 | L55: 391.38 | M55: 388.06 | N55: 391.11 | O55: 52290600 | U55: 2011-06-17 | V55: 0.628 | W55: 127.050003 | X55: 201106 | Y55: 201006 | Z55: 2010-06-18 | AA55: 5 | AB55: 1 | AC55: 2.436 | AD55: 0.01917355327
A56: 41 | B56: 2021-02-16 | C56: 393.959991 | D56: 394.170013 | E56: 391.529999 | F56: 392.299988 | G56: 50972400 | H56: 391.019318 | I56: 0.9967354829 | J56: 1 | K56: 392.67 | L56: 392.88 | M56: 390.25 | N56: 391.02 | O56: 50972400 | U56: 2011-03-18 | V56: 0.553 | W56: 127.760002 | X56: 201103 | Y56: 201003 | Z56: 2010-03-19 | AA56: 5 | AB56: 1 | AC56: 2.339 | AD56: 0.01830776427
A57: 42 | B57: 2021-02-12 | C57: 389.850006 | D57: 392.899994 | E57: 389.769989 | F57: 392.640015 | G57: 50505700 | H57: 391.358215 | I57: 0.9967354321 | J57: 1 | K57: 388.58 | L57: 391.62 | M57: 388.5 | N57: 391.36 | O57: 50505700 | U57: 2010-12-17 | V57: 0.653 | W57: 124.300003 | X57: 201012 | Y57: 200912 | Z57: 2009-12-18 | AA57: 5 | AB57: 1 | AC57: 2.266 | AD57: 0.01823008806
A58: 43 | B58: 2021-02-11 | C58: 391.23999 | D58: 391.690002 | E58: 388.100006 | F58: 390.709991 | G58: 42755400 | H58: 389.434509 | I58: 0.9967354764 | J58: 1 | K58: 389.96 | L58: 390.41 | M58: 386.83 | N58: 389.43 | O58: 42755400 | U58: 2010-09-17 | V58: 0.602 | W58: 112.489998 | X58: 201009 | Y58: 200909 | Z58: 2009-09-18 | AA58: 5 | AB58: 1 | AC58: 2.203 | AD58: 0.01958396337
A59: 44 | B59: 2021-02-10 | C59: 392.119995 | D59: 392.279999 | E59: 387.5 | F59: 390.079987 | G59: 59154400 | H59: 388.806549 | I59: 0.9967354439 | J59: 1 | K59: 390.84 | L59: 391 | M59: 386.23 | N59: 388.81 | O59: 59154400 | U59: 2010-06-18 | V59: 0.531 | W59: 111.730003 | X59: 201006 | Y59: 200906 | Z59: 2009-06-19 | AA59: 5 | AB59: 1 | AC59: 2.109 | AD59: 0.01887586094
A60: 45 | B60: 2021-02-09 | C60: 389.609985 | D60: 390.890015 | E60: 389.170013 | F60: 390.25 | G60: 35551100 | H60: 388.976013 | I60: 0.9967354593 | J60: 1 | K60: 388.34 | L60: 389.61 | M60: 387.9 | N60: 388.98 | O60: 35551100 | U60: 2010-03-19 | V60: 0.48 | W60: 115.970001 | X60: 201003 | Y60: 200903 | Z60: 2009-03-20 | AA60: 5 | AB60: 1 | AC60: 2.096 | AD60: 0.01807363958
A61: 46 | B61: 2021-02-08 | C61: 389.269989 | D61: 390.559998 | E61: 388.350006 | F61: 390.51001 | G61: 38365200 | H61: 389.235168 | I61: 0.9967354435 | J61: 1 | K61: 388 | L61: 389.28 | M61: 387.08 | N61: 389.24 | O61: 38365200 | U61: 2009-12-18 | V61: 0.59 | W61: 110.209999 | X61: 200912 | Y61: 200812 | Z61: 2008-12-19 | AA61: 5 | AB61: 1 | AC61: 2.177 | AD61: 0.01975319862
A62: 47 | B62: 2021-02-05 | C62: 388.200012 | D62: 388.470001 | E62: 386.140015 | F62: 387.709991 | G62: 48620300 | H62: 386.444305 | I62: 0.9967354826 | J62: 1 | K62: 386.93 | L62: 387.2 | M62: 384.88 | N62: 386.44 | O62: 48620300 | U62: 2009-09-18 | V62: 0.508 | W62: 106.720001 | X62: 200909 | Y62: 200809 | Z62: 2008-09-19 | AA62: 5 | AB62: 1 | AC62: 2.306 | AD62: 0.02160794582
A63: 48 | B63: 2021-02-04 | C63: 382.959991 | D63: 386.23999 | E63: 381.970001 | F63: 386.190002 | G63: 47142600 | H63: 384.92926 | I63: 0.9967354359 | J63: 1 | K63: 381.71 | L63: 384.98 | M63: 380.72 | N63: 384.93 | O63: 47142600 | U63: 2009-06-19 | V63: 0.518 | W63: 92.040001 | X63: 200906 | Y63: 200806 | Z63: 2008-06-20 | AA63: 5 | AB63: 1 | AC63: 2.489 | AD63: 0.02704258988
A64: 49 | B64: 2021-02-03 | C64: 382.440002 | D64: 383.700012 | E64: 380.480011 | F64: 381.850006 | G64: 52427100 | H64: 380.603424 | I64: 0.9967354145 | J64: 1 | K64: 381.19 | L64: 382.45 | M64: 379.24 | N64: 380.6 | O64: 52427100 | U64: 2009-03-20 | V64: 0.561 | W64: 76.709999 | X64: 200903 | Y64: 200803 | Z64: 2008-03-20 | AA64: 5 | AB64: 1 | AC64: 2.64 | AD64: 0.03441533091
A65: 50 | B65: 2021-02-02 | C65: 379.649994 | D65: 383.220001 | E65: 376.320007 | F65: 381.549988 | G65: 64450700 | H65: 380.304413 | I65: 0.9967354867 | J65: 1 | K65: 378.41 | L65: 381.97 | M65: 375.09 | N65: 380.3 | O65: 64450700 | U65: 2008-12-19 | V65: 0.719 | W65: 88.190002 | X65: 200812 | Y65: 200712 | Z65: 2007-12-21 | AA65: 5 | AB65: 1 | AC65: 2.721 | AD65: 0.0308538376
A66: 51 | B66: 2021-02-01 | C66: 373.720001 | D66: 377.339996 | E66: 370.380005 | F66: 376.230011 | G66: 75817600 | H66: 375.001801 | I66: 0.9967354811 | J66: 1 | K66: 372.5 | L66: 376.11 | M66: 369.17 | N66: 375 | O66: 75817600 | U66: 2008-09-19 | V66: 0.691 | W66: 124.120003 | X66: 200809 | Y66: 200709 | Z66: 2007-09-21 | AA66: 5 | AB66: 1 | AC66: 2.777 | AD66: 0.02237350897
A67: 52 | B67: 2021-01-29 | C67: 375.630005 | D67: 376.670013 | E67: 368.269989 | F67: 370.070007 | G67: 126618400 | H67: 368.861908 | I67: 0.9967354852 | J67: 1 | K67: 374.4 | L67: 375.44 | M67: 367.07 | N67: 368.86 | O67: 126618400 | U67: 2008-06-20 | V67: 0.669 | W67: 131.580002 | X67: 200806 | Y67: 200706 | Z67: 2007-06-15 | AA67: 5 | AB67: 1 | AC67: 2.805 | AD67: 0.02131782913
A68: 53 | B68: 2021-01-28 | C68: 376.359985 | D68: 381.929993 | E68: 375.890015 | F68: 377.630005 | G68: 94198100 | H68: 376.397217 | I68: 0.9967354607 | J68: 1 | K68: 375.13 | L68: 380.68 | M68: 374.66 | N68: 376.4 | O68: 94198100 | U68: 2008-03-20 | V68: 0.642 | W68: 132.080002 | X68: 200803 | Y68: 200703 | Z68: 2007-03-16 | AA68: 5 | AB68: 1 | AC68: 2.792 | AD68: 0.0211387035
A69: 54 | B69: 2021-01-27 | C69: 380.220001 | D69: 380.320007 | E69: 372.01001 | F69: 374.410004 | G69: 123351100 | H69: 373.187714 | I69: 0.9967354238 | J69: 1 | K69: 378.98 | L69: 379.08 | M69: 370.8 | N69: 373.19 | O69: 123351100 | U69: 2007-12-21 | V69: 0.775 | W69: 148.130005 | X69: 200712 | Y69: 200612 | Z69: 2006-12-15 | AA69: 5 | AB69: 1 | AC69: 2.701 | AD69: 0.01823398305
A70: 55 | B70: 2021-01-26 | C70: 385.410004 | D70: 385.850006 | E70: 383.540009 | F70: 383.790009 | G70: 42665300 | H70: 382.537109 | I70: 0.9967354544 | J70: 1 | K70: 384.15 | L70: 384.59 | M70: 382.29 | N70: 382.54 | O70: 42665300 | U70: 2007-09-21 | V70: 0.719 | W70: 151.970001 | X70: 200709 | Y70: 200609 | Z70: 2006-09-15 | AA70: 5 | AB70: 1 | AC70: 2.719 | AD70: 0.01789168903
A71: 56 | B71: 2021-01-25 | C71: 383.670013 | D71: 384.769989 | E71: 378.459991 | F71: 384.390015 | G71: 70402000 | H71: 383.135162 | I71: 0.9967354693 | J71: 1 | K71: 382.42 | L71: 383.51 | M71: 377.22 | N71: 383.14 | O71: 70402000 | U71: 2007-06-15 | V71: 0.656 | W71: 153.070007 | X71: 200706 | Y71: 200606 | Z71: 2006-06-16 | AA71: 5 | AB71: 1 | AC71: 2.579 | AD71: 0.01684849992
A72: 57 | B72: 2021-01-22 | C72: 382.25 | D72: 384.130005 | E72: 381.839996 | F72: 382.880005 | G72: 52860500 | H72: 381.630066 | I72: 0.9967354289 | J72: 1 | K72: 381 | L72: 382.88 | M72: 380.59 | N72: 381.63 | O72: 52860500 | U72: 2007-03-16 | V72: 0.551 | W72: 138.529999 | X72: 200703 | Y72: 200603 | Z72: 2006-03-17 | AA72: 5 | AB72: 1 | AC72: 2.478 | AD72: 0.01788782226
A73: 58 | B73: 2021-01-21 | C73: 384.48999 | D73: 384.950012 | E73: 383.25 | F73: 384.23999 | G73: 47955800 | H73: 382.985626 | I73: 0.9967354673 | J73: 1 | K73: 383.23 | L73: 383.69 | M73: 382 | N73: 382.99 | O73: 47955800 | U73: 2006-12-15 | V73: 0.793 | W73: 142.339996 | X73: 200612 | Y73: 200512 | Z73: 2005-12-16 | AA73: 5 | AB73: 1 | AC73: 2.446 | AD73: 0.01718420731
A74: 59 | B74: 2021-01-20 | C74: 381.109985 | D74: 384.790009 | E74: 380.690002 | F74: 383.890015 | G74: 61836100 | H74: 382.63678 | I74: 0.9967354322 | J74: 1 | K74: 379.87 | L74: 383.53 | M74: 379.45 | N74: 382.64 | O74: 61836100 | U74: 2006-09-15 | V74: 0.579 | W74: 131.960007 | X74: 200609 | Y74: 200509 | Z74: 2005-09-16 | AA74: 5 | AB74: 1 | AC74: 2.325 | AD74: 0.01761897451
A75: 60 | B75: 2021-01-19 | C75: 378.339996 | D75: 379.230011 | E75: 376.75 | F75: 378.649994 | G75: 51233300 | H75: 377.413879 | I75: 0.9967354681 | J75: 1 | K75: 377.1 | L75: 377.99 | M75: 375.52 | N75: 377.41 | O75: 51233300 | U75: 2006-06-16 | V75: 0.555 | W75: 124.650002 | X75: 200606 | Y75: 200506 | Z75: 2005-06-17 | AA75: 5 | AB75: 1 | AC75: 2.268 | AD75: 0.01819494556
A76: 61 | B76: 2021-01-15 | C76: 376.720001 | D76: 377.579987 | E76: 373.700012 | F76: 375.700012 | G76: 107160000 | H76: 374.473511 | I76: 0.9967354246 | J76: 1 | K76: 375.49 | L76: 376.35 | M76: 372.48 | N76: 374.47 | O76: 107160000 | U76: 2006-03-17 | V76: 0.519 | W76: 130.619995 | X76: 200603 | Y76: 200503 | Z76: 2005-03-18 | AA76: 5 | AB76: 1 | AC76: 2.201 | AD76: 0.0168504064
A77: 62 | B77: 2021-01-14 | C77: 380.589996 | D77: 381.130005 | E77: 378.100006 | F77: 378.459991 | G77: 49989100 | H77: 377.224487 | I77: 0.9967354436 | J77: 1 | K77: 379.35 | L77: 379.89 | M77: 376.87 | N77: 377.22 | O77: 49989100 | U77: 2005-12-16 | V77: 0.672 | W77: 126.360001 | X77: 200512 | Y77: 200412 | Z77: 2004-12-17 | AA77: 5 | AB77: 1 | AC77: 2.149 | AD77: 0.01700696409
A78: 63 | B78: 2021-01-13 | C78: 378.690002 | D78: 380.859985 | E78: 377.850006 | F78: 379.790009 | G78: 45303600 | H78: 378.550171 | I78: 0.9967354644 | J78: 1 | K78: 377.45 | L78: 379.62 | M78: 376.62 | N78: 378.55 | O78: 45303600 | U78: 2005-09-16 | V78: 0.522 | W78: 123.5 | X78: 200509 | Y78: 200409 | Z78: 2004-09-17 | AA78: 6 | AB78: 1 | AC78: 2.396 | AD78: 0.01940080972
A79: 64 | B79: 2021-01-12 | C79: 378.890015 | D79: 379.859985 | E79: 376.359985 | F79: 378.769989 | G79: 52547700 | H79: 377.533478 | I79: 0.9967354568 | J79: 1 | K79: 377.65 | L79: 378.62 | M79: 375.13 | N79: 377.53 | O79: 52547700 | U79: 2005-06-17 | V79: 0.488 | W79: 121.360001 | X79: 200506 | Y79: 200406 | Z79: 2004-06-18 | AA79: 6 | AB79: 1 | AC79: 2.343 | AD79: 0.01930619628
A80: 65 | B80: 2021-01-11 | C80: 377.850006 | D80: 380.579987 | E80: 377.720001 | F80: 378.690002 | G80: 51176700 | H80: 377.453766 | I80: 0.9967354934 | J80: 1 | K80: 376.62 | L80: 379.34 | M80: 376.49 | N80: 377.45 | O80: 51176700 | U80: 2005-03-18 | V80: 0.467 | W80: 118.540001 | X80: 200503 | Y80: 200403 | Z80: 2004-03-19 | AA80: 6 | AB80: 1 | AC80: 2.269 | AD80: 0.01914121799
A81: 66 | B81: 2021-01-08 | C81: 380.589996 | D81: 381.48999 | E81: 377.100006 | F81: 381.26001 | G81: 71677200 | H81: 380.015381 | I81: =IF(F81=0,1,H81/F81) -> 0.9967354851 | J81: =INDEX(OFFSET($T$15,0,0,$S$13+1,1),MATCH(B81,OFFSET($Q$15,0,0,$S$13+1,1),-1)) -> 1 | K81: =ROUND($I81*C81,2) -> 379.35 | L81: =ROUND($I81*D81,2) -> 380.24 | M81: =ROUND($I81*E81,2) -> 375.87 | N81: =ROUND($I81*F81,2) -> 380.02 | O81: =G81*J81 -> 71677200 | U81: 2004-12-17 | V81: 0.568 | W81: =(INDEX(OFFSET($F$15,1,0,$B$10,1),MATCH(U81,OFFSET($B$15,1,0,$B$10,1),-1))) -> 119.440002 | X81: =YEAR(U81)&RIGHT("0"&MONTH(U81),2) -> 200412 | Y81: =YEAR(U81)-1&RIGHT("0"&MONTH(U81),2) -> 200312 | Z81: =OFFSET(U80,AA81,0,1,1) -> 2003-12-19 | AA81: =MATCH(Y81,OFFSET($X$15,A81,0,$V$14+1-A81,1),-1) -> 6 | AB81: =IF(OR(AND(YEAR(U81)=YEAR(Z81),MONTH(U81)=MONTH(Z81)),MONTH(U81)=MONTH(Z81)),1,0) -> 1 | AC81: =(V81+IF(AA81-AB81=0,0,IFERROR(SUM(OFFSET(V81,1,0,AA81-AB81-1,1)),0))) -> 2.197 | AD81: =AC81/(INDEX(OFFSET($F$15,1,0,$B$10,1),MATCH(U81,OFFSET($B$15,1,0,$B$10,1),-1))) -> 0.0183941725
A82: 67 | B82: 2021-01-07 | C82: 376.100006 | D82: 379.899994 | E82: 375.910004 | F82: 379.100006 | G82: 68766800 | H82: 377.862427 | I82: 0.9967354815 | J82: 1 | K82: 374.87 | L82: 378.66 | M82: 374.68 | N82: 377.86 | O82: 68766800 | U82: 2004-11-15 | V82: 0.351 | W82: 118.730003 | X82: 200411 | Y82: 200311 | Z82: 2003-12-19 | AA82: 5 | AB82: 0 | AC82: 2.145 | AD82: 0.01806620017
A83: 68 | B83: 2021-01-06 | C83: 369.709991 | D83: 376.980011 | E83: 369.119995 | F83: 373.549988 | G83: 107997700 | H83: 372.330505 | I83: 0.9967354222 | J83: 1 | K83: 368.5 | L83: 375.75 | M83: 367.91 | N83: 372.33 | O83: 107997700 | U83: 2004-09-17 | V83: 0.469 | W83: 113.150002 | X83: 200409 | Y83: 200309 | Z83: 2003-09-19 | AA83: 5 | AB83: 1 | AC83: 1.794 | AD83: 0.01585505938
A84: 69 | B84: 2021-01-05 | C84: 368.100006 | D84: 372.5 | E84: 368.049988 | F84: 371.329987 | G84: 66426200 | H84: 370.117767 | I84: 0.9967354643 | J84: 1 | K84: 366.9 | L84: 371.28 | M84: 366.85 | N84: 370.12 | O84: 66426200 | U84: 2004-06-18 | V84: 0.414 | W84: 113.629997 | X84: 200406 | Y84: 200306 | Z84: 2003-06-20 | AA84: 5 | AB84: 1 | AC84: 1.725 | AD84: 0.01518085053
A85: 70 | B85: 2021-01-04 | C85: 375.309998 | D85: 375.450012 | E85: 364.820007 | F85: 368.790009 | G85: 110210800 | H85: 367.58609 | I85: 0.9967354891 | J85: 1 | K85: 374.08 | L85: 374.22 | M85: 363.63 | N85: 367.59 | O85: 110210800 | U85: 2004-03-19 | V85: 0.395 | W85: 111.059998 | X85: 200403 | Y85: 200303 | Z85: 2003-03-21 | AA85: 5 | AB85: 1 | AC85: 1.671 | AD85: 0.01504592139
A86: 71 | B86: 2020-12-31 | C86: 371.779999 | D86: 374.660004 | E86: 371.230011 | F86: 373.880005 | G86: 78520700 | H86: 372.659454 | I86: 0.9967354472 | J86: 1 | K86: 370.57 | L86: 373.44 | M86: 370.02 | N86: 372.66 | O86: 78520700 | U86: 2003-12-19 | V86: 0.516 | W86: 108.900002 | X86: 200312 | Y86: 200212 | Z86: 2002-12-20 | AA86: 5 | AB86: 1 | AC86: 1.63 | AD86: 0.01496786015
A87: 72 | B87: 2020-12-30 | C87: 372.339996 | D87: 373.100006 | E87: 371.570007 | F87: 371.98999 | G87: 49455300 | H87: 370.775604 | I87: 0.9967354337 | J87: 1 | K87: 371.12 | L87: 371.88 | M87: 370.36 | N87: 370.78 | O87: 49455300 | U87: 2003-09-19 | V87: 0.4 | W87: 103.669998 | X87: 200309 | Y87: 200209 | Z87: 2002-09-20 | AA87: 5 | AB87: 1 | AC87: 1.55 | AD87: 0.01495128803
A88: 73 | B88: 2020-12-29 | C88: 373.809998 | D88: 374 | E88: 370.829987 | F88: 371.459991 | G88: 53680500 | H88: 370.247345 | I88: 0.99673546 | J88: 1 | K88: 372.59 | L88: 372.78 | M88: 369.62 | N88: 370.25 | O88: 53680500 | U88: 2003-06-20 | V88: 0.36 | W88: 99.440002 | X88: 200306 | Y88: 200206 | Z88: 2002-06-21 | AA88: 5 | AB88: 1 | AC88: 1.528 | AD88: 0.01536604957
A89: 74 | B89: 2020-12-28 | C89: 371.73999 | D89: 372.589996 | E89: 371.070007 | F89: 372.170013 | G89: 39000400 | H89: 370.955048 | I89: 0.996735457 | J89: 1 | K89: 370.53 | L89: 371.37 | M89: 369.86 | N89: 370.96 | O89: 39000400 | U89: 2003-03-21 | V89: 0.354 | W89: 89.669998 | X89: 200303 | Y89: 200203 | Z89: 2002-03-15 | AA89: 5 | AB89: 1 | AC89: 1.521 | AD89: 0.01696219509
A90: 75 | B90: 2020-12-24 | C90: 368.079987 | D90: 369.029999 | E90: 367.450012 | F90: 369 | G90: 26457900 | H90: 367.79538 | I90: 0.9967354472 | J90: 1 | K90: 366.88 | L90: 367.83 | M90: 366.25 | N90: 367.8 | O90: 26457900 | U90: 2002-12-20 | V90: 0.436 | W90: 89.989998 | X90: 200212 | Y90: 200112 | Z90: 2001-12-21 | AA90: 5 | AB90: 1 | AC90: 1.498 | AD90: 0.0166462944
A91: 76 | B91: 2020-12-23 | C91: 368.279999 | D91: 369.619995 | E91: 367.220001 | F91: 367.570007 | G91: 46201400 | H91: 366.370056 | I91: 0.9967354491 | J91: 1 | K91: 367.08 | L91: 368.41 | M91: 366.02 | N91: 366.37 | O91: 46201400 | U91: 2002-09-20 | V91: 0.378 | W91: 84.349998 | X91: 200209 | Y91: 200109 | Z91: 2001-09-21 | AA91: 5 | AB91: 1 | AC91: 1.455 | AD91: 0.01724955583
A92: 77 | B92: 2020-12-22 | C92: 368.209991 | D92: 368.329987 | E92: 366.029999 | F92: 367.23999 | G92: 47949000 | H92: 366.041107 | I92: 0.9967354236 | J92: 1 | K92: 367.01 | L92: 367.13 | M92: 364.84 | N92: 366.04 | O92: 47949000 | U92: 2002-06-21 | V92: 0.353 | W92: 99.279999 | X92: 200206 | Y92: 200106 | Z92: 2001-06-15 | AA92: 5 | AB92: 1 | AC92: 1.446 | AD92: 0.01456486719
A93: 78 | B93: 2020-12-21 | C93: 364.970001 | D93: 378.459991 | E93: 362.029999 | F93: 367.859985 | G93: 96386700 | H93: 366.659088 | I93: 0.9967354509 | J93: 1 | K93: 363.78 | L93: 377.22 | M93: 360.85 | N93: 366.66 | O93: 96386700 | U93: 2002-03-15 | V93: 0.331 | W93: 116.650002 | X93: 200203 | Y93: 200103 | Z93: 2001-03-16 | AA93: 5 | AB93: 1 | AC93: 1.439 | AD93: 0.0123360478
A94: 79 | B94: 2020-12-18 | C94: 370.970001 | D94: 371.149994 | E94: 367.019989 | F94: 369.179993 | G94: 136542300 | H94: 367.974792 | I94: 0.996735465 | J94: 1 | K94: 369.76 | L94: 369.94 | M94: 365.82 | N94: 367.97 | O94: 136542300 | U94: 2001-12-21 | V94: 0.393 | W94: 114.949997 | X94: 200112 | Y94: 200012 | Z94: 2000-12-15 | AA94: 5 | AB94: 1 | AC94: 1.424 | AD94: 0.0123879951
A95: 80 | B95: 2020-12-17 | C95: 371.940002 | D95: 372.459991 | E95: 371.049988 | F95: 372.23999 | G95: 64119500 | H95: 369.449982 | I95: 0.9925048139 | J95: 1 | K95: 369.15 | L95: 369.67 | M95: 368.27 | N95: 369.45 | O95: 64119500 | U95: 2001-09-21 | V95: 0.369 | W95: 97.279999 | X95: 200109 | Y95: 200009 | Z95: 2000-09-15 | AA95: 5 | AB95: 1 | AC95: 1.442 | AD95: 0.01482319094
A96: 81 | B96: 2020-12-16 | C96: 369.820007 | D96: 371.160004 | E96: 368.869995 | F96: 370.170013 | G96: 58420500 | H96: 367.395508 | I96: 0.9925047819 | J96: 1 | K96: 367.05 | L96: 368.38 | M96: 366.11 | N96: 367.4 | O96: 58420500 | U96: 2001-06-15 | V96: 0.346 | W96: 121.849998 | X96: 200106 | Y96: 200006 | Z96: 2000-06-16 | AA96: 5 | AB96: 1 | AC96: 1.448 | AD96: 0.01188346347
A97: 82 | B97: 2020-12-15 | C97: 367.399994 | D97: 369.589996 | E97: 365.920013 | F97: 369.589996 | G97: 64071100 | H97: 366.819824 | I97: 0.992504743 | J97: 1 | K97: 364.65 | L97: 366.82 | M97: 363.18 | N97: 366.82 | O97: 64071100 | U97: 2001-03-16 | V97: 0.316 | W97: 115.010002 | X97: 200103 | Y97: 200003 | Z97: 2000-03-17 | AA97: 5 | AB97: 1 | AC97: 1.45 | AD97: 0.01260759912
A98: 83 | B98: 2020-12-14 | C98: 368.640015 | D98: 369.799988 | E98: 364.470001 | F98: 364.660004 | G98: 69216200 | H98: 361.926788 | I98: 0.9925047552 | J98: 1 | K98: 365.88 | L98: 367.03 | M98: 361.74 | N98: 361.93 | O98: 69216200 | U98: 2000-12-15 | V98: 0.411 | W98: 130.96875 | X98: 200012 | Y98: 199912 | Z98: 1999-12-17 | AA98: 5 | AB98: 1 | AC98: 1.505 | AD98: 0.01149129086
A99: 84 | B99: 2020-12-11 | C99: 364.899994 | D99: 366.73999 | E99: 363.26001 | F99: 366.299988 | G99: 57698600 | H99: 363.554474 | I99: 0.992504739 | J99: 1 | K99: 362.16 | L99: 363.99 | M99: 360.54 | N99: 363.55 | O99: 57698600 | U99: 2000-09-15 | V99: 0.375 | W99: 146 | X99: 200009 | Y99: 199909 | Z99: 1999-09-17 | AA99: 5 | AB99: 1 | AC99: 1.442 | AD99: 0.009876712329
A100: 85 | B100: 2020-12-10 | C100: 365.369995 | D100: 367.859985 | E100: 364.429993 | F100: 366.730011 | G100: 57735400 | H100: 363.981262 | I100: 0.9925047067 | J100: 1 | K100: 362.63 | L100: 365.1 | M100: 361.7 | N100: 363.98 | O100: 57735400 | U100: 2000-06-16 | V100: 0.348 | W100: 146.59375 | X100: 200006 | Y100: 199906 | Z100: 1999-06-18 | AA100: 5 | AB100: 1 | AC100: 1.439 | AD100: 0.009816243871
A101: 86 | B101: 2020-12-09 | C101: 370.880005 | D101: 371.049988 | E101: 365.950012 | F101: 366.850006 | G101: 74098300 | H101: 364.100372 | I101: 0.9925047459 | J101: 1 | K101: 368.1 | L101: 368.27 | M101: 363.21 | N101: 364.1 | O101: 74098300 | U101: 2000-03-17 | V101: 0.371 | W101: 146.9375 | X101: 200003 | Y101: 199903 | Z101: 1999-03-19 | AA101: 5 | AB101: 1 | AC101: 1.496 | AD101: 0.01018119949
A102: 87 | B102: 2020-12-08 | C102: 367.720001 | D102: 370.779999 | E102: 367.670013 | F102: 370.170013 | G102: 42458900 | H102: 367.395508 | I102: 0.9925047819 | J102: 1 | K102: 364.96 | L102: 368 | M102: 364.91 | N102: 367.4 | O102: 42458900 | U102: 1999-12-17 | V102: 0.348 | W102: 142.6875 | X102: 199912 | Y102: 199812 | Z102: 1998-12-18 | AA102: 5 | AB102: 1 | AC102: 1.445 | AD102: 0.01012702584
A103: 88 | B103: 2020-12-07 | C103: 369.019989 | D103: 369.619995 | E103: 367.720001 | F103: 369.089996 | G103: 48944300 | H103: 366.323578 | I103: 0.9925047603 | J103: 1 | K103: 366.25 | L103: 366.85 | M103: 364.96 | N103: 366.32 | O103: 48944300 | U103: 1999-09-17 | V103: 0.372 | W103: 133.75 | X103: 199909 | Y103: 199809 | Z103: 1998-09-18 | AA103: 5 | AB103: 1 | AC103: 1.489 | AD103: 0.01113271028
A104: 89 | B104: 2020-12-04 | C104: 367.320007 | D104: 369.850006 | E104: 367.220001 | F104: 369.850006 | G104: 50749900 | H104: 367.077881 | I104: 0.9925047318 | J104: 1 | K104: 364.57 | L104: 367.08 | M104: 364.47 | N104: 367.08 | O104: 50749900 | U104: 1999-06-18 | V104: 0.405 | W104: 134.3125 | X104: 199906 | Y104: 199806 | Z104: 1998-06-19 | AA104: 5 | AB104: 1 | AC104: 1.476 | AD104: 0.01098929735
A105: 90 | B105: 2020-12-03 | C105: 366.679993 | D105: 368.190002 | E105: 365.5 | F105: 366.690002 | G105: 62882000 | H105: 363.941589 | I105: 0.9925048052 | J105: 1 | K105: 363.93 | L105: 365.43 | M105: 362.76 | N105: 363.94 | O105: 62882000 | U105: 1999-03-19 | V105: 0.32 | W105: 129.6875 | X105: 199903 | Y105: 199803 | Z105: 1998-03-20 | AA105: 5 | AB105: 1 | AC105: 1.423 | AD105: 0.01097253012
A106: 91 | B106: 2020-12-02 | C106: 364.820007 | D106: 366.959991 | E106: 364.200012 | F106: 366.790009 | G106: 45927000 | H106: 364.040833 | I106: 0.9925047686 | J106: 1 | K106: 362.09 | L106: 364.21 | M106: 361.47 | N106: 364.04 | O106: 45927000 | U106: 1998-12-18 | V106: 0.392 | W106: 118.5 | X106: 199812 | Y106: 199712 | Z106: 1997-12-19 | AA106: 5 | AB106: 1 | AC106: 1.416 | AD106: 0.01194936709
A107: 92 | B107: 2020-12-01 | C107: 365.570007 | D107: 367.679993 | E107: 364.929993 | F107: 366.019989 | G107: 74505000 | H107: 363.276581 | I107: 0.9925047591 | J107: 1 | K107: 362.83 | L107: 364.92 | M107: 362.19 | N107: 363.28 | O107: 74505000 | U107: 1998-09-18 | V107: 0.359 | W107: 102.09375 | X107: 199809 | Y107: 199709 | Z107: 1997-09-19 | AA107: 5 | AB107: 1 | AC107: 1.404 | AD107: 0.01375206612
A108: 93 | B108: 2020-11-30 | C108: 362.829987 | D108: 363.119995 | E108: 359.170013 | F108: 362.059998 | G108: 83872700 | H108: 359.346283 | I108: 0.992504792 | J108: 1 | K108: 360.11 | L108: 360.4 | M108: 356.48 | N108: 359.35 | O108: 83872700 | U108: 1998-06-19 | V108: 0.352 | W108: 110.0625 | X108: 199806 | Y108: 199706 | Z108: 1997-06-20 | AA108: 5 | AB108: 1 | AC108: 1.393 | AD108: 0.0126564452
A109: 94 | B109: 2020-11-27 | C109: 363.839996 | D109: 364.179993 | E109: 362.579987 | F109: 363.670013 | G109: 28514100 | H109: 360.944214 | I109: 0.9925047463 | J109: 1 | K109: 361.11 | L109: 361.45 | M109: 359.86 | N109: 360.94 | O109: 28514100 | U109: 1998-03-20 | V109: 0.313 | W109: 109.875 | X109: 199803 | Y109: 199703 | Z109: 1997-03-21 | AA109: 5 | AB109: 1 | AC109: 1.391 | AD109: 0.01265984073
A110: 95 | B110: 2020-11-25 | C110: 363.130005 | D110: 363.160004 | E110: 361.480011 | F110: 362.660004 | G110: 45330900 | H110: 359.941772 | I110: 0.9925047373 | J110: 1 | K110: 360.41 | L110: 360.44 | M110: 358.77 | N110: 359.94 | O110: 45330900 | U110: 1997-12-19 | V110: 0.38 | W110: 94.78125 | X110: 199712 | Y110: 199612 | Z110: 1996-12-20 | AA110: 5 | AB110: 1 | AC110: 1.377 | AD110: 0.01452818991
A111: 96 | B111: 2020-11-24 | C111: 360.209991 | D111: 363.809998 | E111: 359.290009 | F111: 363.220001 | G111: 62415900 | H111: 360.497559 | I111: 0.9925047024 | J111: 1 | K111: 357.51 | L111: 361.08 | M111: 356.6 | N111: 360.5 | O111: 62415900 | U111: 1997-09-19 | V111: 0.348 | W111: 95.03125 | X111: 199709 | Y111: 199609 | Z111: 1996-09-20 | AA111: 5 | AB111: 1 | AC111: 1.364 | AD111: 0.0143531733
A112: 97 | B112: 2020-11-23 | C112: 357.279999 | D112: 358.820007 | E112: 354.869995 | F112: 357.459991 | G112: 63230600 | H112: 354.780731 | I112: 0.9925047276 | J112: 1 | K112: 354.6 | L112: 356.13 | M112: 352.21 | N112: 354.78 | O112: 63230600 | U112: 1997-06-20 | V112: 0.35 | W112: 89.578125 | X112: 199706 | Y112: 199606 | Z112: 1996-06-21 | AA112: 5 | AB112: 1 | AC112: 1.368 | AD112: 0.01527158556
A113: 98 | B113: 2020-11-20 | C113: 357.5 | D113: 357.720001 | E113: 355.25 | F113: 355.329987 | G113: 70417300 | H113: 352.666718 | I113: 0.9925048009 | J113: 1 | K113: 354.82 | L113: 355.04 | M113: 352.59 | N113: 352.67 | O113: 70417300 | U113: 1997-03-21 | V113: 0.299 | W113: 78.4375 | X113: 199703 | Y113: 199603 | Z113: 1996-03-15 | AA113: 5 | AB113: 1 | AC113: 1.369 | AD113: 0.01745338645
A114: 99 | B114: 2020-11-19 | C114: 355.600006 | D114: 358.179993 | E114: 354.149994 | F114: 357.779999 | G114: 59940900 | H114: 355.098358 | I114: 0.9925047767 | J114: 1 | K114: 352.93 | L114: 355.5 | M114: 351.5 | N114: 355.1 | O114: 59940900 | U114: 1996-12-20 | V114: 0.367 | W114: 74.84375 | X114: 199612 | Y114: 199512 | Z114: 1995-12-15 | AA114: 5 | AB114: 1 | AC114: 1.355 | AD114: 0.01810438413
A115: 100 | B115: 2020-11-18 | C115: 360.910004 | D115: 361.5 | E115: 356.23999 | F115: 356.279999 | G115: 70591300 | H115: 353.609589 | I115: 0.9925047434 | J115: 1 | K115: 358.2 | L115: 358.79 | M115: 353.57 | N115: 353.61 | O115: 70591300 | U115: 1996-09-20 | V115: 0.352 | W115: 68.640625 | X115: 199609 | Y115: 199509 | Z115: 1995-09-15 | AA115: 5 | AB115: 1 | AC115: 1.37 | AD115: 0.01995902572
A116: 101 | B116: 2020-11-17 | C116: 359.970001 | D116: 361.920013 | E116: 358.339996 | F116: 360.619995 | G116: 66111000 | H116: 357.917053 | I116: 0.9925047362 | J116: 1 | K116: 357.27 | L116: 359.21 | M116: 355.65 | N116: 357.92 | O116: 66111000 | U116: 1996-06-21 | V116: 0.351 | W116: 66.8125 | X116: 199606 | Y116: 199506 | Z116: 1995-06-16 | AA116: 5 | AB116: 1 | AC116: 1.33 | AD116: 0.01990645463
A117: 102 | B117: 2020-11-16 | C117: 360.980011 | D117: 362.779999 | E117: 359.589996 | F117: 362.570007 | G117: 74541100 | H117: 359.852478 | I117: 0.9925048158 | J117: 1 | K117: 358.27 | L117: 360.06 | M117: 356.89 | N117: 359.85 | O117: 74541100 | U117: 1996-03-15 | V117: 0.285 | W117: 64.125 | X117: 199603 | Y117: 199503 | Z117: 1995-03-17 | AA117: 5 | AB117: 1 | AC117: 1.295 | AD117: 0.02019493177
A118: 103 | B118: 2020-11-13 | C118: 355.269989 | D118: 358.899994 | E118: 354.709991 | F118: 358.100006 | G118: 62892200 | H118: 355.415955 | I118: 0.9925047446 | J118: 1 | K118: 352.61 | L118: 356.21 | M118: 352.05 | N118: 355.42 | O118: 62892200 | U118: 1995-12-15 | V118: 0.382 | W118: 61.8125 | X118: 199512 | Y118: 199412 | Z118: 1994-12-16 | AA118: 5 | AB118: 1 | AC118: 1.278 | AD118: 0.02067542973
A119: 104 | B119: 2020-11-12 | C119: 355.579987 | D119: 356.720001 | E119: 351.26001 | F119: 353.209991 | G119: 67546200 | H119: 350.562592 | I119: 0.9925047449 | J119: 1 | K119: 352.91 | L119: 354.05 | M119: 348.63 | N119: 350.56 | O119: 67546200 | U119: 1995-09-15 | V119: 0.312 | W119: 58.4375 | X119: 199509 | Y119: 199409 | Z119: 1994-09-16 | AA119: 5 | AB119: 1 | AC119: 1.259 | AD119: 0.02154438503
A120: 105 | B120: 2020-11-11 | C120: 356.399994 | D120: 357.559998 | E120: 355.059998 | F120: 356.670013 | G120: 58649000 | H120: 353.996674 | I120: 0.9925047273 | J120: 1 | K120: 353.73 | L120: 354.88 | M120: 352.4 | N120: 354 | O120: 58649000 | U120: 1995-06-16 | V120: 0.316 | W120: 53.96875 | X120: 199506 | Y120: 199406 | Z120: 1994-06-17 | AA120: 5 | AB120: 1 | AC120: 1.235 | AD120: 0.0228836132
A121: 106 | B121: 2020-11-10 | C121: 353.48999 | D121: 355.179993 | E121: 350.51001 | F121: 354.040009 | G121: 85552000 | H121: 351.386383 | I121: 0.9925047285 | J121: 1 | K121: 350.84 | L121: 352.52 | M121: 347.88 | N121: 351.39 | O121: 85552000 | U121: 1995-03-17 | V121: 0.268 | W121: 49.5625 | X121: 199503 | Y121: 199403 | Z121: 1994-03-18 | AA121: 5 | AB121: 1 | AC121: 1.224 | AD121: 0.02469609079
A122: 107 | B122: 2020-11-09 | C122: 363.970001 | D122: 364.380005 | E122: 354.059998 | F122: 354.559998 | G122: 172304200 | H122: 351.902496 | I122: 0.992504789 | J122: 1 | K122: 361.24 | L122: 361.65 | M122: 351.41 | N122: 351.9 | O122: 172304200 | U122: 1994-12-16 | V122: 0.363 | W122: 45.75 | X122: 199412 | Y122: 199312 | Z122: 1993-12-17 | AA122: 5 | AB122: 1 | AC122: 1.227 | AD122: 0.02681967213
A123: 108 | B123: 2020-11-06 | C123: 349.929993 | D123: 351.51001 | E123: 347.649994 | F123: 350.160004 | G123: 74973000 | H123: 347.535461 | I123: 0.9925047322 | J123: 1 | K123: 347.31 | L123: 348.88 | M123: 345.04 | N123: 347.54 | O123: 74973000 | U123: 1994-09-16 | V123: 0.288 | W123: 47.015625 | X123: 199409 | Y123: 199309 | Z123: 1993-09-17 | AA123: 5 | AB123: 1 | AC123: 1.181 | AD123: 0.02511930874
A124: 109 | B124: 2020-11-05 | C124: 349.23999 | D124: 352.190002 | E124: 348.859985 | F124: 350.23999 | G124: 82039700 | H124: 347.614868 | I124: 0.9925047908 | J124: 1 | K124: 346.62 | L124: 349.55 | M124: 346.25 | N124: 347.61 | O124: 82039700 | U124: 1994-06-17 | V124: 0.305 | W124: 45.875 | X124: 199406 | Y124: 199306 | Z124: 1993-06-18 | AA124: 5 | AB124: 1 | AC124: 1.179 | AD124: 0.02570027248
A125: 110 | B125: 2020-11-04 | C125: 340.859985 | D125: 347.940002 | E125: 339.589996 | F125: 343.540009 | G125: 126959700 | H125: 340.965088 | I125: 0.992504742 | J125: 1 | K125: 338.31 | L125: 345.33 | M125: 337.04 | N125: 340.97 | O125: 126959700 | U125: 1994-03-18 | V125: 0.271 | W125: 46.96875 | X125: 199403 | Y125: 199303 | Z125: 1993-03-19 | AA125: 5 | AB125: 1 | AC125: 1.192 | AD125: 0.02537857618
A126: 111 | B126: 2020-11-03 | C126: 333.690002 | D126: 338.25 | E126: 330.290009 | F126: 336.029999 | G126: 93294200 | H126: 333.511383 | I126: 0.9925047882 | J126: 1 | K126: 331.19 | L126: 335.71 | M126: 327.81 | N126: 333.51 | O126: 93294200 | U126: 1993-12-17 | V126: 0.317 | W126: 46.5625 | X126: 199312 | Y126: 199212 | Z126: 1993-03-19 | AA126: 4 | AB126: 0 | AC126: 1.134 | AD126: 0.02435436242
A127: 112 | B127: 2020-11-02 | C127: 330.200012 | D127: 332.359985 | E127: 327.23999 | F127: 330.200012 | G127: 86068300 | H127: 327.725098 | I127: 0.9925048034 | J127: 1 | K127: 327.73 | L127: 329.87 | M127: 324.79 | N127: 327.73 | O127: 86068300 | U127: 1993-09-17 | V127: 0.286 | W127: 45.8125 | X127: 199309 | Y127: 199209 | Z127: 1993-03-19 | AA127: 3 | AB127: 0 | AC127: 0.817 | AD127: 0.01783356071
A128: 113 | B128: 2020-10-30 | C128: 328.279999 | D128: 329.690002 | E128: 322.600006 | F128: 326.540009 | G128: 120287300 | H128: 324.092499 | I128: 0.9925047163 | J128: 1 | K128: 325.82 | L128: 327.22 | M128: 320.18 | N128: 324.09 | O128: 120287300 | U128: 1993-06-18 | V128: 0.318 | W128: 44.5 | X128: 199306 | Y128: 199206 | Z128: 1993-03-19 | AA128: 2 | AB128: 0 | AC128: 0.531 | AD128: 0.01193258427
A129: 114 | B129: 2020-10-29 | C129: 326.910004 | D129: 333.399994 | E129: 325.089996 | F129: 329.980011 | G129: 90597700 | H129: 327.506714 | I129: 0.9925047066 | J129: 1 | K129: 324.46 | L129: 330.9 | M129: 322.65 | N129: 327.51 | O129: 90597700 | U129: 1993-03-19 | V129: 0.213 | W129: 45.03125 | X129: 199303 | Y129: 199203 | Z129: 1993-03-19 | AA129: 1 | AB129: 1 | AC129: 0.213 | AD129: 0.004730048577
A130: 115 | B130: 2020-10-28 | C130: 332.100006 | D130: 338.25 | E130: 326.130005 | F130: 326.660004 | G130: 127094300 | H130: 324.211609 | I130: 0.9925047604 | J130: 1 | K130: 329.61 | L130: 335.71 | M130: 323.69 | N130: 324.21 | O130: 127094300
A131: 116 | B131: 2020-10-27 | C131: 339.76001 | D131: 340.119995 | E131: 337.98999 | F131: 338.220001 | G131: 65994100 | H131: 335.684937 | I131: 0.9925046893 | J131: 1 | K131: 337.21 | L131: 337.57 | M131: 335.46 | N131: 335.68 | O131: 65994100
A132: 117 | B132: 2020-10-26 | C132: 342.130005 | D132: 342.980011 | E132: 335.619995 | F132: 339.390015 | G132: 91473000 | H132: 336.846222 | I132: 0.992504809 | J132: 1 | K132: 339.57 | L132: 340.41 | M132: 333.1 | N132: 336.85 | O132: 91473000
A133: 118 | B133: 2020-10-23 | C133: 345.929993 | D133: 345.98999 | E133: 343.130005 | F133: 345.779999 | G133: 49143900 | H133: 343.188293 | I133: 0.9925047544 | J133: 1 | K133: 343.34 | L133: 343.4 | M133: 340.56 | N133: 343.19 | O133: 49143900
A134: 119 | B134: 2020-10-22 | C134: 342.959991 | D134: 345.23999 | E134: 340.649994 | F134: 344.609985 | G134: 55399300 | H134: 342.027069 | I134: 0.9925048138 | J134: 1 | K134: 340.39 | L134: 342.65 | M134: 338.1 | N134: 342.03 | O134: 55399300
A135: 120 | B135: 2020-10-21 | C135: 343.329987 | D135: 345.670013 | E135: 342.399994 | F135: 342.730011 | G135: 63575000 | H135: 340.161163 | I135: 0.9925047474 | J135: 1 | K135: 340.76 | L135: 343.08 | M135: 339.83 | N135: 340.16 | O135: 63575000
A136: 121 | B136: 2020-10-20 | C136: 343.459991 | D136: 346.880005 | E136: 342.640015 | F136: 343.380005 | G136: 60051900 | H136: 340.806305 | I136: 0.9925048053 | J136: 1 | K136: 340.89 | L136: 344.28 | M136: 340.07 | N136: 340.81 | O136: 60051900
A137: 122 | B137: 2020-10-19 | C137: 348.649994 | D137: 349.329987 | E137: 341.040009 | F137: 342.01001 | G137: 68425600 | H137: 339.446564 | I137: 0.9925047632 | J137: 1 | K137: 346.04 | L137: 346.71 | M137: 338.48 | N137: 339.45 | O137: 68425600
A138: 123 | B138: 2020-10-16 | C138: 348.959991 | D138: 350.75 | E138: 347.100006 | F138: 347.290009 | G138: 89501900 | H138: 344.686981 | I138: 0.9925047426 | J138: 1 | K138: 346.34 | L138: 348.12 | M138: 344.5 | N138: 344.69 | O138: 89501900
A139: 124 | B139: 2020-10-15 | C139: 343.709991 | D139: 348.019989 | E139: 343.130005 | F139: 347.5 | G139: 60357700 | H139: 344.895416 | I139: 0.9925047942 | J139: 1 | K139: 341.13 | L139: 345.41 | M139: 340.56 | N139: 344.9 | O139: 60357700
A140: 125 | B140: 2020-10-14 | C140: 350.75 | D140: 351.929993 | E140: 347.140015 | F140: 347.929993 | G140: 57958700 | H140: 345.322174 | I140: 0.9925047594 | J140: 1 | K140: 348.12 | L140: 349.29 | M140: 344.54 | N140: 345.32 | O140: 57958700
A141: 126 | B141: 2020-10-13 | C141: 352.279999 | D141: 352.470001 | E141: 349.089996 | F141: 350.130005 | G141: 73255500 | H141: 347.505707 | I141: 0.9925047898 | J141: 1 | K141: 349.64 | L141: 349.83 | M141: 346.47 | N141: 347.51 | O141: 73255500
A142: 127 | B142: 2020-10-12 | C142: 349.589996 | D142: 354.019989 | E142: 349.059998 | F142: 352.429993 | G142: 80388500 | H142: 349.788452 | I142: 0.9925047781 | J142: 1 | K142: 346.97 | L142: 351.37 | M142: 346.44 | N142: 349.79 | O142: 80388500
A143: 128 | B143: 2020-10-09 | C143: 345.559998 | D143: 347.350006 | E143: 344.890015 | F143: 346.850006 | G143: 59528600 | H143: 344.250275 | I143: 0.9925047399 | J143: 1 | K143: 342.97 | L143: 344.75 | M143: 342.3 | N143: 344.25 | O143: 59528600
A144: 129 | B144: 2020-10-08 | C144: 342.850006 | D144: 343.850006 | E144: 341.859985 | F144: 343.779999 | G144: 45242500 | H144: 341.203278 | I144: 0.9925047385 | J144: 1 | K144: 340.28 | L144: 341.27 | M144: 339.3 | N144: 341.2 | O144: 45242500
A145: 130 | B145: 2020-10-07 | C145: 338.119995 | D145: 341.630005 | E145: 338.089996 | F145: 340.76001 | G145: 56999600 | H145: 338.205933 | I145: =IF(F145=0,1,H145/F145) -> 0.9925047631 | J145: =INDEX(OFFSET($T$15,0,0,$S$13+1,1),MATCH(B145,OFFSET($Q$15,0,0,$S$13+1,1),-1)) -> 1 | K145: =ROUND($I145*C145,2) -> 335.59 | L145: =ROUND($I145*D145,2) -> 339.07 | M145: =ROUND($I145*E145,2) -> 335.56 | N145: =ROUND($I145*F145,2) -> 338.21 | O145: =G145*J145 -> 56999600
A146: 131 | B146: 2020-10-06 | C146: 339.910004 | D146: 342.170013 | E146: 334.380005 | F146: 334.929993 | G146: 90128900 | H146: 332.419617 | I146: 0.992504774 | J146: 1 | K146: 337.36 | L146: 339.61 | M146: 331.87 | N146: 332.42 | O146: 90128900
A147: 132 | B147: 2020-10-05 | C147: 336.059998 | D147: 339.959991 | E147: 336.01001 | F147: 339.76001 | G147: 45713100 | H147: 337.213409 | I147: 0.9925047065 | J147: 1 | K147: 333.54 | L147: 337.41 | M147: 333.49 | N147: 337.21 | O147: 45713100
A148: 133 | B148: 2020-10-02 | C148: 331.700012 | D148: 337.01001 | E148: 331.190002 | F148: 333.839996 | G148: 89431100 | H148: 331.337799 | I148: 0.9925048016 | J148: 1 | K148: 329.21 | L148: 334.48 | M148: 328.71 | N148: 331.34 | O148: 89431100
A149: 134 | B149: 2020-10-01 | C149: 337.690002 | D149: 338.73999 | E149: 335.01001 | F149: 337.040009 | G149: 88698700 | H149: 334.513794 | I149: 0.9925047029 | J149: 1 | K149: 335.16 | L149: 336.2 | M149: 332.5 | N149: 334.51 | O149: 88698700
A150: 135 | B150: 2020-09-30 | C150: 333.089996 | D150: 338.290009 | E150: 332.880005 | F150: 334.890015 | G150: 104081100 | H150: 332.379944 | I150: 0.99250479 | J150: 1 | K150: 330.59 | L150: 335.75 | M150: 330.38 | N150: 332.38 | O150: 104081100
A151: 136 | B151: 2020-09-29 | C151: 333.970001 | D151: 334.769989 | E151: 331.619995 | F151: 332.369995 | G151: 51304000 | H151: 329.878784 | I151: 0.9925047055 | J151: 1 | K151: 331.47 | L151: 332.26 | M151: 329.13 | N151: 329.88 | O151: 51304000
A152: 137 | B152: 2020-09-28 | C152: 333.220001 | D152: 334.959991 | E152: 332.149994 | F152: 334.190002 | G152: 64584600 | H152: 331.685181 | I152: 0.9925047997 | J152: 1 | K152: 330.72 | L152: 332.45 | M152: 329.66 | N152: 331.69 | O152: 64584600
A153: 138 | B153: 2020-09-25 | C153: 322.579987 | D153: 329.579987 | E153: 321.640015 | F153: 328.730011 | G153: 71069400 | H153: 326.266083 | I153: 0.9925047062 | J153: 1 | K153: 320.16 | L153: 327.11 | M153: 319.23 | N153: 326.27 | O153: 71069400
A154: 139 | B154: 2020-09-24 | C154: 321.220001 | D154: 326.799988 | E154: 319.799988 | F154: 323.5 | G154: 76681300 | H154: 321.075287 | I154: 0.9925047512 | J154: 1 | K154: 318.81 | L154: 324.35 | M154: 317.4 | N154: 321.08 | O154: 76681300
A155: 140 | B155: 2020-09-23 | C155: 330.899994 | D155: 331.200012 | E155: 322.100006 | F155: 322.640015 | G155: 93112200 | H155: 320.221741 | I155: 0.9925047301 | J155: 1 | K155: 328.42 | L155: 328.72 | M155: 319.69 | N155: 320.22 | O155: 93112200
A156: 141 | B156: 2020-09-22 | C156: 328.570007 | D156: 330.899994 | E156: 325.859985 | F156: 330.299988 | G156: 63612100 | H156: 327.82431 | I156: 0.992504759 | J156: 1 | K156: 326.11 | L156: 328.42 | M156: 323.42 | N156: 327.82 | O156: 63612100
A157: 142 | B157: 2020-09-21 | C157: 325.700012 | D157: 327.130005 | E157: 321.730011 | F157: 326.970001 | G157: 99450800 | H157: 324.519287 | I157: 0.9925047742 | J157: 1 | K157: 323.26 | L157: 324.68 | M157: 319.32 | N157: 324.52 | O157: 99450800
A158: 143 | B158: 2020-09-18 | C158: 335.369995 | D158: 335.48999 | E158: 327.970001 | F158: 330.649994 | G158: 105877900 | H158: 328.171692 | I158: 0.9925047572 | J158: 1 | K158: 332.86 | L158: 332.98 | M158: 325.51 | N158: 328.17 | O158: 105877900
A159: 144 | B159: 2020-09-17 | C159: 333.559998 | D159: 337.700012 | E159: 332.98999 | F159: 335.839996 | G159: 91523300 | H159: 331.993835 | I159: 0.9885476386 | J159: 1 | K159: 329.74 | L159: 333.83 | M159: 329.18 | N159: 331.99 | O159: 91523300
A160: 145 | B160: 2020-09-16 | C160: 341.51001 | D160: 343.059998 | E160: 338.519989 | F160: 338.820007 | G160: 82096000 | H160: 334.939697 | I160: 0.9885475771 | J160: 1 | K160: 337.6 | L160: 339.13 | M160: 334.64 | N160: 334.94 | O160: 82096000
A161: 146 | B161: 2020-09-15 | C161: 341.119995 | D161: 342.019989 | E161: 338.470001 | F161: 340.170013 | G161: 52920900 | H161: 336.274261 | I161: 0.9885476325 | J161: 1 | K161: 337.21 | L161: 338.1 | M161: 334.59 | N161: 336.27 | O161: 52920900
A162: 147 | B162: 2020-09-14 | C162: 337.48999 | D162: 340.380005 | E162: 334.220001 | F162: 338.459991 | G162: 65605700 | H162: 334.583801 | I162: 0.9885475681 | J162: 1 | K162: 333.62 | L162: 336.48 | M162: 330.39 | N162: 334.58 | O162: 65605700
A163: 148 | B163: 2020-09-11 | C163: 335.820007 | D163: 336.970001 | E163: 331 | F163: 334.059998 | G163: 84680200 | H163: 330.234192 | I163: 0.9885475483 | J163: 1 | K163: 331.97 | L163: 333.11 | M163: 327.21 | N163: 330.23 | O163: 84680200
A164: 149 | B164: 2020-09-10 | C164: 341.820007 | D164: 342.529999 | E164: 332.850006 | F164: 333.890015 | G164: 90569500 | H164: 330.066162 | I164: 0.9885475671 | J164: 1 | K164: 337.91 | L164: 338.61 | M164: 329.04 | N164: 330.07 | O164: 90569500
A165: 150 | B165: 2020-09-09 | C165: 337.549988 | D165: 342.459991 | E165: 336.609985 | F165: 339.790009 | G165: 91462300 | H165: 335.89859 | I165: 0.9885475767 | J165: 1 | K165: 333.68 | L165: 338.54 | M165: 332.75 | N165: 335.9 | O165: 91462300
A166: 151 | B166: 2020-09-08 | C166: 336.709991 | D166: 342.640015 | E166: 332.880005 | F166: 333.209991 | G166: 114465300 | H166: 329.393921 | I166: 0.9885475523 | J166: 1 | K166: 332.85 | L166: 338.72 | M166: 329.07 | N166: 329.39 | O166: 114465300
A167: 152 | B167: 2020-09-04 | C167: 346.130005 | D167: 347.829987 | E167: 334.869995 | F167: 342.570007 | G167: 139156300 | H167: 338.646729 | I167: 0.9885475146 | J167: 1 | K167: 342.17 | L167: 343.85 | M167: 331.03 | N167: 338.65 | O167: 139156300
A168: 153 | B168: 2020-09-03 | C168: 355.869995 | D168: 356.380005 | E168: 342.589996 | F168: 345.390015 | G168: 148011100 | H168: 341.434479 | I168: 0.9885476249 | J168: 1 | K168: 351.79 | L168: 352.3 | M168: 338.67 | N168: 341.43 | O168: 148011100
A169: 154 | B169: 2020-09-02 | C169: 354.670013 | D169: 358.75 | E169: 353.429993 | F169: 357.700012 | G169: 69540000 | H169: 353.603485 | I169: 0.9885475905 | J169: 1 | K169: 350.61 | L169: 354.64 | M169: 349.38 | N169: 353.6 | O169: 69540000
A170: 155 | B170: 2020-09-01 | C170: 350.209991 | D170: 352.709991 | E170: 349.23999 | F170: 352.600006 | G170: 54999300 | H170: 348.56189 | I170: 0.9885476009 | J170: 1 | K170: 346.2 | L170: 348.67 | M170: 345.24 | N170: 348.56 | O170: 54999300
A171: 156 | B171: 2020-08-31 | C171: 350.350006 | D171: 351.299988 | E171: 349.059998 | F171: 349.309998 | G171: 66099200 | H171: 345.30957 | I171: 0.9885476281 | J171: 1 | K171: 346.34 | L171: 347.28 | M171: 345.06 | N171: 345.31 | O171: 66099200
A172: 157 | B172: 2020-08-28 | C172: 349.440002 | D172: 350.720001 | E172: 348.149994 | F172: 350.579987 | G172: 48588900 | H172: 346.565033 | I172: 0.9885476806 | J172: 1 | K172: 345.44 | L172: 346.7 | M172: 344.16 | N172: 346.57 | O172: 48588900
A173: 158 | B173: 2020-08-27 | C173: 348.51001 | D173: 349.899994 | E173: 346.529999 | F173: 348.329987 | G173: 58034100 | H173: 344.340759 | I173: 0.9885475608 | J173: 1 | K173: 344.52 | L173: 345.89 | M173: 342.56 | N173: 344.34 | O173: 58034100
A174: 159 | B174: 2020-08-26 | C174: 344.76001 | D174: 347.859985 | E174: 344.170013 | F174: 347.570007 | G174: 50790200 | H174: 343.589508 | I174: 0.9885476338 | J174: 1 | K174: 340.81 | L174: 343.88 | M174: 340.23 | N174: 343.59 | O174: 50790200
A175: 160 | B175: 2020-08-25 | C175: 343.529999 | D175: 344.209991 | E175: 342.269989 | F175: 344.119995 | G175: 38463400 | H175: 340.179016 | I175: 0.9885476605 | J175: 1 | K175: 339.6 | L175: 340.27 | M175: 338.35 | N175: 340.18 | O175: 38463400
A176: 161 | B176: 2020-08-24 | C176: 342.119995 | D176: 343 | E176: 339.450012 | F176: 342.920013 | G176: 48588700 | H176: 338.992767 | I176: 0.9885476325 | J176: 1 | K176: 338.2 | L176: 339.07 | M176: 335.56 | N176: 338.99 | O176: 48588700
A177: 162 | B177: 2020-08-21 | C177: 337.920013 | D177: 339.720001 | E177: 337.549988 | F177: 339.480011 | G177: 55106600 | H177: 335.592133 | I177: 0.9885475496 | J177: 1 | K177: 334.05 | L177: 335.83 | M177: 333.68 | N177: 335.59 | O177: 55106600
A178: 163 | B178: 2020-08-20 | C178: 335.359985 | D178: 338.799988 | E178: 335.220001 | F178: 338.279999 | G178: 42207800 | H178: 334.405914 | I178: 0.9885476971 | J178: 1 | K178: 331.52 | L178: 334.92 | M178: 331.38 | N178: 334.41 | O178: 42207800
A179: 164 | B179: 2020-08-19 | C179: 339.049988 | D179: 339.609985 | E179: 336.619995 | F179: 337.230011 | G179: 68054200 | H179: 333.36792 | I179: 0.9885476059 | J179: 1 | K179: 335.17 | L179: 335.72 | M179: 332.76 | N179: 333.37 | O179: 68054200
A180: 165 | B180: 2020-08-18 | C180: 338.339996 | D180: 339.100006 | E180: 336.609985 | F180: 338.640015 | G180: 38733900 | H180: 334.76178 | I180: 0.9885476174 | J180: 1 | K180: 334.47 | L180: 335.22 | M180: 332.75 | N180: 334.76 | O180: 38733900
A181: 166 | B181: 2020-08-17 | C181: 337.940002 | D181: 338.339996 | E181: 336.850006 | F181: 337.910004 | G181: 35481000 | H181: 334.040131 | I181: 0.9885476223 | J181: 1 | K181: 334.07 | L181: 334.47 | M181: 332.99 | N181: 334.04 | O181: 35481000
A182: 167 | B182: 2020-08-14 | C182: 336.410004 | D182: 337.420013 | E182: 335.619995 | F182: 336.839996 | G182: 47260400 | H182: 332.982361 | I182: 0.9885475744 | J182: 1 | K182: 332.56 | L182: 333.56 | M182: 331.78 | N182: 332.98 | O182: 47260400
A183: 168 | B183: 2020-08-13 | C183: 336.609985 | D183: 338.25 | E183: 335.829987 | F183: 336.829987 | G183: 41816100 | H183: 332.972443 | I183: 0.9885475042 | J183: 1 | K183: 332.75 | L183: 334.38 | M183: 331.98 | N183: 332.97 | O183: 41816100
A184: 169 | B184: 2020-08-12 | C184: 335.440002 | D184: 338.279999 | E184: 335.410004 | F184: 337.440002 | G184: 53826100 | H184: 333.575531 | I184: 0.9885476797 | J184: 1 | K184: 331.6 | L184: 334.41 | M184: 331.57 | N184: 333.58 | O184: 53826100
A185: 170 | B185: 2020-08-11 | C185: 336.850006 | D185: 337.540009 | E185: 332.01001 | F185: 332.799988 | G185: 69601100 | H185: 328.988647 | I185: 0.9885476528 | J185: 1 | K185: 332.99 | L185: 333.67 | M185: 328.21 | N185: 328.99 | O185: 69601100
A186: 171 | B186: 2020-08-10 | C186: 335.059998 | D186: 335.769989 | E186: 332.959991 | F186: 335.570007 | G186: 44282100 | H186: 331.726929 | I186: 0.9885476118 | J186: 1 | K186: 331.22 | L186: 331.92 | M186: 329.15 | N186: 331.73 | O186: 44282100
A187: 172 | B187: 2020-08-07 | C187: 333.279999 | D187: 334.880005 | E187: 332.299988 | F187: 334.570007 | G187: 57308300 | H187: 330.738403 | I187: 0.9885476764 | J187: 1 | K187: 329.46 | L187: 331.04 | M187: 328.49 | N187: 330.74 | O187: 57308300
A188: 173 | B188: 2020-08-06 | C188: 331.480011 | D188: 334.459991 | E188: 331.130005 | F188: 334.329987 | G188: 43679400 | H188: 330.501129 | I188: 0.988547668 | J188: 1 | K188: 327.68 | L188: 330.63 | M188: 327.34 | N188: 330.5 | O188: 43679400
A189: 174 | B189: 2020-08-05 | C189: 331.470001 | D189: 332.390015 | E189: 331.179993 | F189: 332.109985 | G189: 42866400 | H189: 328.306519 | I189: 0.9885475711 | J189: 1 | K189: 327.67 | L189: 328.58 | M189: 327.39 | N189: 328.31 | O189: 42866400
A190: 175 | B190: 2020-08-04 | C190: 327.859985 | D190: 330.059998 | E190: 327.859985 | F190: 330.059998 | G190: 41917900 | H190: 326.280029 | I190: 0.9885476307 | J190: 1 | K190: 324.11 | L190: 326.28 | M190: 324.11 | N190: 326.28 | O190: 41917900
A191: 176 | B191: 2020-08-03 | C191: 328.320007 | D191: 329.619995 | E191: 327.730011 | F191: 328.790009 | G191: 53077900 | H191: 325.024567 | I191: 0.9885475778 | J191: 1 | K191: 324.56 | L191: 325.85 | M191: 323.98 | N191: 325.02 | O191: 53077900
A192: 177 | B192: 2020-07-31 | C192: 325.899994 | D192: 326.630005 | E192: 321.329987 | F192: 326.519989 | G192: 85210800 | H192: 322.780548 | I192: 0.9885475893 | J192: 1 | K192: 322.17 | L192: 322.89 | M192: 317.65 | N192: 322.78 | O192: 85210800
A193: 178 | B193: 2020-07-30 | C193: 321.899994 | D193: 324.410004 | E193: 319.640015 | F193: 323.959991 | G193: 61861700 | H193: 320.249878 | I193: 0.9885476198 | J193: 1 | K193: 318.21 | L193: 320.69 | M193: 315.98 | N193: 320.25 | O193: 61861700
A194: 179 | B194: 2020-07-29 | C194: 322.119995 | D194: 325.730011 | E194: 322.079987 | F194: 325.119995 | G194: 48454200 | H194: 321.396606 | I194: 0.9885476468 | J194: 1 | K194: 318.43 | L194: 322 | M194: 318.39 | N194: 321.4 | O194: 48454200
A195: 180 | B195: 2020-07-28 | C195: 322.429993 | D195: 323.640015 | E195: 320.850006 | F195: 321.170013 | G195: 57495000 | H195: 317.491852 | I195: 0.9885476201 | J195: 1 | K195: 318.74 | L195: 319.93 | M195: 317.18 | N195: 317.49 | O195: 57495000
A196: 181 | B196: 2020-07-27 | C196: 321.630005 | D196: 323.410004 | E196: 320.769989 | F196: 323.220001 | G196: 48293000 | H196: 319.518341 | I196: 0.9885475528 | J196: 1 | K196: 317.95 | L196: 319.71 | M196: 317.1 | N196: 319.52 | O196: 48293000
A197: 182 | B197: 2020-07-24 | C197: 320.950012 | D197: 321.98999 | E197: 319.25 | F197: 320.880005 | G197: 73766600 | H197: 317.20517 | I197: 0.9885476348 | J197: 1 | K197: 317.27 | L197: 318.3 | M197: 315.59 | N197: 317.21 | O197: 73766600
A198: 183 | B198: 2020-07-23 | C198: 326.470001 | D198: 327.230011 | E198: 321.480011 | F198: 322.959991 | G198: 75738000 | H198: 319.261322 | I198: 0.9885475938 | J198: 1 | K198: 322.73 | L198: 323.48 | M198: 317.8 | N198: 319.26 | O198: 75738000
A199: 184 | B199: 2020-07-22 | C199: 324.619995 | D199: 327.200012 | E199: 324.5 | F199: 326.859985 | G199: 57792900 | H199: 323.116669 | I199: 0.9885476468 | J199: 1 | K199: 320.9 | L199: 323.45 | M199: 320.78 | N199: 323.12 | O199: 57792900
A200: 185 | B200: 2020-07-21 | C200: 326.450012 | D200: 326.929993 | E200: 323.940002 | F200: 325.01001 | G200: 57499000 | H200: 321.287872 | I200: 0.9885476204 | J200: 1 | K200: 322.71 | L200: 323.19 | M200: 320.23 | N200: 321.29 | O200: 57499000
... 4300 more rows

Sheet CalculationsAndCharts
A1: AM-FM.xlsm | V1: ="("&HistReqSymbol&") - Simple Strategy, "&CHAR(10)&A8&" data bars: "&TEXT(OFFSET(B33,A8-1,0,1,1),"yyyy/mm/dd")&" To "&TEXT(B33,"yyyy/mm/dd ")&"@"&TEXT(InputPriceData!H3,"hh:mm am/pm ")&LEFT(InputPriceData!I3,3) -> (SPY) - Simple Strategy, 1250 data bars: 2016/04/27 To 2021/04/14 @04:00 PM EDT | AE1: ="("&HistReqSymbol&") - Simple Strategy with FM Demodulator, "&CHAR(10)&A8&" Data Bars: "&TEXT(OFFSET(B33,A8-1,0,1,1),"yyyy/mm/dd")&" To "&TEXT(B33,"yyyy/mm/dd ")&"@"&TEXT(InputPriceData!H3,"hh:mm am/pm ")&LEFT(InputPriceData!I3,3) -> (SPY) - Simple Strategy with FM Demodulator, 1250 Data Bars: 2016/04/27 To 2021/04/14 @04:00 PM EDT
A2: =InputPriceData!A1 -> SPDR S&P 500 ETF Trust (SPY) -NYSEArca (Daily) | W2: ROC Period | AG2: ROC Period
V3: =Q33 -> 128.61 | W3: 6 | X3: 8 | Y3: 10 | Z3: 12 | AA3: 14 | AB3: 16 | AF3: =AG33 -> 35.02 | AG3: 6 | AH3: 8 | AI3: 10 | AJ3: 12 | AK3: 14 | AL3: 16
A4: User Charting Controls | E4: Click to Shift Chart One Bar: | V4: 1 | W4: 86.16 | X4: 118.32 | Y4: 114.2 | Z4: 139.91 | AA4: 79.24 | AB4: 92.77 | AC4: Min | AF4: 1 | AG4: -451.49 | AH4: 127.12 | AI4: -1545.9 | AJ4: 109.93 | AK4: 88.85 | AL4: -1609.1 | AM4: Min
A5: Data Control | C5: TRUE | V5: 2 | W5: 70.18 | X5: 128.61 | Y5: 145.01 | Z5: 99.81 | AA5: 139.03 | AB5: 91.42 | AC5: Max | AF5: 2 | AG5: 108.16 | AH5: 89.96 | AI5: 74.41 | AJ5: 96.36 | AK5: 99.15 | AL5: 59.4 | AM5: Max
A6: =InputPriceData!$B$10 -> 7103 | B6: Available Input Data Rows | E6: Earliest: | F6: =OFFSET(InputPriceData!B15,CalculationsAndCharts!A6,0,1,1) -> 1993-01-29 | V6: 3 | W6: 119.85 | X6: 105.67 | Y6: 131.11 | Z6: 123.07 | AA6: 161.95 | AB6: 120.74 | AF6: 3 | AG6: 113.58 | AH6: 78.57 | AI6: 69.95 | AJ6: 114.48 | AK6: 79.36 | AL6: 130.78
A7: =MAX(A33:A56896) -> 1250 | B7: Available Calculation Rows | E7: Latest: | F7: =OFFSET(InputPriceData!B15,1,0,1,1) -> 2021-04-14 | U7: Sig Period | V7: 4 | W7: 126.02 | X7: 108.29 | Y7: 119.29 | Z7: 116.67 | AA7: 91.24 | AB7: 103.06 | AE7: Sig Period | AF7: 4 | AG7: 126.31 | AH7: 71.11 | AI7: 64.89 | AJ7: 81.51 | AK7: 65.43 | AL7: 109.3
A8: =MIN(AvailableInputRows-DataPanRows,A7) -> 1250 | B8: Logically Available for Calc / Plot | E8: $ Change: | F8: =G33-G34 -> -1.41 | V8: 5 | W8: 124.16 | X8: 104.22 | Y8: 106.12 | Z8: 116.76 | AA8: 122.76 | AB8: 163.01 | AF8: 5 | AG8: 95.82 | AH8: 113.17 | AI8: 67.18 | AJ8: 119.06 | AK8: 76.6 | AL8: 138.84
V9: 6 | W9: 128.73 | X9: 91.29 | Y9: 117.67 | Z9: 104.34 | AA9: 135.8 | AB9: 176.39 | AF9: 6 | AG9: 78.76 | AH9: 105.58 | AI9: 35.96 | AJ9: 69.49 | AK9: 116.36 | AL9: 125.76
A10: Historical Price Windowing Specifications | F10: Click to Shift
A11: 0 | B11: Input Data Offset (Pan) | F11: Points to Plot
A12: 638 | B12: Data Points to Plot (Zoom)
B13: First: | C13: =OFFSET(B32,A12,0,1,1) -> 2018-10-01
B14: ="Last: " & IF(OFFSET(InputPriceData!P15,1+A11,0,1,1)="","",TEXT(OFFSET(InputPriceData!P15,1+A11,0,1,1),"H:MM AM/PM")) -> Last: | C14: =B33 -> 2021-04-14
A15: User Controls
A16: Simple Strategy | C16: Simple Strategy with FM Demodulation
A17: 2 | B17: Sig Period | C17: 8 | D17: Sig Period
A18: 8 | B18: ROC Period | C18: 10 | D18: ROC Period
A25: Help! I would like to plot data
A26: From | B26: 2018-05-01 | C26: =OFFSET(InputPriceData!$A$15,MATCH(B26,OFFSET(InputPriceData!B15,1,0,InputPriceData!$B$10,1),0),0,1,1)-C27 -> 638 | E26: 607
A27: To | B27: 2020-11-09 | C27: =OFFSET(InputPriceData!$A$15,MATCH(B27,OFFSET(InputPriceData!$B$15,1,0,InputPriceData!$B$10,1),0),0,1,1)-1 -> 106 | E27: =$A$12-$E$26+1 -> 32
H28: Value @ Cursor => | I28: =OFFSET(A32,$E$27,0,1,1)&"(RR)" -> 32(RR) | J28: =OFFSET($B$32,E27,0,1,1) -> 2021-03-01 | K28: =TEXT(OFFSET(D32,$E$27,0,1,1),"#,##0.00")&"(o)" -> 384.33(o) | L28: =TEXT(OFFSET(E32,$E$27,0,1,1),"#,##0.00")&"(h)" -> 389.64(h) | M28: =TEXT(OFFSET(F32,$E$27,0,1,1),"#,##0.00")&"(l)" -> 379.33(l) | N28: =TEXT(OFFSET(G32,$E$27,0,1,1),"#,##0.00")&"(c)" -> 388.31(c) | O28: =TEXT(OFFSET(C32,$E$27,0,1,1),"#,##0.00,,""M""")&"(v)" -> 104.95M(v)
E29: Cursor ==> | AY29: Work Area For Chart Cursors
B30: =LogicallyAvailableRows -> 1250 | C30: <== Calculation Rel Row Limits ==> | H30: =$A$8-2 -> 1248 | I30: =$A$8-2-3 -> 1245 | J30: =$A$8-2-3-$A$17+1 -> 1244 | K30: =$A$8-2-3-$A$17+1-$A$18+1 -> 1237 | L30: =$A$8-2-3-$A$17+1-$A$18+1-1 -> 1236 | N30: =$A$8-2-3-$A$17+1-$A$18+1-1-1 -> 1235 | O30: =$A$8-2-3-$A$17+1-$A$18+1-1-1-1 -> 1234 | U30: =$A$8-2 -> 1248 | V30: =$A$8-2-49 -> 1199 | Y30: =$A$8-2-49-3 -> 1196 | Z30: =$A$8-2-49-3-$C$17+1 -> 1189 | AA30: =$A$8-2-49-3-$C$17+1-$C$18+1 -> 1180 | AB30: =$A$8-2-49-3-$C$17+1-$C$18+1-1 -> 1179 | AD30: =$A$8-2-49-3-$C$17+1-$C$18+1-1-1 -> 1178 | AE30: =$A$8-2-49-3-$C$17+1-$C$18+1-1-1-1 -> 1177
A31: Rel Row | H31: Simple Strategy | Q31: Account Balance | U31: Simple Strategy with FM Demodulator Calculations | AG31: Account Balance | AW31: Used To Color Vol Bars
B32: Date | C32: Volume | D32: Open | E32: High | F32: Low | G32: Close | H32: Deriv | I32: Z3 | J32: ="Signal("&$A$17&")" -> Signal(2) | K32: ="ROC(" & $A$18&")" -> ROC(8) | L32: Buy Signal | M32: Sell Signal | N32: Trade active | O32: Buy @ | P32: Sell @ | U32: Deriv | V32: RMS | W32: Pre Clip | X32: Clip | Y32: Z3 | Z32: ="Signal("&$C$17&")" -> Signal(8) | AA32: ="ROC(" & $C$18&")" -> ROC(10) | AB32: Buy Signal | AC32: Sell Signal | AD32: Trade active | AE32: Buy @ | AF32: Sell @ | AW32: Up Vol | AX32: Dn Vol | AY32: Volume Cursor | AZ32: =MAX(OFFSET(C33,0,0,A12,1)) -> 392220700 | BA32: Price Chart Cursor | BC32: Indicator 01 Cursor | BE32: Indicator 02 Cursor | BG32: Indicator 03 Cursor | BI32: Indicator 04 Cursor
A33: 1 | B33: =IF(A33>$B$30,NA(),IF($A33>$A$8,"",OFFSET(InputPriceData!$B$15,$A33+$A$11,0,1,1))) -> 2021-04-14 | C33: =IF(A33>$B$30,NA(),IF($A33>$A$8,"",OFFSET(InputPriceData!$G$15,CalculationsAndCharts!$A33+$A$11,IF($C$5,8,0),1,1))) -> 61786318 | D33: =IF(A33>$B$30,NA(),IF(A33>$A$8,"",OFFSET(InputPriceData!$C$15,CalculationsAndCharts!$A33+$A$11,IF($C$5,8,0),1,1))) -> 412.83 | E33: =IF(A33>$B$30,NA(),IF(A33>$A$8,"",OFFSET(InputPriceData!$D$15,CalculationsAndCharts!$A33+$A$11,IF($C$5,8,0),1,1))) -> 413.95 | F33: =IF(A33>$B$30,NA(),IF(A33>$A$8,"",OFFSET(InputPriceData!$E$15,CalculationsAndCharts!$A33+$A$11,IF($C$5,8,0),1,1))) -> 410.87 | G33: =IF(A33>$B$30,NA(),IF(A33>$A$8,"",OFFSET(InputPriceData!$F$15,CalculationsAndCharts!$A33+$A$11,IF($C$5,8,0),1,1))) -> 411.45 | H33: =IF($A33>$H$30,NA(),$G33-$G35) -> -0.19 | I33: =IF($A33>I$30,NA(),SUM(H33:H36)) -> 9.2 | J33: =IF($A33>J$30,NA(),AVERAGE(OFFSET(I33,0,0,$A$17,1))) -> 10.495 | K33: =IF($A33>K$30,NA(),J33-OFFSET(J33,$A$18,0,1,1)) -> -2.055 | L33: =IF($A33>L$30,NA(),AND(K33>0,K34<0)) -> FALSE | M33: =IF($A33>L$30,NA(),AND(K33<0,K34>0)) -> FALSE | N33: =IF($A33>N$30,NA(),IF($A33=N$30,FALSE,IF(NOT(OR(L34,M34)),N34,IF(AND(N34,M34),FALSE,AND(L34,NOT(N34)))))) -> FALSE | O33: =IF($A33>O$30,NA(),IF(L34,+$D33,0)) -> 0 | P33: =IF($A33>O$30,NA(),IF(AND(M34,N34),$D33,IF(AND($A33=1,N33),$G33,0))) -> 412.83 | Q33: =IF($A33>O$30,NA(),IF($A33=O$30,0,Q34)-O33+P33) -> 128.61 | U33: =IF($A33>$U$30,NA(),$G33-$G35) -> -0.19 | V33: =IF(A$33>$V$30,NA(),SUMSQ(OFFSET(U33,0,0,50,1))) -> 1297.6207 | W33: =IF(A33>$V$30,NA(),IFERROR(2*U33/SQRT(V33/50),0)) -> -0.07459242329 | X33: =IF(A33>$V$30,NA(),IF(W33>1,1,IF(W33<-1,-1,W33))) -> -0.07459242329 | Y33: =IF($A33>Y$30,NA(),SUM(X33:X36)) -> 2.462859932 | Z33: =IF($A33>Z$30,NA(),AVERAGE(OFFSET(Y33,0,0,$C$17,1))) -> 2.861504937 | AA33: =IF($A33>AA$30,NA(),Z33-OFFSET(Z33,$C$18,0,1,1)) -> 2.986517306 | AB33: =IF($A33>AB$30,NA(),AND(AA33>0,AA34<0)) -> FALSE | AC33: =IF($A33>AB$30,NA(),AND(AA33<0,AA34>0)) -> FALSE | AD33: =IF($A33>AD$30,NA(),IF($A33=AD$30,FALSE,IF(NOT(OR(AB34,AC34)),AD34,IF(AND(AD34,AC34),FALSE,AND(AB34,NOT(AD34)))))) -> TRUE | AE33: =IF($A33>AE$30,NA(),IF(AB34,+$D33,0)) -> 0 | AF33: =IF($A33>AE$30,NA(),IF(AND(AC34,AD34),$D33,IF(AND($A33=1,AD33),$G33,0))) -> 411.45 | AG33: =IF($A33>AE$30,NA(),IF($A33=AE$30,0,AG34)-AE33+AF33) -> 35.02 | AW33: =IF(G33>=D33,C33,NA()) ->  | AX33: =IF(G33<D33,C33,NA()) -> 61786318 | AY33: =$E$27 -> 32 | AZ33: 0 | BA33: =$E$27 -> 32 | BB33: 209.4495 | BC33: =$E$27 -> 32 | BD33: 0 | BE33: =$E$27 -> 32 | BF33: -1 | BG33: =$E$27 -> 32 | BH33: -39.5 | BI33: =$E$27 -> 32 | BJ33: -1
A34: 2 | B34: =IF(A34>$B$30,NA(),IF($A34>$A$8,"",OFFSET(InputPriceData!$B$15,$A34+$A$11,0,1,1))) -> 2021-04-13 | C34: =IF(A34>$B$30,NA(),IF($A34>$A$8,"",OFFSET(InputPriceData!$G$15,CalculationsAndCharts!$A34+$A$11,IF($C$5,8,0),1,1))) -> 56453800 | D34: =IF(A34>$B$30,NA(),IF(A34>$A$8,"",OFFSET(InputPriceData!$C$15,CalculationsAndCharts!$A34+$A$11,IF($C$5,8,0),1,1))) -> 411.53 | E34: =IF(A34>$B$30,NA(),IF(A34>$A$8,"",OFFSET(InputPriceData!$D$15,CalculationsAndCharts!$A34+$A$11,IF($C$5,8,0),1,1))) -> 413.53 | F34: =IF(A34>$B$30,NA(),IF(A34>$A$8,"",OFFSET(InputPriceData!$E$15,CalculationsAndCharts!$A34+$A$11,IF($C$5,8,0),1,1))) -> 411.12 | G34: =IF(A34>$B$30,NA(),IF(A34>$A$8,"",OFFSET(InputPriceData!$F$15,CalculationsAndCharts!$A34+$A$11,IF($C$5,8,0),1,1))) -> 412.86 | H34: =IF($A34>$H$30,NA(),$G34-$G36) -> 1.37 | I34: =IF($A34>I$30,NA(),SUM(H34:H37)) -> 11.79 | J34: =IF($A34>J$30,NA(),AVERAGE(OFFSET(I34,0,0,$A$17,1))) -> 11.22 | K34: =IF($A34>K$30,NA(),J34-OFFSET(J34,$A$18,0,1,1)) -> -2.445 | L34: =IF($A34>L$30,NA(),AND(K34>0,K35<0)) -> FALSE | M34: =IF($A34>L$30,NA(),AND(K34<0,K35>0)) -> TRUE | N34: =IF($A34>N$30,NA(),IF($A34=N$30,FALSE,IF(NOT(OR(L35,M35)),N35,IF(AND(N35,M35),FALSE,AND(L35,NOT(N35)))))) -> TRUE | O34: =IF($A34>O$30,NA(),IF(L35,+$D34,0)) -> 0 | P34: =IF($A34>O$30,NA(),IF(AND(M35,N35),$D34,IF(AND($A34=1,N34),$G34,0))) -> 0 | Q34: =IF($A34>O$30,NA(),IF($A34=O$30,0,Q35)-O34+P34) -> -284.22 | U34: =IF(A34>$U$30,NA(),G34-G36) -> 1.37 | V34: =IF(A34>$V$30,NA(),SUMSQ(OFFSET(U34,0,0,50,1))) -> 1299.5446 | W34: 0.5374523554 | X34: 0.5374523554 | Y34: =IF(A34>$Y$30,NA(),SUM(X34:X37)) -> 3.438354811 | Z34: =IF(A34>$Z$30,NA(),AVERAGE(OFFSET(Y34,0,0,$C$17,1))) -> 2.76993503 | AA34: =IF(A34>$AA$30,NA(),Z34-OFFSET(Z34,$C$18,0,1,1)) -> 2.964003982 | AB34: =IF(A34>$AB$30,NA(),AND(AA34>0,AA35<0)) -> FALSE | AC34: =IF(A34>$AB$30,NA(),AND(AA34<0,AA35>0)) -> FALSE | AD34: =IF(A34>$AD$30,NA(),IF(A34=$AD$30,FALSE,IF(NOT(OR(AB35,AC35)),AD35,IF(AND(AD35,AC35),FALSE,AND(AB35,NOT(AD35)))))) -> TRUE | AE34: =IF(A34>$AE$30,NA(),IF(AB35,+D34,0)) -> 0 | AF34: =IF(A34>$AE$30,NA(),IF(AND(AC35,AD35),D34,IF(AND(A34=1,AD34),G34,0))) -> 0 | AG34: =IF(A34>$AE$30,NA(),IF(A34=$AE$30,0,AG35)-AE34+AF34) -> -376.43 | AW34: 56453800 | AY34: =$E$27 -> 32 | AZ34: =CEILING(AZ32,10^INT(LOG10(AZ32))/8) -> 400000000 | BA34: =$E$27 -> 32 | BB34: 424.29875 | BC34: =$E$27 -> 32 | BD34: 1 | BE34: =$E$27 -> 32 | BF34: 1 | BG34: =$E$27 -> 32 | BH34: 39.5 | BI34: =$E$27 -> 32 | BJ34: 1
A35: 3 | B35: =IF(A35>$B$30,NA(),IF($A35>$A$8,"",OFFSET(InputPriceData!$B$15,$A35+$A$11,0,1,1))) -> 2021-04-12 | C35: =IF(A35>$B$30,NA(),IF($A35>$A$8,"",OFFSET(InputPriceData!$G$15,CalculationsAndCharts!$A35+$A$11,IF($C$5,8,0),1,1))) -> 56704900 | D35: =IF(A35>$B$30,NA(),IF(A35>$A$8,"",OFFSET(InputPriceData!$C$15,CalculationsAndCharts!$A35+$A$11,IF($C$5,8,0),1,1))) -> 410.85 | E35: =IF(A35>$B$30,NA(),IF(A35>$A$8,"",OFFSET(InputPriceData!$D$15,CalculationsAndCharts!$A35+$A$11,IF($C$5,8,0),1,1))) -> 411.93 | F35: =IF(A35>$B$30,NA(),IF(A35>$A$8,"",OFFSET(InputPriceData!$E$15,CalculationsAndCharts!$A35+$A$11,IF($C$5,8,0),1,1))) -> 410.2 | G35: =IF(A35>$B$30,NA(),IF(A35>$A$8,"",OFFSET(InputPriceData!$F$15,CalculationsAndCharts!$A35+$A$11,IF($C$5,8,0),1,1))) -> 411.64 | H35: 3.12 | I35: 10.65 | J35: 11.845 | K35: 0.265 | L35: FALSE | M35: FALSE | N35: TRUE | O35: 0 | P35: 0 | Q35: -284.22 | U35: 3.12 | V35: 1316.4166 | W35: 1.21611016 | X35: 1 | Y35: 2.98738933 | Z35: 2.556428263 | AA35: 2.504749865 | AB35: FALSE | AC35: FALSE | AD35: TRUE | AE35: 0 | AF35: 0 | AG35: -376.43 | AW35: 56704900
A36: 4 | B36: =IF(A36>$B$30,NA(),IF($A36>$A$8,"",OFFSET(InputPriceData!$B$15,$A36+$A$11,0,1,1))) -> 2021-04-09 | C36: =IF(A36>$B$30,NA(),IF($A36>$A$8,"",OFFSET(InputPriceData!$G$15,CalculationsAndCharts!$A36+$A$11,IF($C$5,8,0),1,1))) -> 61060100 | D36: =IF(A36>$B$30,NA(),IF(A36>$A$8,"",OFFSET(InputPriceData!$C$15,CalculationsAndCharts!$A36+$A$11,IF($C$5,8,0),1,1))) -> 408.39 | E36: =IF(A36>$B$30,NA(),IF(A36>$A$8,"",OFFSET(InputPriceData!$D$15,CalculationsAndCharts!$A36+$A$11,IF($C$5,8,0),1,1))) -> 411.67 | F36: =IF(A36>$B$30,NA(),IF(A36>$A$8,"",OFFSET(InputPriceData!$E$15,CalculationsAndCharts!$A36+$A$11,IF($C$5,8,0),1,1))) -> 408.26 | G36: =IF(A36>$B$30,NA(),IF(A36>$A$8,"",OFFSET(InputPriceData!$F$15,CalculationsAndCharts!$A36+$A$11,IF($C$5,8,0),1,1))) -> 411.49 | H36: 4.9 | I36: 13.04 | J36: 15.605 | K36: 8.965 | L36: FALSE | M36: FALSE | N36: TRUE | O36: 0 | P36: 0 | Q36: -284.22 | U36: 4.9 | V36: 1344.3818 | W36: 1.88994761 | X36: 1 | Y36: 2.98738933 | Z36: 2.382787127 | AA36: 1.877289186 | AB36: FALSE | AC36: FALSE | AD36: TRUE | AE36: 0 | AF36: 0 | AG36: -376.43 | AW36: 61060100
A37: 5 | B37: =IF(A37>$B$30,NA(),IF($A37>$A$8,"",OFFSET(InputPriceData!$B$15,$A37+$A$11,0,1,1))) -> 2021-04-08 | C37: =IF(A37>$B$30,NA(),IF($A37>$A$8,"",OFFSET(InputPriceData!$G$15,CalculationsAndCharts!$A37+$A$11,IF($C$5,8,0),1,1))) -> 57863100 | D37: =IF(A37>$B$30,NA(),IF(A37>$A$8,"",OFFSET(InputPriceData!$C$15,CalculationsAndCharts!$A37+$A$11,IF($C$5,8,0),1,1))) -> 407.93 | E37: =IF(A37>$B$30,NA(),IF(A37>$A$8,"",OFFSET(InputPriceData!$D$15,CalculationsAndCharts!$A37+$A$11,IF($C$5,8,0),1,1))) -> 408.58 | F37: =IF(A37>$B$30,NA(),IF(A37>$A$8,"",OFFSET(InputPriceData!$E$15,CalculationsAndCharts!$A37+$A$11,IF($C$5,8,0),1,1))) -> 406.93 | G37: =IF(A37>$B$30,NA(),IF(A37>$A$8,"",OFFSET(InputPriceData!$F$15,CalculationsAndCharts!$A37+$A$11,IF($C$5,8,0),1,1))) -> 408.52 | H37: 2.4 | I37: 18.17 | J37: 19.91 | K37: 19.335 | L37: FALSE | M37: FALSE | N37: TRUE | O37: 0 | P37: 0 | Q37: -284.22 | U37: 2.4 | V37: 1419.3743 | W37: 0.900902456 | X37: 0.900902456 | Y37: 2.98738933 | Z37: 2.14434206 | AA37: 1.142228017 | AB37: FALSE | AC37: FALSE | AD37: TRUE | AE37: 407.93 | AF37: 0 | AG37: -376.43 | AW37: 57863100
A38: 6 | B38: =IF(A38>$B$30,NA(),IF($A38>$A$8,"",OFFSET(InputPriceData!$B$15,$A38+$A$11,0,1,1))) -> 2021-04-07 | C38: =IF(A38>$B$30,NA(),IF($A38>$A$8,"",OFFSET(InputPriceData!$G$15,CalculationsAndCharts!$A38+$A$11,IF($C$5,8,0),1,1))) -> 55836300 | D38: =IF(A38>$B$30,NA(),IF(A38>$A$8,"",OFFSET(InputPriceData!$C$15,CalculationsAndCharts!$A38+$A$11,IF($C$5,8,0),1,1))) -> 405.94 | E38: =IF(A38>$B$30,NA(),IF(A38>$A$8,"",OFFSET(InputPriceData!$D$15,CalculationsAndCharts!$A38+$A$11,IF($C$5,8,0),1,1))) -> 406.96 | F38: =IF(A38>$B$30,NA(),IF(A38>$A$8,"",OFFSET(InputPriceData!$E$15,CalculationsAndCharts!$A38+$A$11,IF($C$5,8,0),1,1))) -> 405.45 | G38: =IF(A38>$B$30,NA(),IF(A38>$A$8,"",OFFSET(InputPriceData!$F$15,CalculationsAndCharts!$A38+$A$11,IF($C$5,8,0),1,1))) -> 406.59 | H38: 0.23 | I38: 21.65 | J38: 21.81 | K38: 27.61 | L38: FALSE | M38: FALSE | N38: TRUE | O38: 0 | P38: 0 | Q38: -284.22 | U38: 0.23 | V38: 1414.4424 | W38: 0.08648687409 | X38: 0.08648687409 | Y38: 3.086486874 | Z38: 1.781902643 | AA38: 0.1481939012 | AB38: TRUE | AC38: FALSE | AD38: FALSE | AE38: 0 | AF38: 0 | AG38: 31.5 | AW38: 55836300
A39: 7 | B39: =IF(A39>$B$30,NA(),IF($A39>$A$8,"",OFFSET(InputPriceData!$B$15,$A39+$A$11,0,1,1))) -> 2021-04-06 | C39: =IF(A39>$B$30,NA(),IF($A39>$A$8,"",OFFSET(InputPriceData!$G$15,CalculationsAndCharts!$A39+$A$11,IF($C$5,8,0),1,1))) -> 62021000 | D39: =IF(A39>$B$30,NA(),IF(A39>$A$8,"",OFFSET(InputPriceData!$C$15,CalculationsAndCharts!$A39+$A$11,IF($C$5,8,0),1,1))) -> 405.76 | E39: =IF(A39>$B$30,NA(),IF(A39>$A$8,"",OFFSET(InputPriceData!$D$15,CalculationsAndCharts!$A39+$A$11,IF($C$5,8,0),1,1))) -> 407.24 | F39: =IF(A39>$B$30,NA(),IF(A39>$A$8,"",OFFSET(InputPriceData!$E$15,CalculationsAndCharts!$A39+$A$11,IF($C$5,8,0),1,1))) -> 405.4 | G39: =IF(A39>$B$30,NA(),IF(A39>$A$8,"",OFFSET(InputPriceData!$F$15,CalculationsAndCharts!$A39+$A$11,IF($C$5,8,0),1,1))) -> 406.12 | H39: 5.51 | I39: 21.97 | J39: 18.59 | K39: 27.405 | L39: FALSE | M39: FALSE | N39: TRUE | O39: 0 | P39: 0 | Q39: -284.22 | U39: 5.51 | V39: 1414.412 | W39: 2.071946945 | X39: 1 | Y39: 3.211869217 | Z39: 1.399475683 | AA39: -0.8658277583 | AB39: FALSE | AC39: FALSE | AD39: FALSE | AE39: 0 | AF39: 0 | AG39: 31.5 | AW39: 62021000
A40: 8 | B40: =IF(A40>$B$30,NA(),IF($A40>$A$8,"",OFFSET(InputPriceData!$B$15,$A40+$A$11,0,1,1))) -> 2021-04-05 | C40: =IF(A40>$B$30,NA(),IF($A40>$A$8,"",OFFSET(InputPriceData!$G$15,CalculationsAndCharts!$A40+$A$11,IF($C$5,8,0),1,1))) -> 91684800 | D40: =IF(A40>$B$30,NA(),IF(A40>$A$8,"",OFFSET(InputPriceData!$C$15,CalculationsAndCharts!$A40+$A$11,IF($C$5,8,0),1,1))) -> 403.46 | E40: =IF(A40>$B$30,NA(),IF(A40>$A$8,"",OFFSET(InputPriceData!$D$15,CalculationsAndCharts!$A40+$A$11,IF($C$5,8,0),1,1))) -> 406.94 | F40: =IF(A40>$B$30,NA(),IF(A40>$A$8,"",OFFSET(InputPriceData!$E$15,CalculationsAndCharts!$A40+$A$11,IF($C$5,8,0),1,1))) -> 403.38 | G40: =IF(A40>$B$30,NA(),IF(A40>$A$8,"",OFFSET(InputPriceData!$F$15,CalculationsAndCharts!$A40+$A$11,IF($C$5,8,0),1,1))) -> 406.36 | H40: 10.03 | I40: 15.21 | J40: 13.235 | K40: 21.315 | L40: FALSE | M40: FALSE | N40: TRUE | O40: 0 | P40: 0 | Q40: -284.22 | U40: 10.03 | V40: 1385.072 | W40: 3.811358106 | X40: 1 | Y40: 1.730300674 | Z40: 0.8663973314 | AA40: -1.978583006 | AB40: FALSE | AC40: FALSE | AD40: FALSE | AE40: 0 | AF40: 0 | AG40: 31.5 | AW40: 91684800
A41: 9 | B41: =IF(A41>$B$30,NA(),IF($A41>$A$8,"",OFFSET(InputPriceData!$B$15,$A41+$A$11,0,1,1))) -> 2021-04-01 | C41: =IF(A41>$B$30,NA(),IF($A41>$A$8,"",OFFSET(InputPriceData!$G$15,CalculationsAndCharts!$A41+$A$11,IF($C$5,8,0),1,1))) -> 99599100 | D41: =IF(A41>$B$30,NA(),IF(A41>$A$8,"",OFFSET(InputPriceData!$C$15,CalculationsAndCharts!$A41+$A$11,IF($C$5,8,0),1,1))) -> 398.4 | E41: =IF(A41>$B$30,NA(),IF(A41>$A$8,"",OFFSET(InputPriceData!$D$15,CalculationsAndCharts!$A41+$A$11,IF($C$5,8,0),1,1))) -> 400.67 | F41: =IF(A41>$B$30,NA(),IF(A41>$A$8,"",OFFSET(InputPriceData!$E$15,CalculationsAndCharts!$A41+$A$11,IF($C$5,8,0),1,1))) -> 398.18 | G41: =IF(A41>$B$30,NA(),IF(A41>$A$8,"",OFFSET(InputPriceData!$F$15,CalculationsAndCharts!$A41+$A$11,IF($C$5,8,0),1,1))) -> 400.61 | H41: 5.88 | I41: 11.26 | J41: 12.55 | K41: 20.49 | L41: FALSE | M41: FALSE | N41: TRUE | O41: 0 | P41: 0 | Q41: -284.22 | U41: 5.88 | V41: 1315.6075 | W41: 2.292604569 | X41: 1 | Y41: 1.730300674 | Z41: 0.5185150478 | AA41: -2.683738042 | AB41: FALSE | AC41: FALSE | AD41: FALSE | AE41: 0 | AF41: 0 | AG41: 31.5 | AW41: 99599100
A42: 10 | B42: =IF(A42>$B$30,NA(),IF($A42>$A$8,"",OFFSET(InputPriceData!$B$15,$A42+$A$11,0,1,1))) -> 2021-03-31 | C42: =IF(A42>$B$30,NA(),IF($A42>$A$8,"",OFFSET(InputPriceData!$G$15,CalculationsAndCharts!$A42+$A$11,IF($C$5,8,0),1,1))) -> 112734200 | D42: =IF(A42>$B$30,NA(),IF(A42>$A$8,"",OFFSET(InputPriceData!$C$15,CalculationsAndCharts!$A42+$A$11,IF($C$5,8,0),1,1))) -> 395.34 | E42: =IF(A42>$B$30,NA(),IF(A42>$A$8,"",OFFSET(InputPriceData!$D$15,CalculationsAndCharts!$A42+$A$11,IF($C$5,8,0),1,1))) -> 398 | F42: =IF(A42>$B$30,NA(),IF(A42>$A$8,"",OFFSET(InputPriceData!$E$15,CalculationsAndCharts!$A42+$A$11,IF($C$5,8,0),1,1))) -> 395.31 | G42: =IF(A42>$B$30,NA(),IF(A42>$A$8,"",OFFSET(InputPriceData!$F$15,CalculationsAndCharts!$A42+$A$11,IF($C$5,8,0),1,1))) -> 396.33 | H42: 0.55 | I42: 13.84 | J42: 13.665 | K42: 17.2 | L42: FALSE | M42: FALSE | N42: TRUE | O42: 395.34 | P42: 0 | Q42: -284.22 | U42: 0.55 | V42: 1347.782 | W42: 0.2118692169 | X42: 0.2118692169 | Y42: 1.730300674 | Z42: 0.2105492672 | AA42: -2.848976575 | AB42: FALSE | AC42: FALSE | AD42: FALSE | AE42: 0 | AF42: 0 | AG42: 31.5 | AW42: 112734200
A43: 11 | B43: =IF(A43>$B$30,NA(),IF($A43>$A$8,"",OFFSET(InputPriceData!$B$15,$A43+$A$11,0,1,1))) -> 2021-03-30 | C43: =IF(A43>$B$30,NA(),IF($A43>$A$8,"",OFFSET(InputPriceData!$G$15,CalculationsAndCharts!$A43+$A$11,IF($C$5,8,0),1,1))) -> 76262200 | D43: =IF(A43>$B$30,NA(),IF(A43>$A$8,"",OFFSET(InputPriceData!$C$15,CalculationsAndCharts!$A43+$A$11,IF($C$5,8,0),1,1))) -> 394.42 | E43: =IF(A43>$B$30,NA(),IF(A43>$A$8,"",OFFSET(InputPriceData!$D$15,CalculationsAndCharts!$A43+$A$11,IF($C$5,8,0),1,1))) -> 395.45 | F43: =IF(A43>$B$30,NA(),IF(A43>$A$8,"",OFFSET(InputPriceData!$E$15,CalculationsAndCharts!$A43+$A$11,IF($C$5,8,0),1,1))) -> 393.02 | G43: =IF(A43>$B$30,NA(),IF(A43>$A$8,"",OFFSET(InputPriceData!$F$15,CalculationsAndCharts!$A43+$A$11,IF($C$5,8,0),1,1))) -> 394.73 | H43: -1.25 | I43: 13.49 | J43: 11.58 | K43: 6 | L43: TRUE | M43: FALSE | N43: FALSE | O43: 0 | P43: 0 | Q43: 111.12 | U43: -1.25 | V43: 1347.5156 | W43: -0.4815685428 | X43: -0.4815685428 | Y43: 1.598260245 | Z43: -0.1250123691 | AA43: -2.791810963 | AB43: FALSE | AC43: FALSE | AD43: FALSE | AE43: 0 | AF43: 0 | AG43: 31.5 | AW43: 76262200
A44: 12 | B44: =IF(A44>$B$30,NA(),IF($A44>$A$8,"",OFFSET(InputPriceData!$B$15,$A44+$A$11,0,1,1))) -> 2021-03-29 | C44: =IF(A44>$B$30,NA(),IF($A44>$A$8,"",OFFSET(InputPriceData!$G$15,CalculationsAndCharts!$A44+$A$11,IF($C$5,8,0),1,1))) -> 108107600 | D44: =IF(A44>$B$30,NA(),IF(A44>$A$8,"",OFFSET(InputPriceData!$C$15,CalculationsAndCharts!$A44+$A$11,IF($C$5,8,0),1,1))) -> 394.4 | E44: =IF(A44>$B$30,NA(),IF(A44>$A$8,"",OFFSET(InputPriceData!$D$15,CalculationsAndCharts!$A44+$A$11,IF($C$5,8,0),1,1))) -> 396.75 | F44: =IF(A44>$B$30,NA(),IF(A44>$A$8,"",OFFSET(InputPriceData!$E$15,CalculationsAndCharts!$A44+$A$11,IF($C$5,8,0),1,1))) -> 392.81 | G44: =IF(A44>$B$30,NA(),IF(A44>$A$8,"",OFFSET(InputPriceData!$F$15,CalculationsAndCharts!$A44+$A$11,IF($C$5,8,0),1,1))) -> 395.78 | H44: 6.08 | I44: 9.67 | J44: 6.64 | K44: -6.13 | L44: FALSE | M44: FALSE | N44: FALSE | O44: 0 | P44: 0 | Q44: 111.12 | U44: 6.08 | V44: 1362.5995 | W44: 2.329348474 | X44: 1 | Y44: 1.079828788 | Z44: -0.1940689518 | AA44: -2.396063752 | AB44: FALSE | AC44: FALSE | AD44: FALSE | AE44: 0 | AF44: 0 | AG44: 31.5 | AW44: 108107600
A45: 13 | B45: =IF(A45>$B$30,NA(),IF($A45>$A$8,"",OFFSET(InputPriceData!$B$15,$A45+$A$11,0,1,1))) -> 2021-03-26 | C45: =IF(A45>$B$30,NA(),IF($A45>$A$8,"",OFFSET(InputPriceData!$G$15,CalculationsAndCharts!$A45+$A$11,IF($C$5,8,0),1,1))) -> 113023400 | D45: =IF(A45>$B$30,NA(),IF(A45>$A$8,"",OFFSET(InputPriceData!$C$15,CalculationsAndCharts!$A45+$A$11,IF($C$5,8,0),1,1))) -> 390.93 | E45: =IF(A45>$B$30,NA(),IF(A45>$A$8,"",OFFSET(InputPriceData!$D$15,CalculationsAndCharts!$A45+$A$11,IF($C$5,8,0),1,1))) -> 396.41 | F45: =IF(A45>$B$30,NA(),IF(A45>$A$8,"",OFFSET(InputPriceData!$E$15,CalculationsAndCharts!$A45+$A$11,IF($C$5,8,0),1,1))) -> 390.29 | G45: =IF(A45>$B$30,NA(),IF(A45>$A$8,"",OFFSET(InputPriceData!$F$15,CalculationsAndCharts!$A45+$A$11,IF($C$5,8,0),1,1))) -> 395.98 | H45: 8.46 | I45: 3.61 | J45: 0.575 | K45: -17.94 | L45: FALSE | M45: FALSE | N45: FALSE | O45: 0 | P45: 0 | Q45: 111.12 | U45: 8.46 | V45: 1325.7292 | W45: 3.285927295 | X45: 1 | Y45: 0.08787399749 | Z45: 0.05167839759 | AA45: -1.650316403 | AB45: FALSE | AC45: FALSE | AD45: FALSE | AE45: 0 | AF45: 390.93 | AG45: 31.5 | AW45: 113023400
A46: 14 | B46: =IF(A46>$B$30,NA(),IF($A46>$A$8,"",OFFSET(InputPriceData!$B$15,$A46+$A$11,0,1,1))) -> 2021-03-25 | C46: =IF(A46>$B$30,NA(),IF($A46>$A$8,"",OFFSET(InputPriceData!$G$15,CalculationsAndCharts!$A46+$A$11,IF($C$5,8,0),1,1))) -> 116128600 | D46: =IF(A46>$B$30,NA(),IF(A46>$A$8,"",OFFSET(InputPriceData!$C$15,CalculationsAndCharts!$A46+$A$11,IF($C$5,8,0),1,1))) -> 385.98 | E46: =IF(A46>$B$30,NA(),IF(A46>$A$8,"",OFFSET(InputPriceData!$D$15,CalculationsAndCharts!$A46+$A$11,IF($C$5,8,0),1,1))) -> 390.55 | F46: =IF(A46>$B$30,NA(),IF(A46>$A$8,"",OFFSET(InputPriceData!$E$15,CalculationsAndCharts!$A46+$A$11,IF($C$5,8,0),1,1))) -> 383.9 | G46: =IF(A46>$B$30,NA(),IF(A46>$A$8,"",OFFSET(InputPriceData!$F$15,CalculationsAndCharts!$A46+$A$11,IF($C$5,8,0),1,1))) -> 389.7 | H46: 0.2 | I46: -2.46 | J46: -5.8 | K46: -27.64 | L46: FALSE | M46: FALSE | N46: FALSE | O46: 0 | P46: 0 | Q46: 111.12 | U46: 0.2 | V46: 1255.3676 | W46: 0.079828788 | X46: 0.079828788 | Y46: 0.02707119317 | Z46: 0.5054979416 | AA46: -0.6964968587 | AB46: FALSE | AC46: TRUE | AD46: TRUE | AE46: 0 | AF46: 0 | AG46: -359.43 | AW46: 116128600
A47: 15 | B47: =IF(A47>$B$30,NA(),IF($A47>$A$8,"",OFFSET(InputPriceData!$B$15,$A47+$A$11,0,1,1))) -> 2021-03-24 | C47: =IF(A47>$B$30,NA(),IF($A47>$A$8,"",OFFSET(InputPriceData!$G$15,CalculationsAndCharts!$A47+$A$11,IF($C$5,8,0),1,1))) -> 97588600 | D47: =IF(A47>$B$30,NA(),IF(A47>$A$8,"",OFFSET(InputPriceData!$C$15,CalculationsAndCharts!$A47+$A$11,IF($C$5,8,0),1,1))) -> 391 | E47: =IF(A47>$B$30,NA(),IF(A47>$A$8,"",OFFSET(InputPriceData!$D$15,CalculationsAndCharts!$A47+$A$11,IF($C$5,8,0),1,1))) -> 392.75 | F47: =IF(A47>$B$30,NA(),IF(A47>$A$8,"",OFFSET(InputPriceData!$E$15,CalculationsAndCharts!$A47+$A$11,IF($C$5,8,0),1,1))) -> 387.47 | G47: =IF(A47>$B$30,NA(),IF(A47>$A$8,"",OFFSET(InputPriceData!$F$15,CalculationsAndCharts!$A47+$A$11,IF($C$5,8,0),1,1))) -> 387.52 | H47: -5.07 | I47: -9.14 | J47: -8.815 | K47: -31.255 | L47: FALSE | M47: FALSE | N47: FALSE | O47: 0 | P47: 0 | Q47: 111.12 | U47: -5.07 | V47: 1261.5277 | W47: -2.018712916 | X47: -1 | Y47: -1.052757595 | Z47: 1.002114042 | AA47: 0.3001192421 | AB47: FALSE | AC47: FALSE | AD47: TRUE | AE47: 0 | AF47: 0 | AG47: -359.43 | AX47: 97588600
A48: 16 | B48: =IF(A48>$B$30,NA(),IF($A48>$A$8,"",OFFSET(InputPriceData!$B$15,$A48+$A$11,0,1,1))) -> 2021-03-23 | C48: =IF(A48>$B$30,NA(),IF($A48>$A$8,"",OFFSET(InputPriceData!$G$15,CalculationsAndCharts!$A48+$A$11,IF($C$5,8,0),1,1))) -> 90686600 | D48: =IF(A48>$B$30,NA(),IF(A48>$A$8,"",OFFSET(InputPriceData!$C$15,CalculationsAndCharts!$A48+$A$11,IF($C$5,8,0),1,1))) -> 391.91 | E48: =IF(A48>$B$30,NA(),IF(A48>$A$8,"",OFFSET(InputPriceData!$D$15,CalculationsAndCharts!$A48+$A$11,IF($C$5,8,0),1,1))) -> 393.46 | F48: =IF(A48>$B$30,NA(),IF(A48>$A$8,"",OFFSET(InputPriceData!$E$15,CalculationsAndCharts!$A48+$A$11,IF($C$5,8,0),1,1))) -> 388.66 | G48: =IF(A48>$B$30,NA(),IF(A48>$A$8,"",OFFSET(InputPriceData!$F$15,CalculationsAndCharts!$A48+$A$11,IF($C$5,8,0),1,1))) -> 389.5 | H48: 0.02 | I48: -8.49 | J48: -8.08 | K48: -28.725 | L48: FALSE | M48: FALSE | N48: FALSE | O48: 0 | P48: 391.91 | Q48: 111.12 | U48: 0.02 | V48: 1235.9909 | W48: 0.008045209483 | X48: 0.008045209483 | Y48: -1.052757595 | Z48: 1.633708742 | AA48: 1.669712642 | AB48: FALSE | AC48: FALSE | AD48: TRUE | AE48: 0 | AF48: 0 | AG48: -359.43 | AX48: 90686600
A49: 17 | B49: =IF(A49>$B$30,NA(),IF($A49>$A$8,"",OFFSET(InputPriceData!$B$15,$A49+$A$11,0,1,1))) -> 2021-03-22 | C49: =IF(A49>$B$30,NA(),IF($A49>$A$8,"",OFFSET(InputPriceData!$G$15,CalculationsAndCharts!$A49+$A$11,IF($C$5,8,0),1,1))) -> 73778600 | D49: =IF(A49>$B$30,NA(),IF(A49>$A$8,"",OFFSET(InputPriceData!$C$15,CalculationsAndCharts!$A49+$A$11,IF($C$5,8,0),1,1))) -> 390.03 | E49: =IF(A49>$B$30,NA(),IF(A49>$A$8,"",OFFSET(InputPriceData!$D$15,CalculationsAndCharts!$A49+$A$11,IF($C$5,8,0),1,1))) -> 394.07 | F49: =IF(A49>$B$30,NA(),IF(A49>$A$8,"",OFFSET(InputPriceData!$E$15,CalculationsAndCharts!$A49+$A$11,IF($C$5,8,0),1,1))) -> 389.97 | G49: =IF(A49>$B$30,NA(),IF(A49>$A$8,"",OFFSET(InputPriceData!$F$15,CalculationsAndCharts!$A49+$A$11,IF($C$5,8,0),1,1))) -> 392.59 | H49: 2.39 | I49: -7.67 | J49: -7.94 | K49: -17.695 | L49: FALSE | M49: TRUE | N49: TRUE | O49: 0 | P49: 0 | Q49: -280.79 | U49: 2.39 | V49: 1295.1266 | W49: 0.9391971957 | X49: 0.9391971957 | Y49: -0.7334255705 | Z49: 2.265303441 | AA49: 2.789306041 | AB49: FALSE | AC49: FALSE | AD49: TRUE | AE49: 0 | AF49: 0 | AG49: -359.43 | AW49: 73778600
A50: 18 | B50: =IF(A50>$B$30,NA(),IF($A50>$A$8,"",OFFSET(InputPriceData!$B$15,$A50+$A$11,0,1,1))) -> 2021-03-19 | C50: =IF(A50>$B$30,NA(),IF($A50>$A$8,"",OFFSET(InputPriceData!$G$15,CalculationsAndCharts!$A50+$A$11,IF($C$5,8,0),1,1))) -> 112777800 | D50: =IF(A50>$B$30,NA(),IF(A50>$A$8,"",OFFSET(InputPriceData!$C$15,CalculationsAndCharts!$A50+$A$11,IF($C$5,8,0),1,1))) -> 389.88 | E50: =IF(A50>$B$30,NA(),IF(A50>$A$8,"",OFFSET(InputPriceData!$D$15,CalculationsAndCharts!$A50+$A$11,IF($C$5,8,0),1,1))) -> 391.57 | F50: =IF(A50>$B$30,NA(),IF(A50>$A$8,"",OFFSET(InputPriceData!$E$15,CalculationsAndCharts!$A50+$A$11,IF($C$5,8,0),1,1))) -> 387.15 | G50: =IF(A50>$B$30,NA(),IF(A50>$A$8,"",OFFSET(InputPriceData!$F$15,CalculationsAndCharts!$A50+$A$11,IF($C$5,8,0),1,1))) -> 389.48 | H50: -6.48 | I50: -8.21 | J50: -3.535 | K50: 1.37 | L50: FALSE | M50: FALSE | N50: TRUE | O50: 0 | P50: 0 | Q50: -280.79 | U50: -6.48 | V50: 1349.3221 | W50: -2.494779616 | X50: -1 | Y50: -0.9541924166 | Z50: 2.844980338 | AA50: 3.606981637 | AB50: FALSE | AC50: FALSE | AD50: TRUE | AE50: 0 | AF50: 0 | AG50: -359.43 | AX50: 112777800
A51: 19 | B51: =IF(A51>$B$30,NA(),IF($A51>$A$8,"",OFFSET(InputPriceData!$B$15,$A51+$A$11,0,1,1))) -> 2021-03-18 | C51: =IF(A51>$B$30,NA(),IF($A51>$A$8,"",OFFSET(InputPriceData!$G$15,CalculationsAndCharts!$A51+$A$11,IF($C$5,8,0),1,1))) -> 115112500 | D51: =IF(A51>$B$30,NA(),IF(A51>$A$8,"",OFFSET(InputPriceData!$C$15,CalculationsAndCharts!$A51+$A$11,IF($C$5,8,0),1,1))) -> 393.19 | E51: =IF(A51>$B$30,NA(),IF(A51>$A$8,"",OFFSET(InputPriceData!$D$15,CalculationsAndCharts!$A51+$A$11,IF($C$5,8,0),1,1))) -> 395.42 | F51: =IF(A51>$B$30,NA(),IF(A51>$A$8,"",OFFSET(InputPriceData!$E$15,CalculationsAndCharts!$A51+$A$11,IF($C$5,8,0),1,1))) -> 389.47 | G51: =IF(A51>$B$30,NA(),IF(A51>$A$8,"",OFFSET(InputPriceData!$F$15,CalculationsAndCharts!$A51+$A$11,IF($C$5,8,0),1,1))) -> 390.2 | H51: -4.42 | I51: 1.14 | J51: 5.58 | K51: 15.74 | L51: FALSE | M51: FALSE | N51: TRUE | O51: 0 | P51: 0 | Q51: -280.79 | U51: -4.42 | V51: 1329.7993 | W51: -1.714131821 | X51: -1 | Y51: 1.045807583 | Z51: 3.20225309 | AA51: 4.424982414 | AB51: FALSE | AC51: FALSE | AD51: TRUE | AE51: 0 | AF51: 0 | AG51: -359.43 | AX51: 115112500
A52: 20 | B52: =IF(A52>$B$30,NA(),IF($A52>$A$8,"",OFFSET(InputPriceData!$B$15,$A52+$A$11,0,1,1))) -> 2021-03-17 | C52: =IF(A52>$B$30,NA(),IF($A52>$A$8,"",OFFSET(InputPriceData!$G$15,CalculationsAndCharts!$A52+$A$11,IF($C$5,8,0),1,1))) -> 91822000 | D52: =IF(A52>$B$30,NA(),IF(A52>$A$8,"",OFFSET(InputPriceData!$C$15,CalculationsAndCharts!$A52+$A$11,IF($C$5,8,0),1,1))) -> 393.24 | E52: =IF(A52>$B$30,NA(),IF(A52>$A$8,"",OFFSET(InputPriceData!$D$15,CalculationsAndCharts!$A52+$A$11,IF($C$5,8,0),1,1))) -> 396.82 | F52: =IF(A52>$B$30,NA(),IF(A52>$A$8,"",OFFSET(InputPriceData!$E$15,CalculationsAndCharts!$A52+$A$11,IF($C$5,8,0),1,1))) -> 392.02 | G52: =IF(A52>$B$30,NA(),IF(A52>$A$8,"",OFFSET(InputPriceData!$F$15,CalculationsAndCharts!$A52+$A$11,IF($C$5,8,0),1,1))) -> 395.96 | H52: 0.84 | I52: 10.02 | J52: 12.77 | K52: 19.84 | L52: FALSE | M52: FALSE | N52: TRUE | O52: 0 | P52: 0 | Q52: -280.79 | U52: 0.84 | V52: 1316.7145 | W52: 0.3273772338 | X52: 0.3273772338 | Y52: 3.045807583 | Z52: 3.059525842 | AA52: 4.645384535 | AB52: FALSE | AC52: FALSE | AD52: TRUE | AE52: 0 | AF52: 0 | AG52: -359.43 | AW52: 91822000
A53: 21 | B53: =IF(A53>$B$30,NA(),IF($A53>$A$8,"",OFFSET(InputPriceData!$B$15,$A53+$A$11,0,1,1))) -> 2021-03-16 | C53: =IF(A53>$B$30,NA(),IF($A53>$A$8,"",OFFSET(InputPriceData!$G$15,CalculationsAndCharts!$A53+$A$11,IF($C$5,8,0),1,1))) -> 72958000 | D53: =IF(A53>$B$30,NA(),IF(A53>$A$8,"",OFFSET(InputPriceData!$C$15,CalculationsAndCharts!$A53+$A$11,IF($C$5,8,0),1,1))) -> 395.77 | E53: =IF(A53>$B$30,NA(),IF(A53>$A$8,"",OFFSET(InputPriceData!$D$15,CalculationsAndCharts!$A53+$A$11,IF($C$5,8,0),1,1))) -> 396.53 | F53: =IF(A53>$B$30,NA(),IF(A53>$A$8,"",OFFSET(InputPriceData!$E$15,CalculationsAndCharts!$A53+$A$11,IF($C$5,8,0),1,1))) -> 393.79 | G53: =IF(A53>$B$30,NA(),IF(A53>$A$8,"",OFFSET(InputPriceData!$F$15,CalculationsAndCharts!$A53+$A$11,IF($C$5,8,0),1,1))) -> 394.62 | H53: 1.85 | I53: 15.52 | J53: 18.515 | K53: 23.855 | L53: FALSE | M53: FALSE | N53: TRUE | O53: 0 | P53: 0 | Q53: -280.79 | U53: 1.85 | V53: 1326.185 | W53: 0.7184303496 | X53: 0.7184303496 | Y53: 3.71843035 | Z53: 2.666798594 | AA53: 4.392864556 | AB53: FALSE | AC53: FALSE | AD53: TRUE | AE53: 0 | AF53: 0 | AG53: -359.43 | AX53: 72958000
A54: 22 | B54: =IF(A54>$B$30,NA(),IF($A54>$A$8,"",OFFSET(InputPriceData!$B$15,$A54+$A$11,0,1,1))) -> 2021-03-15 | C54: =IF(A54>$B$30,NA(),IF($A54>$A$8,"",OFFSET(InputPriceData!$G$15,CalculationsAndCharts!$A54+$A$11,IF($C$5,8,0),1,1))) -> 73427200 | D54: =IF(A54>$B$30,NA(),IF(A54>$A$8,"",OFFSET(InputPriceData!$C$15,CalculationsAndCharts!$A54+$A$11,IF($C$5,8,0),1,1))) -> 393.04 | E54: =IF(A54>$B$30,NA(),IF(A54>$A$8,"",OFFSET(InputPriceData!$D$15,CalculationsAndCharts!$A54+$A$11,IF($C$5,8,0),1,1))) -> 395.39 | F54: =IF(A54>$B$30,NA(),IF(A54>$A$8,"",OFFSET(InputPriceData!$E$15,CalculationsAndCharts!$A54+$A$11,IF($C$5,8,0),1,1))) -> 390.75 | G54: =IF(A54>$B$30,NA(),IF(A54>$A$8,"",OFFSET(InputPriceData!$F$15,CalculationsAndCharts!$A54+$A$11,IF($C$5,8,0),1,1))) -> 395.12 | H54: 2.87 | I54: 21.51 | J54: 21.84 | K54: 26.465 | L54: FALSE | M54: FALSE | N54: TRUE | O54: 0 | P54: 0 | Q54: -280.79 | U54: 2.87 | V54: 1328.5706 | W54: 1.113536804 | X54: 1 | Y54: 4 | Z54: 2.2019948 | AA54: 3.81826803 | AB54: FALSE | AC54: FALSE | AD54: TRUE | AE54: 0 | AF54: 0 | AG54: -359.43 | AW54: 73427200
A55: 23 | B55: =IF(A55>$B$30,NA(),IF($A55>$A$8,"",OFFSET(InputPriceData!$B$15,$A55+$A$11,0,1,1))) -> 2021-03-12 | C55: =IF(A55>$B$30,NA(),IF($A55>$A$8,"",OFFSET(InputPriceData!$G$15,CalculationsAndCharts!$A55+$A$11,IF($C$5,8,0),1,1))) -> 64608100 | D55: =IF(A55>$B$30,NA(),IF(A55>$A$8,"",OFFSET(InputPriceData!$C$15,CalculationsAndCharts!$A55+$A$11,IF($C$5,8,0),1,1))) -> 390.79 | E55: =IF(A55>$B$30,NA(),IF(A55>$A$8,"",OFFSET(InputPriceData!$D$15,CalculationsAndCharts!$A55+$A$11,IF($C$5,8,0),1,1))) -> 392.92 | F55: =IF(A55>$B$30,NA(),IF(A55>$A$8,"",OFFSET(InputPriceData!$E$15,CalculationsAndCharts!$A55+$A$11,IF($C$5,8,0),1,1))) -> 389.92 | G55: =IF(A55>$B$30,NA(),IF(A55>$A$8,"",OFFSET(InputPriceData!$F$15,CalculationsAndCharts!$A55+$A$11,IF($C$5,8,0),1,1))) -> 392.77 | H55: 4.46 | I55: 22.17 | J55: 22.44 | K55: 26.29 | L55: FALSE | M55: FALSE | N55: TRUE | O55: 0 | P55: 0 | Q55: -280.79 | U55: 4.46 | V55: 1320.3661 | W55: 1.73581195 | X55: 1 | Y55: 4 | Z55: 1.7019948 | AA55: 3.08333721 | AB55: FALSE | AC55: FALSE | AD55: TRUE | AE55: 0 | AF55: 0 | AG55: -359.43 | AW55: 64608100
A56: 24 | B56: =IF(A56>$B$30,NA(),IF($A56>$A$8,"",OFFSET(InputPriceData!$B$15,$A56+$A$11,0,1,1))) -> 2021-03-11 | C56: =IF(A56>$B$30,NA(),IF($A56>$A$8,"",OFFSET(InputPriceData!$G$15,CalculationsAndCharts!$A56+$A$11,IF($C$5,8,0),1,1))) -> 86027400 | D56: =IF(A56>$B$30,NA(),IF(A56>$A$8,"",OFFSET(InputPriceData!$C$15,CalculationsAndCharts!$A56+$A$11,IF($C$5,8,0),1,1))) -> 390.95 | E56: =IF(A56>$B$30,NA(),IF(A56>$A$8,"",OFFSET(InputPriceData!$D$15,CalculationsAndCharts!$A56+$A$11,IF($C$5,8,0),1,1))) -> 394.36 | F56: =IF(A56>$B$30,NA(),IF(A56>$A$8,"",OFFSET(InputPriceData!$E$15,CalculationsAndCharts!$A56+$A$11,IF($C$5,8,0),1,1))) -> 390.46 | G56: =IF(A56>$B$30,NA(),IF(A56>$A$8,"",OFFSET(InputPriceData!$F$15,CalculationsAndCharts!$A56+$A$11,IF($C$5,8,0),1,1))) -> 392.25 | H56: 6.34 | I56: 22.71 | J56: 20.645 | K56: 30.095 | L56: FALSE | M56: FALSE | N56: TRUE | O56: 0 | P56: 0 | Q56: -280.79 | U56: 6.34 | V56: 1306.477 | W56: 2.480580763 | X56: 1 | Y56: 4 | Z56: 1.2019948 | AA56: 2.109194679 | AB56: FALSE | AC56: FALSE | AD56: TRUE | AE56: 390.95 | AF56: 0 | AG56: -359.43 | AW56: 86027400
A57: 25 | B57: =IF(A57>$B$30,NA(),IF($A57>$A$8,"",OFFSET(InputPriceData!$B$15,$A57+$A$11,0,1,1))) -> 2021-03-10 | C57: =IF(A57>$B$30,NA(),IF($A57>$A$8,"",OFFSET(InputPriceData!$G$15,CalculationsAndCharts!$A57+$A$11,IF($C$5,8,0),1,1))) -> 109660800 | D57: =IF(A57>$B$30,NA(),IF(A57>$A$8,"",OFFSET(InputPriceData!$C$15,CalculationsAndCharts!$A57+$A$11,IF($C$5,8,0),1,1))) -> 388.42 | E57: =IF(A57>$B$30,NA(),IF(A57>$A$8,"",OFFSET(InputPriceData!$D$15,CalculationsAndCharts!$A57+$A$11,IF($C$5,8,0),1,1))) -> 390.12 | F57: =IF(A57>$B$30,NA(),IF(A57>$A$8,"",OFFSET(InputPriceData!$E$15,CalculationsAndCharts!$A57+$A$11,IF($C$5,8,0),1,1))) -> 386.9 | G57: =IF(A57>$B$30,NA(),IF(A57>$A$8,"",OFFSET(InputPriceData!$F$15,CalculationsAndCharts!$A57+$A$11,IF($C$5,8,0),1,1))) -> 388.31 | H57: 7.84 | I57: 18.58 | J57: 9.755 | K57: 20.235 | L57: FALSE | M57: FALSE | N57: TRUE | O57: 388.42 | P57: 0 | Q57: -280.79 | U57: 7.84 | V57: 1287.3495 | W57: 3.090173232 | X57: 1 | Y57: 3.903989601 | Z57: 0.7019948003 | AA57: 1.107974249 | AB57: TRUE | AC57: FALSE | AD57: FALSE | AE57: 0 | AF57: 0 | AG57: 31.52 | AX57: 109660800
A58: 26 | B58: =IF(A58>$B$30,NA(),IF($A58>$A$8,"",OFFSET(InputPriceData!$B$15,$A58+$A$11,0,1,1))) -> 2021-03-09 | C58: =IF(A58>$B$30,NA(),IF($A58>$A$8,"",OFFSET(InputPriceData!$G$15,CalculationsAndCharts!$A58+$A$11,IF($C$5,8,0),1,1))) -> 113457800 | D58: =IF(A58>$B$30,NA(),IF(A58>$A$8,"",OFFSET(InputPriceData!$C$15,CalculationsAndCharts!$A58+$A$11,IF($C$5,8,0),1,1))) -> 384.59 | E58: =IF(A58>$B$30,NA(),IF(A58>$A$8,"",OFFSET(InputPriceData!$D$15,CalculationsAndCharts!$A58+$A$11,IF($C$5,8,0),1,1))) -> 388.64 | F58: =IF(A58>$B$30,NA(),IF(A58>$A$8,"",OFFSET(InputPriceData!$E$15,CalculationsAndCharts!$A58+$A$11,IF($C$5,8,0),1,1))) -> 384.05 | G58: =IF(A58>$B$30,NA(),IF(A58>$A$8,"",OFFSET(InputPriceData!$F$15,CalculationsAndCharts!$A58+$A$11,IF($C$5,8,0),1,1))) -> 385.91 | H58: 3.53 | I58: 0.93 | J58: -4.905 | K58: 0.325 | L58: TRUE | M58: FALSE | N58: FALSE | O58: 0 | P58: 384.59 | Q58: 107.63 | U58: 3.53 | V58: 1228.9815 | W58: 1.424023087 | X58: 1 | Y58: 1.903989601 | Z58: -0.03600389974 | AA58: -0.131244882 | AB58: FALSE | AC58: FALSE | AD58: FALSE | AE58: 0 | AF58: 0 | AG58: 31.52 | AW58: 113457800
A59: 27 | B59: =IF(A59>$B$30,NA(),IF($A59>$A$8,"",OFFSET(InputPriceData!$B$15,$A59+$A$11,0,1,1))) -> 2021-03-08 | C59: =IF(A59>$B$30,NA(),IF($A59>$A$8,"",OFFSET(InputPriceData!$G$15,CalculationsAndCharts!$A59+$A$11,IF($C$5,8,0),1,1))) -> 122957100 | D59: =IF(A59>$B$30,NA(),IF(A59>$A$8,"",OFFSET(InputPriceData!$C$15,CalculationsAndCharts!$A59+$A$11,IF($C$5,8,0),1,1))) -> 383.4 | E59: =IF(A59>$B$30,NA(),IF(A59>$A$8,"",OFFSET(InputPriceData!$D$15,CalculationsAndCharts!$A59+$A$11,IF($C$5,8,0),1,1))) -> 386.41 | F59: =IF(A59>$B$30,NA(),IF(A59>$A$8,"",OFFSET(InputPriceData!$E$15,CalculationsAndCharts!$A59+$A$11,IF($C$5,8,0),1,1))) -> 380.17 | G59: =IF(A59>$B$30,NA(),IF(A59>$A$8,"",OFFSET(InputPriceData!$F$15,CalculationsAndCharts!$A59+$A$11,IF($C$5,8,0),1,1))) -> 380.47 | H59: 5 | I59: -10.74 | J59: -10.16 | K59: -3.18 | L59: FALSE | M59: TRUE | N59: TRUE | O59: 383.4 | P59: 0 | Q59: -276.96 | U59: 5 | V59: 1216.6047 | W59: 2.027263762 | X59: 1 | Y59: -0.09601039931 | Z59: -0.5240025998 | AA59: -1.440784573 | AB59: FALSE | AC59: FALSE | AD59: FALSE | AE59: 0 | AF59: 0 | AG59: 31.52 | AX59: 122957100
A60: 28 | B60: =IF(A60>$B$30,NA(),IF($A60>$A$8,"",OFFSET(InputPriceData!$B$15,$A60+$A$11,0,1,1))) -> 2021-03-05 | C60: =IF(A60>$B$30,NA(),IF($A60>$A$8,"",OFFSET(InputPriceData!$G$15,CalculationsAndCharts!$A60+$A$11,IF($C$5,8,0),1,1))) -> 151959800 | D60: =IF(A60>$B$30,NA(),IF(A60>$A$8,"",OFFSET(InputPriceData!$C$15,CalculationsAndCharts!$A60+$A$11,IF($C$5,8,0),1,1))) -> 379.22 | E60: =IF(A60>$B$30,NA(),IF(A60>$A$8,"",OFFSET(InputPriceData!$D$15,CalculationsAndCharts!$A60+$A$11,IF($C$5,8,0),1,1))) -> 383.5 | F60: =IF(A60>$B$30,NA(),IF(A60>$A$8,"",OFFSET(InputPriceData!$E$15,CalculationsAndCharts!$A60+$A$11,IF($C$5,8,0),1,1))) -> 371.42 | G60: =IF(A60>$B$30,NA(),IF(A60>$A$8,"",OFFSET(InputPriceData!$F$15,CalculationsAndCharts!$A60+$A$11,IF($C$5,8,0),1,1))) -> 382.38 | H60: 2.21 | I60: -9.58 | J60: -7.07 | K60: 1.92 | L60: TRUE | M60: FALSE | N60: FALSE | O60: 0 | P60: 0 | Q60: 106.44 | U60: 2.21 | V60: 1195.3296 | W60: 0.9039896007 | X60: 0.9039896007 | Y60: -0.09601039931 | Z60: -0.7620012999 | AA60: -2.541912642 | AB60: FALSE | AC60: FALSE | AD60: FALSE | AE60: 0 | AF60: 0 | AG60: 31.52 | AW60: 151959800
A61: 29 | B61: =IF(A61>$B$30,NA(),IF($A61>$A$8,"",OFFSET(InputPriceData!$B$15,$A61+$A$11,0,1,1))) -> 2021-03-04 | C61: =IF(A61>$B$30,NA(),IF($A61>$A$8,"",OFFSET(InputPriceData!$G$15,CalculationsAndCharts!$A61+$A$11,IF($C$5,8,0),1,1))) -> 182856500 | D61: =IF(A61>$B$30,NA(),IF(A61>$A$8,"",OFFSET(InputPriceData!$C$15,CalculationsAndCharts!$A61+$A$11,IF($C$5,8,0),1,1))) -> 379.98 | E61: =IF(A61>$B$30,NA(),IF(A61>$A$8,"",OFFSET(InputPriceData!$D$15,CalculationsAndCharts!$A61+$A$11,IF($C$5,8,0),1,1))) -> 382.75 | F61: =IF(A61>$B$30,NA(),IF(A61>$A$8,"",OFFSET(InputPriceData!$E$15,CalculationsAndCharts!$A61+$A$11,IF($C$5,8,0),1,1))) -> 370.67 | G61: =IF(A61>$B$30,NA(),IF(A61>$A$8,"",OFFSET(InputPriceData!$F$15,CalculationsAndCharts!$A61+$A$11,IF($C$5,8,0),1,1))) -> 375.47 | H61: -9.81 | I61: -4.56 | J61: -5.34 | K61: -0.12 | L61: FALSE | M61: FALSE | N61: FALSE | O61: 0 | P61: 0 | Q61: 106.44 | U61: -9.81 | V61: 1198.2296 | W61: -4.007873295 | X61: -1 | Y61: 0 | Z61: -1.222729325 | AA61: -3.642847935 | AB61: FALSE | AC61: FALSE | AD61: FALSE | AE61: 0 | AF61: 0 | AG61: 31.52 | AX61: 182856500
A62: 30 | B62: =IF(A62>$B$30,NA(),IF($A62>$A$8,"",OFFSET(InputPriceData!$B$15,$A62+$A$11,0,1,1))) -> 2021-03-03 | C62: =IF(A62>$B$30,NA(),IF($A62>$A$8,"",OFFSET(InputPriceData!$G$15,CalculationsAndCharts!$A62+$A$11,IF($C$5,8,0),1,1))) -> 119482700 | D62: =IF(A62>$B$30,NA(),IF(A62>$A$8,"",OFFSET(InputPriceData!$C$15,CalculationsAndCharts!$A62+$A$11,IF($C$5,8,0),1,1))) -> 384.53 | E62: =IF(A62>$B$30,NA(),IF(A62>$A$8,"",OFFSET(InputPriceData!$D$15,CalculationsAndCharts!$A62+$A$11,IF($C$5,8,0),1,1))) -> 385.57 | F62: =IF(A62>$B$30,NA(),IF(A62>$A$8,"",OFFSET(InputPriceData!$E$15,CalculationsAndCharts!$A62+$A$11,IF($C$5,8,0),1,1))) -> 380.07 | G62: =IF(A62>$B$30,NA(),IF(A62>$A$8,"",OFFSET(InputPriceData!$F$15,CalculationsAndCharts!$A62+$A$11,IF($C$5,8,0),1,1))) -> 380.17 | H62: -8.14 | I62: -6.12 | J62: -4.625 | K62: -4.485 | L62: FALSE | M62: FALSE | N62: FALSE | O62: 0 | P62: 0 | Q62: 106.44 | U62: -8.14 | V62: 1102.3184 | W62: -3.467255728 | X62: -1 | Y62: 0 | Z62: -1.585858693 | AA62: -4.396184572 | AB62: FALSE | AC62: FALSE | AD62: FALSE | AE62: 0 | AF62: 0 | AG62: 31.52 | AX62: 119482700
A63: 31 | B63: =IF(A63>$B$30,NA(),IF($A63>$A$8,"",OFFSET(InputPriceData!$B$15,$A63+$A$11,0,1,1))) -> 2021-03-02 | C63: =IF(A63>$B$30,NA(),IF($A63>$A$8,"",OFFSET(InputPriceData!$G$15,CalculationsAndCharts!$A63+$A$11,IF($C$5,8,0),1,1))) -> 79389200 | D63: =IF(A63>$B$30,NA(),IF(A63>$A$8,"",OFFSET(InputPriceData!$C$15,CalculationsAndCharts!$A63+$A$11,IF($C$5,8,0),1,1))) -> 388.55 | E63: =IF(A63>$B$30,NA(),IF(A63>$A$8,"",OFFSET(InputPriceData!$D$15,CalculationsAndCharts!$A63+$A$11,IF($C$5,8,0),1,1))) -> 388.8 | F63: =IF(A63>$B$30,NA(),IF(A63>$A$8,"",OFFSET(InputPriceData!$E$15,CalculationsAndCharts!$A63+$A$11,IF($C$5,8,0),1,1))) -> 384.74 | G63: =IF(A63>$B$30,NA(),IF(A63>$A$8,"",OFFSET(InputPriceData!$F$15,CalculationsAndCharts!$A63+$A$11,IF($C$5,8,0),1,1))) -> 385.28 | H63: 6.16 | I63: -3.13 | J63: -3.85 | K63: -7.175 | L63: FALSE | M63: FALSE | N63: FALSE | O63: 0 | P63: 0 | Q63: 106.44 | U63: 6.16 | V63: 1042.9757 | W63: 2.69748237 | X63: 1 | Y63: 0 | Z63: -1.726065962 | AA63: -4.585206071 | AB63: FALSE | AC63: FALSE | AD63: FALSE | AE63: 0 | AF63: 0 | AG63: 31.52 | AX63: 79389200
A64: 32 | B64: =IF(A64>$B$30,NA(),IF($A64>$A$8,"",OFFSET(InputPriceData!$B$15,$A64+$A$11,0,1,1))) -> 2021-03-01 | C64: =IF(A64>$B$30,NA(),IF($A64>$A$8,"",OFFSET(InputPriceData!$G$15,CalculationsAndCharts!$A64+$A$11,IF($C$5,8,0),1,1))) -> 104945700 | D64: =IF(A64>$B$30,NA(),IF(A64>$A$8,"",OFFSET(InputPriceData!$C$15,CalculationsAndCharts!$A64+$A$11,IF($C$5,8,0),1,1))) -> 384.33 | E64: =IF(A64>$B$30,NA(),IF(A64>$A$8,"",OFFSET(InputPriceData!$D$15,CalculationsAndCharts!$A64+$A$11,IF($C$5,8,0),1,1))) -> 389.64 | F64: =IF(A64>$B$30,NA(),IF(A64>$A$8,"",OFFSET(InputPriceData!$E$15,CalculationsAndCharts!$A64+$A$11,IF($C$5,8,0),1,1))) -> 379.33 | G64: =IF(A64>$B$30,NA(),IF(A64>$A$8,"",OFFSET(InputPriceData!$F$15,CalculationsAndCharts!$A64+$A$11,IF($C$5,8,0),1,1))) -> 388.31 | H64: 7.23 | I64: -4.57 | J64: -9.45 | K64: -13.7 | L64: FALSE | M64: FALSE | N64: FALSE | O64: 0 | P64: 0 | Q64: 106.44 | U64: 7.23 | V64: 1034.951 | W64: 3.178289118 | X64: 1 | Y64: 0 | Z64: -1.61627323 | AA64: -4.285015861 | AB64: FALSE | AC64: FALSE | AD64: FALSE | AE64: 0 | AF64: 0 | AG64: 31.52 | AW64: 104945700
A65: 33 | B65: =IF(A65>$B$30,NA(),IF($A65>$A$8,"",OFFSET(InputPriceData!$B$15,$A65+$A$11,0,1,1))) -> 2021-02-26 | C65: =IF(A65>$B$30,NA(),IF($A65>$A$8,"",OFFSET(InputPriceData!$G$15,CalculationsAndCharts!$A65+$A$11,IF($C$5,8,0),1,1))) -> 152534900 | D65: =IF(A65>$B$30,NA(),IF(A65>$A$8,"",OFFSET(InputPriceData!$C$15,CalculationsAndCharts!$A65+$A$11,IF($C$5,8,0),1,1))) -> 383.1 | E65: =IF(A65>$B$30,NA(),IF(A65>$A$8,"",OFFSET(InputPriceData!$D$15,CalculationsAndCharts!$A65+$A$11,IF($C$5,8,0),1,1))) -> 384.32 | F65: =IF(A65>$B$30,NA(),IF(A65>$A$8,"",OFFSET(InputPriceData!$E$15,CalculationsAndCharts!$A65+$A$11,IF($C$5,8,0),1,1))) -> 377 | G65: =IF(A65>$B$30,NA(),IF(A65>$A$8,"",OFFSET(InputPriceData!$F$15,CalculationsAndCharts!$A65+$A$11,IF($C$5,8,0),1,1))) -> 379.12 | H65: -11.37 | I65: -14.33 | J65: -10.48 | K65: -15.115 | L65: FALSE | M65: FALSE | N65: FALSE | O65: 0 | P65: 0 | Q65: 106.44 | U65: -11.37 | V65: 993.371 | W65: -5.10175647 | X65: -1 | Y65: -2 | Z65: -1.38134241 | AA65: -3.582609661 | AB65: FALSE | AC65: FALSE | AD65: FALSE | AE65: 0 | AF65: 0 | AG65: 31.52 | AX65: 152534900
A66: 34 | B66: =IF(A66>$B$30,NA(),IF($A66>$A$8,"",OFFSET(InputPriceData!$B$15,$A66+$A$11,0,1,1))) -> 2021-02-25 | C66: =IF(A66>$B$30,NA(),IF($A66>$A$8,"",OFFSET(InputPriceData!$G$15,CalculationsAndCharts!$A66+$A$11,IF($C$5,8,0),1,1))) -> 146670500 | D66: =IF(A66>$B$30,NA(),IF(A66>$A$8,"",OFFSET(InputPriceData!$C$15,CalculationsAndCharts!$A66+$A$11,IF($C$5,8,0),1,1))) -> 389.14 | E66: =IF(A66>$B$30,NA(),IF(A66>$A$8,"",OFFSET(InputPriceData!$D$15,CalculationsAndCharts!$A66+$A$11,IF($C$5,8,0),1,1))) -> 390.6 | F66: =IF(A66>$B$30,NA(),IF(A66>$A$8,"",OFFSET(InputPriceData!$E$15,CalculationsAndCharts!$A66+$A$11,IF($C$5,8,0),1,1))) -> 379.54 | G66: =IF(A66>$B$30,NA(),IF(A66>$A$8,"",OFFSET(InputPriceData!$F$15,CalculationsAndCharts!$A66+$A$11,IF($C$5,8,0),1,1))) -> 381.08 | H66: -5.15 | I66: -6.63 | J66: -5.23 | K66: -11.22 | L66: FALSE | M66: FALSE | N66: FALSE | O66: 0 | P66: 0 | Q66: 106.44 | U66: -5.15 | V66: 868.2966 | W66: -2.471656855 | X66: -1 | Y66: -2 | Z66: -0.9071998788 | AA66: -2.390991752 | AB66: FALSE | AC66: FALSE | AD66: FALSE | AE66: 0 | AF66: 0 | AG66: 31.52 | AX66: 146670500
A67: 35 | B67: =IF(A67>$B$30,NA(),IF($A67>$A$8,"",OFFSET(InputPriceData!$B$15,$A67+$A$11,0,1,1))) -> 2021-02-24 | C67: =IF(A67>$B$30,NA(),IF($A67>$A$8,"",OFFSET(InputPriceData!$G$15,CalculationsAndCharts!$A67+$A$11,IF($C$5,8,0),1,1))) -> 72433900 | D67: =IF(A67>$B$30,NA(),IF(A67>$A$8,"",OFFSET(InputPriceData!$C$15,CalculationsAndCharts!$A67+$A$11,IF($C$5,8,0),1,1))) -> 385.07 | E67: =IF(A67>$B$30,NA(),IF(A67>$A$8,"",OFFSET(InputPriceData!$D$15,CalculationsAndCharts!$A67+$A$11,IF($C$5,8,0),1,1))) -> 390.95 | F67: =IF(A67>$B$30,NA(),IF(A67>$A$8,"",OFFSET(InputPriceData!$E$15,CalculationsAndCharts!$A67+$A$11,IF($C$5,8,0),1,1))) -> 384.01 | G67: =IF(A67>$B$30,NA(),IF(A67>$A$8,"",OFFSET(InputPriceData!$F$15,CalculationsAndCharts!$A67+$A$11,IF($C$5,8,0),1,1))) -> 390.49 | H67: 4.72 | I67: -3.83 | J67: -6.98 | K67: -16.545 | L67: FALSE | M67: FALSE | N67: FALSE | O67: 0 | P67: 0 | Q67: 106.44 | U67: 4.72 | V67: 842.0766 | W67: 2.300282614 | X67: 1 | Y67: -2 | Z67: -0.4059794483 | AA67: -1.227952378 | AB67: FALSE | AC67: FALSE | AD67: FALSE | AE67: 0 | AF67: 385.07 | AG67: 31.52 | AW67: 72433900
A68: 36 | B68: =IF(A68>$B$30,NA(),IF($A68>$A$8,"",OFFSET(InputPriceData!$B$15,$A68+$A$11,0,1,1))) -> 2021-02-23 | C68: =IF(A68>$B$30,NA(),IF($A68>$A$8,"",OFFSET(InputPriceData!$G$15,CalculationsAndCharts!$A68+$A$11,IF($C$5,8,0),1,1))) -> 107284100 | D68: =IF(A68>$B$30,NA(),IF(A68>$A$8,"",OFFSET(InputPriceData!$C$15,CalculationsAndCharts!$A68+$A$11,IF($C$5,8,0),1,1))) -> 383.4 | E68: =IF(A68>$B$30,NA(),IF(A68>$A$8,"",OFFSET(InputPriceData!$D$15,CalculationsAndCharts!$A68+$A$11,IF($C$5,8,0),1,1))) -> 387.68 | F68: =IF(A68>$B$30,NA(),IF(A68>$A$8,"",OFFSET(InputPriceData!$E$15,CalculationsAndCharts!$A68+$A$11,IF($C$5,8,0),1,1))) -> 378.96 | G68: =IF(A68>$B$30,NA(),IF(A68>$A$8,"",OFFSET(InputPriceData!$F$15,CalculationsAndCharts!$A68+$A$11,IF($C$5,8,0),1,1))) -> 386.23 | H68: -2.53 | I68: -10.13 | J68: -8.99 | K68: -23.78 | L68: FALSE | M68: FALSE | N68: FALSE | O68: 0 | P68: 0 | Q68: 106.44 | U68: -2.53 | V68: 831.4946 | W68: -1.240811479 | X68: -1 | Y68: -3.781834598 | Z68: 0.09524098223 | AA68: -0.04891618145 | AB68: FALSE | AC68: TRUE | AD68: TRUE | AE68: 0 | AF68: 0 | AG68: -353.55 | AW68: 107284100
A69: 37 | B69: =IF(A69>$B$30,NA(),IF($A69>$A$8,"",OFFSET(InputPriceData!$B$15,$A69+$A$11,0,1,1))) -> 2021-02-22 | C69: =IF(A69>$B$30,NA(),IF($A69>$A$8,"",OFFSET(InputPriceData!$G$15,CalculationsAndCharts!$A69+$A$11,IF($C$5,8,0),1,1))) -> 67414200 | D69: =IF(A69>$B$30,NA(),IF(A69>$A$8,"",OFFSET(InputPriceData!$C$15,CalculationsAndCharts!$A69+$A$11,IF($C$5,8,0),1,1))) -> 385.8 | E69: =IF(A69>$B$30,NA(),IF(A69>$A$8,"",OFFSET(InputPriceData!$D$15,CalculationsAndCharts!$A69+$A$11,IF($C$5,8,0),1,1))) -> 388.35 | F69: =IF(A69>$B$30,NA(),IF(A69>$A$8,"",OFFSET(InputPriceData!$E$15,CalculationsAndCharts!$A69+$A$11,IF($C$5,8,0),1,1))) -> 385.48 | G69: =IF(A69>$B$30,NA(),IF(A69>$A$8,"",OFFSET(InputPriceData!$F$15,CalculationsAndCharts!$A69+$A$11,IF($C$5,8,0),1,1))) -> 385.77 | H69: -3.67 | I69: -7.85 | J69: -5.22 | K69: -24.07 | L69: FALSE | M69: FALSE | N69: FALSE | O69: 0 | P69: 0 | Q69: 106.44 | U69: -3.67 | V69: 830.0221 | W69: -1.801508162 | X69: -1 | Y69: -2.905034949 | Z69: 0.9167819732 | AA69: 1.393325348 | AB69: FALSE | AC69: FALSE | AD69: TRUE | AE69: 0 | AF69: 0 | AG69: -353.55 | AX69: 67414200
A70: 38 | B70: =IF(A70>$B$30,NA(),IF($A70>$A$8,"",OFFSET(InputPriceData!$B$15,$A70+$A$11,0,1,1))) -> 2021-02-19 | C70: =IF(A70>$B$30,NA(),IF($A70>$A$8,"",OFFSET(InputPriceData!$G$15,CalculationsAndCharts!$A70+$A$11,IF($C$5,8,0),1,1))) -> 83241000 | D70: =IF(A70>$B$30,NA(),IF(A70>$A$8,"",OFFSET(InputPriceData!$C$15,CalculationsAndCharts!$A70+$A$11,IF($C$5,8,0),1,1))) -> 390.79 | E70: =IF(A70>$B$30,NA(),IF(A70>$A$8,"",OFFSET(InputPriceData!$D$15,CalculationsAndCharts!$A70+$A$11,IF($C$5,8,0),1,1))) -> 391.1 | F70: =IF(A70>$B$30,NA(),IF(A70>$A$8,"",OFFSET(InputPriceData!$E$15,CalculationsAndCharts!$A70+$A$11,IF($C$5,8,0),1,1))) -> 388.28 | G70: =IF(A70>$B$30,NA(),IF(A70>$A$8,"",OFFSET(InputPriceData!$F$15,CalculationsAndCharts!$A70+$A$11,IF($C$5,8,0),1,1))) -> 388.76 | H70: -2.35 | I70: -2.59 | J70: -0.14 | K70: -24.085 | L70: FALSE | M70: FALSE | N70: FALSE | O70: 0 | P70: 0 | Q70: 106.44 | U70: -2.35 | V70: 816.6556 | W70: -1.162956279 | X70: -1 | Y70: -1.121658147 | Z70: 1.779911342 | AA70: 2.627155256 | AB70: FALSE | AC70: FALSE | AD70: TRUE | AE70: 0 | AF70: 0 | AG70: -353.55 | AX70: 83241000
A71: 39 | B71: =IF(A71>$B$30,NA(),IF($A71>$A$8,"",OFFSET(InputPriceData!$B$15,$A71+$A$11,0,1,1))) -> 2021-02-18 | C71: =IF(A71>$B$30,NA(),IF($A71>$A$8,"",OFFSET(InputPriceData!$G$15,CalculationsAndCharts!$A71+$A$11,IF($C$5,8,0),1,1))) -> 59712800 | D71: =IF(A71>$B$30,NA(),IF(A71>$A$8,"",OFFSET(InputPriceData!$C$15,CalculationsAndCharts!$A71+$A$11,IF($C$5,8,0),1,1))) -> 388.32 | E71: =IF(A71>$B$30,NA(),IF(A71>$A$8,"",OFFSET(InputPriceData!$D$15,CalculationsAndCharts!$A71+$A$11,IF($C$5,8,0),1,1))) -> 390.24 | F71: =IF(A71>$B$30,NA(),IF(A71>$A$8,"",OFFSET(InputPriceData!$E$15,CalculationsAndCharts!$A71+$A$11,IF($C$5,8,0),1,1))) -> 386.47 | G71: =IF(A71>$B$30,NA(),IF(A71>$A$8,"",OFFSET(InputPriceData!$F$15,CalculationsAndCharts!$A71+$A$11,IF($C$5,8,0),1,1))) -> 389.44 | H71: -1.58 | I71: 2.31 | J71: 3.325 | K71: -20.565 | L71: FALSE | M71: FALSE | N71: FALSE | O71: 0 | P71: 0 | Q71: 106.44 | U71: -1.58 | V71: 816.7975 | W71: -0.7818345977 | X71: -0.7818345977 | Y71: 0.8783418529 | Z71: 2.42011861 | AA71: 3.358800838 | AB71: FALSE | AC71: FALSE | AD71: TRUE | AE71: 0 | AF71: 0 | AG71: -353.55 | AW71: 59712800
A72: 40 | B72: =IF(A72>$B$30,NA(),IF($A72>$A$8,"",OFFSET(InputPriceData!$B$15,$A72+$A$11,0,1,1))) -> 2021-02-17 | C72: =IF(A72>$B$30,NA(),IF($A72>$A$8,"",OFFSET(InputPriceData!$G$15,CalculationsAndCharts!$A72+$A$11,IF($C$5,8,0),1,1))) -> 52290600 | D72: =IF(A72>$B$30,NA(),IF(A72>$A$8,"",OFFSET(InputPriceData!$C$15,CalculationsAndCharts!$A72+$A$11,IF($C$5,8,0),1,1))) -> 389.15 | E72: =IF(A72>$B$30,NA(),IF(A72>$A$8,"",OFFSET(InputPriceData!$D$15,CalculationsAndCharts!$A72+$A$11,IF($C$5,8,0),1,1))) -> 391.38 | F72: =IF(A72>$B$30,NA(),IF(A72>$A$8,"",OFFSET(InputPriceData!$E$15,CalculationsAndCharts!$A72+$A$11,IF($C$5,8,0),1,1))) -> 388.06 | G72: =IF(A72>$B$30,NA(),IF(A72>$A$8,"",OFFSET(InputPriceData!$F$15,CalculationsAndCharts!$A72+$A$11,IF($C$5,8,0),1,1))) -> 391.11 | H72: -0.25 | I72: 4.34 | J72: 4.25 | K72: -11.54 | L72: FALSE | M72: FALSE | N72: FALSE | O72: 0 | P72: 389.15 | Q72: 106.44 | U72: -0.25 | V72: 823.5427 | W72: -0.1232003511 | X72: -0.1232003511 | Y72: 1.879446565 | Z72: 2.810325879 | AA72: 3.589139259 | AB72: FALSE | AC72: FALSE | AD72: TRUE | AE72: 0 | AF72: 0 | AG72: -353.55 | AW72: 52290600
A73: 41 | B73: =IF(A73>$B$30,NA(),IF($A73>$A$8,"",OFFSET(InputPriceData!$B$15,$A73+$A$11,0,1,1))) -> 2021-02-16 | C73: =IF(A73>$B$30,NA(),IF($A73>$A$8,"",OFFSET(InputPriceData!$G$15,CalculationsAndCharts!$A73+$A$11,IF($C$5,8,0),1,1))) -> 50972400 | D73: =IF(A73>$B$30,NA(),IF(A73>$A$8,"",OFFSET(InputPriceData!$C$15,CalculationsAndCharts!$A73+$A$11,IF($C$5,8,0),1,1))) -> 392.67 | E73: =IF(A73>$B$30,NA(),IF(A73>$A$8,"",OFFSET(InputPriceData!$D$15,CalculationsAndCharts!$A73+$A$11,IF($C$5,8,0),1,1))) -> 392.88 | F73: =IF(A73>$B$30,NA(),IF(A73>$A$8,"",OFFSET(InputPriceData!$E$15,CalculationsAndCharts!$A73+$A$11,IF($C$5,8,0),1,1))) -> 390.25 | G73: =IF(A73>$B$30,NA(),IF(A73>$A$8,"",OFFSET(InputPriceData!$F$15,CalculationsAndCharts!$A73+$A$11,IF($C$5,8,0),1,1))) -> 391.02 | H73: 1.59 | I73: 4.16 | J73: 4.635 | K73: -0.805 | L73: FALSE | M73: TRUE | N73: TRUE | O73: 0 | P73: 0 | Q73: -282.71 | U73: 1.59 | V73: 823.9158 | W73: 0.7833768016 | X73: 0.7833768016 | Y73: 1.793140246 | Z73: 2.85914011 | AA73: 3.285199871 | AB73: FALSE | AC73: FALSE | AD73: TRUE | AE73: 0 | AF73: 0 | AG73: -353.55 | AX73: 50972400
A74: 42 | B74: =IF(A74>$B$30,NA(),IF($A74>$A$8,"",OFFSET(InputPriceData!$B$15,$A74+$A$11,0,1,1))) -> 2021-02-12 | C74: =IF(A74>$B$30,NA(),IF($A74>$A$8,"",OFFSET(InputPriceData!$G$15,CalculationsAndCharts!$A74+$A$11,IF($C$5,8,0),1,1))) -> 50505700 | D74: =IF(A74>$B$30,NA(),IF(A74>$A$8,"",OFFSET(InputPriceData!$C$15,CalculationsAndCharts!$A74+$A$11,IF($C$5,8,0),1,1))) -> 388.58 | E74: =IF(A74>$B$30,NA(),IF(A74>$A$8,"",OFFSET(InputPriceData!$D$15,CalculationsAndCharts!$A74+$A$11,IF($C$5,8,0),1,1))) -> 391.62 | F74: =IF(A74>$B$30,NA(),IF(A74>$A$8,"",OFFSET(InputPriceData!$E$15,CalculationsAndCharts!$A74+$A$11,IF($C$5,8,0),1,1))) -> 388.5 | G74: =IF(A74>$B$30,NA(),IF(A74>$A$8,"",OFFSET(InputPriceData!$F$15,CalculationsAndCharts!$A74+$A$11,IF($C$5,8,0),1,1))) -> 391.36 | H74: 2.55 | I74: 5.11 | J74: 5.99 | K74: 17.115 | L74: FALSE | M74: FALSE | N74: TRUE | O74: 0 | P74: 0 | Q74: -282.71 | U74: 2.55 | V74: 843.3838 | W74: 1.241773967 | X74: 1 | Y74: 2.009763444 | Z74: 2.668742631 | AA74: 2.633567525 | AB74: FALSE | AC74: FALSE | AD74: TRUE | AE74: 0 | AF74: 0 | AG74: -353.55 | AW74: 50505700
A75: 43 | B75: =IF(A75>$B$30,NA(),IF($A75>$A$8,"",OFFSET(InputPriceData!$B$15,$A75+$A$11,0,1,1))) -> 2021-02-11 | C75: =IF(A75>$B$30,NA(),IF($A75>$A$8,"",OFFSET(InputPriceData!$G$15,CalculationsAndCharts!$A75+$A$11,IF($C$5,8,0),1,1))) -> 42755400 | D75: =IF(A75>$B$30,NA(),IF(A75>$A$8,"",OFFSET(InputPriceData!$C$15,CalculationsAndCharts!$A75+$A$11,IF($C$5,8,0),1,1))) -> 389.96 | E75: =IF(A75>$B$30,NA(),IF(A75>$A$8,"",OFFSET(InputPriceData!$D$15,CalculationsAndCharts!$A75+$A$11,IF($C$5,8,0),1,1))) -> 390.41 | F75: =IF(A75>$B$30,NA(),IF(A75>$A$8,"",OFFSET(InputPriceData!$E$15,CalculationsAndCharts!$A75+$A$11,IF($C$5,8,0),1,1))) -> 386.83 | G75: =IF(A75>$B$30,NA(),IF(A75>$A$8,"",OFFSET(InputPriceData!$F$15,CalculationsAndCharts!$A75+$A$11,IF($C$5,8,0),1,1))) -> 389.43 | H75: 0.45 | I75: 6.87 | J75: 9.565 | K75: 30.23 | L75: FALSE | M75: FALSE | N75: TRUE | O75: 0 | P75: 0 | Q75: -282.71 | U75: 0.45 | V75: 842.3569 | W75: 0.2192701142 | X75: 0.2192701142 | Y75: 2.009763444 | Z75: 2.201267252 | AA75: 1.924488755 | AB75: FALSE | AC75: FALSE | AD75: TRUE | AE75: 0 | AF75: 0 | AG75: -353.55 | AX75: 42755400
A76: 44 | B76: =IF(A76>$B$30,NA(),IF($A76>$A$8,"",OFFSET(InputPriceData!$B$15,$A76+$A$11,0,1,1))) -> 2021-02-10 | C76: =IF(A76>$B$30,NA(),IF($A76>$A$8,"",OFFSET(InputPriceData!$G$15,CalculationsAndCharts!$A76+$A$11,IF($C$5,8,0),1,1))) -> 59154400 | D76: =IF(A76>$B$30,NA(),IF(A76>$A$8,"",OFFSET(InputPriceData!$C$15,CalculationsAndCharts!$A76+$A$11,IF($C$5,8,0),1,1))) -> 390.84 | E76: =IF(A76>$B$30,NA(),IF(A76>$A$8,"",OFFSET(InputPriceData!$D$15,CalculationsAndCharts!$A76+$A$11,IF($C$5,8,0),1,1))) -> 391 | F76: =IF(A76>$B$30,NA(),IF(A76>$A$8,"",OFFSET(InputPriceData!$E$15,CalculationsAndCharts!$A76+$A$11,IF($C$5,8,0),1,1))) -> 386.23 | G76: =IF(A76>$B$30,NA(),IF(A76>$A$8,"",OFFSET(InputPriceData!$F$15,CalculationsAndCharts!$A76+$A$11,IF($C$5,8,0),1,1))) -> 388.81 | H76: -0.43 | I76: 12.26 | J76: 14.79 | K76: 32.06 | L76: FALSE | M76: FALSE | N76: TRUE | O76: 0 | P76: 0 | Q76: -282.71 | U76: -0.43 | V76: 842.5025 | W76: -0.2095066701 | X76: -0.2095066701 | Y76: 2.79049333 | Z76: 1.483791873 | AA76: 1.237100167 | AB76: FALSE | AC76: FALSE | AD76: TRUE | AE76: 390.84 | AF76: 0 | AG76: -353.55 | AX76: 59154400
A77: 45 | B77: =IF(A77>$B$30,NA(),IF($A77>$A$8,"",OFFSET(InputPriceData!$B$15,$A77+$A$11,0,1,1))) -> 2021-02-09 | C77: =IF(A77>$B$30,NA(),IF($A77>$A$8,"",OFFSET(InputPriceData!$G$15,CalculationsAndCharts!$A77+$A$11,IF($C$5,8,0),1,1))) -> 35551100 | D77: =IF(A77>$B$30,NA(),IF(A77>$A$8,"",OFFSET(InputPriceData!$C$15,CalculationsAndCharts!$A77+$A$11,IF($C$5,8,0),1,1))) -> 388.34 | E77: =IF(A77>$B$30,NA(),IF(A77>$A$8,"",OFFSET(InputPriceData!$D$15,CalculationsAndCharts!$A77+$A$11,IF($C$5,8,0),1,1))) -> 389.61 | F77: =IF(A77>$B$30,NA(),IF(A77>$A$8,"",OFFSET(InputPriceData!$E$15,CalculationsAndCharts!$A77+$A$11,IF($C$5,8,0),1,1))) -> 387.9 | G77: =IF(A77>$B$30,NA(),IF(A77>$A$8,"",OFFSET(InputPriceData!$F$15,CalculationsAndCharts!$A77+$A$11,IF($C$5,8,0),1,1))) -> 388.98 | H77: 2.54 | I77: 17.32 | J77: 18.85 | K77: 31.315 | L77: FALSE | M77: FALSE | N77: TRUE | O77: 0 | P77: 0 | Q77: -282.71 | U77: 2.54 | V77: 842.5112 | W77: 1.237544639 | X77: 1 | Y77: 4 | Z77: 0.8219729301 | AA77: 0.5587647575 | AB77: TRUE | AC77: FALSE | AD77: FALSE | AE77: 0 | AF77: 0 | AG77: 37.29 | AW77: 35551100
A78: 46 | B78: =IF(A78>$B$30,NA(),IF($A78>$A$8,"",OFFSET(InputPriceData!$B$15,$A78+$A$11,0,1,1))) -> 2021-02-08 | C78: =IF(A78>$B$30,NA(),IF($A78>$A$8,"",OFFSET(InputPriceData!$G$15,CalculationsAndCharts!$A78+$A$11,IF($C$5,8,0),1,1))) -> 38365200 | D78: =IF(A78>$B$30,NA(),IF(A78>$A$8,"",OFFSET(InputPriceData!$C$15,CalculationsAndCharts!$A78+$A$11,IF($C$5,8,0),1,1))) -> 388 | E78: =IF(A78>$B$30,NA(),IF(A78>$A$8,"",OFFSET(InputPriceData!$D$15,CalculationsAndCharts!$A78+$A$11,IF($C$5,8,0),1,1))) -> 389.28 | F78: =IF(A78>$B$30,NA(),IF(A78>$A$8,"",OFFSET(InputPriceData!$E$15,CalculationsAndCharts!$A78+$A$11,IF($C$5,8,0),1,1))) -> 387.08 | G78: =IF(A78>$B$30,NA(),IF(A78>$A$8,"",OFFSET(InputPriceData!$F$15,CalculationsAndCharts!$A78+$A$11,IF($C$5,8,0),1,1))) -> 389.24 | H78: 4.31 | I78: 20.38 | J78: 23.945 | K78: 26.08 | L78: FALSE | M78: FALSE | N78: TRUE | O78: 0 | P78: 0 | Q78: -282.71 | U78: 4.31 | V78: 862.6852 | W78: 2.075229318 | X78: 1 | Y78: 4 | Z78: 0.1441571637 | AA78: -0.02708622633 | AB78: FALSE | AC78: FALSE | AD78: FALSE | AE78: 0 | AF78: 0 | AG78: 37.29 | AW78: 38365200
A79: 47 | B79: =IF(A79>$B$30,NA(),IF($A79>$A$8,"",OFFSET(InputPriceData!$B$15,$A79+$A$11,0,1,1))) -> 2021-02-05 | C79: =IF(A79>$B$30,NA(),IF($A79>$A$8,"",OFFSET(InputPriceData!$G$15,CalculationsAndCharts!$A79+$A$11,IF($C$5,8,0),1,1))) -> 48620300 | D79: =IF(A79>$B$30,NA(),IF(A79>$A$8,"",OFFSET(InputPriceData!$C$15,CalculationsAndCharts!$A79+$A$11,IF($C$5,8,0),1,1))) -> 386.93 | E79: =IF(A79>$B$30,NA(),IF(A79>$A$8,"",OFFSET(InputPriceData!$D$15,CalculationsAndCharts!$A79+$A$11,IF($C$5,8,0),1,1))) -> 387.2 | F79: =IF(A79>$B$30,NA(),IF(A79>$A$8,"",OFFSET(InputPriceData!$E$15,CalculationsAndCharts!$A79+$A$11,IF($C$5,8,0),1,1))) -> 384.88 | G79: =IF(A79>$B$30,NA(),IF(A79>$A$8,"",OFFSET(InputPriceData!$F$15,CalculationsAndCharts!$A79+$A$11,IF($C$5,8,0),1,1))) -> 386.44 | H79: 5.84 | I79: 27.51 | J79: 23.89 | K79: 14.63 | L79: FALSE | M79: FALSE | N79: TRUE | O79: 386.93 | P79: 0 | Q79: -282.71 | U79: 5.84 | V79: 905.418 | W79: 2.744753091 | X79: 1 | Y79: 4 | Z79: -0.476543375 | AA79: -0.559198511 | AB79: FALSE | AC79: FALSE | AD79: FALSE | AE79: 0 | AF79: 0 | AG79: 37.29 | AX79: 48620300
A80: 48 | B80: =IF(A80>$B$30,NA(),IF($A80>$A$8,"",OFFSET(InputPriceData!$B$15,$A80+$A$11,0,1,1))) -> 2021-02-04 | C80: =IF(A80>$B$30,NA(),IF($A80>$A$8,"",OFFSET(InputPriceData!$G$15,CalculationsAndCharts!$A80+$A$11,IF($C$5,8,0),1,1))) -> 47142600 | D80: =IF(A80>$B$30,NA(),IF(A80>$A$8,"",OFFSET(InputPriceData!$C$15,CalculationsAndCharts!$A80+$A$11,IF($C$5,8,0),1,1))) -> 381.71 | E80: =IF(A80>$B$30,NA(),IF(A80>$A$8,"",OFFSET(InputPriceData!$D$15,CalculationsAndCharts!$A80+$A$11,IF($C$5,8,0),1,1))) -> 384.98 | F80: =IF(A80>$B$30,NA(),IF(A80>$A$8,"",OFFSET(InputPriceData!$E$15,CalculationsAndCharts!$A80+$A$11,IF($C$5,8,0),1,1))) -> 380.72 | G80: =IF(A80>$B$30,NA(),IF(A80>$A$8,"",OFFSET(InputPriceData!$F$15,CalculationsAndCharts!$A80+$A$11,IF($C$5,8,0),1,1))) -> 384.93 | H80: 4.63 | I80: 20.27 | J80: 15.79 | K80: 2.88 | L80: TRUE | M80: FALSE | N80: FALSE | O80: 0 | P80: 0 | Q80: 104.22 | U80: 4.63 | V80: 871.4148 | W80: 2.218112264 | X80: 1 | Y80: 2.269960414 | Z80: -0.8472439138 | AA80: -1.090003635 | AB80: FALSE | AC80: FALSE | AD80: FALSE | AE80: 0 | AF80: 0 | AG80: 37.29 | AW80: 47142600
A81: 49 | B81: =IF(A81>$B$30,NA(),IF($A81>$A$8,"",OFFSET(InputPriceData!$B$15,$A81+$A$11,0,1,1))) -> 2021-02-03 | C81: =IF(A81>$B$30,NA(),IF($A81>$A$8,"",OFFSET(InputPriceData!$G$15,CalculationsAndCharts!$A81+$A$11,IF($C$5,8,0),1,1))) -> 52427100 | D81: =IF(A81>$B$30,NA(),IF(A81>$A$8,"",OFFSET(InputPriceData!$C$15,CalculationsAndCharts!$A81+$A$11,IF($C$5,8,0),1,1))) -> 381.19 | E81: =IF(A81>$B$30,NA(),IF(A81>$A$8,"",OFFSET(InputPriceData!$D$15,CalculationsAndCharts!$A81+$A$11,IF($C$5,8,0),1,1))) -> 382.45 | F81: =IF(A81>$B$30,NA(),IF(A81>$A$8,"",OFFSET(InputPriceData!$E$15,CalculationsAndCharts!$A81+$A$11,IF($C$5,8,0),1,1))) -> 379.24 | G81: =IF(A81>$B$30,NA(),IF(A81>$A$8,"",OFFSET(InputPriceData!$F$15,CalculationsAndCharts!$A81+$A$11,IF($C$5,8,0),1,1))) -> 380.6 | H81: 5.6 | I81: 11.31 | J81: 5.44 | K81: -5.955 | L81: FALSE | M81: FALSE | N81: FALSE | O81: 0 | P81: 0 | Q81: 104.22 | U81: 5.6 | V81: 850.8615 | W81: 2.715023471 | X81: 1 | Y81: 0.2699604138 | Z81: -0.9386822274 | AA81: -1.294943278 | AB81: FALSE | AC81: FALSE | AD81: FALSE | AE81: 0 | AF81: 0 | AG81: 37.29 | AX81: 52427100
A82: 50 | B82: =IF(A82>$B$30,NA(),IF($A82>$A$8,"",OFFSET(InputPriceData!$B$15,$A82+$A$11,0,1,1))) -> 2021-02-02 | C82: =IF(A82>$B$30,NA(),IF($A82>$A$8,"",OFFSET(InputPriceData!$G$15,CalculationsAndCharts!$A82+$A$11,IF($C$5,8,0),1,1))) -> 64450700 | D82: =IF(A82>$B$30,NA(),IF(A82>$A$8,"",OFFSET(InputPriceData!$C$15,CalculationsAndCharts!$A82+$A$11,IF($C$5,8,0),1,1))) -> 378.41 | E82: =IF(A82>$B$30,NA(),IF(A82>$A$8,"",OFFSET(InputPriceData!$D$15,CalculationsAndCharts!$A82+$A$11,IF($C$5,8,0),1,1))) -> 381.97 | F82: =IF(A82>$B$30,NA(),IF(A82>$A$8,"",OFFSET(InputPriceData!$E$15,CalculationsAndCharts!$A82+$A$11,IF($C$5,8,0),1,1))) -> 375.09 | G82: =IF(A82>$B$30,NA(),IF(A82>$A$8,"",OFFSET(InputPriceData!$F$15,CalculationsAndCharts!$A82+$A$11,IF($C$5,8,0),1,1))) -> 380.3 | H82: 11.44 | I82: -0.43 | J82: -11.125 | K82: -18.04 | L82: FALSE | M82: FALSE | N82: FALSE | O82: 0 | P82: 0 | Q82: 104.22 | U82: 11.44 | V82: 827.4539 | W82: 5.624308298 | X82: 1 | Y82: -1.730039586 | Z82: -0.7788133807 | AA82: -1.140094512 | AB82: FALSE | AC82: FALSE | AD82: FALSE | AE82: 0 | AF82: 0 | AG82: 37.29 | AW82: 64450700
A83: 51 | B83: =IF(A83>$B$30,NA(),IF($A83>$A$8,"",OFFSET(InputPriceData!$B$15,$A83+$A$11,0,1,1))) -> 2021-02-01 | C83: =IF(A83>$B$30,NA(),IF($A83>$A$8,"",OFFSET(InputPriceData!$G$15,CalculationsAndCharts!$A83+$A$11,IF($C$5,8,0),1,1))) -> 75817600 | D83: =IF(A83>$B$30,NA(),IF(A83>$A$8,"",OFFSET(InputPriceData!$C$15,CalculationsAndCharts!$A83+$A$11,IF($C$5,8,0),1,1))) -> 372.5 | E83: =IF(A83>$B$30,NA(),IF(A83>$A$8,"",OFFSET(InputPriceData!$D$15,CalculationsAndCharts!$A83+$A$11,IF($C$5,8,0),1,1))) -> 376.11 | F83: =IF(A83>$B$30,NA(),IF(A83>$A$8,"",OFFSET(InputPriceData!$E$15,CalculationsAndCharts!$A83+$A$11,IF($C$5,8,0),1,1))) -> 369.17 | G83: =IF(A83>$B$30,NA(),IF(A83>$A$8,"",OFFSET(InputPriceData!$F$15,CalculationsAndCharts!$A83+$A$11,IF($C$5,8,0),1,1))) -> 375 | H83: -1.4 | I83: -21.82 | J83: -20.665 | K83: -21.1 | L83: FALSE | M83: FALSE | N83: FALSE | O83: 0 | P83: 0 | Q83: 104.22 | U83: -1.4 | V83: 735.5179 | W83: -0.7300395862 | X83: -0.7300395862 | Y83: -3.730039586 | Z83: -0.4260597616 | AA83: -0.8539687154 | AB83: FALSE | AC83: FALSE | AD83: FALSE | AE83: 0 | AF83: 0 | AG83: 37.29 | AW83: 75817600
A84: 52 | B84: =IF(A84>$B$30,NA(),IF($A84>$A$8,"",OFFSET(InputPriceData!$B$15,$A84+$A$11,0,1,1))) -> 2021-01-29 | C84: =IF(A84>$B$30,NA(),IF($A84>$A$8,"",OFFSET(InputPriceData!$G$15,CalculationsAndCharts!$A84+$A$11,IF($C$5,8,0),1,1))) -> 126618400 | D84: =IF(A84>$B$30,NA(),IF(A84>$A$8,"",OFFSET(InputPriceData!$C$15,CalculationsAndCharts!$A84+$A$11,IF($C$5,8,0),1,1))) -> 374.4 | E84: =IF(A84>$B$30,NA(),IF(A84>$A$8,"",OFFSET(InputPriceData!$D$15,CalculationsAndCharts!$A84+$A$11,IF($C$5,8,0),1,1))) -> 375.44 | F84: =IF(A84>$B$30,NA(),IF(A84>$A$8,"",OFFSET(InputPriceData!$E$15,CalculationsAndCharts!$A84+$A$11,IF($C$5,8,0),1,1))) -> 367.07 | G84: =IF(A84>$B$30,NA(),IF(A84>$A$8,"",OFFSET(InputPriceData!$F$15,CalculationsAndCharts!$A84+$A$11,IF($C$5,8,0),1,1))) -> 368.86 | H84: -4.33 | I84: -19.51 | J84: -17.27 | K84: -12.83 | L84: FALSE | M84: FALSE | N84: FALSE | O84: 0 | P84: 0 | Q84: 104.22 | U84: -4.33 | V84: 739.8079 | W84: -2.251352049 | X84: -1 | Y84: -2.504058214 | Z84: 0.03517510601 | AA84: -0.4619138369 | AB84: FALSE | AC84: FALSE | AD84: FALSE | AE84: 0 | AF84: 0 | AG84: 37.29 | AX84: 126618400
A85: 53 | B85: =IF(A85>$B$30,NA(),IF($A85>$A$8,"",OFFSET(InputPriceData!$B$15,$A85+$A$11,0,1,1))) -> 2021-01-28 | C85: =IF(A85>$B$30,NA(),IF($A85>$A$8,"",OFFSET(InputPriceData!$G$15,CalculationsAndCharts!$A85+$A$11,IF($C$5,8,0),1,1))) -> 94198100 | D85: =IF(A85>$B$30,NA(),IF(A85>$A$8,"",OFFSET(InputPriceData!$C$15,CalculationsAndCharts!$A85+$A$11,IF($C$5,8,0),1,1))) -> 375.13 | E85: =IF(A85>$B$30,NA(),IF(A85>$A$8,"",OFFSET(InputPriceData!$D$15,CalculationsAndCharts!$A85+$A$11,IF($C$5,8,0),1,1))) -> 380.68 | F85: =IF(A85>$B$30,NA(),IF(A85>$A$8,"",OFFSET(InputPriceData!$E$15,CalculationsAndCharts!$A85+$A$11,IF($C$5,8,0),1,1))) -> 374.66 | G85: =IF(A85>$B$30,NA(),IF(A85>$A$8,"",OFFSET(InputPriceData!$F$15,CalculationsAndCharts!$A85+$A$11,IF($C$5,8,0),1,1))) -> 376.4 | H85: -6.14 | I85: -15.03 | J85: -12.465 | K85: -8.52 | L85: FALSE | M85: FALSE | N85: FALSE | O85: 0 | P85: 375.13 | Q85: 104.22 | U85: -6.14 | V85: 807.3631 | W85: -3.055968834 | X85: -1 | Y85: -1.422526131 | Z85: 0.2767784969 | AA85: -0.4311403895 | AB85: FALSE | AC85: FALSE | AD85: FALSE | AE85: 0 | AF85: 0 | AG85: 37.29 | AW85: 94198100
A86: 54 | B86: =IF(A86>$B$30,NA(),IF($A86>$A$8,"",OFFSET(InputPriceData!$B$15,$A86+$A$11,0,1,1))) -> 2021-01-27 | C86: =IF(A86>$B$30,NA(),IF($A86>$A$8,"",OFFSET(InputPriceData!$G$15,CalculationsAndCharts!$A86+$A$11,IF($C$5,8,0),1,1))) -> 123351100 | D86: =IF(A86>$B$30,NA(),IF(A86>$A$8,"",OFFSET(InputPriceData!$C$15,CalculationsAndCharts!$A86+$A$11,IF($C$5,8,0),1,1))) -> 378.98 | E86: =IF(A86>$B$30,NA(),IF(A86>$A$8,"",OFFSET(InputPriceData!$D$15,CalculationsAndCharts!$A86+$A$11,IF($C$5,8,0),1,1))) -> 379.08 | F86: =IF(A86>$B$30,NA(),IF(A86>$A$8,"",OFFSET(InputPriceData!$E$15,CalculationsAndCharts!$A86+$A$11,IF($C$5,8,0),1,1))) -> 370.8 | G86: =IF(A86>$B$30,NA(),IF(A86>$A$8,"",OFFSET(InputPriceData!$F$15,CalculationsAndCharts!$A86+$A$11,IF($C$5,8,0),1,1))) -> 373.19 | H86: -9.95 | I86: -9.9 | J86: -2.135 | K86: -4.025 | L86: FALSE | M86: TRUE | N86: TRUE | O86: 378.98 | P86: 0 | Q86: -270.91 | U86: -9.95 | V86: 771.6799 | W86: -5.06546693 | X86: -1 | Y86: -0.9656043098 | Z86: 0.2466917066 | AA86: -0.7805383719 | AB86: FALSE | AC86: FALSE | AD86: FALSE | AE86: 0 | AF86: 0 | AG86: 37.29 | AX86: 123351100
A87: 55 | B87: =IF(A87>$B$30,NA(),IF($A87>$A$8,"",OFFSET(InputPriceData!$B$15,$A87+$A$11,0,1,1))) -> 2021-01-26 | C87: =IF(A87>$B$30,NA(),IF($A87>$A$8,"",OFFSET(InputPriceData!$G$15,CalculationsAndCharts!$A87+$A$11,IF($C$5,8,0),1,1))) -> 42665300 | D87: =IF(A87>$B$30,NA(),IF(A87>$A$8,"",OFFSET(InputPriceData!$C$15,CalculationsAndCharts!$A87+$A$11,IF($C$5,8,0),1,1))) -> 384.15 | E87: =IF(A87>$B$30,NA(),IF(A87>$A$8,"",OFFSET(InputPriceData!$D$15,CalculationsAndCharts!$A87+$A$11,IF($C$5,8,0),1,1))) -> 384.59 | F87: =IF(A87>$B$30,NA(),IF(A87>$A$8,"",OFFSET(InputPriceData!$E$15,CalculationsAndCharts!$A87+$A$11,IF($C$5,8,0),1,1))) -> 382.29 | G87: =IF(A87>$B$30,NA(),IF(A87>$A$8,"",OFFSET(InputPriceData!$F$15,CalculationsAndCharts!$A87+$A$11,IF($C$5,8,0),1,1))) -> 382.54 | H87: 0.91 | I87: 5.63 | J87: 9.26 | K87: 0.05 | L87: TRUE | M87: FALSE | N87: FALSE | O87: 0 | P87: 0 | Q87: 108.07 | U87: 0.91 | V87: 673.3663 | W87: 0.4959417857 | X87: 0.4959417857 | Y87: 1.03439569 | Z87: 0.2632081726 | AA87: -0.9838651064 | AB87: FALSE | AC87: FALSE | AD87: FALSE | AE87: 0 | AF87: 0 | AG87: 37.29 | AX87: 42665300
A88: 56 | B88: =IF(A88>$B$30,NA(),IF($A88>$A$8,"",OFFSET(InputPriceData!$B$15,$A88+$A$11,0,1,1))) -> 2021-01-25 | C88: =IF(A88>$B$30,NA(),IF($A88>$A$8,"",OFFSET(InputPriceData!$G$15,CalculationsAndCharts!$A88+$A$11,IF($C$5,8,0),1,1))) -> 70402000 | D88: =IF(A88>$B$30,NA(),IF(A88>$A$8,"",OFFSET(InputPriceData!$C$15,CalculationsAndCharts!$A88+$A$11,IF($C$5,8,0),1,1))) -> 382.42 | E88: =IF(A88>$B$30,NA(),IF(A88>$A$8,"",OFFSET(InputPriceData!$D$15,CalculationsAndCharts!$A88+$A$11,IF($C$5,8,0),1,1))) -> 383.51 | F88: =IF(A88>$B$30,NA(),IF(A88>$A$8,"",OFFSET(InputPriceData!$E$15,CalculationsAndCharts!$A88+$A$11,IF($C$5,8,0),1,1))) -> 377.22 | G88: =IF(A88>$B$30,NA(),IF(A88>$A$8,"",OFFSET(InputPriceData!$F$15,CalculationsAndCharts!$A88+$A$11,IF($C$5,8,0),1,1))) -> 383.14 | H88: 0.15 | I88: 12.89 | J88: 12.91 | K88: -3.235 | L88: FALSE | M88: FALSE | N88: FALSE | O88: 0 | P88: 0 | Q88: 108.07 | U88: 0.15 | V88: 676.9482 | W88: 0.08153208301 | X88: 0.08153208301 | Y88: 1.538453904 | Z88: 0.17124339 | AA88: -1.040355484 | AB88: FALSE | AC88: FALSE | AD88: FALSE | AE88: 0 | AF88: 0 | AG88: 37.29 | AW88: 70402000
A89: 57 | B89: =IF(A89>$B$30,NA(),IF($A89>$A$8,"",OFFSET(InputPriceData!$B$15,$A89+$A$11,0,1,1))) -> 2021-01-22 | C89: =IF(A89>$B$30,NA(),IF($A89>$A$8,"",OFFSET(InputPriceData!$G$15,CalculationsAndCharts!$A89+$A$11,IF($C$5,8,0),1,1))) -> 52860500 | D89: =IF(A89>$B$30,NA(),IF(A89>$A$8,"",OFFSET(InputPriceData!$C$15,CalculationsAndCharts!$A89+$A$11,IF($C$5,8,0),1,1))) -> 381 | E89: =IF(A89>$B$30,NA(),IF(A89>$A$8,"",OFFSET(InputPriceData!$D$15,CalculationsAndCharts!$A89+$A$11,IF($C$5,8,0),1,1))) -> 382.88 | F89: =IF(A89>$B$30,NA(),IF(A89>$A$8,"",OFFSET(InputPriceData!$E$15,CalculationsAndCharts!$A89+$A$11,IF($C$5,8,0),1,1))) -> 380.59 | G89: =IF(A89>$B$30,NA(),IF(A89>$A$8,"",OFFSET(InputPriceData!$F$15,CalculationsAndCharts!$A89+$A$11,IF($C$5,8,0),1,1))) -> 381.63 | H89: -1.01 | I89: 12.93 | J89: 11.395 | K89: -7.3 | L89: FALSE | M89: FALSE | N89: FALSE | O89: 0 | P89: 0 | Q89: 108.07 | U89: -1.01 | V89: 691.7482 | W89: -0.5430781786 | X89: -0.5430781786 | Y89: 1.548911188 | Z89: 0.08265513593 | AA89: -0.9822743567 | AB89: FALSE | AC89: FALSE | AD89: FALSE | AE89: 0 | AF89: 0 | AG89: 37.29 | AW89: 52860500
A90: 58 | B90: =IF(A90>$B$30,NA(),IF($A90>$A$8,"",OFFSET(InputPriceData!$B$15,$A90+$A$11,0,1,1))) -> 2021-01-21 | C90: =IF(A90>$B$30,NA(),IF($A90>$A$8,"",OFFSET(InputPriceData!$G$15,CalculationsAndCharts!$A90+$A$11,IF($C$5,8,0),1,1))) -> 47955800 | D90: =IF(A90>$B$30,NA(),IF(A90>$A$8,"",OFFSET(InputPriceData!$C$15,CalculationsAndCharts!$A90+$A$11,IF($C$5,8,0),1,1))) -> 383.23 | E90: =IF(A90>$B$30,NA(),IF(A90>$A$8,"",OFFSET(InputPriceData!$D$15,CalculationsAndCharts!$A90+$A$11,IF($C$5,8,0),1,1))) -> 383.69 | F90: =IF(A90>$B$30,NA(),IF(A90>$A$8,"",OFFSET(InputPriceData!$E$15,CalculationsAndCharts!$A90+$A$11,IF($C$5,8,0),1,1))) -> 382 | G90: =IF(A90>$B$30,NA(),IF(A90>$A$8,"",OFFSET(InputPriceData!$F$15,CalculationsAndCharts!$A90+$A$11,IF($C$5,8,0),1,1))) -> 382.99 | H90: 5.58 | I90: 9.86 | J90: 6.915 | K90: -5.275 | L90: FALSE | M90: FALSE | N90: FALSE | O90: 0 | P90: 0 | Q90: 108.07 | U90: 5.58 | V90: 709.1322 | W90: 2.963368047 | X90: 1 | Y90: 1.091989366 | Z90: 0.2427597214 | AA90: -0.6755003893 | AB90: FALSE | AC90: FALSE | AD90: FALSE | AE90: 0 | AF90: 0 | AG90: 37.29 | AX90: 47955800
A91: 59 | B91: =IF(A91>$B$30,NA(),IF($A91>$A$8,"",OFFSET(InputPriceData!$B$15,$A91+$A$11,0,1,1))) -> 2021-01-20 | C91: =IF(A91>$B$30,NA(),IF($A91>$A$8,"",OFFSET(InputPriceData!$G$15,CalculationsAndCharts!$A91+$A$11,IF($C$5,8,0),1,1))) -> 61836100 | D91: =IF(A91>$B$30,NA(),IF(A91>$A$8,"",OFFSET(InputPriceData!$C$15,CalculationsAndCharts!$A91+$A$11,IF($C$5,8,0),1,1))) -> 379.87 | E91: =IF(A91>$B$30,NA(),IF(A91>$A$8,"",OFFSET(InputPriceData!$D$15,CalculationsAndCharts!$A91+$A$11,IF($C$5,8,0),1,1))) -> 383.53 | F91: =IF(A91>$B$30,NA(),IF(A91>$A$8,"",OFFSET(InputPriceData!$E$15,CalculationsAndCharts!$A91+$A$11,IF($C$5,8,0),1,1))) -> 379.45 | G91: =IF(A91>$B$30,NA(),IF(A91>$A$8,"",OFFSET(InputPriceData!$F$15,CalculationsAndCharts!$A91+$A$11,IF($C$5,8,0),1,1))) -> 382.64 | H91: 8.17 | I91: 3.97 | J91: 0.435 | K91: -3.65 | L91: FALSE | M91: FALSE | N91: FALSE | O91: 0 | P91: 0 | Q91: 108.07 | U91: 8.17 | V91: 721.1607 | W91: 4.302501482 | X91: 1 | Y91: -0.04016064522 | Z91: 0.3562610507 | AA91: -0.3598864484 | AB91: FALSE | AC91: FALSE | AD91: FALSE | AE91: 0 | AF91: 0 | AG91: 37.29 | AW91: 61836100
A92: 60 | B92: =IF(A92>$B$30,NA(),IF($A92>$A$8,"",OFFSET(InputPriceData!$B$15,$A92+$A$11,0,1,1))) -> 2021-01-19 | C92: =IF(A92>$B$30,NA(),IF($A92>$A$8,"",OFFSET(InputPriceData!$G$15,CalculationsAndCharts!$A92+$A$11,IF($C$5,8,0),1,1))) -> 51233300 | D92: =IF(A92>$B$30,NA(),IF(A92>$A$8,"",OFFSET(InputPriceData!$C$15,CalculationsAndCharts!$A92+$A$11,IF($C$5,8,0),1,1))) -> 377.1 | E92: =IF(A92>$B$30,NA(),IF(A92>$A$8,"",OFFSET(InputPriceData!$D$15,CalculationsAndCharts!$A92+$A$11,IF($C$5,8,0),1,1))) -> 377.99 | F92: =IF(A92>$B$30,NA(),IF(A92>$A$8,"",OFFSET(InputPriceData!$E$15,CalculationsAndCharts!$A92+$A$11,IF($C$5,8,0),1,1))) -> 375.52 | G92: =IF(A92>$B$30,NA(),IF(A92>$A$8,"",OFFSET(InputPriceData!$F$15,CalculationsAndCharts!$A92+$A$11,IF($C$5,8,0),1,1))) -> 377.41 | H92: 0.19 | I92: -3.1 | J92: -4.44 | K92: -3.4 | L92: FALSE | M92: FALSE | N92: FALSE | O92: 0 | P92: 0 | Q92: 108.07 | U92: 0.19 | V92: 853.2218 | W92: 0.09198936632 | X92: 0.09198936632 | Y92: -0.5712310874 | Z92: 0.3612811313 | AA92: -0.4219071179 | AB92: FALSE | AC92: FALSE | AD92: FALSE | AE92: 0 | AF92: 0 | AG92: 37.29 | AW92: 51233300
A93: 61 | B93: =IF(A93>$B$30,NA(),IF($A93>$A$8,"",OFFSET(InputPriceData!$B$15,$A93+$A$11,0,1,1))) -> 2021-01-15 | C93: =IF(A93>$B$30,NA(),IF($A93>$A$8,"",OFFSET(InputPriceData!$G$15,CalculationsAndCharts!$A93+$A$11,IF($C$5,8,0),1,1))) -> 107160000 | D93: =IF(A93>$B$30,NA(),IF(A93>$A$8,"",OFFSET(InputPriceData!$C$15,CalculationsAndCharts!$A93+$A$11,IF($C$5,8,0),1,1))) -> 375.49 | E93: =IF(A93>$B$30,NA(),IF(A93>$A$8,"",OFFSET(InputPriceData!$D$15,CalculationsAndCharts!$A93+$A$11,IF($C$5,8,0),1,1))) -> 376.35 | F93: =IF(A93>$B$30,NA(),IF(A93>$A$8,"",OFFSET(InputPriceData!$E$15,CalculationsAndCharts!$A93+$A$11,IF($C$5,8,0),1,1))) -> 372.48 | G93: =IF(A93>$B$30,NA(),IF(A93>$A$8,"",OFFSET(InputPriceData!$F$15,CalculationsAndCharts!$A93+$A$11,IF($C$5,8,0),1,1))) -> 374.47 | H93: -4.08 | I93: -5.78 | J93: -3.945 | K93: -2.94 | L93: FALSE | M93: FALSE | N93: FALSE | O93: 0 | P93: 375.49 | Q93: 108.07 | U93: -4.08 | V93: 1028.4833 | W93: -1.799187971 | X93: -1 | Y93: -1.663220454 | Z93: 0.4279089538 | AA93: -0.3964966301 | AB93: FALSE | AC93: FALSE | AD93: FALSE | AE93: 0 | AF93: 0 | AG93: 37.29 | AX93: 107160000
A94: 62 | B94: =IF(A94>$B$30,NA(),IF($A94>$A$8,"",OFFSET(InputPriceData!$B$15,$A94+$A$11,0,1,1))) -> 2021-01-14 | C94: =IF(A94>$B$30,NA(),IF($A94>$A$8,"",OFFSET(InputPriceData!$G$15,CalculationsAndCharts!$A94+$A$11,IF($C$5,8,0),1,1))) -> 49989100 | D94: =IF(A94>$B$30,NA(),IF(A94>$A$8,"",OFFSET(InputPriceData!$C$15,CalculationsAndCharts!$A94+$A$11,IF($C$5,8,0),1,1))) -> 379.35 | E94: =IF(A94>$B$30,NA(),IF(A94>$A$8,"",OFFSET(InputPriceData!$D$15,CalculationsAndCharts!$A94+$A$11,IF($C$5,8,0),1,1))) -> 379.89 | F94: =IF(A94>$B$30,NA(),IF(A94>$A$8,"",OFFSET(InputPriceData!$E$15,CalculationsAndCharts!$A94+$A$11,IF($C$5,8,0),1,1))) -> 376.87 | G94: =IF(A94>$B$30,NA(),IF(A94>$A$8,"",OFFSET(InputPriceData!$F$15,CalculationsAndCharts!$A94+$A$11,IF($C$5,8,0),1,1))) -> 377.22 | H94: -0.31 | I94: -2.11 | J94: 1.89 | K94: -3.49 | L94: FALSE | M94: TRUE | N94: TRUE | O94: 0 | P94: 0 | Q94: -267.42 | U94: -0.31 | V94: 1100.5733 | W94: -0.1321500115 | X94: -0.1321500115 | Y94: -0.8334725818 | Z94: 0.4970889429 | AA94: -0.3685339758 | AB94: FALSE | AC94: FALSE | AD94: FALSE | AE94: 0 | AF94: 379.35 | AG94: 37.29 | AX94: 49989100
A95: 63 | B95: =IF(A95>$B$30,NA(),IF($A95>$A$8,"",OFFSET(InputPriceData!$B$15,$A95+$A$11,0,1,1))) -> 2021-01-13 | C95: =IF(A95>$B$30,NA(),IF($A95>$A$8,"",OFFSET(InputPriceData!$G$15,CalculationsAndCharts!$A95+$A$11,IF($C$5,8,0),1,1))) -> 45303600 | D95: =IF(A95>$B$30,NA(),IF(A95>$A$8,"",OFFSET(InputPriceData!$C$15,CalculationsAndCharts!$A95+$A$11,IF($C$5,8,0),1,1))) -> 377.45 | E95: =IF(A95>$B$30,NA(),IF(A95>$A$8,"",OFFSET(InputPriceData!$D$15,CalculationsAndCharts!$A95+$A$11,IF($C$5,8,0),1,1))) -> 379.62 | F95: =IF(A95>$B$30,NA(),IF(A95>$A$8,"",OFFSET(InputPriceData!$E$15,CalculationsAndCharts!$A95+$A$11,IF($C$5,8,0),1,1))) -> 376.62 | G95: =IF(A95>$B$30,NA(),IF(A95>$A$8,"",OFFSET(InputPriceData!$F$15,CalculationsAndCharts!$A95+$A$11,IF($C$5,8,0),1,1))) -> 378.55 | H95: 1.1 | I95: 5.89 | J95: 9.21 | K95: 0.265 | L95: FALSE | M95: FALSE | N95: TRUE | O95: 0 | P95: 0 | Q95: -267.42 | U95: 1.1 | V95: 1100.5256 | W95: 0.4689295578 | X95: 0.4689295578 | Y95: 0.2986774297 | Z95: 0.7079188864 | AA95: -0.1095757041 | AB95: FALSE | AC95: TRUE | AD95: TRUE | AE95: 0 | AF95: 0 | AG95: -342.06 | AW95: 45303600
A96: 64 | B96: =IF(A96>$B$30,NA(),IF($A96>$A$8,"",OFFSET(InputPriceData!$B$15,$A96+$A$11,0,1,1))) -> 2021-01-12 | C96: =IF(A96>$B$30,NA(),IF($A96>$A$8,"",OFFSET(InputPriceData!$G$15,CalculationsAndCharts!$A96+$A$11,IF($C$5,8,0),1,1))) -> 52547700 | D96: =IF(A96>$B$30,NA(),IF(A96>$A$8,"",OFFSET(InputPriceData!$C$15,CalculationsAndCharts!$A96+$A$11,IF($C$5,8,0),1,1))) -> 377.65 | E96: =IF(A96>$B$30,NA(),IF(A96>$A$8,"",OFFSET(InputPriceData!$D$15,CalculationsAndCharts!$A96+$A$11,IF($C$5,8,0),1,1))) -> 378.62 | F96: =IF(A96>$B$30,NA(),IF(A96>$A$8,"",OFFSET(InputPriceData!$E$15,CalculationsAndCharts!$A96+$A$11,IF($C$5,8,0),1,1))) -> 375.13 | G96: =IF(A96>$B$30,NA(),IF(A96>$A$8,"",OFFSET(InputPriceData!$F$15,CalculationsAndCharts!$A96+$A$11,IF($C$5,8,0),1,1))) -> 377.53 | H96: -2.49 | I96: 12.53 | J96: 16.145 | K96: 7.58 | L96: FALSE | M96: FALSE | N96: TRUE | O96: 0 | P96: 0 | Q96: -267.42 | U96: -2.49 | V96: 1099.33 | W96: -1.062063063 | X96: -1 | Y96: 0.8297478719 | Z96: 1.027230078 | AA96: 0.3991412504 | AB96: FALSE | AC96: FALSE | AD96: TRUE | AE96: 0 | AF96: 0 | AG96: -342.06 | AX96: 52547700
A97: 65 | B97: =IF(A97>$B$30,NA(),IF($A97>$A$8,"",OFFSET(InputPriceData!$B$15,$A97+$A$11,0,1,1))) -> 2021-01-11 | C97: =IF(A97>$B$30,NA(),IF($A97>$A$8,"",OFFSET(InputPriceData!$G$15,CalculationsAndCharts!$A97+$A$11,IF($C$5,8,0),1,1))) -> 51176700 | D97: =IF(A97>$B$30,NA(),IF(A97>$A$8,"",OFFSET(InputPriceData!$C$15,CalculationsAndCharts!$A97+$A$11,IF($C$5,8,0),1,1))) -> 376.62 | E97: =IF(A97>$B$30,NA(),IF(A97>$A$8,"",OFFSET(InputPriceData!$D$15,CalculationsAndCharts!$A97+$A$11,IF($C$5,8,0),1,1))) -> 379.34 | F97: =IF(A97>$B$30,NA(),IF(A97>$A$8,"",OFFSET(InputPriceData!$E$15,CalculationsAndCharts!$A97+$A$11,IF($C$5,8,0),1,1))) -> 376.49 | G97: =IF(A97>$B$30,NA(),IF(A97>$A$8,"",OFFSET(InputPriceData!$F$15,CalculationsAndCharts!$A97+$A$11,IF($C$5,8,0),1,1))) -> 377.45 | H97: -0.41 | I97: 19.76 | J97: 18.695 | K97: 12.375 | L97: FALSE | M97: FALSE | N97: TRUE | O97: 0 | P97: 0 | Q97: -267.42 | U97: -0.41 | V97: 1159.8788 | W97: =IF(A97>$V$30,NA(),IFERROR(2*U97/SQRT(V97/50),0)) -> -0.1702521281 | X97: =IF(A97>$V$30,NA(),IF(W97>1,1,IF(W97<-1,-1,W97))) -> -0.1702521281 | Y97: 2.829747872 | Z97: 1.247073279 | AA97: 0.8434767518 | AB97: FALSE | AC97: FALSE | AD97: TRUE | AE97: 0 | AF97: 0 | AG97: -342.06 | AW97: =IF(G97>=D97,C97,NA()) -> 51176700 | AX97: =IF(G97<D97,C97,NA()) -> 
A98: 66 | B98: =IF(A98>$B$30,NA(),IF($A98>$A$8,"",OFFSET(InputPriceData!$B$15,$A98+$A$11,0,1,1))) -> 2021-01-08 | C98: =IF(A98>$B$30,NA(),IF($A98>$A$8,"",OFFSET(InputPriceData!$G$15,CalculationsAndCharts!$A98+$A$11,IF($C$5,8,0),1,1))) -> 71677200 | D98: =IF(A98>$B$30,NA(),IF(A98>$A$8,"",OFFSET(InputPriceData!$C$15,CalculationsAndCharts!$A98+$A$11,IF($C$5,8,0),1,1))) -> 379.35 | E98: =IF(A98>$B$30,NA(),IF(A98>$A$8,"",OFFSET(InputPriceData!$D$15,CalculationsAndCharts!$A98+$A$11,IF($C$5,8,0),1,1))) -> 380.24 | F98: =IF(A98>$B$30,NA(),IF(A98>$A$8,"",OFFSET(InputPriceData!$E$15,CalculationsAndCharts!$A98+$A$11,IF($C$5,8,0),1,1))) -> 375.87 | G98: =IF(A98>$B$30,NA(),IF(A98>$A$8,"",OFFSET(InputPriceData!$F$15,CalculationsAndCharts!$A98+$A$11,IF($C$5,8,0),1,1))) -> 380.02 | H98: =IF($A98>$H$30,NA(),$G98-$G100) -> 7.69 | I98: =IF($A98>I$30,NA(),SUM(H98:H101)) -> 17.63 | J98: =IF($A98>J$30,NA(),AVERAGE(OFFSET(I98,0,0,$A$17,1))) -> 12.19 | K98: =IF($A98>K$30,NA(),J98-OFFSET(J98,$A$18,0,1,1)) -> 11.75 | L98: =IF($A98>L$30,NA(),AND(K98>0,K99<0)) -> FALSE | M98: =IF($A98>L$30,NA(),AND(K98<0,K99>0)) -> FALSE | N98: =IF($A98>N$30,NA(),IF($A98=N$30,FALSE,IF(NOT(OR(L99,M99)),N99,IF(AND(N99,M99),FALSE,AND(L99,NOT(N99)))))) -> TRUE | O98: =IF($A98>O$30,NA(),IF(L99,+$D98,0)) -> 0 | P98: =IF($A98>O$30,NA(),IF(AND(M99,N99),$D98,IF(AND($A98=1,N98),$G98,0))) -> 0 | Q98: =IF($A98>O$30,NA(),IF($A98=O$30,0,Q99)-O98+P98) -> -267.42 | U98: =IF(A98>$U$30,NA(),G98-G100) -> 7.69 | V98: =IF(A98>$V$30,NA(),SUMSQ(OFFSET(U98,0,0,50,1))) -> 1319.4803 | W98: 2.993917869 | X98: 1 | Y98: =IF(A98>$Y$30,NA(),SUM(X98:X101)) -> 2 | Z98: =IF(A98>$Z$30,NA(),AVERAGE(OFFSET(Y98,0,0,$C$17,1))) -> 1.211598875 | AA98: =IF(A98>$AA$30,NA(),Z98-OFFSET(Z98,$C$18,0,1,1)) -> 1.010681173 | AB98: =IF(A98>$AB$30,NA(),AND(AA98>0,AA99<0)) -> FALSE | AC98: =IF(A98>$AB$30,NA(),AND(AA98<0,AA99>0)) -> FALSE | AD98: =IF(A98>$AD$30,NA(),IF(A98=$AD$30,FALSE,IF(NOT(OR(AB99,AC99)),AD99,IF(AND(AD99,AC99),FALSE,AND(AB99,NOT(AD99)))))) -> TRUE | AE98: =IF(A98>$AE$30,NA(),IF(AB99,+D98,0)) -> 0 | AF98: =IF(A98>$AE$30,NA(),IF(AND(AC99,AD99),D98,IF(AND(A98=1,AD98),G98,0))) -> 0 | AG98: =IF(A98>$AE$30,NA(),IF(A98=$AE$30,0,AG99)-AE98+AF98) -> -342.06 | AW98: 71677200
A99: 67 | B99: =IF(A99>$B$30,NA(),IF($A99>$A$8,"",OFFSET(InputPriceData!$B$15,$A99+$A$11,0,1,1))) -> 2021-01-07 | C99: =IF(A99>$B$30,NA(),IF($A99>$A$8,"",OFFSET(InputPriceData!$G$15,CalculationsAndCharts!$A99+$A$11,IF($C$5,8,0),1,1))) -> 68766800 | D99: =IF(A99>$B$30,NA(),IF(A99>$A$8,"",OFFSET(InputPriceData!$C$15,CalculationsAndCharts!$A99+$A$11,IF($C$5,8,0),1,1))) -> 374.87 | E99: =IF(A99>$B$30,NA(),IF(A99>$A$8,"",OFFSET(InputPriceData!$D$15,CalculationsAndCharts!$A99+$A$11,IF($C$5,8,0),1,1))) -> 378.66 | F99: =IF(A99>$B$30,NA(),IF(A99>$A$8,"",OFFSET(InputPriceData!$E$15,CalculationsAndCharts!$A99+$A$11,IF($C$5,8,0),1,1))) -> 374.68 | G99: =IF(A99>$B$30,NA(),IF(A99>$A$8,"",OFFSET(InputPriceData!$F$15,CalculationsAndCharts!$A99+$A$11,IF($C$5,8,0),1,1))) -> 377.86 | H99: 7.74 | I99: 6.75 | J99: 4.085 | K99: 7.93 | L99: FALSE | M99: FALSE | N99: TRUE | O99: 374.87 | P99: 0 | Q99: -267.42 | U99: 7.74 | V99: 1316.7443 | W99: 3.016513234 | X99: 1 | Y99: 0 | Z99: 1.064929493 | AA99: 0.8961296873 | AB99: FALSE | AC99: FALSE | AD99: TRUE | AE99: 0 | AF99: 0 | AG99: -342.06 | AW99: 68766800
A100: 68 | B100: =IF(A100>$B$30,NA(),IF($A100>$A$8,"",OFFSET(InputPriceData!$B$15,$A100+$A$11,0,1,1))) -> 2021-01-06 | C100: =IF(A100>$B$30,NA(),IF($A100>$A$8,"",OFFSET(InputPriceData!$G$15,CalculationsAndCharts!$A100+$A$11,IF($C$5,8,0),1,1))) -> 107997700 | D100: =IF(A100>$B$30,NA(),IF(A100>$A$8,"",OFFSET(InputPriceData!$C$15,CalculationsAndCharts!$A100+$A$11,IF($C$5,8,0),1,1))) -> 368.5 | E100: =IF(A100>$B$30,NA(),IF(A100>$A$8,"",OFFSET(InputPriceData!$D$15,CalculationsAndCharts!$A100+$A$11,IF($C$5,8,0),1,1))) -> 375.75 | F100: =IF(A100>$B$30,NA(),IF(A100>$A$8,"",OFFSET(InputPriceData!$E$15,CalculationsAndCharts!$A100+$A$11,IF($C$5,8,0),1,1))) -> 367.91 | G100: =IF(A100>$B$30,NA(),IF(A100>$A$8,"",OFFSET(InputPriceData!$F$15,CalculationsAndCharts!$A100+$A$11,IF($C$5,8,0),1,1))) -> 372.33 | H100: 4.74 | I100: 1.42 | J100: -1.04 | K100: 1.94 | L100: TRUE | M100: FALSE | N100: FALSE | O100: 0 | P100: 0 | Q100: 107.45 | U100: 4.74 | V100: 1283.6691 | W100: 1.87096988 | X100: 1 | Y100: -0.03820850759 | Z100: 0.9182601108 | AA100: 0.7848504084 | AB100: FALSE | AC100: FALSE | AD100: TRUE | AE100: 0 | AF100: 0 | AG100: -342.06 | AW100: 107997700
A101: 69 | B101: =IF(A101>$B$30,NA(),IF($A101>$A$8,"",OFFSET(InputPriceData!$B$15,$A101+$A$11,0,1,1))) -> 2021-01-05 | C101: =IF(A101>$B$30,NA(),IF($A101>$A$8,"",OFFSET(InputPriceData!$G$15,CalculationsAndCharts!$A101+$A$11,IF($C$5,8,0),1,1))) -> 66426200 | D101: =IF(A101>$B$30,NA(),IF(A101>$A$8,"",OFFSET(InputPriceData!$C$15,CalculationsAndCharts!$A101+$A$11,IF($C$5,8,0),1,1))) -> 366.9 | E101: =IF(A101>$B$30,NA(),IF(A101>$A$8,"",OFFSET(InputPriceData!$D$15,CalculationsAndCharts!$A101+$A$11,IF($C$5,8,0),1,1))) -> 371.28 | F101: =IF(A101>$B$30,NA(),IF(A101>$A$8,"",OFFSET(InputPriceData!$E$15,CalculationsAndCharts!$A101+$A$11,IF($C$5,8,0),1,1))) -> 366.85 | G101: =IF(A101>$B$30,NA(),IF(A101>$A$8,"",OFFSET(InputPriceData!$F$15,CalculationsAndCharts!$A101+$A$11,IF($C$5,8,0),1,1))) -> 370.12 | H101: -2.54 | I101: -3.5 | J101: -1.005 | K101: -3.185 | L101: FALSE | M101: FALSE | N101: FALSE | O101: 0 | P101: 0 | Q101: 107.45 | U101: -2.54 | V101: 1270.3824 | W101: -1.007816537 | X101: -1 | Y101: -1.109780541 | Z101: 0.7161474991 | AA101: 0.5876729227 | AB101: FALSE | AC101: FALSE | AD101: TRUE | AE101: 0 | AF101: 0 | AG101: -342.06 | AW101: 66426200
A102: 70 | B102: =IF(A102>$B$30,NA(),IF($A102>$A$8,"",OFFSET(InputPriceData!$B$15,$A102+$A$11,0,1,1))) -> 2021-01-04 | C102: =IF(A102>$B$30,NA(),IF($A102>$A$8,"",OFFSET(InputPriceData!$G$15,CalculationsAndCharts!$A102+$A$11,IF($C$5,8,0),1,1))) -> 110210800 | D102: =IF(A102>$B$30,NA(),IF(A102>$A$8,"",OFFSET(InputPriceData!$C$15,CalculationsAndCharts!$A102+$A$11,IF($C$5,8,0),1,1))) -> 374.08 | E102: =IF(A102>$B$30,NA(),IF(A102>$A$8,"",OFFSET(InputPriceData!$D$15,CalculationsAndCharts!$A102+$A$11,IF($C$5,8,0),1,1))) -> 374.22 | F102: =IF(A102>$B$30,NA(),IF(A102>$A$8,"",OFFSET(InputPriceData!$E$15,CalculationsAndCharts!$A102+$A$11,IF($C$5,8,0),1,1))) -> 363.63 | G102: =IF(A102>$B$30,NA(),IF(A102>$A$8,"",OFFSET(InputPriceData!$F$15,CalculationsAndCharts!$A102+$A$11,IF($C$5,8,0),1,1))) -> 367.59 | H102: -3.19 | I102: 1.49 | J102: 5.38 | K102: -3.53 | L102: FALSE | M102: FALSE | N102: FALSE | O102: 0 | P102: 374.08 | Q102: 107.45 | U102: -3.19 | V102: 1265.4192 | W102: -1.268202109 | X102: -1 | Y102: 0.8531669663 | Z102: 0.7831882492 | AA102: 0.777600674 | AB102: FALSE | AC102: FALSE | AD102: TRUE | AE102: 0 | AF102: 0 | AG102: -342.06 | AX102: 110210800
A103: 71 | B103: =IF(A103>$B$30,NA(),IF($A103>$A$8,"",OFFSET(InputPriceData!$B$15,$A103+$A$11,0,1,1))) -> 2020-12-31 | C103: =IF(A103>$B$30,NA(),IF($A103>$A$8,"",OFFSET(InputPriceData!$G$15,CalculationsAndCharts!$A103+$A$11,IF($C$5,8,0),1,1))) -> 78520700 | D103: =IF(A103>$B$30,NA(),IF(A103>$A$8,"",OFFSET(InputPriceData!$C$15,CalculationsAndCharts!$A103+$A$11,IF($C$5,8,0),1,1))) -> 370.57 | E103: =IF(A103>$B$30,NA(),IF(A103>$A$8,"",OFFSET(InputPriceData!$D$15,CalculationsAndCharts!$A103+$A$11,IF($C$5,8,0),1,1))) -> 373.44 | F103: =IF(A103>$B$30,NA(),IF(A103>$A$8,"",OFFSET(InputPriceData!$E$15,CalculationsAndCharts!$A103+$A$11,IF($C$5,8,0),1,1))) -> 370.02 | G103: =IF(A103>$B$30,NA(),IF(A103>$A$8,"",OFFSET(InputPriceData!$F$15,CalculationsAndCharts!$A103+$A$11,IF($C$5,8,0),1,1))) -> 372.66 | H103: 2.41 | I103: 9.27 | J103: 8.945 | K103: -1.685 | L103: FALSE | M103: TRUE | N103: TRUE | O103: 0 | P103: 0 | Q103: -266.63 | U103: 2.41 | V103: 1255.7472 | W103: 0.9617914924 | X103: 0.9617914924 | Y103: 2.853166966 | Z103: 0.8244055839 | AA103: 0.7091074038 | AB103: FALSE | AC103: FALSE | AD103: TRUE | AE103: 0 | AF103: 0 | AG103: -342.06 | AW103: 78520700
A104: 72 | B104: =IF(A104>$B$30,NA(),IF($A104>$A$8,"",OFFSET(InputPriceData!$B$15,$A104+$A$11,0,1,1))) -> 2020-12-30 | C104: =IF(A104>$B$30,NA(),IF($A104>$A$8,"",OFFSET(InputPriceData!$G$15,CalculationsAndCharts!$A104+$A$11,IF($C$5,8,0),1,1))) -> 49455300 | D104: =IF(A104>$B$30,NA(),IF(A104>$A$8,"",OFFSET(InputPriceData!$C$15,CalculationsAndCharts!$A104+$A$11,IF($C$5,8,0),1,1))) -> 371.12 | E104: =IF(A104>$B$30,NA(),IF(A104>$A$8,"",OFFSET(InputPriceData!$D$15,CalculationsAndCharts!$A104+$A$11,IF($C$5,8,0),1,1))) -> 371.88 | F104: =IF(A104>$B$30,NA(),IF(A104>$A$8,"",OFFSET(InputPriceData!$E$15,CalculationsAndCharts!$A104+$A$11,IF($C$5,8,0),1,1))) -> 370.36 | G104: =IF(A104>$B$30,NA(),IF(A104>$A$8,"",OFFSET(InputPriceData!$F$15,CalculationsAndCharts!$A104+$A$11,IF($C$5,8,0),1,1))) -> 370.78 | H104: -0.18 | I104: 8.62 | J104: 8.565 | K104: 0.835 | L104: FALSE | M104: FALSE | N104: TRUE | O104: 0 | P104: 0 | Q104: -266.63 | U104: -0.18 | V104: 1264.9935 | W104: -0.0715720334 | X104: -0.0715720334 | Y104: 2.588493475 | Z104: 0.8656229187 | AA104: 0.4978541788 | AB104: FALSE | AC104: FALSE | AD104: TRUE | AE104: 371.12 | AF104: 0 | AG104: -342.06 | AX104: 49455300
A105: 73 | B105: =IF(A105>$B$30,NA(),IF($A105>$A$8,"",OFFSET(InputPriceData!$B$15,$A105+$A$11,0,1,1))) -> 2020-12-29 | C105: =IF(A105>$B$30,NA(),IF($A105>$A$8,"",OFFSET(InputPriceData!$G$15,CalculationsAndCharts!$A105+$A$11,IF($C$5,8,0),1,1))) -> 53680500 | D105: =IF(A105>$B$30,NA(),IF(A105>$A$8,"",OFFSET(InputPriceData!$C$15,CalculationsAndCharts!$A105+$A$11,IF($C$5,8,0),1,1))) -> 372.59 | E105: =IF(A105>$B$30,NA(),IF(A105>$A$8,"",OFFSET(InputPriceData!$D$15,CalculationsAndCharts!$A105+$A$11,IF($C$5,8,0),1,1))) -> 372.78 | F105: =IF(A105>$B$30,NA(),IF(A105>$A$8,"",OFFSET(InputPriceData!$E$15,CalculationsAndCharts!$A105+$A$11,IF($C$5,8,0),1,1))) -> 369.62 | G105: =IF(A105>$B$30,NA(),IF(A105>$A$8,"",OFFSET(InputPriceData!$F$15,CalculationsAndCharts!$A105+$A$11,IF($C$5,8,0),1,1))) -> 370.25 | H105: 2.45 | I105: 8.51 | J105: 6.32 | K105: 4.625 | L105: FALSE | M105: FALSE | N105: TRUE | O105: 0 | P105: 0 | Q105: -266.63 | U105: 2.45 | V105: 1294.6636 | W105: 0.9629475073 | X105: 0.9629475073 | Y105: 2.545952637 | Z105: 0.8174945905 | AA105: 0.09769634408 | AB105: TRUE | AC105: FALSE | AD105: FALSE | AE105: 0 | AF105: 0 | AG105: 29.06 | AX105: 53680500
A106: 74 | B106: =IF(A106>$B$30,NA(),IF($A106>$A$8,"",OFFSET(InputPriceData!$B$15,$A106+$A$11,0,1,1))) -> 2020-12-28 | C106: =IF(A106>$B$30,NA(),IF($A106>$A$8,"",OFFSET(InputPriceData!$G$15,CalculationsAndCharts!$A106+$A$11,IF($C$5,8,0),1,1))) -> 39000400 | D106: =IF(A106>$B$30,NA(),IF(A106>$A$8,"",OFFSET(InputPriceData!$C$15,CalculationsAndCharts!$A106+$A$11,IF($C$5,8,0),1,1))) -> 370.53 | E106: =IF(A106>$B$30,NA(),IF(A106>$A$8,"",OFFSET(InputPriceData!$D$15,CalculationsAndCharts!$A106+$A$11,IF($C$5,8,0),1,1))) -> 371.37 | F106: =IF(A106>$B$30,NA(),IF(A106>$A$8,"",OFFSET(InputPriceData!$E$15,CalculationsAndCharts!$A106+$A$11,IF($C$5,8,0),1,1))) -> 369.86 | G106: =IF(A106>$B$30,NA(),IF(A106>$A$8,"",OFFSET(InputPriceData!$F$15,CalculationsAndCharts!$A106+$A$11,IF($C$5,8,0),1,1))) -> 370.96 | H106: 4.59 | I106: 4.13 | J106: 0.44 | K106: 5.935 | L106: FALSE | M106: FALSE | N106: TRUE | O106: 0 | P106: 0 | Q106: -266.63 | U106: 4.59 | V106: 1289.058 | W106: 1.807970975 | X106: 1 | Y106: 0.8266449451 | Z106: 0.6280888281 | AA106: -0.6617851972 | AB106: FALSE | AC106: FALSE | AD106: FALSE | AE106: 0 | AF106: 0 | AG106: 29.06 | AW106: 39000400
A107: 75 | B107: =IF(A107>$B$30,NA(),IF($A107>$A$8,"",OFFSET(InputPriceData!$B$15,$A107+$A$11,0,1,1))) -> 2020-12-24 | C107: =IF(A107>$B$30,NA(),IF($A107>$A$8,"",OFFSET(InputPriceData!$G$15,CalculationsAndCharts!$A107+$A$11,IF($C$5,8,0),1,1))) -> 26457900 | D107: =IF(A107>$B$30,NA(),IF(A107>$A$8,"",OFFSET(InputPriceData!$C$15,CalculationsAndCharts!$A107+$A$11,IF($C$5,8,0),1,1))) -> 366.88 | E107: =IF(A107>$B$30,NA(),IF(A107>$A$8,"",OFFSET(InputPriceData!$D$15,CalculationsAndCharts!$A107+$A$11,IF($C$5,8,0),1,1))) -> 367.83 | F107: =IF(A107>$B$30,NA(),IF(A107>$A$8,"",OFFSET(InputPriceData!$E$15,CalculationsAndCharts!$A107+$A$11,IF($C$5,8,0),1,1))) -> 366.25 | G107: =IF(A107>$B$30,NA(),IF(A107>$A$8,"",OFFSET(InputPriceData!$F$15,CalculationsAndCharts!$A107+$A$11,IF($C$5,8,0),1,1))) -> 367.8 | H107: 1.76 | I107: -3.25 | J107: -3.845 | K107: 3.21 | L107: FALSE | M107: FALSE | N107: TRUE | O107: 0 | P107: 0 | Q107: -266.63 | U107: 1.76 | V107: 1274.802 | W107: 0.6971180015 | X107: 0.6971180015 | Y107: -1.173355055 | Z107: 0.4035965271 | AA107: -1.346011641 | AB107: FALSE | AC107: FALSE | AD107: FALSE | AE107: 0 | AF107: 0 | AG107: 29.06 | AW107: 26457900
A108: 76 | B108: =IF(A108>$B$30,NA(),IF($A108>$A$8,"",OFFSET(InputPriceData!$B$15,$A108+$A$11,0,1,1))) -> 2020-12-23 | C108: =IF(A108>$B$30,NA(),IF($A108>$A$8,"",OFFSET(InputPriceData!$G$15,CalculationsAndCharts!$A108+$A$11,IF($C$5,8,0),1,1))) -> 46201400 | D108: =IF(A108>$B$30,NA(),IF(A108>$A$8,"",OFFSET(InputPriceData!$C$15,CalculationsAndCharts!$A108+$A$11,IF($C$5,8,0),1,1))) -> 367.08 | E108: =IF(A108>$B$30,NA(),IF(A108>$A$8,"",OFFSET(InputPriceData!$D$15,CalculationsAndCharts!$A108+$A$11,IF($C$5,8,0),1,1))) -> 368.41 | F108: =IF(A108>$B$30,NA(),IF(A108>$A$8,"",OFFSET(InputPriceData!$E$15,CalculationsAndCharts!$A108+$A$11,IF($C$5,8,0),1,1))) -> 366.02 | G108: =IF(A108>$B$30,NA(),IF(A108>$A$8,"",OFFSET(InputPriceData!$F$15,CalculationsAndCharts!$A108+$A$11,IF($C$5,8,0),1,1))) -> 366.37 | H108: -0.29 | I108: -4.44 | J108: -2.98 | K108: 1.425 | L108: FALSE | M108: FALSE | N108: TRUE | O108: 0 | P108: 0 | Q108: -266.63 | U108: -0.29 | V108: 1291.6853 | W108: -0.1141128723 | X108: -0.1141128723 | Y108: -1.655109401 | Z108: 0.2009177017 | AA108: -1.899042682 | AB108: FALSE | AC108: FALSE | AD108: FALSE | AE108: 0 | AF108: 0 | AG108: 29.06 | AX108: 46201400
A109: 77 | B109: =IF(A109>$B$30,NA(),IF($A109>$A$8,"",OFFSET(InputPriceData!$B$15,$A109+$A$11,0,1,1))) -> 2020-12-22 | C109: =IF(A109>$B$30,NA(),IF($A109>$A$8,"",OFFSET(InputPriceData!$G$15,CalculationsAndCharts!$A109+$A$11,IF($C$5,8,0),1,1))) -> 47949000 | D109: =IF(A109>$B$30,NA(),IF(A109>$A$8,"",OFFSET(InputPriceData!$C$15,CalculationsAndCharts!$A109+$A$11,IF($C$5,8,0),1,1))) -> 367.01 | E109: =IF(A109>$B$30,NA(),IF(A109>$A$8,"",OFFSET(InputPriceData!$D$15,CalculationsAndCharts!$A109+$A$11,IF($C$5,8,0),1,1))) -> 367.13 | F109: =IF(A109>$B$30,NA(),IF(A109>$A$8,"",OFFSET(InputPriceData!$E$15,CalculationsAndCharts!$A109+$A$11,IF($C$5,8,0),1,1))) -> 364.84 | G109: =IF(A109>$B$30,NA(),IF(A109>$A$8,"",OFFSET(InputPriceData!$F$15,CalculationsAndCharts!$A109+$A$11,IF($C$5,8,0),1,1))) -> 366.04 | H109: -1.93 | I109: -1.52 | J109: 2.18 | K109: 1.89 | L109: FALSE | M109: FALSE | N109: TRUE | O109: 0 | P109: 0 | Q109: -266.63 | U109: -1.93 | V109: 1302.2288 | W109: -0.7563601841 | X109: -0.7563601841 | Y109: -0.5734545399 | Z109: 0.1687998053 | AA109: -2.043205471 | AB109: FALSE | AC109: FALSE | AD109: FALSE | AE109: 0 | AF109: 0 | AG109: 29.06 | AX109: 47949000
A110: 78 | B110: =IF(A110>$B$30,NA(),IF($A110>$A$8,"",OFFSET(InputPriceData!$B$15,$A110+$A$11,0,1,1))) -> 2020-12-21 | C110: =IF(A110>$B$30,NA(),IF($A110>$A$8,"",OFFSET(InputPriceData!$G$15,CalculationsAndCharts!$A110+$A$11,IF($C$5,8,0),1,1))) -> 96386700 | D110: =IF(A110>$B$30,NA(),IF(A110>$A$8,"",OFFSET(InputPriceData!$C$15,CalculationsAndCharts!$A110+$A$11,IF($C$5,8,0),1,1))) -> 363.78 | E110: =IF(A110>$B$30,NA(),IF(A110>$A$8,"",OFFSET(InputPriceData!$D$15,CalculationsAndCharts!$A110+$A$11,IF($C$5,8,0),1,1))) -> 377.22 | F110: =IF(A110>$B$30,NA(),IF(A110>$A$8,"",OFFSET(InputPriceData!$E$15,CalculationsAndCharts!$A110+$A$11,IF($C$5,8,0),1,1))) -> 360.85 | G110: =IF(A110>$B$30,NA(),IF(A110>$A$8,"",OFFSET(InputPriceData!$F$15,CalculationsAndCharts!$A110+$A$11,IF($C$5,8,0),1,1))) -> 366.66 | H110: -2.79 | I110: 5.88 | J110: 8.91 | K110: 3.95 | L110: FALSE | M110: FALSE | N110: TRUE | O110: 363.78 | P110: 0 | Q110: -266.63 | U110: -2.79 | V110: 1372.292 | W110: -1.065113613 | X110: -1 | Y110: 1.182905644 | Z110: 0.1334097023 | AA110: -1.999724382 | AB110: FALSE | AC110: FALSE | AD110: FALSE | AE110: 0 | AF110: 0 | AG110: 29.06 | AW110: 96386700
A111: 79 | B111: =IF(A111>$B$30,NA(),IF($A111>$A$8,"",OFFSET(InputPriceData!$B$15,$A111+$A$11,0,1,1))) -> 2020-12-18 | C111: =IF(A111>$B$30,NA(),IF($A111>$A$8,"",OFFSET(InputPriceData!$G$15,CalculationsAndCharts!$A111+$A$11,IF($C$5,8,0),1,1))) -> 136542300 | D111: =IF(A111>$B$30,NA(),IF(A111>$A$8,"",OFFSET(InputPriceData!$C$15,CalculationsAndCharts!$A111+$A$11,IF($C$5,8,0),1,1))) -> 369.76 | E111: =IF(A111>$B$30,NA(),IF(A111>$A$8,"",OFFSET(InputPriceData!$D$15,CalculationsAndCharts!$A111+$A$11,IF($C$5,8,0),1,1))) -> 369.94 | F111: =IF(A111>$B$30,NA(),IF(A111>$A$8,"",OFFSET(InputPriceData!$E$15,CalculationsAndCharts!$A111+$A$11,IF($C$5,8,0),1,1))) -> 365.82 | G111: =IF(A111>$B$30,NA(),IF(A111>$A$8,"",OFFSET(InputPriceData!$F$15,CalculationsAndCharts!$A111+$A$11,IF($C$5,8,0),1,1))) -> 367.97 | H111: 0.57 | I111: 11.94 | J111: 10.63 | K111: 2.045 | L111: TRUE | M111: FALSE | N111: FALSE | O111: 0 | P111: 0 | Q111: 97.15 | U111: 0.57 | V111: 1400.9895 | W111: 0.2153636551 | X111: 0.2153636551 | Y111: 3.182905644 | Z111: 0.1284745764 | AA111: -1.571264901 | AB111: FALSE | AC111: FALSE | AD111: FALSE | AE111: 0 | AF111: 0 | AG111: 29.06 | AX111: 136542300
A112: 80 | B112: =IF(A112>$B$30,NA(),IF($A112>$A$8,"",OFFSET(InputPriceData!$B$15,$A112+$A$11,0,1,1))) -> 2020-12-17 | C112: =IF(A112>$B$30,NA(),IF($A112>$A$8,"",OFFSET(InputPriceData!$G$15,CalculationsAndCharts!$A112+$A$11,IF($C$5,8,0),1,1))) -> 64119500 | D112: =IF(A112>$B$30,NA(),IF(A112>$A$8,"",OFFSET(InputPriceData!$C$15,CalculationsAndCharts!$A112+$A$11,IF($C$5,8,0),1,1))) -> 369.15 | E112: =IF(A112>$B$30,NA(),IF(A112>$A$8,"",OFFSET(InputPriceData!$D$15,CalculationsAndCharts!$A112+$A$11,IF($C$5,8,0),1,1))) -> 369.67 | F112: =IF(A112>$B$30,NA(),IF(A112>$A$8,"",OFFSET(InputPriceData!$E$15,CalculationsAndCharts!$A112+$A$11,IF($C$5,8,0),1,1))) -> 368.27 | G112: =IF(A112>$B$30,NA(),IF(A112>$A$8,"",OFFSET(InputPriceData!$F$15,CalculationsAndCharts!$A112+$A$11,IF($C$5,8,0),1,1))) -> 369.45 | H112: 2.63 | I112: 9.32 | J112: 7.73 | K112: -3.02 | L112: FALSE | M112: FALSE | N112: FALSE | O112: 0 | P112: 0 | Q112: 97.15 | U112: 2.63 | V112: 1477.753 | W112: 0.9675419891 | X112: 0.9675419891 | Y112: 2.20346685 | Z112: 0.005587575242 | AA112: -1.014592378 | AB112: FALSE | AC112: FALSE | AD112: FALSE | AE112: 0 | AF112: 0 | AG112: 29.06 | AW112: 64119500
A113: 81 | B113: =IF(A113>$B$30,NA(),IF($A113>$A$8,"",OFFSET(InputPriceData!$B$15,$A113+$A$11,0,1,1))) -> 2020-12-16 | C113: =IF(A113>$B$30,NA(),IF($A113>$A$8,"",OFFSET(InputPriceData!$G$15,CalculationsAndCharts!$A113+$A$11,IF($C$5,8,0),1,1))) -> 58420500 | D113: =IF(A113>$B$30,NA(),IF(A113>$A$8,"",OFFSET(InputPriceData!$C$15,CalculationsAndCharts!$A113+$A$11,IF($C$5,8,0),1,1))) -> 367.05 | E113: =IF(A113>$B$30,NA(),IF(A113>$A$8,"",OFFSET(InputPriceData!$D$15,CalculationsAndCharts!$A113+$A$11,IF($C$5,8,0),1,1))) -> 368.38 | F113: =IF(A113>$B$30,NA(),IF(A113>$A$8,"",OFFSET(InputPriceData!$E$15,CalculationsAndCharts!$A113+$A$11,IF($C$5,8,0),1,1))) -> 366.11 | G113: =IF(A113>$B$30,NA(),IF(A113>$A$8,"",OFFSET(InputPriceData!$F$15,CalculationsAndCharts!$A113+$A$11,IF($C$5,8,0),1,1))) -> 367.4 | H113: 5.47 | I113: 6.14 | J113: 1.695 | K113: -7.22 | L113: FALSE | M113: FALSE | N113: FALSE | O113: 0 | P113: 0 | Q113: 97.15 | U113: 5.47 | V113: 1471.8361 | W113: 2.016381011 | X113: 1 | Y113: 1.030706537 | Z113: 0.1152981801 | AA113: -0.4965221971 | AB113: FALSE | AC113: FALSE | AD113: FALSE | AE113: 0 | AF113: 367.05 | AG113: 29.06 | AW113: 58420500
A114: 82 | B114: =IF(A114>$B$30,NA(),IF($A114>$A$8,"",OFFSET(InputPriceData!$B$15,$A114+$A$11,0,1,1))) -> 2020-12-15 | C114: =IF(A114>$B$30,NA(),IF($A114>$A$8,"",OFFSET(InputPriceData!$G$15,CalculationsAndCharts!$A114+$A$11,IF($C$5,8,0),1,1))) -> 64071100 | D114: =IF(A114>$B$30,NA(),IF(A114>$A$8,"",OFFSET(InputPriceData!$C$15,CalculationsAndCharts!$A114+$A$11,IF($C$5,8,0),1,1))) -> 364.65 | E114: =IF(A114>$B$30,NA(),IF(A114>$A$8,"",OFFSET(InputPriceData!$D$15,CalculationsAndCharts!$A114+$A$11,IF($C$5,8,0),1,1))) -> 366.82 | F114: =IF(A114>$B$30,NA(),IF(A114>$A$8,"",OFFSET(InputPriceData!$E$15,CalculationsAndCharts!$A114+$A$11,IF($C$5,8,0),1,1))) -> 363.18 | G114: =IF(A114>$B$30,NA(),IF(A114>$A$8,"",OFFSET(InputPriceData!$F$15,CalculationsAndCharts!$A114+$A$11,IF($C$5,8,0),1,1))) -> 366.82 | H114: 3.27 | I114: -2.75 | J114: -5.495 | K114: -12.485 | L114: FALSE | M114: FALSE | N114: FALSE | O114: 0 | P114: 0 | Q114: 97.15 | U114: 3.27 | V114: 1443.0816 | W114: 1.217355174 | X114: 1 | Y114: -0.9692934625 | Z114: 0.3677687399 | AA114: -0.01097892441 | AB114: FALSE | AC114: TRUE | AD114: TRUE | AE114: 0 | AF114: 0 | AG114: -337.99 | AW114: 64071100
A115: 83 | B115: =IF(A115>$B$30,NA(),IF($A115>$A$8,"",OFFSET(InputPriceData!$B$15,$A115+$A$11,0,1,1))) -> 2020-12-14 | C115: =IF(A115>$B$30,NA(),IF($A115>$A$8,"",OFFSET(InputPriceData!$G$15,CalculationsAndCharts!$A115+$A$11,IF($C$5,8,0),1,1))) -> 69216200 | D115: =IF(A115>$B$30,NA(),IF(A115>$A$8,"",OFFSET(InputPriceData!$C$15,CalculationsAndCharts!$A115+$A$11,IF($C$5,8,0),1,1))) -> 365.88 | E115: =IF(A115>$B$30,NA(),IF(A115>$A$8,"",OFFSET(InputPriceData!$D$15,CalculationsAndCharts!$A115+$A$11,IF($C$5,8,0),1,1))) -> 367.03 | F115: =IF(A115>$B$30,NA(),IF(A115>$A$8,"",OFFSET(InputPriceData!$E$15,CalculationsAndCharts!$A115+$A$11,IF($C$5,8,0),1,1))) -> 361.74 | G115: =IF(A115>$B$30,NA(),IF(A115>$A$8,"",OFFSET(InputPriceData!$F$15,CalculationsAndCharts!$A115+$A$11,IF($C$5,8,0),1,1))) -> 361.93 | H115: -2.05 | I115: -8.24 | J115: -7.055 | K115: -14.17 | L115: FALSE | M115: FALSE | N115: FALSE | O115: 0 | P115: 0 | Q115: 97.15 | U115: -2.05 | V115: 1439.6787 | W115: -0.7640751392 | X115: -0.7640751392 | Y115: -2.794785658 | Z115: 0.7197982464 | AA115: 0.3983759276 | AB115: FALSE | AC115: FALSE | AD115: TRUE | AE115: 0 | AF115: 0 | AG115: -337.99 | AX115: 69216200
A116: 84 | B116: =IF(A116>$B$30,NA(),IF($A116>$A$8,"",OFFSET(InputPriceData!$B$15,$A116+$A$11,0,1,1))) -> 2020-12-11 | C116: =IF(A116>$B$30,NA(),IF($A116>$A$8,"",OFFSET(InputPriceData!$G$15,CalculationsAndCharts!$A116+$A$11,IF($C$5,8,0),1,1))) -> 57698600 | D116: =IF(A116>$B$30,NA(),IF(A116>$A$8,"",OFFSET(InputPriceData!$C$15,CalculationsAndCharts!$A116+$A$11,IF($C$5,8,0),1,1))) -> 362.16 | E116: =IF(A116>$B$30,NA(),IF(A116>$A$8,"",OFFSET(InputPriceData!$D$15,CalculationsAndCharts!$A116+$A$11,IF($C$5,8,0),1,1))) -> 363.99 | F116: =IF(A116>$B$30,NA(),IF(A116>$A$8,"",OFFSET(InputPriceData!$E$15,CalculationsAndCharts!$A116+$A$11,IF($C$5,8,0),1,1))) -> 360.54 | G116: =IF(A116>$B$30,NA(),IF(A116>$A$8,"",OFFSET(InputPriceData!$F$15,CalculationsAndCharts!$A116+$A$11,IF($C$5,8,0),1,1))) -> 363.55 | H116: -0.55 | I116: -5.87 | J116: -4.405 | K116: -14.5 | L116: FALSE | M116: FALSE | N116: FALSE | O116: 0 | P116: 0 | Q116: 97.15 | U116: -0.55 | V116: 1436.5578 | W116: -0.2052183233 | X116: -0.2052183233 | Y116: -1.912052573 | Z116: 1.289874025 | AA116: 0.9558924274 | AB116: FALSE | AC116: FALSE | AD116: TRUE | AE116: 0 | AF116: 0 | AG116: -337.99 | AW116: 57698600
A117: 85 | B117: =IF(A117>$B$30,NA(),IF($A117>$A$8,"",OFFSET(InputPriceData!$B$15,$A117+$A$11,0,1,1))) -> 2020-12-10 | C117: =IF(A117>$B$30,NA(),IF($A117>$A$8,"",OFFSET(InputPriceData!$G$15,CalculationsAndCharts!$A117+$A$11,IF($C$5,8,0),1,1))) -> 57735400 | D117: =IF(A117>$B$30,NA(),IF(A117>$A$8,"",OFFSET(InputPriceData!$C$15,CalculationsAndCharts!$A117+$A$11,IF($C$5,8,0),1,1))) -> 362.63 | E117: =IF(A117>$B$30,NA(),IF(A117>$A$8,"",OFFSET(InputPriceData!$D$15,CalculationsAndCharts!$A117+$A$11,IF($C$5,8,0),1,1))) -> 365.1 | F117: =IF(A117>$B$30,NA(),IF(A117>$A$8,"",OFFSET(InputPriceData!$E$15,CalculationsAndCharts!$A117+$A$11,IF($C$5,8,0),1,1))) -> 361.7 | G117: =IF(A117>$B$30,NA(),IF(A117>$A$8,"",OFFSET(InputPriceData!$F$15,CalculationsAndCharts!$A117+$A$11,IF($C$5,8,0),1,1))) -> 363.98 | H117: -3.42 | I117: -2.94 | J117: 0.29 | K117: -12.685 | L117: FALSE | M117: FALSE | N117: FALSE | O117: 0 | P117: 362.63 | Q117: 97.15 | U117: -3.42 | V117: 1457.6922 | W117: -1.266800392 | X117: -1 | Y117: -0.8565753636 | Z117: 1.749608169 | AA117: 1.440729681 | AB117: FALSE | AC117: FALSE | AD117: TRUE | AE117: 0 | AF117: 0 | AG117: -337.99 | AW117: 57735400
A118: 86 | B118: =IF(A118>$B$30,NA(),IF($A118>$A$8,"",OFFSET(InputPriceData!$B$15,$A118+$A$11,0,1,1))) -> 2020-12-09 | C118: =IF(A118>$B$30,NA(),IF($A118>$A$8,"",OFFSET(InputPriceData!$G$15,CalculationsAndCharts!$A118+$A$11,IF($C$5,8,0),1,1))) -> 74098300 | D118: =IF(A118>$B$30,NA(),IF(A118>$A$8,"",OFFSET(InputPriceData!$C$15,CalculationsAndCharts!$A118+$A$11,IF($C$5,8,0),1,1))) -> 368.1 | E118: =IF(A118>$B$30,NA(),IF(A118>$A$8,"",OFFSET(InputPriceData!$D$15,CalculationsAndCharts!$A118+$A$11,IF($C$5,8,0),1,1))) -> 368.27 | F118: =IF(A118>$B$30,NA(),IF(A118>$A$8,"",OFFSET(InputPriceData!$E$15,CalculationsAndCharts!$A118+$A$11,IF($C$5,8,0),1,1))) -> 363.21 | G118: =IF(A118>$B$30,NA(),IF(A118>$A$8,"",OFFSET(InputPriceData!$F$15,CalculationsAndCharts!$A118+$A$11,IF($C$5,8,0),1,1))) -> 364.1 | H118: -2.22 | I118: 3.52 | J118: 4.96 | K118: -7.46 | L118: FALSE | M118: TRUE | N118: TRUE | O118: 0 | P118: 0 | Q118: -265.48 | U118: -2.22 | V118: 1446.4719 | W118: -0.8254921956 | X118: -0.8254921956 | Y118: 1.143424636 | Z118: 2.099960384 | AA118: 1.757317047 | AB118: FALSE | AC118: FALSE | AD118: TRUE | AE118: 0 | AF118: 0 | AG118: -337.99 | AX118: 74098300
A119: 87 | B119: =IF(A119>$B$30,NA(),IF($A119>$A$8,"",OFFSET(InputPriceData!$B$15,$A119+$A$11,0,1,1))) -> 2020-12-08 | C119: =IF(A119>$B$30,NA(),IF($A119>$A$8,"",OFFSET(InputPriceData!$G$15,CalculationsAndCharts!$A119+$A$11,IF($C$5,8,0),1,1))) -> 42458900 | D119: =IF(A119>$B$30,NA(),IF(A119>$A$8,"",OFFSET(InputPriceData!$C$15,CalculationsAndCharts!$A119+$A$11,IF($C$5,8,0),1,1))) -> 364.96 | E119: =IF(A119>$B$30,NA(),IF(A119>$A$8,"",OFFSET(InputPriceData!$D$15,CalculationsAndCharts!$A119+$A$11,IF($C$5,8,0),1,1))) -> 368 | F119: =IF(A119>$B$30,NA(),IF(A119>$A$8,"",OFFSET(InputPriceData!$E$15,CalculationsAndCharts!$A119+$A$11,IF($C$5,8,0),1,1))) -> 364.91 | G119: =IF(A119>$B$30,NA(),IF(A119>$A$8,"",OFFSET(InputPriceData!$F$15,CalculationsAndCharts!$A119+$A$11,IF($C$5,8,0),1,1))) -> 367.4 | H119: 0.32 | I119: 6.4 | J119: 8.585 | K119: 0.845 | L119: FALSE | M119: FALSE | N119: TRUE | O119: 0 | P119: 0 | Q119: -265.48 | U119: 0.32 | V119: 1454.5756 | W119: 0.1186579462 | X119: 0.1186579462 | Y119: 2.199809635 | Z119: 2.212005277 | AA119: 1.522633139 | AB119: FALSE | AC119: FALSE | AD119: TRUE | AE119: 364.96 | AF119: 0 | AG119: -337.99 | AW119: 42458900
A120: 88 | B120: =IF(A120>$B$30,NA(),IF($A120>$A$8,"",OFFSET(InputPriceData!$B$15,$A120+$A$11,0,1,1))) -> 2020-12-07 | C120: =IF(A120>$B$30,NA(),IF($A120>$A$8,"",OFFSET(InputPriceData!$G$15,CalculationsAndCharts!$A120+$A$11,IF($C$5,8,0),1,1))) -> 48944300 | D120: =IF(A120>$B$30,NA(),IF(A120>$A$8,"",OFFSET(InputPriceData!$C$15,CalculationsAndCharts!$A120+$A$11,IF($C$5,8,0),1,1))) -> 366.25 | E120: =IF(A120>$B$30,NA(),IF(A120>$A$8,"",OFFSET(InputPriceData!$D$15,CalculationsAndCharts!$A120+$A$11,IF($C$5,8,0),1,1))) -> 366.85 | F120: =IF(A120>$B$30,NA(),IF(A120>$A$8,"",OFFSET(InputPriceData!$E$15,CalculationsAndCharts!$A120+$A$11,IF($C$5,8,0),1,1))) -> 364.96 | G120: =IF(A120>$B$30,NA(),IF(A120>$A$8,"",OFFSET(InputPriceData!$F$15,CalculationsAndCharts!$A120+$A$11,IF($C$5,8,0),1,1))) -> 366.32 | H120: 2.38 | I120: 10.77 | J120: 10.75 | K120: 14.035 | L120: FALSE | M120: FALSE | N120: TRUE | O120: 0 | P120: 0 | Q120: -265.48 | U120: 2.38 | V120: 1567.0453 | W120: 0.8502588858 | X120: 0.8502588858 | Y120: 3.081151689 | Z120: 2.133134085 | AA120: 0.6894704956 | AB120: TRUE | AC120: FALSE | AD120: FALSE | AE120: 0 | AF120: 0 | AG120: 26.97 | AW120: 48944300
A121: 89 | B121: =IF(A121>$B$30,NA(),IF($A121>$A$8,"",OFFSET(InputPriceData!$B$15,$A121+$A$11,0,1,1))) -> 2020-12-04 | C121: =IF(A121>$B$30,NA(),IF($A121>$A$8,"",OFFSET(InputPriceData!$G$15,CalculationsAndCharts!$A121+$A$11,IF($C$5,8,0),1,1))) -> 50749900 | D121: =IF(A121>$B$30,NA(),IF(A121>$A$8,"",OFFSET(InputPriceData!$C$15,CalculationsAndCharts!$A121+$A$11,IF($C$5,8,0),1,1))) -> 364.57 | E121: =IF(A121>$B$30,NA(),IF(A121>$A$8,"",OFFSET(InputPriceData!$D$15,CalculationsAndCharts!$A121+$A$11,IF($C$5,8,0),1,1))) -> 367.08 | F121: =IF(A121>$B$30,NA(),IF(A121>$A$8,"",OFFSET(InputPriceData!$E$15,CalculationsAndCharts!$A121+$A$11,IF($C$5,8,0),1,1))) -> 364.47 | G121: =IF(A121>$B$30,NA(),IF(A121>$A$8,"",OFFSET(InputPriceData!$F$15,CalculationsAndCharts!$A121+$A$11,IF($C$5,8,0),1,1))) -> 367.08 | H121: 3.04 | I121: 10.73 | J121: 8.915 | K121: 17.825 | L121: FALSE | M121: FALSE | N121: TRUE | O121: 0 | P121: 0 | Q121: -265.48 | U121: 3.04 | V121: 1597.9834 | W121: 1.075480275 | X121: 1 | Y121: 3.050471016 | Z121: 1.699739477 | AA121: -0.4214158646 | AB121: FALSE | AC121: FALSE | AD121: FALSE | AE121: 0 | AF121: 0 | AG121: 26.97 | AW121: 50749900
A122: 90 | B122: =IF(A122>$B$30,NA(),IF($A122>$A$8,"",OFFSET(InputPriceData!$B$15,$A122+$A$11,0,1,1))) -> 2020-12-03 | C122: =IF(A122>$B$30,NA(),IF($A122>$A$8,"",OFFSET(InputPriceData!$G$15,CalculationsAndCharts!$A122+$A$11,IF($C$5,8,0),1,1))) -> 62882000 | D122: =IF(A122>$B$30,NA(),IF(A122>$A$8,"",OFFSET(InputPriceData!$C$15,CalculationsAndCharts!$A122+$A$11,IF($C$5,8,0),1,1))) -> 363.93 | E122: =IF(A122>$B$30,NA(),IF(A122>$A$8,"",OFFSET(InputPriceData!$D$15,CalculationsAndCharts!$A122+$A$11,IF($C$5,8,0),1,1))) -> 365.43 | F122: =IF(A122>$B$30,NA(),IF(A122>$A$8,"",OFFSET(InputPriceData!$E$15,CalculationsAndCharts!$A122+$A$11,IF($C$5,8,0),1,1))) -> 362.76 | G122: =IF(A122>$B$30,NA(),IF(A122>$A$8,"",OFFSET(InputPriceData!$F$15,CalculationsAndCharts!$A122+$A$11,IF($C$5,8,0),1,1))) -> 363.94 | H122: 0.66 | I122: 7.1 | J122: 6.99 | K122: 9.375 | L122: FALSE | M122: FALSE | N122: TRUE | O122: 0 | P122: 0 | Q122: -265.48 | U122: 0.66 | V122: 1634.1694 | W122: 0.2308928032 | X122: 0.2308928032 | Y122: 1.846942589 | Z122: 1.020179954 | AA122: -1.613320529 | AB122: FALSE | AC122: FALSE | AD122: FALSE | AE122: 0 | AF122: 0 | AG122: 26.97 | AW122: 62882000
A123: 91 | B123: =IF(A123>$B$30,NA(),IF($A123>$A$8,"",OFFSET(InputPriceData!$B$15,$A123+$A$11,0,1,1))) -> 2020-12-02 | C123: =IF(A123>$B$30,NA(),IF($A123>$A$8,"",OFFSET(InputPriceData!$G$15,CalculationsAndCharts!$A123+$A$11,IF($C$5,8,0),1,1))) -> 45927000 | D123: =IF(A123>$B$30,NA(),IF(A123>$A$8,"",OFFSET(InputPriceData!$C$15,CalculationsAndCharts!$A123+$A$11,IF($C$5,8,0),1,1))) -> 362.09 | E123: =IF(A123>$B$30,NA(),IF(A123>$A$8,"",OFFSET(InputPriceData!$D$15,CalculationsAndCharts!$A123+$A$11,IF($C$5,8,0),1,1))) -> 364.21 | F123: =IF(A123>$B$30,NA(),IF(A123>$A$8,"",OFFSET(InputPriceData!$E$15,CalculationsAndCharts!$A123+$A$11,IF($C$5,8,0),1,1))) -> 361.47 | G123: =IF(A123>$B$30,NA(),IF(A123>$A$8,"",OFFSET(InputPriceData!$F$15,CalculationsAndCharts!$A123+$A$11,IF($C$5,8,0),1,1))) -> 364.04 | H123: 4.69 | I123: 6.88 | J123: 7.115 | K123: 2.265 | L123: FALSE | M123: FALSE | N123: TRUE | O123: 0 | P123: 0 | Q123: -265.48 | U123: 4.69 | V123: 1652.2238 | W123: 1.631749182 | X123: 1 | Y123: 1.765820573 | Z123: 0.6118203772 | AA123: -2.35827788 | AB123: FALSE | AC123: FALSE | AD123: FALSE | AE123: 0 | AF123: 0 | AG123: 26.97 | AW123: 45927000
A124: 92 | B124: =IF(A124>$B$30,NA(),IF($A124>$A$8,"",OFFSET(InputPriceData!$B$15,$A124+$A$11,0,1,1))) -> 2020-12-01 | C124: =IF(A124>$B$30,NA(),IF($A124>$A$8,"",OFFSET(InputPriceData!$G$15,CalculationsAndCharts!$A124+$A$11,IF($C$5,8,0),1,1))) -> 74505000 | D124: =IF(A124>$B$30,NA(),IF(A124>$A$8,"",OFFSET(InputPriceData!$C$15,CalculationsAndCharts!$A124+$A$11,IF($C$5,8,0),1,1))) -> 362.83 | E124: =IF(A124>$B$30,NA(),IF(A124>$A$8,"",OFFSET(InputPriceData!$D$15,CalculationsAndCharts!$A124+$A$11,IF($C$5,8,0),1,1))) -> 364.92 | F124: =IF(A124>$B$30,NA(),IF(A124>$A$8,"",OFFSET(InputPriceData!$E$15,CalculationsAndCharts!$A124+$A$11,IF($C$5,8,0),1,1))) -> 362.19 | G124: =IF(A124>$B$30,NA(),IF(A124>$A$8,"",OFFSET(InputPriceData!$F$15,CalculationsAndCharts!$A124+$A$11,IF($C$5,8,0),1,1))) -> 363.28 | H124: 2.34 | I124: 7.35 | J124: 10.095 | K124: 0.42 | L124: FALSE | M124: FALSE | N124: TRUE | O124: 0 | P124: 0 | Q124: -265.48 | U124: 2.34 | V124: 1630.3502 | W124: 0.8195782125 | X124: 0.8195782125 | Y124: 1.765820573 | Z124: 0.3787476643 | AA124: -2.720088159 | AB124: FALSE | AC124: FALSE | AD124: FALSE | AE124: 0 | AF124: 0 | AG124: 26.97 | AW124: 74505000
A125: 93 | B125: =IF(A125>$B$30,NA(),IF($A125>$A$8,"",OFFSET(InputPriceData!$B$15,$A125+$A$11,0,1,1))) -> 2020-11-30 | C125: =IF(A125>$B$30,NA(),IF($A125>$A$8,"",OFFSET(InputPriceData!$G$15,CalculationsAndCharts!$A125+$A$11,IF($C$5,8,0),1,1))) -> 83872700 | D125: =IF(A125>$B$30,NA(),IF(A125>$A$8,"",OFFSET(InputPriceData!$C$15,CalculationsAndCharts!$A125+$A$11,IF($C$5,8,0),1,1))) -> 360.11 | E125: =IF(A125>$B$30,NA(),IF(A125>$A$8,"",OFFSET(InputPriceData!$D$15,CalculationsAndCharts!$A125+$A$11,IF($C$5,8,0),1,1))) -> 360.4 | F125: =IF(A125>$B$30,NA(),IF(A125>$A$8,"",OFFSET(InputPriceData!$E$15,CalculationsAndCharts!$A125+$A$11,IF($C$5,8,0),1,1))) -> 356.48 | G125: =IF(A125>$B$30,NA(),IF(A125>$A$8,"",OFFSET(InputPriceData!$F$15,CalculationsAndCharts!$A125+$A$11,IF($C$5,8,0),1,1))) -> 359.35 | H125: -0.59 | I125: 12.84 | J125: 12.975 | K125: 0.795 | L125: FALSE | M125: FALSE | N125: TRUE | O125: 360.11 | P125: 0 | Q125: -265.48 | U125: -0.59 | V125: 1680.6755 | W125: -0.2035284264 | X125: -0.2035284264 | Y125: 1.946242361 | Z125: 0.3214223188 | AA125: -2.801904601 | AB125: FALSE | AC125: FALSE | AD125: FALSE | AE125: 0 | AF125: 0 | AG125: 26.97 | AX125: 83872700
A126: 94 | B126: =IF(A126>$B$30,NA(),IF($A126>$A$8,"",OFFSET(InputPriceData!$B$15,$A126+$A$11,0,1,1))) -> 2020-11-27 | C126: =IF(A126>$B$30,NA(),IF($A126>$A$8,"",OFFSET(InputPriceData!$G$15,CalculationsAndCharts!$A126+$A$11,IF($C$5,8,0),1,1))) -> 28514100 | D126: =IF(A126>$B$30,NA(),IF(A126>$A$8,"",OFFSET(InputPriceData!$C$15,CalculationsAndCharts!$A126+$A$11,IF($C$5,8,0),1,1))) -> 361.11 | E126: =IF(A126>$B$30,NA(),IF(A126>$A$8,"",OFFSET(InputPriceData!$D$15,CalculationsAndCharts!$A126+$A$11,IF($C$5,8,0),1,1))) -> 361.45 | F126: =IF(A126>$B$30,NA(),IF(A126>$A$8,"",OFFSET(InputPriceData!$E$15,CalculationsAndCharts!$A126+$A$11,IF($C$5,8,0),1,1))) -> 359.86 | G126: =IF(A126>$B$30,NA(),IF(A126>$A$8,"",OFFSET(InputPriceData!$F$15,CalculationsAndCharts!$A126+$A$11,IF($C$5,8,0),1,1))) -> 360.94 | H126: 0.44 | I126: 13.11 | J126: 12.42 | K126: 3.16 | L126: TRUE | M126: FALSE | N126: FALSE | O126: 0 | P126: 0 | Q126: 94.63 | U126: 0.44 | V126: 1726.1603 | W126: 0.1497707871 | X126: 0.1497707871 | Y126: 2.039783777 | Z126: 0.3339815979 | AA126: -2.563836418 | AB126: FALSE | AC126: FALSE | AD126: FALSE | AE126: 0 | AF126: 0 | AG126: 26.97 | AX126: 28514100
A127: 95 | B127: =IF(A127>$B$30,NA(),IF($A127>$A$8,"",OFFSET(InputPriceData!$B$15,$A127+$A$11,0,1,1))) -> 2020-11-25 | C127: =IF(A127>$B$30,NA(),IF($A127>$A$8,"",OFFSET(InputPriceData!$G$15,CalculationsAndCharts!$A127+$A$11,IF($C$5,8,0),1,1))) -> 45330900 | D127: =IF(A127>$B$30,NA(),IF(A127>$A$8,"",OFFSET(InputPriceData!$C$15,CalculationsAndCharts!$A127+$A$11,IF($C$5,8,0),1,1))) -> 360.41 | E127: =IF(A127>$B$30,NA(),IF(A127>$A$8,"",OFFSET(InputPriceData!$D$15,CalculationsAndCharts!$A127+$A$11,IF($C$5,8,0),1,1))) -> 360.44 | F127: =IF(A127>$B$30,NA(),IF(A127>$A$8,"",OFFSET(InputPriceData!$E$15,CalculationsAndCharts!$A127+$A$11,IF($C$5,8,0),1,1))) -> 358.77 | G127: =IF(A127>$B$30,NA(),IF(A127>$A$8,"",OFFSET(InputPriceData!$F$15,CalculationsAndCharts!$A127+$A$11,IF($C$5,8,0),1,1))) -> 359.94 | H127: 5.16 | I127: 11.73 | J127: 7.74 | K127: -0.235 | L127: FALSE | M127: FALSE | N127: FALSE | O127: 0 | P127: 0 | Q127: 94.63 | U127: 5.16 | V127: 1744.2851 | W127: 1.747253681 | X127: 1 | Y127: 1.568840098 | Z127: 0.3088784878 | AA127: -2.044822333 | AB127: FALSE | AC127: FALSE | AD127: FALSE | AE127: 0 | AF127: 360.41 | AG127: 26.97 | AX127: 45330900
A128: 96 | B128: =IF(A128>$B$30,NA(),IF($A128>$A$8,"",OFFSET(InputPriceData!$B$15,$A128+$A$11,0,1,1))) -> 2020-11-24 | C128: =IF(A128>$B$30,NA(),IF($A128>$A$8,"",OFFSET(InputPriceData!$G$15,CalculationsAndCharts!$A128+$A$11,IF($C$5,8,0),1,1))) -> 62415900 | D128: =IF(A128>$B$30,NA(),IF(A128>$A$8,"",OFFSET(InputPriceData!$C$15,CalculationsAndCharts!$A128+$A$11,IF($C$5,8,0),1,1))) -> 357.51 | E128: =IF(A128>$B$30,NA(),IF(A128>$A$8,"",OFFSET(InputPriceData!$D$15,CalculationsAndCharts!$A128+$A$11,IF($C$5,8,0),1,1))) -> 361.08 | F128: =IF(A128>$B$30,NA(),IF(A128>$A$8,"",OFFSET(InputPriceData!$E$15,CalculationsAndCharts!$A128+$A$11,IF($C$5,8,0),1,1))) -> 356.6 | G128: =IF(A128>$B$30,NA(),IF(A128>$A$8,"",OFFSET(InputPriceData!$F$15,CalculationsAndCharts!$A128+$A$11,IF($C$5,8,0),1,1))) -> 360.5 | H128: 7.83 | I128: 3.75 | J128: -3.285 | K128: -16.395 | L128: FALSE | M128: FALSE | N128: FALSE | O128: 0 | P128: 0 | Q128: 94.63 | U128: 7.83 | V128: 1717.7891 | W128: 2.671725518 | X128: 1 | Y128: -0.3860051714 | Z128: 0.3426433375 | AA128: -1.174800496 | AB128: FALSE | AC128: TRUE | AD128: TRUE | AE128: 0 | AF128: 0 | AG128: -333.44 | AW128: 62415900
A129: 97 | B129: =IF(A129>$B$30,NA(),IF($A129>$A$8,"",OFFSET(InputPriceData!$B$15,$A129+$A$11,0,1,1))) -> 2020-11-23 | C129: =IF(A129>$B$30,NA(),IF($A129>$A$8,"",OFFSET(InputPriceData!$G$15,CalculationsAndCharts!$A129+$A$11,IF($C$5,8,0),1,1))) -> 63230600 | D129: =IF(A129>$B$30,NA(),IF(A129>$A$8,"",OFFSET(InputPriceData!$C$15,CalculationsAndCharts!$A129+$A$11,IF($C$5,8,0),1,1))) -> 354.6 | E129: =IF(A129>$B$30,NA(),IF(A129>$A$8,"",OFFSET(InputPriceData!$D$15,CalculationsAndCharts!$A129+$A$11,IF($C$5,8,0),1,1))) -> 356.13 | F129: =IF(A129>$B$30,NA(),IF(A129>$A$8,"",OFFSET(InputPriceData!$E$15,CalculationsAndCharts!$A129+$A$11,IF($C$5,8,0),1,1))) -> 352.21 | G129: =IF(A129>$B$30,NA(),IF(A129>$A$8,"",OFFSET(InputPriceData!$F$15,CalculationsAndCharts!$A129+$A$11,IF($C$5,8,0),1,1))) -> 354.78 | H129: -0.32 | I129: -10.32 | J129: -8.91 | K129: -31.72 | L129: FALSE | M129: FALSE | N129: FALSE | O129: 0 | P129: 0 | Q129: 94.63 | U129: -0.32 | V129: 1692.9618 | W129: -0.1099870102 | X129: -0.1099870102 | Y129: -2.386005171 | Z129: 0.6893721373 | AA129: 0.1719283042 | AB129: FALSE | AC129: FALSE | AD129: TRUE | AE129: 0 | AF129: 0 | AG129: -333.44 | AW129: 63230600
A130: 98 | B130: =IF(A130>$B$30,NA(),IF($A130>$A$8,"",OFFSET(InputPriceData!$B$15,$A130+$A$11,0,1,1))) -> 2020-11-20 | C130: =IF(A130>$B$30,NA(),IF($A130>$A$8,"",OFFSET(InputPriceData!$G$15,CalculationsAndCharts!$A130+$A$11,IF($C$5,8,0),1,1))) -> 70417300 | D130: =IF(A130>$B$30,NA(),IF(A130>$A$8,"",OFFSET(InputPriceData!$C$15,CalculationsAndCharts!$A130+$A$11,IF($C$5,8,0),1,1))) -> 354.82 | E130: =IF(A130>$B$30,NA(),IF(A130>$A$8,"",OFFSET(InputPriceData!$D$15,CalculationsAndCharts!$A130+$A$11,IF($C$5,8,0),1,1))) -> 355.04 | F130: =IF(A130>$B$30,NA(),IF(A130>$A$8,"",OFFSET(InputPriceData!$E$15,CalculationsAndCharts!$A130+$A$11,IF($C$5,8,0),1,1))) -> 352.59 | G130: =IF(A130>$B$30,NA(),IF(A130>$A$8,"",OFFSET(InputPriceData!$F$15,CalculationsAndCharts!$A130+$A$11,IF($C$5,8,0),1,1))) -> 352.67 | H130: -0.94 | I130: -7.5 | J130: -2.385 | K130: -35.89 | L130: FALSE | M130: FALSE | N130: FALSE | O130: 0 | P130: 0 | Q130: 94.63 | U130: -0.94 | V130: 1713.1995 | W130: -0.3211728917 | X130: -0.3211728917 | Y130: -1.419934022 | Z130: 1.443663589 | AA130: 1.676219756 | AB130: FALSE | AC130: FALSE | AD130: TRUE | AE130: 0 | AF130: 0 | AG130: -333.44 | AX130: 70417300
A131: 99 | B131: =IF(A131>$B$30,NA(),IF($A131>$A$8,"",OFFSET(InputPriceData!$B$15,$A131+$A$11,0,1,1))) -> 2020-11-19 | C131: =IF(A131>$B$30,NA(),IF($A131>$A$8,"",OFFSET(InputPriceData!$G$15,CalculationsAndCharts!$A131+$A$11,IF($C$5,8,0),1,1))) -> 59940900 | D131: =IF(A131>$B$30,NA(),IF(A131>$A$8,"",OFFSET(InputPriceData!$C$15,CalculationsAndCharts!$A131+$A$11,IF($C$5,8,0),1,1))) -> 352.93 | E131: =IF(A131>$B$30,NA(),IF(A131>$A$8,"",OFFSET(InputPriceData!$D$15,CalculationsAndCharts!$A131+$A$11,IF($C$5,8,0),1,1))) -> 355.5 | F131: =IF(A131>$B$30,NA(),IF(A131>$A$8,"",OFFSET(InputPriceData!$E$15,CalculationsAndCharts!$A131+$A$11,IF($C$5,8,0),1,1))) -> 351.5 | G131: =IF(A131>$B$30,NA(),IF(A131>$A$8,"",OFFSET(InputPriceData!$F$15,CalculationsAndCharts!$A131+$A$11,IF($C$5,8,0),1,1))) -> 355.1 | H131: -2.82 | I131: 2.73 | J131: 4.85 | K131: -35.915 | L131: FALSE | M131: FALSE | N131: FALSE | O131: 0 | P131: 0 | Q131: 94.63 | U131: -2.82 | V131: 1744.4648 | W131: -0.9548452695 | X131: -0.9548452695 | Y131: -0.09876112998 | Z131: 2.121155342 | AA131: 2.920144889 | AB131: FALSE | AC131: FALSE | AD131: TRUE | AE131: 0 | AF131: 0 | AG131: -333.44 | AW131: 59940900
A132: 100 | B132: =IF(A132>$B$30,NA(),IF($A132>$A$8,"",OFFSET(InputPriceData!$B$15,$A132+$A$11,0,1,1))) -> 2020-11-18 | C132: =IF(A132>$B$30,NA(),IF($A132>$A$8,"",OFFSET(InputPriceData!$G$15,CalculationsAndCharts!$A132+$A$11,IF($C$5,8,0),1,1))) -> 70591300 | D132: =IF(A132>$B$30,NA(),IF(A132>$A$8,"",OFFSET(InputPriceData!$C$15,CalculationsAndCharts!$A132+$A$11,IF($C$5,8,0),1,1))) -> 358.2 | E132: =IF(A132>$B$30,NA(),IF(A132>$A$8,"",OFFSET(InputPriceData!$D$15,CalculationsAndCharts!$A132+$A$11,IF($C$5,8,0),1,1))) -> 358.79 | F132: =IF(A132>$B$30,NA(),IF(A132>$A$8,"",OFFSET(InputPriceData!$E$15,CalculationsAndCharts!$A132+$A$11,IF($C$5,8,0),1,1))) -> 353.57 | G132: =IF(A132>$B$30,NA(),IF(A132>$A$8,"",OFFSET(InputPriceData!$F$15,CalculationsAndCharts!$A132+$A$11,IF($C$5,8,0),1,1))) -> 353.61 | H132: -6.24 | I132: 6.97 | J132: 9.675 | K132: -30.48 | L132: FALSE | M132: FALSE | N132: FALSE | O132: 0 | P132: 0 | Q132: 94.63 | U132: -6.24 | V132: 1736.9748 | W132: -2.117399609 | X132: -1 | Y132: 1.307217809 | Z132: 2.633500483 | AA132: 3.724440979 | AB132: FALSE | AC132: FALSE | AD132: TRUE | AE132: 0 | AF132: 0 | AG132: -333.44 | AX132: 70591300
A133: 101 | B133: =IF(A133>$B$30,NA(),IF($A133>$A$8,"",OFFSET(InputPriceData!$B$15,$A133+$A$11,0,1,1))) -> 2020-11-17 | C133: =IF(A133>$B$30,NA(),IF($A133>$A$8,"",OFFSET(InputPriceData!$G$15,CalculationsAndCharts!$A133+$A$11,IF($C$5,8,0),1,1))) -> 66111000 | D133: =IF(A133>$B$30,NA(),IF(A133>$A$8,"",OFFSET(InputPriceData!$C$15,CalculationsAndCharts!$A133+$A$11,IF($C$5,8,0),1,1))) -> 357.27 | E133: =IF(A133>$B$30,NA(),IF(A133>$A$8,"",OFFSET(InputPriceData!$D$15,CalculationsAndCharts!$A133+$A$11,IF($C$5,8,0),1,1))) -> 359.21 | F133: =IF(A133>$B$30,NA(),IF(A133>$A$8,"",OFFSET(InputPriceData!$E$15,CalculationsAndCharts!$A133+$A$11,IF($C$5,8,0),1,1))) -> 355.65 | G133: =IF(A133>$B$30,NA(),IF(A133>$A$8,"",OFFSET(InputPriceData!$F$15,CalculationsAndCharts!$A133+$A$11,IF($C$5,8,0),1,1))) -> 357.92 | H133: 2.5 | I133: 12.38 | J133: 12.18 | K133: -17.69 | L133: FALSE | M133: FALSE | N133: FALSE | O133: 0 | P133: 357.27 | Q133: 94.63 | U133: 2.5 | V133: 1705.5997 | W133: 0.8560841395 | X133: 0.8560841395 | Y133: 2.046716594 | Z133: 2.970098257 | AA133: 4.222773519 | AB133: FALSE | AC133: FALSE | AD133: TRUE | AE133: 0 | AF133: 0 | AG133: -333.44 | AW133: 66111000
A134: 102 | B134: =IF(A134>$B$30,NA(),IF($A134>$A$8,"",OFFSET(InputPriceData!$B$15,$A134+$A$11,0,1,1))) -> 2020-11-16 | C134: =IF(A134>$B$30,NA(),IF($A134>$A$8,"",OFFSET(InputPriceData!$G$15,CalculationsAndCharts!$A134+$A$11,IF($C$5,8,0),1,1))) -> 74541100 | D134: =IF(A134>$B$30,NA(),IF(A134>$A$8,"",OFFSET(InputPriceData!$C$15,CalculationsAndCharts!$A134+$A$11,IF($C$5,8,0),1,1))) -> 358.27 | E134: =IF(A134>$B$30,NA(),IF(A134>$A$8,"",OFFSET(InputPriceData!$D$15,CalculationsAndCharts!$A134+$A$11,IF($C$5,8,0),1,1))) -> 360.06 | F134: =IF(A134>$B$30,NA(),IF(A134>$A$8,"",OFFSET(InputPriceData!$E$15,CalculationsAndCharts!$A134+$A$11,IF($C$5,8,0),1,1))) -> 356.89 | G134: =IF(A134>$B$30,NA(),IF(A134>$A$8,"",OFFSET(InputPriceData!$F$15,CalculationsAndCharts!$A134+$A$11,IF($C$5,8,0),1,1))) -> 359.85 | H134: 9.29 | I134: 11.98 | J134: 9.26 | K134: -2.795 | L134: FALSE | M134: TRUE | N134: TRUE | O134: 0 | P134: 0 | Q134: -262.64 | U134: 9.29 | V134: 1844.3113 | W134: 3.059240346 | X134: 1 | Y134: 1.838958896 | Z134: 3.098835823 | AA134: 4.513245852 | AB134: FALSE | AC134: FALSE | AD134: TRUE | AE134: 0 | AF134: 0 | AG134: -333.44 | AW134: 74541100
A135: 103 | B135: =IF(A135>$B$30,NA(),IF($A135>$A$8,"",OFFSET(InputPriceData!$B$15,$A135+$A$11,0,1,1))) -> 2020-11-13 | C135: =IF(A135>$B$30,NA(),IF($A135>$A$8,"",OFFSET(InputPriceData!$G$15,CalculationsAndCharts!$A135+$A$11,IF($C$5,8,0),1,1))) -> 62892200 | D135: =IF(A135>$B$30,NA(),IF(A135>$A$8,"",OFFSET(InputPriceData!$C$15,CalculationsAndCharts!$A135+$A$11,IF($C$5,8,0),1,1))) -> 352.61 | E135: =IF(A135>$B$30,NA(),IF(A135>$A$8,"",OFFSET(InputPriceData!$D$15,CalculationsAndCharts!$A135+$A$11,IF($C$5,8,0),1,1))) -> 356.21 | F135: =IF(A135>$B$30,NA(),IF(A135>$A$8,"",OFFSET(InputPriceData!$E$15,CalculationsAndCharts!$A135+$A$11,IF($C$5,8,0),1,1))) -> 352.05 | G135: =IF(A135>$B$30,NA(),IF(A135>$A$8,"",OFFSET(InputPriceData!$F$15,CalculationsAndCharts!$A135+$A$11,IF($C$5,8,0),1,1))) -> 355.42 | H135: 1.42 | I135: 6.54 | J135: 7.975 | K135: 17.655 | L135: FALSE | M135: FALSE | N135: TRUE | O135: 0 | P135: 0 | Q135: -262.64 | U135: 1.42 | V135: 1981.5097 | W135: 0.4511336693 | X135: 0.4511336693 | Y135: 1.838958896 | Z135: 3.123326919 | AA135: 4.538654832 | AB135: FALSE | AC135: FALSE | AD135: TRUE | AE135: 0 | AF135: 0 | AG135: -333.44 | AW135: 62892200
A136: 104 | B136: =IF(A136>$B$30,NA(),IF($A136>$A$8,"",OFFSET(InputPriceData!$B$15,$A136+$A$11,0,1,1))) -> 2020-11-12 | C136: =IF(A136>$B$30,NA(),IF($A136>$A$8,"",OFFSET(InputPriceData!$G$15,CalculationsAndCharts!$A136+$A$11,IF($C$5,8,0),1,1))) -> 67546200 | D136: =IF(A136>$B$30,NA(),IF(A136>$A$8,"",OFFSET(InputPriceData!$C$15,CalculationsAndCharts!$A136+$A$11,IF($C$5,8,0),1,1))) -> 352.91 | E136: =IF(A136>$B$30,NA(),IF(A136>$A$8,"",OFFSET(InputPriceData!$D$15,CalculationsAndCharts!$A136+$A$11,IF($C$5,8,0),1,1))) -> 354.05 | F136: =IF(A136>$B$30,NA(),IF(A136>$A$8,"",OFFSET(InputPriceData!$E$15,CalculationsAndCharts!$A136+$A$11,IF($C$5,8,0),1,1))) -> 348.63 | G136: =IF(A136>$B$30,NA(),IF(A136>$A$8,"",OFFSET(InputPriceData!$F$15,CalculationsAndCharts!$A136+$A$11,IF($C$5,8,0),1,1))) -> 350.56 | H136: -0.83 | I136: 9.41 | J136: 13.11 | K136: 37.685 | L136: FALSE | M136: FALSE | N136: TRUE | O136: 0 | P136: 0 | Q136: -262.64 | U136: -0.83 | V136: 2030.3302 | W136: -0.2605012148 | X136: -0.2605012148 | Y136: 2.387825227 | Z136: 2.897818016 | AA136: 4.338546244 | AB136: FALSE | AC136: FALSE | AD136: TRUE | AE136: 0 | AF136: 0 | AG136: -333.44 | AX136: 67546200
A137: 105 | B137: =IF(A137>$B$30,NA(),IF($A137>$A$8,"",OFFSET(InputPriceData!$B$15,$A137+$A$11,0,1,1))) -> 2020-11-11 | C137: =IF(A137>$B$30,NA(),IF($A137>$A$8,"",OFFSET(InputPriceData!$G$15,CalculationsAndCharts!$A137+$A$11,IF($C$5,8,0),1,1))) -> 58649000 | D137: =IF(A137>$B$30,NA(),IF(A137>$A$8,"",OFFSET(InputPriceData!$C$15,CalculationsAndCharts!$A137+$A$11,IF($C$5,8,0),1,1))) -> 353.73 | E137: =IF(A137>$B$30,NA(),IF(A137>$A$8,"",OFFSET(InputPriceData!$D$15,CalculationsAndCharts!$A137+$A$11,IF($C$5,8,0),1,1))) -> 354.88 | F137: =IF(A137>$B$30,NA(),IF(A137>$A$8,"",OFFSET(InputPriceData!$E$15,CalculationsAndCharts!$A137+$A$11,IF($C$5,8,0),1,1))) -> 352.4 | G137: =IF(A137>$B$30,NA(),IF(A137>$A$8,"",OFFSET(InputPriceData!$F$15,CalculationsAndCharts!$A137+$A$11,IF($C$5,8,0),1,1))) -> 354 | H137: 2.1 | I137: 16.81 | J137: 22.81 | K137: 53.78 | L137: FALSE | M137: FALSE | N137: TRUE | O137: 0 | P137: 0 | Q137: -262.64 | U137: 2.1 | V137: 2098.3654 | W137: 0.6483264414 | X137: 0.6483264414 | Y137: 3.648326441 | Z137: 2.353700821 | AA137: 3.700045546 | AB137: FALSE | AC137: FALSE | AD137: TRUE | AE137: 0 | AF137: 0 | AG137: -333.44 | AW137: 58649000
A138: 106 | B138: =IF(A138>$B$30,NA(),IF($A138>$A$8,"",OFFSET(InputPriceData!$B$15,$A138+$A$11,0,1,1))) -> 2020-11-10 | C138: =IF(A138>$B$30,NA(),IF($A138>$A$8,"",OFFSET(InputPriceData!$G$15,CalculationsAndCharts!$A138+$A$11,IF($C$5,8,0),1,1))) -> 85552000 | D138: =IF(A138>$B$30,NA(),IF(A138>$A$8,"",OFFSET(InputPriceData!$C$15,CalculationsAndCharts!$A138+$A$11,IF($C$5,8,0),1,1))) -> 350.84 | E138: =IF(A138>$B$30,NA(),IF(A138>$A$8,"",OFFSET(InputPriceData!$D$15,CalculationsAndCharts!$A138+$A$11,IF($C$5,8,0),1,1))) -> 352.52 | F138: =IF(A138>$B$30,NA(),IF(A138>$A$8,"",OFFSET(InputPriceData!$E$15,CalculationsAndCharts!$A138+$A$11,IF($C$5,8,0),1,1))) -> 347.88 | G138: =IF(A138>$B$30,NA(),IF(A138>$A$8,"",OFFSET(InputPriceData!$F$15,CalculationsAndCharts!$A138+$A$11,IF($C$5,8,0),1,1))) -> 351.39 | H138: 3.85 | I138: 28.81 | J138: 33.505 | K138: 61.405 | L138: FALSE | M138: FALSE | N138: TRUE | O138: 0 | P138: 0 | Q138: -262.64 | U138: 3.85 | V138: 2097.9155 | W138: 1.188725917 | X138: 1 | Y138: 4 | Z138: 1.517443833 | AA138: 2.769405056 | AB138: FALSE | AC138: FALSE | AD138: TRUE | AE138: 0 | AF138: 0 | AG138: -333.44 | AW138: 85552000
A139: 107 | B139: =IF(A139>$B$30,NA(),IF($A139>$A$8,"",OFFSET(InputPriceData!$B$15,$A139+$A$11,0,1,1))) -> 2020-11-09 | C139: =IF(A139>$B$30,NA(),IF($A139>$A$8,"",OFFSET(InputPriceData!$G$15,CalculationsAndCharts!$A139+$A$11,IF($C$5,8,0),1,1))) -> 172304200 | D139: =IF(A139>$B$30,NA(),IF(A139>$A$8,"",OFFSET(InputPriceData!$C$15,CalculationsAndCharts!$A139+$A$11,IF($C$5,8,0),1,1))) -> 361.24 | E139: =IF(A139>$B$30,NA(),IF(A139>$A$8,"",OFFSET(InputPriceData!$D$15,CalculationsAndCharts!$A139+$A$11,IF($C$5,8,0),1,1))) -> 361.65 | F139: =IF(A139>$B$30,NA(),IF(A139>$A$8,"",OFFSET(InputPriceData!$E$15,CalculationsAndCharts!$A139+$A$11,IF($C$5,8,0),1,1))) -> 351.41 | G139: =IF(A139>$B$30,NA(),IF(A139>$A$8,"",OFFSET(InputPriceData!$F$15,CalculationsAndCharts!$A139+$A$11,IF($C$5,8,0),1,1))) -> 351.9 | H139: 4.29 | I139: 38.2 | J139: 40.765 | K139: 56.135 | L139: FALSE | M139: FALSE | N139: TRUE | O139: 0 | P139: 0 | Q139: -262.64 | U139: 4.29 | V139: 2084.0339 | W139: 1.328984453 | X139: 1 | Y139: 4 | Z139: 0.5174438331 | AA139: 1.702971676 | AB139: FALSE | AC139: FALSE | AD139: TRUE | AE139: 361.24 | AF139: 0 | AG139: -333.44 | AX139: 172304200
A140: 108 | B140: =IF(A140>$B$30,NA(),IF($A140>$A$8,"",OFFSET(InputPriceData!$B$15,$A140+$A$11,0,1,1))) -> 2020-11-06 | C140: =IF(A140>$B$30,NA(),IF($A140>$A$8,"",OFFSET(InputPriceData!$G$15,CalculationsAndCharts!$A140+$A$11,IF($C$5,8,0),1,1))) -> 74973000 | D140: =IF(A140>$B$30,NA(),IF(A140>$A$8,"",OFFSET(InputPriceData!$C$15,CalculationsAndCharts!$A140+$A$11,IF($C$5,8,0),1,1))) -> 347.31 | E140: =IF(A140>$B$30,NA(),IF(A140>$A$8,"",OFFSET(InputPriceData!$D$15,CalculationsAndCharts!$A140+$A$11,IF($C$5,8,0),1,1))) -> 348.88 | F140: =IF(A140>$B$30,NA(),IF(A140>$A$8,"",OFFSET(InputPriceData!$E$15,CalculationsAndCharts!$A140+$A$11,IF($C$5,8,0),1,1))) -> 345.04 | G140: =IF(A140>$B$30,NA(),IF(A140>$A$8,"",OFFSET(InputPriceData!$F$15,CalculationsAndCharts!$A140+$A$11,IF($C$5,8,0),1,1))) -> 347.54 | H140: 6.57 | I140: 43.33 | J140: 40.155 | K140: 44.485 | L140: FALSE | M140: FALSE | N140: TRUE | O140: 0 | P140: 0 | Q140: -262.64 | U140: 6.57 | V140: 2074.5102 | W140: 2.039964361 | X140: 1 | Y140: 4 | Z140: -0.2325561669 | AA140: 0.7955978676 | AB140: TRUE | AC140: FALSE | AD140: FALSE | AE140: 0 | AF140: 0 | AG140: 27.8 | AW140: 74973000
A141: 109 | B141: =IF(A141>$B$30,NA(),IF($A141>$A$8,"",OFFSET(InputPriceData!$B$15,$A141+$A$11,0,1,1))) -> 2020-11-05 | C141: =IF(A141>$B$30,NA(),IF($A141>$A$8,"",OFFSET(InputPriceData!$G$15,CalculationsAndCharts!$A141+$A$11,IF($C$5,8,0),1,1))) -> 82039700 | D141: =IF(A141>$B$30,NA(),IF(A141>$A$8,"",OFFSET(InputPriceData!$C$15,CalculationsAndCharts!$A141+$A$11,IF($C$5,8,0),1,1))) -> 346.62 | E141: =IF(A141>$B$30,NA(),IF(A141>$A$8,"",OFFSET(InputPriceData!$D$15,CalculationsAndCharts!$A141+$A$11,IF($C$5,8,0),1,1))) -> 349.55 | F141: =IF(A141>$B$30,NA(),IF(A141>$A$8,"",OFFSET(InputPriceData!$E$15,CalculationsAndCharts!$A141+$A$11,IF($C$5,8,0),1,1))) -> 346.25 | G141: =IF(A141>$B$30,NA(),IF(A141>$A$8,"",OFFSET(InputPriceData!$F$15,CalculationsAndCharts!$A141+$A$11,IF($C$5,8,0),1,1))) -> 347.61 | H141: 14.1 | I141: 36.98 | J141: 29.87 | K141: 29.44 | L141: FALSE | M141: FALSE | N141: TRUE | O141: 346.62 | P141: 0 | Q141: -262.64 | U141: 14.1 | V141: 2048.6509 | W141: 4.405549965 | X141: 1 | Y141: 3.076617125 | Z141: -0.7989895469 | AA141: -0.1782093206 | AB141: FALSE | AC141: FALSE | AD141: FALSE | AE141: 0 | AF141: 0 | AG141: 27.8 | AW141: 82039700
A142: 110 | B142: =IF(A142>$B$30,NA(),IF($A142>$A$8,"",OFFSET(InputPriceData!$B$15,$A142+$A$11,0,1,1))) -> 2020-11-04 | C142: =IF(A142>$B$30,NA(),IF($A142>$A$8,"",OFFSET(InputPriceData!$G$15,CalculationsAndCharts!$A142+$A$11,IF($C$5,8,0),1,1))) -> 126959700 | D142: =IF(A142>$B$30,NA(),IF(A142>$A$8,"",OFFSET(InputPriceData!$C$15,CalculationsAndCharts!$A142+$A$11,IF($C$5,8,0),1,1))) -> 338.31 | E142: =IF(A142>$B$30,NA(),IF(A142>$A$8,"",OFFSET(InputPriceData!$D$15,CalculationsAndCharts!$A142+$A$11,IF($C$5,8,0),1,1))) -> 345.33 | F142: =IF(A142>$B$30,NA(),IF(A142>$A$8,"",OFFSET(InputPriceData!$E$15,CalculationsAndCharts!$A142+$A$11,IF($C$5,8,0),1,1))) -> 337.04 | G142: =IF(A142>$B$30,NA(),IF(A142>$A$8,"",OFFSET(InputPriceData!$F$15,CalculationsAndCharts!$A142+$A$11,IF($C$5,8,0),1,1))) -> 340.97 | H142: 13.24 | I142: 22.76 | J142: 12.055 | K142: 15.215 | L142: TRUE | M142: FALSE | N142: FALSE | O142: 0 | P142: 0 | Q142: 83.98 | U142: 13.24 | V142: 1871.0009 | W142: 4.328784688 | X142: 1 | Y142: 2.034887666 | Z142: -1.090940496 | AA142: -1.054111729 | AB142: FALSE | AC142: FALSE | AD142: FALSE | AE142: 0 | AF142: 0 | AG142: 27.8 | AW142: 126959700
A143: 111 | B143: =IF(A143>$B$30,NA(),IF($A143>$A$8,"",OFFSET(InputPriceData!$B$15,$A143+$A$11,0,1,1))) -> 2020-11-03 | C143: =IF(A143>$B$30,NA(),IF($A143>$A$8,"",OFFSET(InputPriceData!$G$15,CalculationsAndCharts!$A143+$A$11,IF($C$5,8,0),1,1))) -> 93294200 | D143: =IF(A143>$B$30,NA(),IF(A143>$A$8,"",OFFSET(InputPriceData!$C$15,CalculationsAndCharts!$A143+$A$11,IF($C$5,8,0),1,1))) -> 331.19 | E143: =IF(A143>$B$30,NA(),IF(A143>$A$8,"",OFFSET(InputPriceData!$D$15,CalculationsAndCharts!$A143+$A$11,IF($C$5,8,0),1,1))) -> 335.71 | F143: =IF(A143>$B$30,NA(),IF(A143>$A$8,"",OFFSET(InputPriceData!$E$15,CalculationsAndCharts!$A143+$A$11,IF($C$5,8,0),1,1))) -> 327.81 | G143: =IF(A143>$B$30,NA(),IF(A143>$A$8,"",OFFSET(InputPriceData!$F$15,CalculationsAndCharts!$A143+$A$11,IF($C$5,8,0),1,1))) -> 333.51 | H143: 9.42 | I143: 1.35 | J143: -9.68 | K143: -1.355 | L143: FALSE | M143: FALSE | N143: FALSE | O143: 0 | P143: 0 | Q143: 83.98 | U143: 9.42 | V143: 1716.7714 | W143: 3.215212383 | X143: 1 | Y143: 0.03488766617 | Z143: -1.252675262 | AA143: -1.8197068 | AB143: FALSE | AC143: FALSE | AD143: FALSE | AE143: 0 | AF143: 0 | AG143: 27.8 | AW143: 93294200
A144: 112 | B144: =IF(A144>$B$30,NA(),IF($A144>$A$8,"",OFFSET(InputPriceData!$B$15,$A144+$A$11,0,1,1))) -> 2020-11-02 | C144: =IF(A144>$B$30,NA(),IF($A144>$A$8,"",OFFSET(InputPriceData!$G$15,CalculationsAndCharts!$A144+$A$11,IF($C$5,8,0),1,1))) -> 86068300 | D144: =IF(A144>$B$30,NA(),IF(A144>$A$8,"",OFFSET(InputPriceData!$C$15,CalculationsAndCharts!$A144+$A$11,IF($C$5,8,0),1,1))) -> 327.73 | E144: =IF(A144>$B$30,NA(),IF(A144>$A$8,"",OFFSET(InputPriceData!$D$15,CalculationsAndCharts!$A144+$A$11,IF($C$5,8,0),1,1))) -> 329.87 | F144: =IF(A144>$B$30,NA(),IF(A144>$A$8,"",OFFSET(InputPriceData!$E$15,CalculationsAndCharts!$A144+$A$11,IF($C$5,8,0),1,1))) -> 324.79 | G144: =IF(A144>$B$30,NA(),IF(A144>$A$8,"",OFFSET(InputPriceData!$F$15,CalculationsAndCharts!$A144+$A$11,IF($C$5,8,0),1,1))) -> 327.73 | H144: 0.22 | I144: -20.71 | J144: -24.575 | K144: -13.665 | L144: FALSE | M144: FALSE | N144: FALSE | O144: 0 | P144: 0 | Q144: 83.98 | U144: 0.22 | V144: 1649.0114 | W144: 0.07661712469 | X144: 0.07661712469 | Y144: -1.965112334 | Z144: -1.414410029 | AA144: -2.744361443 | AB144: FALSE | AC144: FALSE | AD144: FALSE | AE144: 0 | AF144: 0 | AG144: 27.8 | AW144: 86068300
A145: 113 | B145: =IF(A145>$B$30,NA(),IF($A145>$A$8,"",OFFSET(InputPriceData!$B$15,$A145+$A$11,0,1,1))) -> 2020-10-30 | C145: =IF(A145>$B$30,NA(),IF($A145>$A$8,"",OFFSET(InputPriceData!$G$15,CalculationsAndCharts!$A145+$A$11,IF($C$5,8,0),1,1))) -> 120287300 | D145: =IF(A145>$B$30,NA(),IF(A145>$A$8,"",OFFSET(InputPriceData!$C$15,CalculationsAndCharts!$A145+$A$11,IF($C$5,8,0),1,1))) -> 325.82 | E145: =IF(A145>$B$30,NA(),IF(A145>$A$8,"",OFFSET(InputPriceData!$D$15,CalculationsAndCharts!$A145+$A$11,IF($C$5,8,0),1,1))) -> 327.22 | F145: =IF(A145>$B$30,NA(),IF(A145>$A$8,"",OFFSET(InputPriceData!$E$15,CalculationsAndCharts!$A145+$A$11,IF($C$5,8,0),1,1))) -> 320.18 | G145: =IF(A145>$B$30,NA(),IF(A145>$A$8,"",OFFSET(InputPriceData!$F$15,CalculationsAndCharts!$A145+$A$11,IF($C$5,8,0),1,1))) -> 324.09 | H145: -0.12 | I145: -28.44 | J145: -30.97 | K145: -18.105 | L145: FALSE | M145: FALSE | N145: FALSE | O145: 0 | P145: 0 | Q145: 83.98 | U145: -0.12 | V145: 1653.8914 | W145: -0.04172945853 | X145: -0.04172945853 | Y145: -3.041729459 | Z145: -1.415327913 | AA145: -3.330133946 | AB145: FALSE | AC145: FALSE | AD145: FALSE | AE145: 0 | AF145: 0 | AG145: 27.8 | AX145: 120287300
A146: 114 | B146: =IF(A146>$B$30,NA(),IF($A146>$A$8,"",OFFSET(InputPriceData!$B$15,$A146+$A$11,0,1,1))) -> 2020-10-29 | C146: =IF(A146>$B$30,NA(),IF($A146>$A$8,"",OFFSET(InputPriceData!$G$15,CalculationsAndCharts!$A146+$A$11,IF($C$5,8,0),1,1))) -> 90597700 | D146: =IF(A146>$B$30,NA(),IF(A146>$A$8,"",OFFSET(InputPriceData!$C$15,CalculationsAndCharts!$A146+$A$11,IF($C$5,8,0),1,1))) -> 324.46 | E146: =IF(A146>$B$30,NA(),IF(A146>$A$8,"",OFFSET(InputPriceData!$D$15,CalculationsAndCharts!$A146+$A$11,IF($C$5,8,0),1,1))) -> 330.9 | F146: =IF(A146>$B$30,NA(),IF(A146>$A$8,"",OFFSET(InputPriceData!$E$15,CalculationsAndCharts!$A146+$A$11,IF($C$5,8,0),1,1))) -> 322.65 | G146: =IF(A146>$B$30,NA(),IF(A146>$A$8,"",OFFSET(InputPriceData!$F$15,CalculationsAndCharts!$A146+$A$11,IF($C$5,8,0),1,1))) -> 327.51 | H146: -8.17 | I146: -33.5 | J146: -27.9 | K146: -19.095 | L146: FALSE | M146: FALSE | N146: FALSE | O146: 0 | P146: 0 | Q146: 83.98 | U146: -8.17 | V146: 1653.9995 | W146: -2.840987791 | X146: -1 | Y146: -4 | Z146: -1.440728228 | AA146: -3.763811228 | AB146: FALSE | AC146: FALSE | AD146: FALSE | AE146: 0 | AF146: 0 | AG146: 27.8 | AW146: 90597700
A147: 115 | B147: =IF(A147>$B$30,NA(),IF($A147>$A$8,"",OFFSET(InputPriceData!$B$15,$A147+$A$11,0,1,1))) -> 2020-10-28 | C147: =IF(A147>$B$30,NA(),IF($A147>$A$8,"",OFFSET(InputPriceData!$G$15,CalculationsAndCharts!$A147+$A$11,IF($C$5,8,0),1,1))) -> 127094300 | D147: =IF(A147>$B$30,NA(),IF(A147>$A$8,"",OFFSET(InputPriceData!$C$15,CalculationsAndCharts!$A147+$A$11,IF($C$5,8,0),1,1))) -> 329.61 | E147: =IF(A147>$B$30,NA(),IF(A147>$A$8,"",OFFSET(InputPriceData!$D$15,CalculationsAndCharts!$A147+$A$11,IF($C$5,8,0),1,1))) -> 335.71 | F147: =IF(A147>$B$30,NA(),IF(A147>$A$8,"",OFFSET(InputPriceData!$E$15,CalculationsAndCharts!$A147+$A$11,IF($C$5,8,0),1,1))) -> 323.69 | G147: =IF(A147>$B$30,NA(),IF(A147>$A$8,"",OFFSET(InputPriceData!$F$15,CalculationsAndCharts!$A147+$A$11,IF($C$5,8,0),1,1))) -> 324.21 | H147: -12.64 | I147: -22.3 | J147: -15.37 | K147: -15.53 | L147: FALSE | M147: FALSE | N147: FALSE | O147: 0 | P147: 0 | Q147: 83.98 | U147: -12.64 | V147: 1587.6995 | W147: -4.486192632 | X147: -1 | Y147: -2 | Z147: -1.346344725 | AA147: -3.901747994 | AB147: FALSE | AC147: FALSE | AD147: FALSE | AE147: 0 | AF147: 0 | AG147: 27.8 | AX147: 127094300
A148: 116 | B148: =IF(A148>$B$30,NA(),IF($A148>$A$8,"",OFFSET(InputPriceData!$B$15,$A148+$A$11,0,1,1))) -> 2020-10-27 | C148: =IF(A148>$B$30,NA(),IF($A148>$A$8,"",OFFSET(InputPriceData!$G$15,CalculationsAndCharts!$A148+$A$11,IF($C$5,8,0),1,1))) -> 65994100 | D148: =IF(A148>$B$30,NA(),IF(A148>$A$8,"",OFFSET(InputPriceData!$C$15,CalculationsAndCharts!$A148+$A$11,IF($C$5,8,0),1,1))) -> 337.21 | E148: =IF(A148>$B$30,NA(),IF(A148>$A$8,"",OFFSET(InputPriceData!$D$15,CalculationsAndCharts!$A148+$A$11,IF($C$5,8,0),1,1))) -> 337.57 | F148: =IF(A148>$B$30,NA(),IF(A148>$A$8,"",OFFSET(InputPriceData!$E$15,CalculationsAndCharts!$A148+$A$11,IF($C$5,8,0),1,1))) -> 335.46 | G148: =IF(A148>$B$30,NA(),IF(A148>$A$8,"",OFFSET(InputPriceData!$F$15,CalculationsAndCharts!$A148+$A$11,IF($C$5,8,0),1,1))) -> 335.68 | H148: -7.51 | I148: -8.44 | J148: -4.33 | K148: -13.425 | L148: FALSE | M148: FALSE | N148: FALSE | O148: 0 | P148: 0 | Q148: 83.98 | U148: -7.51 | V148: 1431.0983 | W148: -2.807502825 | X148: -1 | Y148: -0.5314670401 | Z148: -1.251961223 | AA148: -3.789684761 | AB148: FALSE | AC148: FALSE | AD148: FALSE | AE148: 0 | AF148: 0 | AG148: 27.8 | AX148: 65994100
A149: 117 | B149: =IF(A149>$B$30,NA(),IF($A149>$A$8,"",OFFSET(InputPriceData!$B$15,$A149+$A$11,0,1,1))) -> 2020-10-26 | C149: =IF(A149>$B$30,NA(),IF($A149>$A$8,"",OFFSET(InputPriceData!$G$15,CalculationsAndCharts!$A149+$A$11,IF($C$5,8,0),1,1))) -> 91473000 | D149: =IF(A149>$B$30,NA(),IF(A149>$A$8,"",OFFSET(InputPriceData!$C$15,CalculationsAndCharts!$A149+$A$11,IF($C$5,8,0),1,1))) -> 339.57 | E149: =IF(A149>$B$30,NA(),IF(A149>$A$8,"",OFFSET(InputPriceData!$D$15,CalculationsAndCharts!$A149+$A$11,IF($C$5,8,0),1,1))) -> 340.41 | F149: =IF(A149>$B$30,NA(),IF(A149>$A$8,"",OFFSET(InputPriceData!$E$15,CalculationsAndCharts!$A149+$A$11,IF($C$5,8,0),1,1))) -> 333.1 | G149: =IF(A149>$B$30,NA(),IF(A149>$A$8,"",OFFSET(InputPriceData!$F$15,CalculationsAndCharts!$A149+$A$11,IF($C$5,8,0),1,1))) -> 336.85 | H149: -5.18 | I149: -0.22 | J149: 0.43 | K149: -19.615 | L149: FALSE | M149: FALSE | N149: FALSE | O149: 0 | P149: 0 | Q149: 83.98 | U149: -5.18 | V149: 1375.8431 | W149: -1.974969088 | X149: -1 | Y149: 0.741009534 | Z149: -1.185527843 | AA149: -3.633636908 | AB149: FALSE | AC149: FALSE | AD149: FALSE | AE149: 0 | AF149: 0 | AG149: 27.8 | AX149: 91473000
A150: 118 | B150: =IF(A150>$B$30,NA(),IF($A150>$A$8,"",OFFSET(InputPriceData!$B$15,$A150+$A$11,0,1,1))) -> 2020-10-23 | C150: =IF(A150>$B$30,NA(),IF($A150>$A$8,"",OFFSET(InputPriceData!$G$15,CalculationsAndCharts!$A150+$A$11,IF($C$5,8,0),1,1))) -> 49143900 | D150: =IF(A150>$B$30,NA(),IF(A150>$A$8,"",OFFSET(InputPriceData!$C$15,CalculationsAndCharts!$A150+$A$11,IF($C$5,8,0),1,1))) -> 343.34 | E150: =IF(A150>$B$30,NA(),IF(A150>$A$8,"",OFFSET(InputPriceData!$D$15,CalculationsAndCharts!$A150+$A$11,IF($C$5,8,0),1,1))) -> 343.4 | F150: =IF(A150>$B$30,NA(),IF(A150>$A$8,"",OFFSET(InputPriceData!$E$15,CalculationsAndCharts!$A150+$A$11,IF($C$5,8,0),1,1))) -> 340.56 | G150: =IF(A150>$B$30,NA(),IF(A150>$A$8,"",OFFSET(InputPriceData!$F$15,CalculationsAndCharts!$A150+$A$11,IF($C$5,8,0),1,1))) -> 343.19 | H150: 3.03 | I150: 1.08 | J150: -3.16 | K150: -28.7 | L150: FALSE | M150: FALSE | N150: FALSE | O150: 0 | P150: 0 | Q150: 83.98 | U150: 3.03 | V150: 1349.3707 | W150: 1.166519461 | X150: 1 | Y150: 0.741009534 | Z150: -1.028154035 | AA150: -3.460070976 | AB150: FALSE | AC150: FALSE | AD150: FALSE | AE150: 0 | AF150: 0 | AG150: 27.8 | AX150: 49143900
A151: 119 | B151: =IF(A151>$B$30,NA(),IF($A151>$A$8,"",OFFSET(InputPriceData!$B$15,$A151+$A$11,0,1,1))) -> 2020-10-22 | C151: =IF(A151>$B$30,NA(),IF($A151>$A$8,"",OFFSET(InputPriceData!$G$15,CalculationsAndCharts!$A151+$A$11,IF($C$5,8,0),1,1))) -> 55399300 | D151: =IF(A151>$B$30,NA(),IF(A151>$A$8,"",OFFSET(InputPriceData!$C$15,CalculationsAndCharts!$A151+$A$11,IF($C$5,8,0),1,1))) -> 340.39 | E151: =IF(A151>$B$30,NA(),IF(A151>$A$8,"",OFFSET(InputPriceData!$D$15,CalculationsAndCharts!$A151+$A$11,IF($C$5,8,0),1,1))) -> 342.65 | F151: =IF(A151>$B$30,NA(),IF(A151>$A$8,"",OFFSET(InputPriceData!$E$15,CalculationsAndCharts!$A151+$A$11,IF($C$5,8,0),1,1))) -> 338.1 | G151: =IF(A151>$B$30,NA(),IF(A151>$A$8,"",OFFSET(InputPriceData!$F$15,CalculationsAndCharts!$A151+$A$11,IF($C$5,8,0),1,1))) -> 342.03 | H151: 1.22 | I151: -7.4 | J151: -8.325 | K151: -28.98 | L151: FALSE | M151: FALSE | N151: FALSE | O151: 0 | P151: 0 | Q151: 83.98 | U151: 1.22 | V151: 1356.0302 | W151: 0.4685329599 | X151: 0.4685329599 | Y151: -1.258990466 | Z151: -0.6207802263 | AA151: -2.945393789 | AB151: FALSE | AC151: FALSE | AD151: FALSE | AE151: 0 | AF151: 0 | AG151: 27.8 | AW151: 55399300
A152: 120 | B152: =IF(A152>$B$30,NA(),IF($A152>$A$8,"",OFFSET(InputPriceData!$B$15,$A152+$A$11,0,1,1))) -> 2020-10-21 | C152: =IF(A152>$B$30,NA(),IF($A152>$A$8,"",OFFSET(InputPriceData!$G$15,CalculationsAndCharts!$A152+$A$11,IF($C$5,8,0),1,1))) -> 63575000 | D152: =IF(A152>$B$30,NA(),IF(A152>$A$8,"",OFFSET(InputPriceData!$C$15,CalculationsAndCharts!$A152+$A$11,IF($C$5,8,0),1,1))) -> 340.76 | E152: =IF(A152>$B$30,NA(),IF(A152>$A$8,"",OFFSET(InputPriceData!$D$15,CalculationsAndCharts!$A152+$A$11,IF($C$5,8,0),1,1))) -> 343.08 | F152: =IF(A152>$B$30,NA(),IF(A152>$A$8,"",OFFSET(InputPriceData!$E$15,CalculationsAndCharts!$A152+$A$11,IF($C$5,8,0),1,1))) -> 339.83 | G152: =IF(A152>$B$30,NA(),IF(A152>$A$8,"",OFFSET(InputPriceData!$F$15,CalculationsAndCharts!$A152+$A$11,IF($C$5,8,0),1,1))) -> 340.16 | H152: 0.71 | I152: -9.25 | J152: -10.91 | K152: -26.14 | L152: FALSE | M152: FALSE | N152: FALSE | O152: 0 | P152: 0 | Q152: 83.98 | U152: 0.71 | V152: 1357.9643 | W152: 0.2724765741 | X152: 0.2724765741 | Y152: -1.972455406 | Z152: -0.03682876653 | AA152: -2.00413895 | AB152: FALSE | AC152: FALSE | AD152: FALSE | AE152: 0 | AF152: 340.76 | AG152: 27.8 | AX152: 63575000
A153: 121 | B153: =IF(A153>$B$30,NA(),IF($A153>$A$8,"",OFFSET(InputPriceData!$B$15,$A153+$A$11,0,1,1))) -> 2020-10-20 | C153: =IF(A153>$B$30,NA(),IF($A153>$A$8,"",OFFSET(InputPriceData!$G$15,CalculationsAndCharts!$A153+$A$11,IF($C$5,8,0),1,1))) -> 60051900 | D153: =IF(A153>$B$30,NA(),IF(A153>$A$8,"",OFFSET(InputPriceData!$C$15,CalculationsAndCharts!$A153+$A$11,IF($C$5,8,0),1,1))) -> 340.89 | E153: =IF(A153>$B$30,NA(),IF(A153>$A$8,"",OFFSET(InputPriceData!$D$15,CalculationsAndCharts!$A153+$A$11,IF($C$5,8,0),1,1))) -> 344.28 | F153: =IF(A153>$B$30,NA(),IF(A153>$A$8,"",OFFSET(InputPriceData!$E$15,CalculationsAndCharts!$A153+$A$11,IF($C$5,8,0),1,1))) -> 340.07 | G153: =IF(A153>$B$30,NA(),IF(A153>$A$8,"",OFFSET(InputPriceData!$F$15,CalculationsAndCharts!$A153+$A$11,IF($C$5,8,0),1,1))) -> 340.81 | H153: -3.88 | I153: -12.57 | J153: -12.865 | K153: -21.515 | L153: FALSE | M153: FALSE | N153: FALSE | O153: 0 | P153: 0 | Q153: 83.98 | U153: -3.88 | V153: 1360.5227 | W153: -1.48762623 | X153: -1 | Y153: -3.24493198 | Z153: 0.5670315381 | AA153: -1.076832394 | AB153: FALSE | AC153: TRUE | AD153: TRUE | AE153: 0 | AF153: 0 | AG153: -312.96 | AX153: 60051900
A154: 122 | B154: =IF(A154>$B$30,NA(),IF($A154>$A$8,"",OFFSET(InputPriceData!$B$15,$A154+$A$11,0,1,1))) -> 2020-10-19 | C154: =IF(A154>$B$30,NA(),IF($A154>$A$8,"",OFFSET(InputPriceData!$G$15,CalculationsAndCharts!$A154+$A$11,IF($C$5,8,0),1,1))) -> 68425600 | D154: =IF(A154>$B$30,NA(),IF(A154>$A$8,"",OFFSET(InputPriceData!$C$15,CalculationsAndCharts!$A154+$A$11,IF($C$5,8,0),1,1))) -> 346.04 | E154: =IF(A154>$B$30,NA(),IF(A154>$A$8,"",OFFSET(InputPriceData!$D$15,CalculationsAndCharts!$A154+$A$11,IF($C$5,8,0),1,1))) -> 346.71 | F154: =IF(A154>$B$30,NA(),IF(A154>$A$8,"",OFFSET(InputPriceData!$E$15,CalculationsAndCharts!$A154+$A$11,IF($C$5,8,0),1,1))) -> 338.48 | G154: =IF(A154>$B$30,NA(),IF(A154>$A$8,"",OFFSET(InputPriceData!$F$15,CalculationsAndCharts!$A154+$A$11,IF($C$5,8,0),1,1))) -> 339.45 | H154: -5.45 | I154: -13.16 | J154: -8.805 | K154: -14.36 | L154: FALSE | M154: FALSE | N154: FALSE | O154: 0 | P154: 346.04 | Q154: 83.98 | U154: -5.45 | V154: 1346.9812 | W154: -2.10005531 | X154: -1 | Y154: -3.24493198 | Z154: 1.329951415 | AA154: 0.332956083 | AB154: FALSE | AC154: FALSE | AD154: TRUE | AE154: 0 | AF154: 0 | AG154: -312.96 | AX154: 68425600
A155: 123 | B155: =IF(A155>$B$30,NA(),IF($A155>$A$8,"",OFFSET(InputPriceData!$B$15,$A155+$A$11,0,1,1))) -> 2020-10-16 | C155: =IF(A155>$B$30,NA(),IF($A155>$A$8,"",OFFSET(InputPriceData!$G$15,CalculationsAndCharts!$A155+$A$11,IF($C$5,8,0),1,1))) -> 89501900 | D155: =IF(A155>$B$30,NA(),IF(A155>$A$8,"",OFFSET(InputPriceData!$C$15,CalculationsAndCharts!$A155+$A$11,IF($C$5,8,0),1,1))) -> 346.34 | E155: =IF(A155>$B$30,NA(),IF(A155>$A$8,"",OFFSET(InputPriceData!$D$15,CalculationsAndCharts!$A155+$A$11,IF($C$5,8,0),1,1))) -> 348.12 | F155: =IF(A155>$B$30,NA(),IF(A155>$A$8,"",OFFSET(InputPriceData!$E$15,CalculationsAndCharts!$A155+$A$11,IF($C$5,8,0),1,1))) -> 344.5 | G155: =IF(A155>$B$30,NA(),IF(A155>$A$8,"",OFFSET(InputPriceData!$F$15,CalculationsAndCharts!$A155+$A$11,IF($C$5,8,0),1,1))) -> 344.69 | H155: -0.63 | I155: -4.45 | J155: 0.16 | K155: -7.015 | L155: FALSE | M155: TRUE | N155: TRUE | O155: 0 | P155: 0 | Q155: -262.06 | U155: -0.63 | V155: 1323.1836 | W155: -0.2449319796 | X155: -0.2449319796 | Y155: -1.24493198 | Z155: 1.914806033 | AA155: 1.544339101 | AB155: FALSE | AC155: FALSE | AD155: TRUE | AE155: 0 | AF155: 0 | AG155: -312.96 | AX155: 89501900
A156: 124 | B156: =IF(A156>$B$30,NA(),IF($A156>$A$8,"",OFFSET(InputPriceData!$B$15,$A156+$A$11,0,1,1))) -> 2020-10-15 | C156: =IF(A156>$B$30,NA(),IF($A156>$A$8,"",OFFSET(InputPriceData!$G$15,CalculationsAndCharts!$A156+$A$11,IF($C$5,8,0),1,1))) -> 60357700 | D156: =IF(A156>$B$30,NA(),IF(A156>$A$8,"",OFFSET(InputPriceData!$C$15,CalculationsAndCharts!$A156+$A$11,IF($C$5,8,0),1,1))) -> 341.13 | E156: =IF(A156>$B$30,NA(),IF(A156>$A$8,"",OFFSET(InputPriceData!$D$15,CalculationsAndCharts!$A156+$A$11,IF($C$5,8,0),1,1))) -> 345.41 | F156: =IF(A156>$B$30,NA(),IF(A156>$A$8,"",OFFSET(InputPriceData!$E$15,CalculationsAndCharts!$A156+$A$11,IF($C$5,8,0),1,1))) -> 340.56 | G156: =IF(A156>$B$30,NA(),IF(A156>$A$8,"",OFFSET(InputPriceData!$F$15,CalculationsAndCharts!$A156+$A$11,IF($C$5,8,0),1,1))) -> 344.9 | H156: -2.61 | I156: 4.77 | J156: 9.095 | K156: 1.66 | L156: FALSE | M156: FALSE | N156: TRUE | O156: 0 | P156: 0 | Q156: -262.06 | U156: -2.61 | V156: 1340.5951 | W156: -1.008107142 | X156: -1 | Y156: 0 | Z156: 2.323083 | AA156: 2.579144468 | AB156: FALSE | AC156: FALSE | AD156: TRUE | AE156: 0 | AF156: 0 | AG156: -312.96 | AW156: 60357700
A157: 125 | B157: =IF(A157>$B$30,NA(),IF($A157>$A$8,"",OFFSET(InputPriceData!$B$15,$A157+$A$11,0,1,1))) -> 2020-10-14 | C157: =IF(A157>$B$30,NA(),IF($A157>$A$8,"",OFFSET(InputPriceData!$G$15,CalculationsAndCharts!$A157+$A$11,IF($C$5,8,0),1,1))) -> 57958700 | D157: =IF(A157>$B$30,NA(),IF(A157>$A$8,"",OFFSET(InputPriceData!$C$15,CalculationsAndCharts!$A157+$A$11,IF($C$5,8,0),1,1))) -> 348.12 | E157: =IF(A157>$B$30,NA(),IF(A157>$A$8,"",OFFSET(InputPriceData!$D$15,CalculationsAndCharts!$A157+$A$11,IF($C$5,8,0),1,1))) -> 349.29 | F157: =IF(A157>$B$30,NA(),IF(A157>$A$8,"",OFFSET(InputPriceData!$E$15,CalculationsAndCharts!$A157+$A$11,IF($C$5,8,0),1,1))) -> 344.54 | G157: =IF(A157>$B$30,NA(),IF(A157>$A$8,"",OFFSET(InputPriceData!$F$15,CalculationsAndCharts!$A157+$A$11,IF($C$5,8,0),1,1))) -> 345.32 | H157: -4.47 | I157: 13.42 | J157: 20.045 | K157: 6.33 | L157: FALSE | M157: FALSE | N157: TRUE | O157: 0 | P157: 0 | Q157: -262.06 | U157: -4.47 | V157: 1344.6071 | W157: -1.723950616 | X157: -1 | Y157: 2 | Z157: 2.555403269 | AA157: 3.575877044 | AB157: FALSE | AC157: FALSE | AD157: TRUE | AE157: 0 | AF157: 0 | AG157: -312.96 | AX157: 57958700
A158: 126 | B158: =IF(A158>$B$30,NA(),IF($A158>$A$8,"",OFFSET(InputPriceData!$B$15,$A158+$A$11,0,1,1))) -> 2020-10-13 | C158: =IF(A158>$B$30,NA(),IF($A158>$A$8,"",OFFSET(InputPriceData!$G$15,CalculationsAndCharts!$A158+$A$11,IF($C$5,8,0),1,1))) -> 73255500 | D158: =IF(A158>$B$30,NA(),IF(A158>$A$8,"",OFFSET(InputPriceData!$C$15,CalculationsAndCharts!$A158+$A$11,IF($C$5,8,0),1,1))) -> 349.64 | E158: =IF(A158>$B$30,NA(),IF(A158>$A$8,"",OFFSET(InputPriceData!$D$15,CalculationsAndCharts!$A158+$A$11,IF($C$5,8,0),1,1))) -> 349.83 | F158: =IF(A158>$B$30,NA(),IF(A158>$A$8,"",OFFSET(InputPriceData!$E$15,CalculationsAndCharts!$A158+$A$11,IF($C$5,8,0),1,1))) -> 346.47 | G158: =IF(A158>$B$30,NA(),IF(A158>$A$8,"",OFFSET(InputPriceData!$F$15,CalculationsAndCharts!$A158+$A$11,IF($C$5,8,0),1,1))) -> 347.51 | H158: 3.26 | I158: 26.67 | J158: 25.54 | K158: 5.29 | L158: FALSE | M158: FALSE | N158: TRUE | O158: 0 | P158: 0 | Q158: -262.06 | U158: 3.26 | V158: 1336.8762 | W158: 1.260918457 | X158: 1 | Y158: 4 | Z158: 2.537723538 | AA158: 4.072609619 | AB158: FALSE | AC158: FALSE | AD158: TRUE | AE158: 0 | AF158: 0 | AG158: -312.96 | AX158: 73255500
A159: 127 | B159: =IF(A159>$B$30,NA(),IF($A159>$A$8,"",OFFSET(InputPriceData!$B$15,$A159+$A$11,0,1,1))) -> 2020-10-12 | C159: =IF(A159>$B$30,NA(),IF($A159>$A$8,"",OFFSET(InputPriceData!$G$15,CalculationsAndCharts!$A159+$A$11,IF($C$5,8,0),1,1))) -> 80388500 | D159: =IF(A159>$B$30,NA(),IF(A159>$A$8,"",OFFSET(InputPriceData!$C$15,CalculationsAndCharts!$A159+$A$11,IF($C$5,8,0),1,1))) -> 346.97 | E159: =IF(A159>$B$30,NA(),IF(A159>$A$8,"",OFFSET(InputPriceData!$D$15,CalculationsAndCharts!$A159+$A$11,IF($C$5,8,0),1,1))) -> 351.37 | F159: =IF(A159>$B$30,NA(),IF(A159>$A$8,"",OFFSET(InputPriceData!$E$15,CalculationsAndCharts!$A159+$A$11,IF($C$5,8,0),1,1))) -> 346.44 | G159: =IF(A159>$B$30,NA(),IF(A159>$A$8,"",OFFSET(InputPriceData!$F$15,CalculationsAndCharts!$A159+$A$11,IF($C$5,8,0),1,1))) -> 349.79 | H159: 8.59 | I159: 24.41 | J159: 20.655 | K159: 3.41 | L159: FALSE | M159: FALSE | N159: TRUE | O159: 0 | P159: 0 | Q159: -262.06 | U159: 8.59 | V159: 1349.0015 | W159: 3.307515936 | X159: 1 | Y159: 3.412621212 | Z159: 2.448109065 | AA159: 4.087021925 | AB159: FALSE | AC159: FALSE | AD159: TRUE | AE159: 0 | AF159: 0 | AG159: -312.96 | AW159: 80388500
A160: 128 | B160: =IF(A160>$B$30,NA(),IF($A160>$A$8,"",OFFSET(InputPriceData!$B$15,$A160+$A$11,0,1,1))) -> 2020-10-09 | C160: =IF(A160>$B$30,NA(),IF($A160>$A$8,"",OFFSET(InputPriceData!$G$15,CalculationsAndCharts!$A160+$A$11,IF($C$5,8,0),1,1))) -> 59528600 | D160: =IF(A160>$B$30,NA(),IF(A160>$A$8,"",OFFSET(InputPriceData!$C$15,CalculationsAndCharts!$A160+$A$11,IF($C$5,8,0),1,1))) -> 342.97 | E160: =IF(A160>$B$30,NA(),IF(A160>$A$8,"",OFFSET(InputPriceData!$D$15,CalculationsAndCharts!$A160+$A$11,IF($C$5,8,0),1,1))) -> 344.75 | F160: =IF(A160>$B$30,NA(),IF(A160>$A$8,"",OFFSET(InputPriceData!$E$15,CalculationsAndCharts!$A160+$A$11,IF($C$5,8,0),1,1))) -> 342.3 | G160: =IF(A160>$B$30,NA(),IF(A160>$A$8,"",OFFSET(InputPriceData!$F$15,CalculationsAndCharts!$A160+$A$11,IF($C$5,8,0),1,1))) -> 344.25 | H160: 6.04 | I160: 16.9 | J160: 15.23 | K160: 5.655 | L160: FALSE | M160: FALSE | N160: TRUE | O160: 0 | P160: 0 | Q160: -262.06 | U160: 6.04 | V160: 1277.1178 | W160: 2.390212193 | X160: 1 | Y160: 2.858427032 | Z160: 2.431916941 | AA160: 3.92485658 | AB160: FALSE | AC160: FALSE | AD160: TRUE | AE160: 0 | AF160: 0 | AG160: -312.96 | AW160: 59528600
A161: 129 | B161: =IF(A161>$B$30,NA(),IF($A161>$A$8,"",OFFSET(InputPriceData!$B$15,$A161+$A$11,0,1,1))) -> 2020-10-08 | C161: =IF(A161>$B$30,NA(),IF($A161>$A$8,"",OFFSET(InputPriceData!$G$15,CalculationsAndCharts!$A161+$A$11,IF($C$5,8,0),1,1))) -> 45242500 | D161: =IF(A161>$B$30,NA(),IF(A161>$A$8,"",OFFSET(InputPriceData!$C$15,CalculationsAndCharts!$A161+$A$11,IF($C$5,8,0),1,1))) -> 340.28 | E161: =IF(A161>$B$30,NA(),IF(A161>$A$8,"",OFFSET(InputPriceData!$D$15,CalculationsAndCharts!$A161+$A$11,IF($C$5,8,0),1,1))) -> 341.27 | F161: =IF(A161>$B$30,NA(),IF(A161>$A$8,"",OFFSET(InputPriceData!$E$15,CalculationsAndCharts!$A161+$A$11,IF($C$5,8,0),1,1))) -> 339.3 | G161: =IF(A161>$B$30,NA(),IF(A161>$A$8,"",OFFSET(InputPriceData!$F$15,CalculationsAndCharts!$A161+$A$11,IF($C$5,8,0),1,1))) -> 341.2 | H161: 8.78 | I161: 13.56 | J161: 8.65 | K161: 8.51 | L161: FALSE | M161: FALSE | N161: TRUE | O161: 0 | P161: 0 | Q161: -262.06 | U161: 8.78 | V161: 1248.2538 | W161: =IF(A161>$V$30,NA(),IFERROR(2*U161/SQRT(V161/50),0)) -> 3.514455635 | X161: =IF(A161>$V$30,NA(),IF(W161>1,1,IF(W161<-1,-1,W161))) -> 1 | Y161: 2.858427032 | Z161: 2.324613562 | AA161: 3.508846261 | AB161: FALSE | AC161: FALSE | AD161: TRUE | AE161: 0 | AF161: 0 | AG161: -312.96 | AW161: =IF(G161>=D161,C161,NA()) -> 45242500 | AX161: =IF(G161<D161,C161,NA()) -> 
A162: 130 | B162: =IF(A162>$B$30,NA(),IF($A162>$A$8,"",OFFSET(InputPriceData!$B$15,$A162+$A$11,0,1,1))) -> 2020-10-07 | C162: =IF(A162>$B$30,NA(),IF($A162>$A$8,"",OFFSET(InputPriceData!$G$15,CalculationsAndCharts!$A162+$A$11,IF($C$5,8,0),1,1))) -> 56999600 | D162: =IF(A162>$B$30,NA(),IF(A162>$A$8,"",OFFSET(InputPriceData!$C$15,CalculationsAndCharts!$A162+$A$11,IF($C$5,8,0),1,1))) -> 335.59 | E162: =IF(A162>$B$30,NA(),IF(A162>$A$8,"",OFFSET(InputPriceData!$D$15,CalculationsAndCharts!$A162+$A$11,IF($C$5,8,0),1,1))) -> 339.07 | F162: =IF(A162>$B$30,NA(),IF(A162>$A$8,"",OFFSET(InputPriceData!$E$15,CalculationsAndCharts!$A162+$A$11,IF($C$5,8,0),1,1))) -> 335.56 | G162: =IF(A162>$B$30,NA(),IF(A162>$A$8,"",OFFSET(InputPriceData!$F$15,CalculationsAndCharts!$A162+$A$11,IF($C$5,8,0),1,1))) -> 338.21 | H162: =IF($A162>$H$30,NA(),$G162-$G164) -> 1 | I162: =IF($A162>I$30,NA(),SUM(H162:H165)) -> 3.74 | J162: =IF($A162>J$30,NA(),AVERAGE(OFFSET(I162,0,0,$A$17,1))) -> 5.555 | K162: =IF($A162>K$30,NA(),J162-OFFSET(J162,$A$18,0,1,1)) -> 17.655 | L162: =IF($A162>L$30,NA(),AND(K162>0,K163<0)) -> FALSE | M162: =IF($A162>L$30,NA(),AND(K162<0,K163>0)) -> FALSE | N162: =IF($A162>N$30,NA(),IF($A162=N$30,FALSE,IF(NOT(OR(L163,M163)),N163,IF(AND(N163,M163),FALSE,AND(L163,NOT(N163)))))) -> TRUE | O162: =IF($A162>O$30,NA(),IF(L163,+$D162,0)) -> 0 | P162: =IF($A162>O$30,NA(),IF(AND(M163,N163),$D162,IF(AND($A162=1,N162),$G162,0))) -> 0 | Q162: =IF($A162>O$30,NA(),IF($A162=O$30,0,Q163)-O162+P162) -> -262.06 | U162: =IF(A162>$U$30,NA(),G162-G164) -> 1 | V162: =IF(A162>$V$30,NA(),SUMSQ(OFFSET(U162,0,0,50,1))) -> 1174.6998 | W162: 0.412621212 | X162: 0.412621212 | Y162: =IF(A162>$Y$30,NA(),SUM(X162:X165)) -> 1.433904967 | Z162: =IF(A162>$Z$30,NA(),AVERAGE(OFFSET(Y162,0,0,$C$17,1))) -> 1.967310183 | AA162: =IF(A162>$AA$30,NA(),Z162-OFFSET(Z162,$C$18,0,1,1)) -> 2.842835943 | AB162: =IF(A162>$AB$30,NA(),AND(AA162>0,AA163<0)) -> FALSE | AC162: =IF(A162>$AB$30,NA(),AND(AA162<0,AA163>0)) -> FALSE | AD162: =IF(A162>$AD$30,NA(),IF(A162=$AD$30,FALSE,IF(NOT(OR(AB163,AC163)),AD163,IF(AND(AD163,AC163),FALSE,AND(AB163,NOT(AD163)))))) -> TRUE | AE162: =IF(A162>$AE$30,NA(),IF(AB163,+D162,0)) -> 0 | AF162: =IF(A162>$AE$30,NA(),IF(AND(AC163,AD163),D162,IF(AND(A162=1,AD162),G162,0))) -> 0 | AG162: =IF(A162>$AE$30,NA(),IF(A162=$AE$30,0,AG163)-AE162+AF162) -> -312.96 | AW162: 56999600
A163: 131 | B163: =IF(A163>$B$30,NA(),IF($A163>$A$8,"",OFFSET(InputPriceData!$B$15,$A163+$A$11,0,1,1))) -> 2020-10-06 | C163: =IF(A163>$B$30,NA(),IF($A163>$A$8,"",OFFSET(InputPriceData!$G$15,CalculationsAndCharts!$A163+$A$11,IF($C$5,8,0),1,1))) -> 90128900 | D163: =IF(A163>$B$30,NA(),IF(A163>$A$8,"",OFFSET(InputPriceData!$C$15,CalculationsAndCharts!$A163+$A$11,IF($C$5,8,0),1,1))) -> 337.36 | E163: =IF(A163>$B$30,NA(),IF(A163>$A$8,"",OFFSET(InputPriceData!$D$15,CalculationsAndCharts!$A163+$A$11,IF($C$5,8,0),1,1))) -> 339.61 | F163: =IF(A163>$B$30,NA(),IF(A163>$A$8,"",OFFSET(InputPriceData!$E$15,CalculationsAndCharts!$A163+$A$11,IF($C$5,8,0),1,1))) -> 331.87 | G163: =IF(A163>$B$30,NA(),IF(A163>$A$8,"",OFFSET(InputPriceData!$F$15,CalculationsAndCharts!$A163+$A$11,IF($C$5,8,0),1,1))) -> 332.42 | H163: 1.08 | I163: 7.37 | J163: 7.175 | K163: 26.05 | L163: FALSE | M163: FALSE | N163: TRUE | O163: 0 | P163: 0 | Q163: -262.06 | U163: 1.08 | V163: 1173.7782 | W163: 0.4458058198 | X163: 0.4458058198 | Y163: 2.021283755 | Z163: 1.643863932 | AA163: 2.460682752 | AB163: FALSE | AC163: FALSE | AD163: TRUE | AE163: 0 | AF163: 0 | AG163: -312.96 | AX163: 90128900
A164: 132 | B164: =IF(A164>$B$30,NA(),IF($A164>$A$8,"",OFFSET(InputPriceData!$B$15,$A164+$A$11,0,1,1))) -> 2020-10-05 | C164: =IF(A164>$B$30,NA(),IF($A164>$A$8,"",OFFSET(InputPriceData!$G$15,CalculationsAndCharts!$A164+$A$11,IF($C$5,8,0),1,1))) -> 45713100 | D164: =IF(A164>$B$30,NA(),IF(A164>$A$8,"",OFFSET(InputPriceData!$C$15,CalculationsAndCharts!$A164+$A$11,IF($C$5,8,0),1,1))) -> 333.54 | E164: =IF(A164>$B$30,NA(),IF(A164>$A$8,"",OFFSET(InputPriceData!$D$15,CalculationsAndCharts!$A164+$A$11,IF($C$5,8,0),1,1))) -> 337.41 | F164: =IF(A164>$B$30,NA(),IF(A164>$A$8,"",OFFSET(InputPriceData!$E$15,CalculationsAndCharts!$A164+$A$11,IF($C$5,8,0),1,1))) -> 333.49 | G164: =IF(A164>$B$30,NA(),IF(A164>$A$8,"",OFFSET(InputPriceData!$F$15,CalculationsAndCharts!$A164+$A$11,IF($C$5,8,0),1,1))) -> 337.21 | H164: 2.7 | I164: 6.98 | J164: 7.435 | K164: 26.315 | L164: FALSE | M164: FALSE | N164: TRUE | O164: 0 | P164: 0 | Q164: -262.06 | U164: 2.7 | V164: 1172.6794 | W164: 1.115036577 | X164: 1 | Y164: 1.858562154 | Z164: 0.9969953315 | AA164: 1.755107212 | AB164: FALSE | AC164: FALSE | AD164: TRUE | AE164: 0 | AF164: 0 | AG164: -312.96 | AW164: 45713100
A165: 133 | B165: =IF(A165>$B$30,NA(),IF($A165>$A$8,"",OFFSET(InputPriceData!$B$15,$A165+$A$11,0,1,1))) -> 2020-10-02 | C165: =IF(A165>$B$30,NA(),IF($A165>$A$8,"",OFFSET(InputPriceData!$G$15,CalculationsAndCharts!$A165+$A$11,IF($C$5,8,0),1,1))) -> 89431100 | D165: =IF(A165>$B$30,NA(),IF(A165>$A$8,"",OFFSET(InputPriceData!$C$15,CalculationsAndCharts!$A165+$A$11,IF($C$5,8,0),1,1))) -> 329.21 | E165: =IF(A165>$B$30,NA(),IF(A165>$A$8,"",OFFSET(InputPriceData!$D$15,CalculationsAndCharts!$A165+$A$11,IF($C$5,8,0),1,1))) -> 334.48 | F165: =IF(A165>$B$30,NA(),IF(A165>$A$8,"",OFFSET(InputPriceData!$E$15,CalculationsAndCharts!$A165+$A$11,IF($C$5,8,0),1,1))) -> 328.71 | G165: =IF(A165>$B$30,NA(),IF(A165>$A$8,"",OFFSET(InputPriceData!$F$15,CalculationsAndCharts!$A165+$A$11,IF($C$5,8,0),1,1))) -> 331.34 | H165: -1.04 | I165: 7.89 | J165: 13.715 | K165: 32.23 | L165: FALSE | M165: FALSE | N165: TRUE | O165: 0 | P165: 0 | Q165: -262.06 | U165: -1.04 | V165: 1200.3175 | W165: -0.4245220651 | X165: -0.4245220651 | Y165: 1.858562154 | Z165: 0.3704669314 | AA165: 1.274552033 | AB165: FALSE | AC165: FALSE | AD165: TRUE | AE165: 0 | AF165: 0 | AG165: -312.96 | AW165: 89431100
A166: 134 | B166: =IF(A166>$B$30,NA(),IF($A166>$A$8,"",OFFSET(InputPriceData!$B$15,$A166+$A$11,0,1,1))) -> 2020-10-01 | C166: =IF(A166>$B$30,NA(),IF($A166>$A$8,"",OFFSET(InputPriceData!$G$15,CalculationsAndCharts!$A166+$A$11,IF($C$5,8,0),1,1))) -> 88698700 | D166: =IF(A166>$B$30,NA(),IF(A166>$A$8,"",OFFSET(InputPriceData!$C$15,CalculationsAndCharts!$A166+$A$11,IF($C$5,8,0),1,1))) -> 335.16 | E166: =IF(A166>$B$30,NA(),IF(A166>$A$8,"",OFFSET(InputPriceData!$D$15,CalculationsAndCharts!$A166+$A$11,IF($C$5,8,0),1,1))) -> 336.2 | F166: =IF(A166>$B$30,NA(),IF(A166>$A$8,"",OFFSET(InputPriceData!$E$15,CalculationsAndCharts!$A166+$A$11,IF($C$5,8,0),1,1))) -> 332.5 | G166: =IF(A166>$B$30,NA(),IF(A166>$A$8,"",OFFSET(InputPriceData!$F$15,CalculationsAndCharts!$A166+$A$11,IF($C$5,8,0),1,1))) -> 334.51 | H166: 4.63 | I166: 19.54 | J166: 20.25 | K166: 31.655 | L166: FALSE | M166: FALSE | N166: TRUE | O166: 0 | P166: 0 | Q166: -262.06 | U166: 4.63 | V166: 1203.3568 | W166: 1.887551373 | X166: 1 | Y166: 3.283084219 | Z166: -0.2560614687 | AA166: 0.7939968542 | AB166: FALSE | AC166: FALSE | AD166: TRUE | AE166: 335.16 | AF166: 0 | AG166: -312.96 | AX166: 88698700
A167: 135 | B167: =IF(A167>$B$30,NA(),IF($A167>$A$8,"",OFFSET(InputPriceData!$B$15,$A167+$A$11,0,1,1))) -> 2020-09-30 | C167: =IF(A167>$B$30,NA(),IF($A167>$A$8,"",OFFSET(InputPriceData!$G$15,CalculationsAndCharts!$A167+$A$11,IF($C$5,8,0),1,1))) -> 104081100 | D167: =IF(A167>$B$30,NA(),IF(A167>$A$8,"",OFFSET(InputPriceData!$C$15,CalculationsAndCharts!$A167+$A$11,IF($C$5,8,0),1,1))) -> 330.59 | E167: =IF(A167>$B$30,NA(),IF(A167>$A$8,"",OFFSET(InputPriceData!$D$15,CalculationsAndCharts!$A167+$A$11,IF($C$5,8,0),1,1))) -> 335.75 | F167: =IF(A167>$B$30,NA(),IF(A167>$A$8,"",OFFSET(InputPriceData!$E$15,CalculationsAndCharts!$A167+$A$11,IF($C$5,8,0),1,1))) -> 330.38 | G167: =IF(A167>$B$30,NA(),IF(A167>$A$8,"",OFFSET(InputPriceData!$F$15,CalculationsAndCharts!$A167+$A$11,IF($C$5,8,0),1,1))) -> 332.38 | H167: 0.69 | I167: 20.96 | J167: 17.245 | K167: 16.255 | L167: FALSE | M167: FALSE | N167: TRUE | O167: 330.59 | P167: 0 | Q167: -262.06 | U167: 0.69 | V167: 1188.22 | W167: 0.283084219 | X167: 0.283084219 | Y167: 3.283084219 | Z167: -1.020473775 | AA167: 0.1755577693 | AB167: TRUE | AC167: FALSE | AD167: FALSE | AE167: 0 | AF167: 0 | AG167: 22.2 | AW167: 104081100
A168: 136 | B168: =IF(A168>$B$30,NA(),IF($A168>$A$8,"",OFFSET(InputPriceData!$B$15,$A168+$A$11,0,1,1))) -> 2020-09-29 | C168: =IF(A168>$B$30,NA(),IF($A168>$A$8,"",OFFSET(InputPriceData!$G$15,CalculationsAndCharts!$A168+$A$11,IF($C$5,8,0),1,1))) -> 51304000 | D168: =IF(A168>$B$30,NA(),IF(A168>$A$8,"",OFFSET(InputPriceData!$C$15,CalculationsAndCharts!$A168+$A$11,IF($C$5,8,0),1,1))) -> 331.47 | E168: =IF(A168>$B$30,NA(),IF(A168>$A$8,"",OFFSET(InputPriceData!$D$15,CalculationsAndCharts!$A168+$A$11,IF($C$5,8,0),1,1))) -> 332.26 | F168: =IF(A168>$B$30,NA(),IF(A168>$A$8,"",OFFSET(InputPriceData!$E$15,CalculationsAndCharts!$A168+$A$11,IF($C$5,8,0),1,1))) -> 329.13 | G168: =IF(A168>$B$30,NA(),IF(A168>$A$8,"",OFFSET(InputPriceData!$F$15,CalculationsAndCharts!$A168+$A$11,IF($C$5,8,0),1,1))) -> 329.88 | H168: 3.61 | I168: 13.53 | J168: 9.575 | K168: 3.64 | L168: TRUE | M168: FALSE | N168: FALSE | O168: 0 | P168: 0 | Q168: 68.53 | U168: 3.61 | V168: 1198.3064 | W168: 1.474817426 | X168: 1 | Y168: 2 | Z168: -1.534886081 | AA168: -0.3883237734 | AB168: FALSE | AC168: FALSE | AD168: FALSE | AE168: 0 | AF168: 0 | AG168: 22.2 | AX168: 51304000
A169: 137 | B169: =IF(A169>$B$30,NA(),IF($A169>$A$8,"",OFFSET(InputPriceData!$B$15,$A169+$A$11,0,1,1))) -> 2020-09-28 | C169: =IF(A169>$B$30,NA(),IF($A169>$A$8,"",OFFSET(InputPriceData!$G$15,CalculationsAndCharts!$A169+$A$11,IF($C$5,8,0),1,1))) -> 64584600 | D169: =IF(A169>$B$30,NA(),IF(A169>$A$8,"",OFFSET(InputPriceData!$C$15,CalculationsAndCharts!$A169+$A$11,IF($C$5,8,0),1,1))) -> 330.72 | E169: =IF(A169>$B$30,NA(),IF(A169>$A$8,"",OFFSET(InputPriceData!$D$15,CalculationsAndCharts!$A169+$A$11,IF($C$5,8,0),1,1))) -> 332.45 | F169: =IF(A169>$B$30,NA(),IF(A169>$A$8,"",OFFSET(InputPriceData!$E$15,CalculationsAndCharts!$A169+$A$11,IF($C$5,8,0),1,1))) -> 329.66 | G169: =IF(A169>$B$30,NA(),IF(A169>$A$8,"",OFFSET(InputPriceData!$F$15,CalculationsAndCharts!$A169+$A$11,IF($C$5,8,0),1,1))) -> 331.69 | H169: 10.61 | I169: 5.62 | J169: 0.14 | K169: -5.26 | L169: FALSE | M169: FALSE | N169: FALSE | O169: 0 | P169: 0 | Q169: 68.53 | U169: 10.61 | V169: 1197.4544 | W169: 4.336115977 | X169: 1 | Y169: 0 | Z169: -1.63891286 | AA169: -0.7732942012 | AB169: FALSE | AC169: FALSE | AD169: FALSE | AE169: 0 | AF169: 0 | AG169: 22.2 | AW169: 64584600
A170: 138 | B170: =IF(A170>$B$30,NA(),IF($A170>$A$8,"",OFFSET(InputPriceData!$B$15,$A170+$A$11,0,1,1))) -> 2020-09-25 | C170: =IF(A170>$B$30,NA(),IF($A170>$A$8,"",OFFSET(InputPriceData!$G$15,CalculationsAndCharts!$A170+$A$11,IF($C$5,8,0),1,1))) -> 71069400 | D170: =IF(A170>$B$30,NA(),IF(A170>$A$8,"",OFFSET(InputPriceData!$C$15,CalculationsAndCharts!$A170+$A$11,IF($C$5,8,0),1,1))) -> 320.16 | E170: =IF(A170>$B$30,NA(),IF(A170>$A$8,"",OFFSET(InputPriceData!$D$15,CalculationsAndCharts!$A170+$A$11,IF($C$5,8,0),1,1))) -> 327.11 | F170: =IF(A170>$B$30,NA(),IF(A170>$A$8,"",OFFSET(InputPriceData!$E$15,CalculationsAndCharts!$A170+$A$11,IF($C$5,8,0),1,1))) -> 319.23 | G170: =IF(A170>$B$30,NA(),IF(A170>$A$8,"",OFFSET(InputPriceData!$F$15,CalculationsAndCharts!$A170+$A$11,IF($C$5,8,0),1,1))) -> 326.27 | H170: 6.05 | I170: -5.34 | J170: -12.1 | K170: -13.265 | L170: FALSE | M170: FALSE | N170: FALSE | O170: 0 | P170: 320.16 | Q170: 68.53 | U170: 6.05 | V170: 1084.8967 | W170: 2.597623343 | X170: 1 | Y170: -1.153665047 | Z170: -1.492939638 | AA170: -1.158264629 | AB170: FALSE | AC170: FALSE | AD170: FALSE | AE170: 0 | AF170: 0 | AG170: 22.2 | AW170: 71069400
A171: 139 | B171: =IF(A171>$B$30,NA(),IF($A171>$A$8,"",OFFSET(InputPriceData!$B$15,$A171+$A$11,0,1,1))) -> 2020-09-24 | C171: =IF(A171>$B$30,NA(),IF($A171>$A$8,"",OFFSET(InputPriceData!$G$15,CalculationsAndCharts!$A171+$A$11,IF($C$5,8,0),1,1))) -> 76681300 | D171: =IF(A171>$B$30,NA(),IF(A171>$A$8,"",OFFSET(InputPriceData!$C$15,CalculationsAndCharts!$A171+$A$11,IF($C$5,8,0),1,1))) -> 318.81 | E171: =IF(A171>$B$30,NA(),IF(A171>$A$8,"",OFFSET(InputPriceData!$D$15,CalculationsAndCharts!$A171+$A$11,IF($C$5,8,0),1,1))) -> 324.35 | F171: =IF(A171>$B$30,NA(),IF(A171>$A$8,"",OFFSET(InputPriceData!$E$15,CalculationsAndCharts!$A171+$A$11,IF($C$5,8,0),1,1))) -> 317.4 | G171: =IF(A171>$B$30,NA(),IF(A171>$A$8,"",OFFSET(InputPriceData!$F$15,CalculationsAndCharts!$A171+$A$11,IF($C$5,8,0),1,1))) -> 321.08 | H171: -6.74 | I171: -18.86 | J171: -18.875 | K171: -7.37 | L171: FALSE | M171: TRUE | N171: TRUE | O171: 0 | P171: 0 | Q171: -251.63 | U171: -6.74 | V171: 1051.7167 | W171: -2.939175436 | X171: -1 | Y171: -3.153665047 | Z171: -1.184232699 | AA171: -1.630501339 | AB171: FALSE | AC171: FALSE | AD171: FALSE | AE171: 0 | AF171: 0 | AG171: 22.2 | AW171: 76681300
A172: 140 | B172: =IF(A172>$B$30,NA(),IF($A172>$A$8,"",OFFSET(InputPriceData!$B$15,$A172+$A$11,0,1,1))) -> 2020-09-23 | C172: =IF(A172>$B$30,NA(),IF($A172>$A$8,"",OFFSET(InputPriceData!$G$15,CalculationsAndCharts!$A172+$A$11,IF($C$5,8,0),1,1))) -> 93112200 | D172: =IF(A172>$B$30,NA(),IF(A172>$A$8,"",OFFSET(InputPriceData!$C$15,CalculationsAndCharts!$A172+$A$11,IF($C$5,8,0),1,1))) -> 328.42 | E172: =IF(A172>$B$30,NA(),IF(A172>$A$8,"",OFFSET(InputPriceData!$D$15,CalculationsAndCharts!$A172+$A$11,IF($C$5,8,0),1,1))) -> 328.72 | F172: =IF(A172>$B$30,NA(),IF(A172>$A$8,"",OFFSET(InputPriceData!$E$15,CalculationsAndCharts!$A172+$A$11,IF($C$5,8,0),1,1))) -> 319.69 | G172: =IF(A172>$B$30,NA(),IF(A172>$A$8,"",OFFSET(InputPriceData!$F$15,CalculationsAndCharts!$A172+$A$11,IF($C$5,8,0),1,1))) -> 320.22 | H172: -4.3 | I172: -18.89 | J172: -18.88 | K172: 5.54 | L172: FALSE | M172: FALSE | N172: TRUE | O172: 0 | P172: 0 | Q172: -251.63 | U172: -4.3 | V172: 1054.314 | W172: -1.872830471 | X172: -1 | Y172: -3.153665047 | Z172: -0.8755257594 | AA172: -2.157295591 | AB172: FALSE | AC172: FALSE | AD172: FALSE | AE172: 0 | AF172: 0 | AG172: 22.2 | AX172: 93112200
A173: 141 | B173: =IF(A173>$B$30,NA(),IF($A173>$A$8,"",OFFSET(InputPriceData!$B$15,$A173+$A$11,0,1,1))) -> 2020-09-22 | C173: =IF(A173>$B$30,NA(),IF($A173>$A$8,"",OFFSET(InputPriceData!$G$15,CalculationsAndCharts!$A173+$A$11,IF($C$5,8,0),1,1))) -> 63612100 | D173: =IF(A173>$B$30,NA(),IF(A173>$A$8,"",OFFSET(InputPriceData!$C$15,CalculationsAndCharts!$A173+$A$11,IF($C$5,8,0),1,1))) -> 326.11 | E173: =IF(A173>$B$30,NA(),IF(A173>$A$8,"",OFFSET(InputPriceData!$D$15,CalculationsAndCharts!$A173+$A$11,IF($C$5,8,0),1,1))) -> 328.42 | F173: =IF(A173>$B$30,NA(),IF(A173>$A$8,"",OFFSET(InputPriceData!$E$15,CalculationsAndCharts!$A173+$A$11,IF($C$5,8,0),1,1))) -> 323.42 | G173: =IF(A173>$B$30,NA(),IF(A173>$A$8,"",OFFSET(InputPriceData!$F$15,CalculationsAndCharts!$A173+$A$11,IF($C$5,8,0),1,1))) -> 327.82 | H173: -0.35 | I173: -18.87 | J173: -18.515 | K173: 14.45 | L173: FALSE | M173: FALSE | N173: TRUE | O173: 0 | P173: 0 | Q173: -251.63 | U173: -0.35 | V173: 1037.5664 | W173: -0.1536650468 | X173: -0.1536650468 | Y173: -3.153665047 | Z173: -0.8168188199 | AA173: -3.098588651 | AB173: FALSE | AC173: FALSE | AD173: FALSE | AE173: 0 | AF173: 0 | AG173: 22.2 | AW173: 63612100
A174: 142 | B174: =IF(A174>$B$30,NA(),IF($A174>$A$8,"",OFFSET(InputPriceData!$B$15,$A174+$A$11,0,1,1))) -> 2020-09-21 | C174: =IF(A174>$B$30,NA(),IF($A174>$A$8,"",OFFSET(InputPriceData!$G$15,CalculationsAndCharts!$A174+$A$11,IF($C$5,8,0),1,1))) -> 99450800 | D174: =IF(A174>$B$30,NA(),IF(A174>$A$8,"",OFFSET(InputPriceData!$C$15,CalculationsAndCharts!$A174+$A$11,IF($C$5,8,0),1,1))) -> 323.26 | E174: =IF(A174>$B$30,NA(),IF(A174>$A$8,"",OFFSET(InputPriceData!$D$15,CalculationsAndCharts!$A174+$A$11,IF($C$5,8,0),1,1))) -> 324.68 | F174: =IF(A174>$B$30,NA(),IF(A174>$A$8,"",OFFSET(InputPriceData!$E$15,CalculationsAndCharts!$A174+$A$11,IF($C$5,8,0),1,1))) -> 319.32 | G174: =IF(A174>$B$30,NA(),IF(A174>$A$8,"",OFFSET(InputPriceData!$F$15,CalculationsAndCharts!$A174+$A$11,IF($C$5,8,0),1,1))) -> 324.52 | H174: -7.47 | I174: -18.16 | J174: -11.405 | K174: 19.945 | L174: FALSE | M174: FALSE | N174: TRUE | O174: 0 | P174: 0 | Q174: -251.63 | U174: -7.47 | V174: 1037.6464 | W174: -3.279524712 | X174: -1 | Y174: -2.83221423 | Z174: -0.7581118804 | AA174: -3.789881712 | AB174: FALSE | AC174: FALSE | AD174: FALSE | AE174: 0 | AF174: 0 | AG174: 22.2 | AW174: 99450800
A175: 143 | B175: =IF(A175>$B$30,NA(),IF($A175>$A$8,"",OFFSET(InputPriceData!$B$15,$A175+$A$11,0,1,1))) -> 2020-09-18 | C175: =IF(A175>$B$30,NA(),IF($A175>$A$8,"",OFFSET(InputPriceData!$G$15,CalculationsAndCharts!$A175+$A$11,IF($C$5,8,0),1,1))) -> 105877900 | D175: =IF(A175>$B$30,NA(),IF(A175>$A$8,"",OFFSET(InputPriceData!$C$15,CalculationsAndCharts!$A175+$A$11,IF($C$5,8,0),1,1))) -> 332.86 | E175: =IF(A175>$B$30,NA(),IF(A175>$A$8,"",OFFSET(InputPriceData!$D$15,CalculationsAndCharts!$A175+$A$11,IF($C$5,8,0),1,1))) -> 332.98 | F175: =IF(A175>$B$30,NA(),IF(A175>$A$8,"",OFFSET(InputPriceData!$E$15,CalculationsAndCharts!$A175+$A$11,IF($C$5,8,0),1,1))) -> 325.51 | G175: =IF(A175>$B$30,NA(),IF(A175>$A$8,"",OFFSET(InputPriceData!$F$15,CalculationsAndCharts!$A175+$A$11,IF($C$5,8,0),1,1))) -> 328.17 | H175: -6.77 | I175: -4.65 | J175: 0.99 | K175: 19.805 | L175: FALSE | M175: FALSE | N175: TRUE | O175: 332.86 | P175: 0 | Q175: -251.63 | U175: -6.77 | V175: 983.7776 | W175: -3.05249669 | X175: -1 | Y175: -0.8322142301 | Z175: -0.9040851016 | AA175: -4.293302321 | AB175: FALSE | AC175: FALSE | AD175: FALSE | AE175: 0 | AF175: 0 | AG175: 22.2 | AX175: 105877900
A176: 144 | B176: =IF(A176>$B$30,NA(),IF($A176>$A$8,"",OFFSET(InputPriceData!$B$15,$A176+$A$11,0,1,1))) -> 2020-09-17 | C176: =IF(A176>$B$30,NA(),IF($A176>$A$8,"",OFFSET(InputPriceData!$G$15,CalculationsAndCharts!$A176+$A$11,IF($C$5,8,0),1,1))) -> 91523300 | D176: =IF(A176>$B$30,NA(),IF(A176>$A$8,"",OFFSET(InputPriceData!$C$15,CalculationsAndCharts!$A176+$A$11,IF($C$5,8,0),1,1))) -> 329.74 | E176: =IF(A176>$B$30,NA(),IF(A176>$A$8,"",OFFSET(InputPriceData!$D$15,CalculationsAndCharts!$A176+$A$11,IF($C$5,8,0),1,1))) -> 333.83 | F176: =IF(A176>$B$30,NA(),IF(A176>$A$8,"",OFFSET(InputPriceData!$E$15,CalculationsAndCharts!$A176+$A$11,IF($C$5,8,0),1,1))) -> 329.18 | G176: =IF(A176>$B$30,NA(),IF(A176>$A$8,"",OFFSET(InputPriceData!$F$15,CalculationsAndCharts!$A176+$A$11,IF($C$5,8,0),1,1))) -> 331.99 | H176: -4.28 | I176: 6.63 | J176: 5.935 | K176: 9.775 | L176: TRUE | M176: FALSE | N176: FALSE | O176: 0 | P176: 0 | Q176: 81.23 | U176: -4.28 | V176: 938.2928 | W176: -1.976011988 | X176: -1 | Y176: 1.16778577 | Z176: -1.050058323 | AA176: -4.442906418 | AB176: FALSE | AC176: FALSE | AD176: FALSE | AE176: 0 | AF176: 0 | AG176: 22.2 | AW176: 91523300
A177: 145 | B177: =IF(A177>$B$30,NA(),IF($A177>$A$8,"",OFFSET(InputPriceData!$B$15,$A177+$A$11,0,1,1))) -> 2020-09-16 | C177: =IF(A177>$B$30,NA(),IF($A177>$A$8,"",OFFSET(InputPriceData!$G$15,CalculationsAndCharts!$A177+$A$11,IF($C$5,8,0),1,1))) -> 82096000 | D177: =IF(A177>$B$30,NA(),IF(A177>$A$8,"",OFFSET(InputPriceData!$C$15,CalculationsAndCharts!$A177+$A$11,IF($C$5,8,0),1,1))) -> 337.6 | E177: =IF(A177>$B$30,NA(),IF(A177>$A$8,"",OFFSET(InputPriceData!$D$15,CalculationsAndCharts!$A177+$A$11,IF($C$5,8,0),1,1))) -> 339.13 | F177: =IF(A177>$B$30,NA(),IF(A177>$A$8,"",OFFSET(InputPriceData!$E$15,CalculationsAndCharts!$A177+$A$11,IF($C$5,8,0),1,1))) -> 334.64 | G177: =IF(A177>$B$30,NA(),IF(A177>$A$8,"",OFFSET(InputPriceData!$F$15,CalculationsAndCharts!$A177+$A$11,IF($C$5,8,0),1,1))) -> 334.94 | H177: 0.36 | I177: 5.24 | J177: 5.4 | K177: -3.775 | L177: FALSE | M177: FALSE | N177: FALSE | O177: 0 | P177: 0 | Q177: 81.23 | U177: 0.36 | V177: 920.714 | W177: 0.1677857699 | X177: 0.1677857699 | Y177: 1.16778577 | Z177: -1.196031544 | AA177: -4.306119788 | AB177: FALSE | AC177: FALSE | AD177: FALSE | AE177: 0 | AF177: 0 | AG177: 22.2 | AX177: 82096000
A178: 146 | B178: =IF(A178>$B$30,NA(),IF($A178>$A$8,"",OFFSET(InputPriceData!$B$15,$A178+$A$11,0,1,1))) -> 2020-09-15 | C178: =IF(A178>$B$30,NA(),IF($A178>$A$8,"",OFFSET(InputPriceData!$G$15,CalculationsAndCharts!$A178+$A$11,IF($C$5,8,0),1,1))) -> 52920900 | D178: =IF(A178>$B$30,NA(),IF(A178>$A$8,"",OFFSET(InputPriceData!$C$15,CalculationsAndCharts!$A178+$A$11,IF($C$5,8,0),1,1))) -> 337.21 | E178: =IF(A178>$B$30,NA(),IF(A178>$A$8,"",OFFSET(InputPriceData!$D$15,CalculationsAndCharts!$A178+$A$11,IF($C$5,8,0),1,1))) -> 338.1 | F178: =IF(A178>$B$30,NA(),IF(A178>$A$8,"",OFFSET(InputPriceData!$E$15,CalculationsAndCharts!$A178+$A$11,IF($C$5,8,0),1,1))) -> 334.59 | G178: =IF(A178>$B$30,NA(),IF(A178>$A$8,"",OFFSET(InputPriceData!$F$15,CalculationsAndCharts!$A178+$A$11,IF($C$5,8,0),1,1))) -> 336.27 | H178: 6.04 | I178: 5.56 | J178: 1.165 | K178: -11 | L178: FALSE | M178: FALSE | N178: FALSE | O178: 0 | P178: 0 | Q178: 81.23 | U178: 6.04 | V178: 922.956 | W178: 2.811651165 | X178: 1 | Y178: 1.315990469 | Z178: -1.146562308 | AA178: -3.899559353 | AB178: FALSE | AC178: FALSE | AD178: FALSE | AE178: 0 | AF178: 0 | AG178: 22.2 | AX178: 52920900
A179: 147 | B179: =IF(A179>$B$30,NA(),IF($A179>$A$8,"",OFFSET(InputPriceData!$B$15,$A179+$A$11,0,1,1))) -> 2020-09-14 | C179: =IF(A179>$B$30,NA(),IF($A179>$A$8,"",OFFSET(InputPriceData!$G$15,CalculationsAndCharts!$A179+$A$11,IF($C$5,8,0),1,1))) -> 65605700 | D179: =IF(A179>$B$30,NA(),IF(A179>$A$8,"",OFFSET(InputPriceData!$C$15,CalculationsAndCharts!$A179+$A$11,IF($C$5,8,0),1,1))) -> 333.62 | E179: =IF(A179>$B$30,NA(),IF(A179>$A$8,"",OFFSET(InputPriceData!$D$15,CalculationsAndCharts!$A179+$A$11,IF($C$5,8,0),1,1))) -> 336.48 | F179: =IF(A179>$B$30,NA(),IF(A179>$A$8,"",OFFSET(InputPriceData!$E$15,CalculationsAndCharts!$A179+$A$11,IF($C$5,8,0),1,1))) -> 330.39 | G179: =IF(A179>$B$30,NA(),IF(A179>$A$8,"",OFFSET(InputPriceData!$F$15,CalculationsAndCharts!$A179+$A$11,IF($C$5,8,0),1,1))) -> 334.58 | H179: 4.51 | I179: -3.23 | J179: -11.505 | K179: -22.91 | L179: FALSE | M179: FALSE | N179: FALSE | O179: 0 | P179: 0 | Q179: 81.23 | U179: 4.51 | V179: 928.206 | W179: 2.093482592 | X179: 1 | Y179: -0.6840095307 | Z179: -0.8656186584 | AA179: -3.251147206 | AB179: FALSE | AC179: FALSE | AD179: FALSE | AE179: 0 | AF179: 0 | AG179: 22.2 | AW179: 65605700
A180: 148 | B180: =IF(A180>$B$30,NA(),IF($A180>$A$8,"",OFFSET(InputPriceData!$B$15,$A180+$A$11,0,1,1))) -> 2020-09-11 | C180: =IF(A180>$B$30,NA(),IF($A180>$A$8,"",OFFSET(InputPriceData!$G$15,CalculationsAndCharts!$A180+$A$11,IF($C$5,8,0),1,1))) -> 84680200 | D180: =IF(A180>$B$30,NA(),IF(A180>$A$8,"",OFFSET(InputPriceData!$C$15,CalculationsAndCharts!$A180+$A$11,IF($C$5,8,0),1,1))) -> 331.97 | E180: =IF(A180>$B$30,NA(),IF(A180>$A$8,"",OFFSET(InputPriceData!$D$15,CalculationsAndCharts!$A180+$A$11,IF($C$5,8,0),1,1))) -> 333.11 | F180: =IF(A180>$B$30,NA(),IF(A180>$A$8,"",OFFSET(InputPriceData!$E$15,CalculationsAndCharts!$A180+$A$11,IF($C$5,8,0),1,1))) -> 327.21 | G180: =IF(A180>$B$30,NA(),IF(A180>$A$8,"",OFFSET(InputPriceData!$F$15,CalculationsAndCharts!$A180+$A$11,IF($C$5,8,0),1,1))) -> 330.23 | H180: -5.67 | I180: -19.78 | J180: -24.42 | K180: -38.94 | L180: FALSE | M180: FALSE | N180: FALSE | O180: 0 | P180: 0 | Q180: 81.23 | U180: -5.67 | V180: 922.4583 | W180: -2.64012619 | X180: -1 | Y180: -2.684009531 | Z180: -0.3346750093 | AA180: -2.456551572 | AB180: FALSE | AC180: FALSE | AD180: FALSE | AE180: 0 | AF180: 0 | AG180: 22.2 | AX180: 84680200
A181: 149 | B181: =IF(A181>$B$30,NA(),IF($A181>$A$8,"",OFFSET(InputPriceData!$B$15,$A181+$A$11,0,1,1))) -> 2020-09-10 | C181: =IF(A181>$B$30,NA(),IF($A181>$A$8,"",OFFSET(InputPriceData!$G$15,CalculationsAndCharts!$A181+$A$11,IF($C$5,8,0),1,1))) -> 90569500 | D181: =IF(A181>$B$30,NA(),IF(A181>$A$8,"",OFFSET(InputPriceData!$C$15,CalculationsAndCharts!$A181+$A$11,IF($C$5,8,0),1,1))) -> 337.91 | E181: =IF(A181>$B$30,NA(),IF(A181>$A$8,"",OFFSET(InputPriceData!$D$15,CalculationsAndCharts!$A181+$A$11,IF($C$5,8,0),1,1))) -> 338.61 | F181: =IF(A181>$B$30,NA(),IF(A181>$A$8,"",OFFSET(InputPriceData!$E$15,CalculationsAndCharts!$A181+$A$11,IF($C$5,8,0),1,1))) -> 329.04 | G181: =IF(A181>$B$30,NA(),IF(A181>$A$8,"",OFFSET(InputPriceData!$F$15,CalculationsAndCharts!$A181+$A$11,IF($C$5,8,0),1,1))) -> 330.07 | H181: 0.68 | I181: -29.06 | J181: -32.965 | K181: -50.095 | L181: FALSE | M181: FALSE | N181: FALSE | O181: 0 | P181: 0 | Q181: 81.23 | U181: 0.68 | V181: 926.1895 | W181: 0.3159904693 | X181: 0.3159904693 | Y181: -2.684009531 | Z181: 0.4462686398 | AA181: -1.408387384 | AB181: FALSE | AC181: FALSE | AD181: FALSE | AE181: 0 | AF181: 337.91 | AG181: 22.2 | AX181: 90569500
A182: 150 | B182: =IF(A182>$B$30,NA(),IF($A182>$A$8,"",OFFSET(InputPriceData!$B$15,$A182+$A$11,0,1,1))) -> 2020-09-09 | C182: =IF(A182>$B$30,NA(),IF($A182>$A$8,"",OFFSET(InputPriceData!$G$15,CalculationsAndCharts!$A182+$A$11,IF($C$5,8,0),1,1))) -> 91462300 | D182: =IF(A182>$B$30,NA(),IF(A182>$A$8,"",OFFSET(InputPriceData!$C$15,CalculationsAndCharts!$A182+$A$11,IF($C$5,8,0),1,1))) -> 333.68 | E182: =IF(A182>$B$30,NA(),IF(A182>$A$8,"",OFFSET(InputPriceData!$D$15,CalculationsAndCharts!$A182+$A$11,IF($C$5,8,0),1,1))) -> 338.54 | F182: =IF(A182>$B$30,NA(),IF(A182>$A$8,"",OFFSET(InputPriceData!$E$15,CalculationsAndCharts!$A182+$A$11,IF($C$5,8,0),1,1))) -> 332.75 | G182: =IF(A182>$B$30,NA(),IF(A182>$A$8,"",OFFSET(InputPriceData!$F$15,CalculationsAndCharts!$A182+$A$11,IF($C$5,8,0),1,1))) -> 335.9 | H182: -2.75 | I182: -36.87 | J182: -31.35 | K182: -48.31 | L182: FALSE | M182: FALSE | N182: FALSE | O182: 0 | P182: 0 | Q182: 81.23 | U182: -2.75 | V182: 993.2955 | W182: -1.233980957 | X182: -1 | Y182: -4 | Z182: 1.281769831 | AA182: -0.1748308783 | AB182: FALSE | AC182: TRUE | AD182: TRUE | AE182: 0 | AF182: 0 | AG182: -315.71 | AW182: 91462300
A183: 151 | B183: =IF(A183>$B$30,NA(),IF($A183>$A$8,"",OFFSET(InputPriceData!$B$15,$A183+$A$11,0,1,1))) -> 2020-09-08 | C183: =IF(A183>$B$30,NA(),IF($A183>$A$8,"",OFFSET(InputPriceData!$G$15,CalculationsAndCharts!$A183+$A$11,IF($C$5,8,0),1,1))) -> 114465300 | D183: =IF(A183>$B$30,NA(),IF(A183>$A$8,"",OFFSET(InputPriceData!$C$15,CalculationsAndCharts!$A183+$A$11,IF($C$5,8,0),1,1))) -> 332.85 | E183: =IF(A183>$B$30,NA(),IF(A183>$A$8,"",OFFSET(InputPriceData!$D$15,CalculationsAndCharts!$A183+$A$11,IF($C$5,8,0),1,1))) -> 338.72 | F183: =IF(A183>$B$30,NA(),IF(A183>$A$8,"",OFFSET(InputPriceData!$E$15,CalculationsAndCharts!$A183+$A$11,IF($C$5,8,0),1,1))) -> 329.07 | G183: =IF(A183>$B$30,NA(),IF(A183>$A$8,"",OFFSET(InputPriceData!$F$15,CalculationsAndCharts!$A183+$A$11,IF($C$5,8,0),1,1))) -> 329.39 | H183: -12.04 | I183: -25.83 | J183: -18.815 | K183: -32.33 | L183: FALSE | M183: FALSE | N183: FALSE | O183: 0 | P183: 332.85 | Q183: 81.23 | U183: -12.04 | V183: 993.9126 | W183: -5.40091555 | X183: -1 | Y183: -2 | Z183: 2.281769831 | AA183: 0.9964605885 | AB183: FALSE | AC183: FALSE | AD183: TRUE | AE183: 0 | AF183: 0 | AG183: -315.71 | AX183: 114465300
A184: 152 | B184: =IF(A184>$B$30,NA(),IF($A184>$A$8,"",OFFSET(InputPriceData!$B$15,$A184+$A$11,0,1,1))) -> 2020-09-04 | C184: =IF(A184>$B$30,NA(),IF($A184>$A$8,"",OFFSET(InputPriceData!$G$15,CalculationsAndCharts!$A184+$A$11,IF($C$5,8,0),1,1))) -> 139156300 | D184: =IF(A184>$B$30,NA(),IF(A184>$A$8,"",OFFSET(InputPriceData!$C$15,CalculationsAndCharts!$A184+$A$11,IF($C$5,8,0),1,1))) -> 342.17 | E184: =IF(A184>$B$30,NA(),IF(A184>$A$8,"",OFFSET(InputPriceData!$D$15,CalculationsAndCharts!$A184+$A$11,IF($C$5,8,0),1,1))) -> 343.85 | F184: =IF(A184>$B$30,NA(),IF(A184>$A$8,"",OFFSET(InputPriceData!$E$15,CalculationsAndCharts!$A184+$A$11,IF($C$5,8,0),1,1))) -> 331.03 | G184: =IF(A184>$B$30,NA(),IF(A184>$A$8,"",OFFSET(InputPriceData!$F$15,CalculationsAndCharts!$A184+$A$11,IF($C$5,8,0),1,1))) -> 338.65 | H184: -14.95 | I184: -11.8 | J184: -3.84 | K184: -12.25 | L184: FALSE | M184: TRUE | N184: TRUE | O184: 0 | P184: 0 | Q184: -251.62 | U184: -14.95 | V184: 864.951 | W184: -7.188866819 | X184: -1 | Y184: 0 | Z184: 3.031769831 | AA184: 1.773154361 | AB184: FALSE | AC184: FALSE | AD184: TRUE | AE184: 0 | AF184: 0 | AG184: -315.71 | AX184: 139156300
A185: 153 | B185: =IF(A185>$B$30,NA(),IF($A185>$A$8,"",OFFSET(InputPriceData!$B$15,$A185+$A$11,0,1,1))) -> 2020-09-03 | C185: =IF(A185>$B$30,NA(),IF($A185>$A$8,"",OFFSET(InputPriceData!$G$15,CalculationsAndCharts!$A185+$A$11,IF($C$5,8,0),1,1))) -> 148011100 | D185: =IF(A185>$B$30,NA(),IF(A185>$A$8,"",OFFSET(InputPriceData!$C$15,CalculationsAndCharts!$A185+$A$11,IF($C$5,8,0),1,1))) -> 351.79 | E185: =IF(A185>$B$30,NA(),IF(A185>$A$8,"",OFFSET(InputPriceData!$D$15,CalculationsAndCharts!$A185+$A$11,IF($C$5,8,0),1,1))) -> 352.3 | F185: =IF(A185>$B$30,NA(),IF(A185>$A$8,"",OFFSET(InputPriceData!$E$15,CalculationsAndCharts!$A185+$A$11,IF($C$5,8,0),1,1))) -> 338.67 | G185: =IF(A185>$B$30,NA(),IF(A185>$A$8,"",OFFSET(InputPriceData!$F$15,CalculationsAndCharts!$A185+$A$11,IF($C$5,8,0),1,1))) -> 341.43 | H185: -7.13 | I185: 4.12 | J185: 9.175 | K185: 4.795 | L185: FALSE | M185: FALSE | N185: TRUE | O185: 0 | P185: 0 | Q185: -251.62 | U185: -7.13 | V185: 663.071 | W185: -3.915836144 | X185: -1 | Y185: 1.563539662 | Z185: 3.389217219 | AA185: 2.080945513 | AB185: FALSE | AC185: FALSE | AD185: TRUE | AE185: 0 | AF185: 0 | AG185: -315.71 | AX185: 148011100
A186: 154 | B186: =IF(A186>$B$30,NA(),IF($A186>$A$8,"",OFFSET(InputPriceData!$B$15,$A186+$A$11,0,1,1))) -> 2020-09-02 | C186: =IF(A186>$B$30,NA(),IF($A186>$A$8,"",OFFSET(InputPriceData!$G$15,CalculationsAndCharts!$A186+$A$11,IF($C$5,8,0),1,1))) -> 69540000 | D186: =IF(A186>$B$30,NA(),IF(A186>$A$8,"",OFFSET(InputPriceData!$C$15,CalculationsAndCharts!$A186+$A$11,IF($C$5,8,0),1,1))) -> 350.61 | E186: =IF(A186>$B$30,NA(),IF(A186>$A$8,"",OFFSET(InputPriceData!$D$15,CalculationsAndCharts!$A186+$A$11,IF($C$5,8,0),1,1))) -> 354.64 | F186: =IF(A186>$B$30,NA(),IF(A186>$A$8,"",OFFSET(InputPriceData!$E$15,CalculationsAndCharts!$A186+$A$11,IF($C$5,8,0),1,1))) -> 349.38 | G186: =IF(A186>$B$30,NA(),IF(A186>$A$8,"",OFFSET(InputPriceData!$F$15,CalculationsAndCharts!$A186+$A$11,IF($C$5,8,0),1,1))) -> 353.6 | H186: 8.29 | I186: 14.23 | J186: 12.165 | K186: 9.76 | L186: FALSE | M186: FALSE | N186: TRUE | O186: 0 | P186: 0 | Q186: -251.62 | U186: 8.29 | V186: 653.8366 | W186: 4.58495328 | X186: 1 | Y186: 3.563539662 | Z186: 3.392848096 | AA186: 1.755422684 | AB186: FALSE | AC186: FALSE | AD186: TRUE | AE186: 0 | AF186: 0 | AG186: -315.71 | AW186: 69540000
A187: 155 | B187: =IF(A187>$B$30,NA(),IF($A187>$A$8,"",OFFSET(InputPriceData!$B$15,$A187+$A$11,0,1,1))) -> 2020-09-01 | C187: =IF(A187>$B$30,NA(),IF($A187>$A$8,"",OFFSET(InputPriceData!$G$15,CalculationsAndCharts!$A187+$A$11,IF($C$5,8,0),1,1))) -> 54999300 | D187: =IF(A187>$B$30,NA(),IF(A187>$A$8,"",OFFSET(InputPriceData!$C$15,CalculationsAndCharts!$A187+$A$11,IF($C$5,8,0),1,1))) -> 346.2 | E187: =IF(A187>$B$30,NA(),IF(A187>$A$8,"",OFFSET(InputPriceData!$D$15,CalculationsAndCharts!$A187+$A$11,IF($C$5,8,0),1,1))) -> 348.67 | F187: =IF(A187>$B$30,NA(),IF(A187>$A$8,"",OFFSET(InputPriceData!$E$15,CalculationsAndCharts!$A187+$A$11,IF($C$5,8,0),1,1))) -> 345.24 | G187: =IF(A187>$B$30,NA(),IF(A187>$A$8,"",OFFSET(InputPriceData!$F$15,CalculationsAndCharts!$A187+$A$11,IF($C$5,8,0),1,1))) -> 348.56 | H187: 1.99 | I187: 10.1 | J187: 11.405 | K187: 9.7 | L187: FALSE | M187: FALSE | N187: TRUE | O187: 0 | P187: 0 | Q187: -251.62 | U187: 1.99 | V187: 596.4694 | W187: 1.152322362 | X187: 1 | Y187: 3.563539662 | Z187: 3.110088244 | AA187: 1.064413152 | AB187: FALSE | AC187: FALSE | AD187: TRUE | AE187: 346.2 | AF187: 0 | AG187: -315.71 | AW187: 54999300
A188: 156 | B188: =IF(A188>$B$30,NA(),IF($A188>$A$8,"",OFFSET(InputPriceData!$B$15,$A188+$A$11,0,1,1))) -> 2020-08-31 | C188: =IF(A188>$B$30,NA(),IF($A188>$A$8,"",OFFSET(InputPriceData!$G$15,CalculationsAndCharts!$A188+$A$11,IF($C$5,8,0),1,1))) -> 66099200 | D188: =IF(A188>$B$30,NA(),IF(A188>$A$8,"",OFFSET(InputPriceData!$C$15,CalculationsAndCharts!$A188+$A$11,IF($C$5,8,0),1,1))) -> 346.34 | E188: =IF(A188>$B$30,NA(),IF(A188>$A$8,"",OFFSET(InputPriceData!$D$15,CalculationsAndCharts!$A188+$A$11,IF($C$5,8,0),1,1))) -> 347.28 | F188: =IF(A188>$B$30,NA(),IF(A188>$A$8,"",OFFSET(InputPriceData!$E$15,CalculationsAndCharts!$A188+$A$11,IF($C$5,8,0),1,1))) -> 345.06 | G188: =IF(A188>$B$30,NA(),IF(A188>$A$8,"",OFFSET(InputPriceData!$F$15,CalculationsAndCharts!$A188+$A$11,IF($C$5,8,0),1,1))) -> 345.31 | H188: 0.97 | I188: 12.71 | J188: 14.52 | K188: 10.615 | L188: FALSE | M188: FALSE | N188: TRUE | O188: 0 | P188: 0 | Q188: -251.62 | U188: 0.97 | V188: 592.5493 | W188: 0.5635396623 | X188: 0.5635396623 | Y188: 3.563539662 | Z188: 2.752997046 | AA188: 0.443669968 | AB188: TRUE | AC188: FALSE | AD188: FALSE | AE188: 0 | AF188: 0 | AG188: 30.49 | AX188: 66099200
A189: 157 | B189: =IF(A189>$B$30,NA(),IF($A189>$A$8,"",OFFSET(InputPriceData!$B$15,$A189+$A$11,0,1,1))) -> 2020-08-28 | C189: =IF(A189>$B$30,NA(),IF($A189>$A$8,"",OFFSET(InputPriceData!$G$15,CalculationsAndCharts!$A189+$A$11,IF($C$5,8,0),1,1))) -> 48588900 | D189: =IF(A189>$B$30,NA(),IF(A189>$A$8,"",OFFSET(InputPriceData!$C$15,CalculationsAndCharts!$A189+$A$11,IF($C$5,8,0),1,1))) -> 345.44 | E189: =IF(A189>$B$30,NA(),IF(A189>$A$8,"",OFFSET(InputPriceData!$D$15,CalculationsAndCharts!$A189+$A$11,IF($C$5,8,0),1,1))) -> 346.7 | F189: =IF(A189>$B$30,NA(),IF(A189>$A$8,"",OFFSET(InputPriceData!$E$15,CalculationsAndCharts!$A189+$A$11,IF($C$5,8,0),1,1))) -> 344.16 | G189: =IF(A189>$B$30,NA(),IF(A189>$A$8,"",OFFSET(InputPriceData!$F$15,CalculationsAndCharts!$A189+$A$11,IF($C$5,8,0),1,1))) -> 346.57 | H189: 2.98 | I189: 16.33 | J189: 17.13 | K189: 10.865 | L189: FALSE | M189: FALSE | N189: TRUE | O189: 0 | P189: 0 | Q189: -251.62 | U189: 2.98 | V189: 594.2653 | W189: 1.728785359 | X189: 1 | Y189: 4 | Z189: 2.385528548 | AA189: -0.1284361511 | AB189: FALSE | AC189: FALSE | AD189: FALSE | AE189: 0 | AF189: 0 | AG189: 30.49 | AW189: 48588900
A190: 158 | B190: =IF(A190>$B$30,NA(),IF($A190>$A$8,"",OFFSET(InputPriceData!$B$15,$A190+$A$11,0,1,1))) -> 2020-08-27 | C190: =IF(A190>$B$30,NA(),IF($A190>$A$8,"",OFFSET(InputPriceData!$G$15,CalculationsAndCharts!$A190+$A$11,IF($C$5,8,0),1,1))) -> 58034100 | D190: =IF(A190>$B$30,NA(),IF(A190>$A$8,"",OFFSET(InputPriceData!$C$15,CalculationsAndCharts!$A190+$A$11,IF($C$5,8,0),1,1))) -> 344.52 | E190: =IF(A190>$B$30,NA(),IF(A190>$A$8,"",OFFSET(InputPriceData!$D$15,CalculationsAndCharts!$A190+$A$11,IF($C$5,8,0),1,1))) -> 345.89 | F190: =IF(A190>$B$30,NA(),IF(A190>$A$8,"",OFFSET(InputPriceData!$E$15,CalculationsAndCharts!$A190+$A$11,IF($C$5,8,0),1,1))) -> 342.56 | G190: =IF(A190>$B$30,NA(),IF(A190>$A$8,"",OFFSET(InputPriceData!$F$15,CalculationsAndCharts!$A190+$A$11,IF($C$5,8,0),1,1))) -> 344.34 | H190: 4.16 | I190: 17.93 | J190: 16.96 | K190: 12.07 | L190: FALSE | M190: FALSE | N190: TRUE | O190: 0 | P190: 0 | Q190: -251.62 | U190: 4.16 | V190: 586.7305 | W190: 2.428784575 | X190: 1 | Y190: 4 | Z190: 2.121876563 | AA190: -0.7273250656 | AB190: FALSE | AC190: FALSE | AD190: FALSE | AE190: 0 | AF190: 0 | AG190: 30.49 | AX190: 58034100
A191: 159 | B191: =IF(A191>$B$30,NA(),IF($A191>$A$8,"",OFFSET(InputPriceData!$B$15,$A191+$A$11,0,1,1))) -> 2020-08-26 | C191: =IF(A191>$B$30,NA(),IF($A191>$A$8,"",OFFSET(InputPriceData!$G$15,CalculationsAndCharts!$A191+$A$11,IF($C$5,8,0),1,1))) -> 50790200 | D191: =IF(A191>$B$30,NA(),IF(A191>$A$8,"",OFFSET(InputPriceData!$C$15,CalculationsAndCharts!$A191+$A$11,IF($C$5,8,0),1,1))) -> 340.81 | E191: =IF(A191>$B$30,NA(),IF(A191>$A$8,"",OFFSET(InputPriceData!$D$15,CalculationsAndCharts!$A191+$A$11,IF($C$5,8,0),1,1))) -> 343.88 | F191: =IF(A191>$B$30,NA(),IF(A191>$A$8,"",OFFSET(InputPriceData!$E$15,CalculationsAndCharts!$A191+$A$11,IF($C$5,8,0),1,1))) -> 340.23 | G191: =IF(A191>$B$30,NA(),IF(A191>$A$8,"",OFFSET(InputPriceData!$F$15,CalculationsAndCharts!$A191+$A$11,IF($C$5,8,0),1,1))) -> 343.59 | H191: 4.6 | I191: 15.99 | J191: 13.515 | K191: 9.12 | L191: FALSE | M191: FALSE | N191: TRUE | O191: 340.81 | P191: 0 | Q191: -251.62 | U191: 4.6 | V191: 590.0365 | W191: 2.678140705 | X191: 1 | Y191: 4 | Z191: 1.854656024 | AA191: -1.204903714 | AB191: FALSE | AC191: FALSE | AD191: FALSE | AE191: 0 | AF191: 0 | AG191: 30.49 | AW191: 50790200
A192: 160 | B192: =IF(A192>$B$30,NA(),IF($A192>$A$8,"",OFFSET(InputPriceData!$B$15,$A192+$A$11,0,1,1))) -> 2020-08-25 | C192: =IF(A192>$B$30,NA(),IF($A192>$A$8,"",OFFSET(InputPriceData!$G$15,CalculationsAndCharts!$A192+$A$11,IF($C$5,8,0),1,1))) -> 38463400 | D192: =IF(A192>$B$30,NA(),IF(A192>$A$8,"",OFFSET(InputPriceData!$C$15,CalculationsAndCharts!$A192+$A$11,IF($C$5,8,0),1,1))) -> 339.6 | E192: =IF(A192>$B$30,NA(),IF(A192>$A$8,"",OFFSET(InputPriceData!$D$15,CalculationsAndCharts!$A192+$A$11,IF($C$5,8,0),1,1))) -> 340.27 | F192: =IF(A192>$B$30,NA(),IF(A192>$A$8,"",OFFSET(InputPriceData!$E$15,CalculationsAndCharts!$A192+$A$11,IF($C$5,8,0),1,1))) -> 338.35 | G192: =IF(A192>$B$30,NA(),IF(A192>$A$8,"",OFFSET(InputPriceData!$F$15,CalculationsAndCharts!$A192+$A$11,IF($C$5,8,0),1,1))) -> 340.18 | H192: 4.59 | I192: 11.04 | J192: 8.41 | K192: 3.875 | L192: TRUE | M192: FALSE | N192: FALSE | O192: 0 | P192: 0 | Q192: 89.19 | U192: 4.59 | V192: 643.0086 | W192: 2.559878145 | X192: 1 | Y192: 2.859579106 | Z192: 1.456600709 | AA192: -1.714290393 | AB192: FALSE | AC192: FALSE | AD192: FALSE | AE192: 0 | AF192: 0 | AG192: 30.49 | AW192: 38463400
A193: 161 | B193: =IF(A193>$B$30,NA(),IF($A193>$A$8,"",OFFSET(InputPriceData!$B$15,$A193+$A$11,0,1,1))) -> 2020-08-24 | C193: =IF(A193>$B$30,NA(),IF($A193>$A$8,"",OFFSET(InputPriceData!$G$15,CalculationsAndCharts!$A193+$A$11,IF($C$5,8,0),1,1))) -> 48588700 | D193: =IF(A193>$B$30,NA(),IF(A193>$A$8,"",OFFSET(InputPriceData!$C$15,CalculationsAndCharts!$A193+$A$11,IF($C$5,8,0),1,1))) -> 338.2 | E193: =IF(A193>$B$30,NA(),IF(A193>$A$8,"",OFFSET(InputPriceData!$D$15,CalculationsAndCharts!$A193+$A$11,IF($C$5,8,0),1,1))) -> 339.07 | F193: =IF(A193>$B$30,NA(),IF(A193>$A$8,"",OFFSET(InputPriceData!$E$15,CalculationsAndCharts!$A193+$A$11,IF($C$5,8,0),1,1))) -> 335.56 | G193: =IF(A193>$B$30,NA(),IF(A193>$A$8,"",OFFSET(InputPriceData!$F$15,CalculationsAndCharts!$A193+$A$11,IF($C$5,8,0),1,1))) -> 338.99 | H193: 4.58 | I193: 5.78 | J193: 4.38 | K193: -0.565 | L193: FALSE | M193: FALSE | N193: FALSE | O193: 0 | P193: 0 | Q193: 89.19 | U193: 4.58 | V193: 662.0094 | W193: 2.517377799 | X193: 1 | Y193: 1.592586672 | Z193: 1.285309243 | AA193: -1.90579075 | AB193: FALSE | AC193: FALSE | AD193: FALSE | AE193: 0 | AF193: 0 | AG193: 30.49 | AW193: 48588700
A194: 162 | B194: =IF(A194>$B$30,NA(),IF($A194>$A$8,"",OFFSET(InputPriceData!$B$15,$A194+$A$11,0,1,1))) -> 2020-08-21 | C194: =IF(A194>$B$30,NA(),IF($A194>$A$8,"",OFFSET(InputPriceData!$G$15,CalculationsAndCharts!$A194+$A$11,IF($C$5,8,0),1,1))) -> 55106600 | D194: =IF(A194>$B$30,NA(),IF(A194>$A$8,"",OFFSET(InputPriceData!$C$15,CalculationsAndCharts!$A194+$A$11,IF($C$5,8,0),1,1))) -> 334.05 | E194: =IF(A194>$B$30,NA(),IF(A194>$A$8,"",OFFSET(InputPriceData!$D$15,CalculationsAndCharts!$A194+$A$11,IF($C$5,8,0),1,1))) -> 335.83 | F194: =IF(A194>$B$30,NA(),IF(A194>$A$8,"",OFFSET(InputPriceData!$E$15,CalculationsAndCharts!$A194+$A$11,IF($C$5,8,0),1,1))) -> 333.68 | G194: =IF(A194>$B$30,NA(),IF(A194>$A$8,"",OFFSET(InputPriceData!$F$15,CalculationsAndCharts!$A194+$A$11,IF($C$5,8,0),1,1))) -> 335.59 | H194: 2.22 | I194: 2.98 | J194: 2.405 | K194: -6.245 | L194: FALSE | M194: FALSE | N194: FALSE | O194: 0 | P194: 0 | Q194: 89.19 | U194: 2.22 | V194: 853.0266 | W194: 1.074946092 | X194: 1 | Y194: 1.30146085 | Z194: 1.25861547 | AA194: -1.497762758 | AB194: FALSE | AC194: FALSE | AD194: FALSE | AE194: 0 | AF194: 334.05 | AG194: 30.49 | AW194: 55106600
A195: 163 | B195: =IF(A195>$B$30,NA(),IF($A195>$A$8,"",OFFSET(InputPriceData!$B$15,$A195+$A$11,0,1,1))) -> 2020-08-20 | C195: =IF(A195>$B$30,NA(),IF($A195>$A$8,"",OFFSET(InputPriceData!$G$15,CalculationsAndCharts!$A195+$A$11,IF($C$5,8,0),1,1))) -> 42207800 | D195: =IF(A195>$B$30,NA(),IF(A195>$A$8,"",OFFSET(InputPriceData!$C$15,CalculationsAndCharts!$A195+$A$11,IF($C$5,8,0),1,1))) -> 331.52 | E195: =IF(A195>$B$30,NA(),IF(A195>$A$8,"",OFFSET(InputPriceData!$D$15,CalculationsAndCharts!$A195+$A$11,IF($C$5,8,0),1,1))) -> 334.92 | F195: =IF(A195>$B$30,NA(),IF(A195>$A$8,"",OFFSET(InputPriceData!$E$15,CalculationsAndCharts!$A195+$A$11,IF($C$5,8,0),1,1))) -> 331.38 | G195: =IF(A195>$B$30,NA(),IF(A195>$A$8,"",OFFSET(InputPriceData!$F$15,CalculationsAndCharts!$A195+$A$11,IF($C$5,8,0),1,1))) -> 334.41 | H195: -0.35 | I195: 1.83 | J195: 1.705 | K195: -10.6 | L195: FALSE | M195: FALSE | N195: FALSE | O195: 0 | P195: 0 | Q195: 89.19 | U195: -0.35 | V195: 1242.5178 | W195: -0.1404208937 | X195: -0.1404208937 | Y195: 0.706810076 | Z195: 1.308271707 | AA195: -0.7745683378 | AB195: FALSE | AC195: TRUE | AD195: TRUE | AE195: 0 | AF195: 0 | AG195: -303.56 | AW195: 42207800
A196: 164 | B196: =IF(A196>$B$30,NA(),IF($A196>$A$8,"",OFFSET(InputPriceData!$B$15,$A196+$A$11,0,1,1))) -> 2020-08-19 | C196: =IF(A196>$B$30,NA(),IF($A196>$A$8,"",OFFSET(InputPriceData!$G$15,CalculationsAndCharts!$A196+$A$11,IF($C$5,8,0),1,1))) -> 68054200 | D196: =IF(A196>$B$30,NA(),IF(A196>$A$8,"",OFFSET(InputPriceData!$C$15,CalculationsAndCharts!$A196+$A$11,IF($C$5,8,0),1,1))) -> 335.17 | E196: =IF(A196>$B$30,NA(),IF(A196>$A$8,"",OFFSET(InputPriceData!$D$15,CalculationsAndCharts!$A196+$A$11,IF($C$5,8,0),1,1))) -> 335.72 | F196: =IF(A196>$B$30,NA(),IF(A196>$A$8,"",OFFSET(InputPriceData!$E$15,CalculationsAndCharts!$A196+$A$11,IF($C$5,8,0),1,1))) -> 332.76 | G196: =IF(A196>$B$30,NA(),IF(A196>$A$8,"",OFFSET(InputPriceData!$F$15,CalculationsAndCharts!$A196+$A$11,IF($C$5,8,0),1,1))) -> 333.37 | H196: -0.67 | I196: 1.58 | J196: 3.905 | K196: -10.705 | L196: FALSE | M196: FALSE | N196: FALSE | O196: 0 | P196: 0 | Q196: 89.19 | U196: -0.67 | V196: 1259.4522 | W196: -0.2669924348 | X196: -0.2669924348 | Y196: 0.6237916808 | Z196: 1.637425412 | AA196: 0.1488907888 | AB196: FALSE | AC196: FALSE | AD196: TRUE | AE196: 0 | AF196: 0 | AG196: -303.56 | AX196: 68054200
A197: 165 | B197: =IF(A197>$B$30,NA(),IF($A197>$A$8,"",OFFSET(InputPriceData!$B$15,$A197+$A$11,0,1,1))) -> 2020-08-18 | C197: =IF(A197>$B$30,NA(),IF($A197>$A$8,"",OFFSET(InputPriceData!$G$15,CalculationsAndCharts!$A197+$A$11,IF($C$5,8,0),1,1))) -> 38733900 | D197: =IF(A197>$B$30,NA(),IF(A197>$A$8,"",OFFSET(InputPriceData!$C$15,CalculationsAndCharts!$A197+$A$11,IF($C$5,8,0),1,1))) -> 334.47 | E197: =IF(A197>$B$30,NA(),IF(A197>$A$8,"",OFFSET(InputPriceData!$D$15,CalculationsAndCharts!$A197+$A$11,IF($C$5,8,0),1,1))) -> 335.22 | F197: =IF(A197>$B$30,NA(),IF(A197>$A$8,"",OFFSET(InputPriceData!$E$15,CalculationsAndCharts!$A197+$A$11,IF($C$5,8,0),1,1))) -> 332.75 | G197: =IF(A197>$B$30,NA(),IF(A197>$A$8,"",OFFSET(InputPriceData!$F$15,CalculationsAndCharts!$A197+$A$11,IF($C$5,8,0),1,1))) -> 334.76 | H197: 1.78 | I197: 6.23 | J197: 6.265 | K197: -8.095 | L197: FALSE | M197: FALSE | N197: FALSE | O197: 0 | P197: 0 | Q197: 89.19 | U197: 1.78 | V197: 1261.0482 | W197: 0.7088741783 | X197: 0.7088741783 | Y197: 1.890784116 | Z197: 2.045675092 | AA197: 0.9751168612 | AB197: FALSE | AC197: FALSE | AD197: TRUE | AE197: 0 | AF197: 0 | AG197: -303.56 | AW197: 38733900
A198: 166 | B198: =IF(A198>$B$30,NA(),IF($A198>$A$8,"",OFFSET(InputPriceData!$B$15,$A198+$A$11,0,1,1))) -> 2020-08-17 | C198: =IF(A198>$B$30,NA(),IF($A198>$A$8,"",OFFSET(InputPriceData!$G$15,CalculationsAndCharts!$A198+$A$11,IF($C$5,8,0),1,1))) -> 35481000 | D198: =IF(A198>$B$30,NA(),IF(A198>$A$8,"",OFFSET(InputPriceData!$C$15,CalculationsAndCharts!$A198+$A$11,IF($C$5,8,0),1,1))) -> 334.07 | E198: =IF(A198>$B$30,NA(),IF(A198>$A$8,"",OFFSET(InputPriceData!$D$15,CalculationsAndCharts!$A198+$A$11,IF($C$5,8,0),1,1))) -> 334.47 | F198: =IF(A198>$B$30,NA(),IF(A198>$A$8,"",OFFSET(InputPriceData!$E$15,CalculationsAndCharts!$A198+$A$11,IF($C$5,8,0),1,1))) -> 332.99 | G198: =IF(A198>$B$30,NA(),IF(A198>$A$8,"",OFFSET(InputPriceData!$F$15,CalculationsAndCharts!$A198+$A$11,IF($C$5,8,0),1,1))) -> 334.04 | H198: 1.07 | I198: 6.3 | J198: 4.89 | K198: -7.785 | L198: FALSE | M198: FALSE | N198: FALSE | O198: 0 | P198: 0 | Q198: 89.19 | U198: 1.07 | V198: 1393.6023 | W198: 0.4053492262 | X198: 0.4053492262 | Y198: 1.86223569 | Z198: 2.309327078 | AA198: 1.406509771 | AB198: FALSE | AC198: FALSE | AD198: TRUE | AE198: 0 | AF198: 0 | AG198: -303.56 | AX198: 35481000
A199: 167 | B199: =IF(A199>$B$30,NA(),IF($A199>$A$8,"",OFFSET(InputPriceData!$B$15,$A199+$A$11,0,1,1))) -> 2020-08-14 | C199: =IF(A199>$B$30,NA(),IF($A199>$A$8,"",OFFSET(InputPriceData!$G$15,CalculationsAndCharts!$A199+$A$11,IF($C$5,8,0),1,1))) -> 47260400 | D199: =IF(A199>$B$30,NA(),IF(A199>$A$8,"",OFFSET(InputPriceData!$C$15,CalculationsAndCharts!$A199+$A$11,IF($C$5,8,0),1,1))) -> 332.56 | E199: =IF(A199>$B$30,NA(),IF(A199>$A$8,"",OFFSET(InputPriceData!$D$15,CalculationsAndCharts!$A199+$A$11,IF($C$5,8,0),1,1))) -> 333.56 | F199: =IF(A199>$B$30,NA(),IF(A199>$A$8,"",OFFSET(InputPriceData!$E$15,CalculationsAndCharts!$A199+$A$11,IF($C$5,8,0),1,1))) -> 331.78 | G199: =IF(A199>$B$30,NA(),IF(A199>$A$8,"",OFFSET(InputPriceData!$F$15,CalculationsAndCharts!$A199+$A$11,IF($C$5,8,0),1,1))) -> 332.98 | H199: -0.6 | I199: 3.48 | J199: 4.395 | K199: -7.205 | L199: FALSE | M199: FALSE | N199: FALSE | O199: 0 | P199: 0 | Q199: 89.19 | U199: -0.6 | V199: 1442.1599 | W199: -0.2234392888 | X199: -0.2234392888 | Y199: 0.8155574858 | Z199: 2.513964699 | AA199: 1.657401694 | AB199: FALSE | AC199: FALSE | AD199: TRUE | AE199: 0 | AF199: 0 | AG199: -303.56 | AW199: 47260400
A200: 168 | B200: =IF(A200>$B$30,NA(),IF($A200>$A$8,"",OFFSET(InputPriceData!$B$15,$A200+$A$11,0,1,1))) -> 2020-08-13 | C200: =IF(A200>$B$30,NA(),IF($A200>$A$8,"",OFFSET(InputPriceData!$G$15,CalculationsAndCharts!$A200+$A$11,IF($C$5,8,0),1,1))) -> 41816100 | D200: =IF(A200>$B$30,NA(),IF(A200>$A$8,"",OFFSET(InputPriceData!$C$15,CalculationsAndCharts!$A200+$A$11,IF($C$5,8,0),1,1))) -> 332.75 | E200: =IF(A200>$B$30,NA(),IF(A200>$A$8,"",OFFSET(InputPriceData!$D$15,CalculationsAndCharts!$A200+$A$11,IF($C$5,8,0),1,1))) -> 334.38 | F200: =IF(A200>$B$30,NA(),IF(A200>$A$8,"",OFFSET(InputPriceData!$E$15,CalculationsAndCharts!$A200+$A$11,IF($C$5,8,0),1,1))) -> 331.98 | G200: =IF(A200>$B$30,NA(),IF(A200>$A$8,"",OFFSET(InputPriceData!$F$15,CalculationsAndCharts!$A200+$A$11,IF($C$5,8,0),1,1))) -> 332.97 | H200: 3.98 | I200: 5.31 | J200: 4.535 | K200: -4.01 | L200: FALSE | M200: FALSE | N200: FALSE | O200: 0 | P200: 332.75 | Q200: 89.19 | U200: 3.98 | V200: 1452.2328 | W200: 1.476998143 | X200: 1 | Y200: 1.489247372 | Z200: 2.849201628 | AA200: 1.955049575 | AB200: FALSE | AC200: FALSE | AD200: TRUE | AE200: 0 | AF200: 0 | AG200: -303.56 | AW200: 41816100
A201: 169 | B201: =IF(A201>$B$30,NA(),IF($A201>$A$8,"",OFFSET(InputPriceData!$B$15,$A201+$A$11,0,1,1))) -> 2020-08-12 | C201: =IF(A201>$B$30,NA(),IF($A201>$A$8,"",OFFSET(InputPriceData!$G$15,CalculationsAndCharts!$A201+$A$11,IF($C$5,8,0),1,1))) -> 53826100 | D201: =IF(A201>$B$30,NA(),IF(A201>$A$8,"",OFFSET(InputPriceData!$C$15,CalculationsAndCharts!$A201+$A$11,IF($C$5,8,0),1,1))) -> 331.6 | E201: =IF(A201>$B$30,NA(),IF(A201>$A$8,"",OFFSET(InputPriceData!$D$15,CalculationsAndCharts!$A201+$A$11,IF($C$5,8,0),1,1))) -> 334.41 | F201: =IF(A201>$B$30,NA(),IF(A201>$A$8,"",OFFSET(InputPriceData!$E$15,CalculationsAndCharts!$A201+$A$11,IF($C$5,8,0),1,1))) -> 331.57 | G201: =IF(A201>$B$30,NA(),IF(A201>$A$8,"",OFFSET(InputPriceData!$F$15,CalculationsAndCharts!$A201+$A$11,IF($C$5,8,0),1,1))) -> 333.58 | H201: 1.85 | I201: 3.76 | J201: 4.945 | K201: -0.795 | L201: FALSE | M201: TRUE | N201: TRUE | O201: 0 | P201: 0 | Q201: -243.56 | U201: 1.85 | V201: 1478.9028 | W201: 0.6803257524 | X201: 0.6803257524 | Y201: 1.379036493 | Z201: 3.059559738 | AA201: 2.076655442 | AB201: FALSE | AC201: FALSE | AD201: TRUE | AE201: 0 | AF201: 0 | AG201: -303.56 | AW201: 53826100
A202: 170 | B202: =IF(A202>$B$30,NA(),IF($A202>$A$8,"",OFFSET(InputPriceData!$B$15,$A202+$A$11,0,1,1))) -> 2020-08-11 | C202: =IF(A202>$B$30,NA(),IF($A202>$A$8,"",OFFSET(InputPriceData!$G$15,CalculationsAndCharts!$A202+$A$11,IF($C$5,8,0),1,1))) -> 69601100 | D202: =IF(A202>$B$30,NA(),IF(A202>$A$8,"",OFFSET(InputPriceData!$C$15,CalculationsAndCharts!$A202+$A$11,IF($C$5,8,0),1,1))) -> 332.99 | E202: =IF(A202>$B$30,NA(),IF(A202>$A$8,"",OFFSET(InputPriceData!$D$15,CalculationsAndCharts!$A202+$A$11,IF($C$5,8,0),1,1))) -> 333.67 | F202: =IF(A202>$B$30,NA(),IF(A202>$A$8,"",OFFSET(InputPriceData!$E$15,CalculationsAndCharts!$A202+$A$11,IF($C$5,8,0),1,1))) -> 328.21 | G202: =IF(A202>$B$30,NA(),IF(A202>$A$8,"",OFFSET(InputPriceData!$F$15,CalculationsAndCharts!$A202+$A$11,IF($C$5,8,0),1,1))) -> 328.99 | H202: -1.75 | I202: 6.13 | J202: 8.65 | K202: 7.805 | L202: FALSE | M202: FALSE | N202: TRUE | O202: 0 | P202: 0 | Q202: -243.56 | U202: -1.75 | V202: 1489.1703 | W202: -0.6413289778 | X202: -0.6413289778 | Y202: 1.698710741 | Z202: 3.170891103 | AA202: 1.92015703 | AB202: FALSE | AC202: FALSE | AD202: TRUE | AE202: 0 | AF202: 0 | AG202: -303.56 | AX202: 69601100
A203: 171 | B203: =IF(A203>$B$30,NA(),IF($A203>$A$8,"",OFFSET(InputPriceData!$B$15,$A203+$A$11,0,1,1))) -> 2020-08-10 | C203: =IF(A203>$B$30,NA(),IF($A203>$A$8,"",OFFSET(InputPriceData!$G$15,CalculationsAndCharts!$A203+$A$11,IF($C$5,8,0),1,1))) -> 44282100 | D203: =IF(A203>$B$30,NA(),IF(A203>$A$8,"",OFFSET(InputPriceData!$C$15,CalculationsAndCharts!$A203+$A$11,IF($C$5,8,0),1,1))) -> 331.22 | E203: =IF(A203>$B$30,NA(),IF(A203>$A$8,"",OFFSET(InputPriceData!$D$15,CalculationsAndCharts!$A203+$A$11,IF($C$5,8,0),1,1))) -> 331.92 | F203: =IF(A203>$B$30,NA(),IF(A203>$A$8,"",OFFSET(InputPriceData!$E$15,CalculationsAndCharts!$A203+$A$11,IF($C$5,8,0),1,1))) -> 329.15 | G203: =IF(A203>$B$30,NA(),IF(A203>$A$8,"",OFFSET(InputPriceData!$F$15,CalculationsAndCharts!$A203+$A$11,IF($C$5,8,0),1,1))) -> 331.73 | H203: 1.23 | I203: 11.17 | J203: 12.305 | K203: 17.75 | L203: FALSE | M203: FALSE | N203: TRUE | O203: 0 | P203: 0 | Q203: -243.56 | U203: 1.23 | V203: 1492.5594 | W203: 0.450250597 | X203: 0.450250597 | Y203: 3.340039719 | Z203: 3.191099993 | AA203: 1.479473739 | AB203: FALSE | AC203: FALSE | AD203: TRUE | AE203: 331.22 | AF203: 0 | AG203: -303.56 | AW203: 44282100
A204: 172 | B204: =IF(A204>$B$30,NA(),IF($A204>$A$8,"",OFFSET(InputPriceData!$B$15,$A204+$A$11,0,1,1))) -> 2020-08-07 | C204: =IF(A204>$B$30,NA(),IF($A204>$A$8,"",OFFSET(InputPriceData!$G$15,CalculationsAndCharts!$A204+$A$11,IF($C$5,8,0),1,1))) -> 57308300 | D204: =IF(A204>$B$30,NA(),IF(A204>$A$8,"",OFFSET(InputPriceData!$C$15,CalculationsAndCharts!$A204+$A$11,IF($C$5,8,0),1,1))) -> 329.46 | E204: =IF(A204>$B$30,NA(),IF(A204>$A$8,"",OFFSET(InputPriceData!$D$15,CalculationsAndCharts!$A204+$A$11,IF($C$5,8,0),1,1))) -> 331.04 | F204: =IF(A204>$B$30,NA(),IF(A204>$A$8,"",OFFSET(InputPriceData!$E$15,CalculationsAndCharts!$A204+$A$11,IF($C$5,8,0),1,1))) -> 328.49 | G204: =IF(A204>$B$30,NA(),IF(A204>$A$8,"",OFFSET(InputPriceData!$F$15,CalculationsAndCharts!$A204+$A$11,IF($C$5,8,0),1,1))) -> 330.74 | H204: 2.43 | I204: 13.44 | J204: 14.61 | K204: 20.895 | L204: FALSE | M204: FALSE | N204: TRUE | O204: 0 | P204: 0 | Q204: -243.56 | U204: 2.43 | V204: 1491.6549 | W204: 0.8897891217 | X204: 0.8897891217 | Y204: 3.889789122 | Z204: 2.756378228 | AA204: 0.6977656789 | AB204: TRUE | AC204: FALSE | AD204: FALSE | AE204: 0 | AF204: 0 | AG204: 27.66 | AW204: 57308300
A205: 173 | B205: =IF(A205>$B$30,NA(),IF($A205>$A$8,"",OFFSET(InputPriceData!$B$15,$A205+$A$11,0,1,1))) -> 2020-08-06 | C205: =IF(A205>$B$30,NA(),IF($A205>$A$8,"",OFFSET(InputPriceData!$G$15,CalculationsAndCharts!$A205+$A$11,IF($C$5,8,0),1,1))) -> 43679400 | D205: =IF(A205>$B$30,NA(),IF(A205>$A$8,"",OFFSET(InputPriceData!$C$15,CalculationsAndCharts!$A205+$A$11,IF($C$5,8,0),1,1))) -> 327.68 | E205: =IF(A205>$B$30,NA(),IF(A205>$A$8,"",OFFSET(InputPriceData!$D$15,CalculationsAndCharts!$A205+$A$11,IF($C$5,8,0),1,1))) -> 330.63 | F205: =IF(A205>$B$30,NA(),IF(A205>$A$8,"",OFFSET(InputPriceData!$E$15,CalculationsAndCharts!$A205+$A$11,IF($C$5,8,0),1,1))) -> 327.34 | G205: =IF(A205>$B$30,NA(),IF(A205>$A$8,"",OFFSET(InputPriceData!$F$15,CalculationsAndCharts!$A205+$A$11,IF($C$5,8,0),1,1))) -> 330.5 | H205: 4.22 | I205: 15.78 | J205: 14.36 | K205: 18.035 | L205: FALSE | M205: FALSE | N205: TRUE | O205: 0 | P205: 0 | Q205: -243.56 | U205: 4.22 | V205: 1500.4189 | W205: 1.540711009 | X205: 1 | Y205: 4 | Z205: 2.082840045 | AA205: -0.1073016985 | AB205: FALSE | AC205: FALSE | AD205: FALSE | AE205: 0 | AF205: 0 | AG205: 27.66 | AW205: 43679400
A206: 174 | B206: =IF(A206>$B$30,NA(),IF($A206>$A$8,"",OFFSET(InputPriceData!$B$15,$A206+$A$11,0,1,1))) -> 2020-08-05 | C206: =IF(A206>$B$30,NA(),IF($A206>$A$8,"",OFFSET(InputPriceData!$G$15,CalculationsAndCharts!$A206+$A$11,IF($C$5,8,0),1,1))) -> 42866400 | D206: =IF(A206>$B$30,NA(),IF(A206>$A$8,"",OFFSET(InputPriceData!$C$15,CalculationsAndCharts!$A206+$A$11,IF($C$5,8,0),1,1))) -> 327.67 | E206: =IF(A206>$B$30,NA(),IF(A206>$A$8,"",OFFSET(InputPriceData!$D$15,CalculationsAndCharts!$A206+$A$11,IF($C$5,8,0),1,1))) -> 328.58 | F206: =IF(A206>$B$30,NA(),IF(A206>$A$8,"",OFFSET(InputPriceData!$E$15,CalculationsAndCharts!$A206+$A$11,IF($C$5,8,0),1,1))) -> 327.39 | G206: =IF(A206>$B$30,NA(),IF(A206>$A$8,"",OFFSET(InputPriceData!$F$15,CalculationsAndCharts!$A206+$A$11,IF($C$5,8,0),1,1))) -> 328.31 | H206: 3.29 | I206: 12.94 | J206: 12.675 | K206: 10.155 | L206: FALSE | M206: FALSE | N206: TRUE | O206: 327.67 | P206: 0 | Q206: -243.56 | U206: 3.29 | V206: 1545.9721 | W206: 1.18334143 | X206: 1 | Y206: 3.499336661 | Z206: 1.488534623 | AA206: -0.4949361274 | AB206: FALSE | AC206: FALSE | AD206: FALSE | AE206: 0 | AF206: 0 | AG206: 27.66 | AW206: 42866400
... 1076 more rows

Sheet Follow
A1: Stocks and Indexes I wish to follow
A3: To ease following a stock, enter a Yahoo Finance acceptable symbol in column "A" anywhere below cell "A9".
A4: Thereafter you may doubleclick the cell containing a symbol of interest to initiate data retrieval and charting for that symbol.
A7: Symbol
A8: To | B8: Description | C8: Last Trade as of most recent check
A9: Follow | C9: Date | D9: Time | E9: Open | F9: High | G9: Low | H9: Close | I9: Volume | J9: Change | K9: Retrieved @
A10: A | B10: Agilent Technologies, Inc. (A) -NYSE (Daily) | C10: 2020-03-09 | D10: 16:04:00 | E10: 72.589996 | F10: 74.190002 | G10: 70.169998 | H10: 70.75 | I10: 4591093 | J10: -7.809998 | K10: 2020-03-09T16:59:21
A11: AA | B11: Alcoa Corporation (AA) -NYSE (Daily) | C11: 2020-01-31 | D11: 16:04:00 | E11: 14.01 | F11: 14.24 | G11: 13.62 | H11: 13.95 | I11: 9931500 | J11: -0.34 | K11: 2020-02-02T15:07:13
A12: AAL | B12: American Airlines Group Inc. (AAL) -NasdaqGS (Daily) | C12: 2020-03-09 | D12: 16:00:00 | E12: 14.87 | F12: 15.79 | G12: 14.46 | H12: 14.75 | I12: 41078614 | J12: -1.22 | K12: 2020-03-09T17:00:15
A13: AAPL | B13: Apple Inc. (AAPL) -NasdaqGS (Daily) | C13: 2020-06-17 | D13: 16:00:00 | E13: 355.149994 | F13: 355.369995 | G13: 351.089996 | H13: 351.589996 | I13: 27604481 | J13: -0.489991 | K13: 2020-06-17T17:45:34
A14: ADM | B14: Archer-Daniels-Midland Company (ADM) -NYSE (Weekly) | C14: 2018-07-13 | D14: 16:00:00 | E14: 47.5 | F14: 47.84 | G14: 47.169998 | H14: 47.57 | I14: 2402809 | J14: 0
A15: ADBE | B15: Adobe Inc. (ADBE) -NasdaqGS (Daily) | C15: 2020-06-17 | D15: 16:00:00 | E15: 414 | F15: 417.425995 | G15: 411.429993 | H15: 413.48999 | I15: 2026063 | J15: 1.819977 | K15: 2020-06-17T17:42:59
A16: ALGN | B16: Align Technology, Inc. (ALGN) -NasdaqGS (Daily) | C16: 2020-01-30 | D16: 16:00:00 | E16: 248.740005 | F16: 264.450012 | G16: 248.350006 | H16: 262.890015 | I16: 1833160 | J16: 1.290009
A17: AMC | B17: AMC Entertainment Holdings, Inc. (AMC) -NYSE (Weekly) | C17: 2018-07-13 | D17: 16:02:00 | E17: 17.049999 | F17: 17.15 | G17: 16.525 | H17: 17.049999 | I17: 1442776 | J17: 0
A18: AMD | B18: Advanced Micro Devices, Inc. (AMD) -NasdaqGS (Daily) | C18: 2020-08-19 | D18: 12:40:00 | E18: 81.775703 | F18: 81.849998 | G18: 80.449997 | H18: 80.760002 | I18: 18434143 | J18: -0.900002 | K18: 2020-08-19T12:40:49
A19: BSX | B19: Boston Scientific Corporation C (BSX) -NYQ (Daily) | C19: 2015-03-13 | D19: 16:01:00 | E19: 16.84 | F19: 16.91 | G19: 16.44 | H19: 16.61 | I19: 7262460 | J19: -0.28
A20: CASY | B20: Casey's General Stores, Inc. (CASY) -NasdaqGS (Daily) | C20: 2019-04-10 | D20: 16:00:00 | E20: 128.979996 | F20: 130.330002 | G20: 128.779999 | H20: 130.179993 | I20: 351300 | J20: 1.489991
A21: CAT | B21: Caterpillar Inc. (CAT) -NYSE (Daily) | C21: 2020-03-13 | D21: 11:48:00 | E21: 98.389999 | F21: 99.910004 | G21: 90.150101 | H21: 90.269997 | I21: 3568294 | J21: -1.990005 | K21: 2020-03-13T11:48:53
A22: CSCO | B22: Cisco Systems, In (CSCO) -NasdaqNM (Daily) | C22: 2015-02-19 | D22: 16:00:00 | E22: 29.32 | F22: 29.39 | G22: 29.13 | H22: 29.31 | I22: 21469012 | J22: -0.18
A23: CVS | B23: CVS Health Corporation (CVS) -NYSE (Daily) | C23: 2020-03-09 | D23: 16:07:00 | E23: 59.75 | F23: 63 | G23: 59.599998 | H23: 61.299999 | I23: 13065424 | J23: -2.850003 | K23: 2020-03-09T17:51:54
A24: DIS | B24: The Walt Disney Company (DIS) -NYSE (Daily) | C24: 2020-03-09 | D24: 16:07:00 | E24: 108.690002 | F24: 110.43 | G24: 104.279999 | H24: 104.349998 | I24: 26101127 | J24: -10.919999 | K24: 2020-03-09T16:59:51
A25: F | B25: Ford Motor Company (F) -NYSE (Daily) | C25: 2020-01-31 | D25: 16:03:00 | E25: 8.78 | F25: 8.84 | G25: 8.74 | H25: 8.82 | I25: 59781000 | J25: -0.02 | K25: 2020-02-02T15:09:03
A26: FAS | B26: Direxion Daily Financial Bull 3X ETF (FAS) -NYSEArca (Daily) | C26: 2017-10-13 | D26: 16:00:00 | E26: 58.099998 | F26: 58.939999 | G26: 57.43 | H26: 58.450001 | I26: 1709300 | J26: 0.07
A27: FB | B27: Facebook, Inc. (FB) -NasdaqGS (Daily) | C27: 2020-02-14 | D27: 16:00:00 | E27: 214 | F27: 214.929993 | G27: 212.649994 | H27: 214.179993 | I27: 10727400 | J27: 1.039994 | K27: 2020-02-15T17:19:34
A28: GSK | B28: GlaxoSmithKline plc (GSK) -NYSE (Daily) | C28: 2021-01-15 | D28: 16:00:00 | E28: 38.41 | F28: 38.66 | G28: 38.209999 | H28: 38.470001 | I28: 3100400 | J28: 0.310001 | K28: 2021-01-17T18:07:58
A29: GDX | B29: VanEck Vectors Gold Miners ETF (GDX) -NYSEArca (Daily) | C29: 2020-01-31 | D29: 16:00:00 | E29: 28.799999 | F29: 29.24 | G29: 28.76 | H29: 28.99 | I29: 41946000 | J29: 0.26 | K29: 2020-02-02T15:11:17
A30: GOOG | B30: Alphabet Inc. (GOOG) -NasdaqGS (Daily) | C30: 2020-02-14 | D30: 16:00:00 | E30: 1515.599976 | F30: 1520.73999 | G30: 1507.339966 | H30: 1520.73999 | I30: 1196700 | J30: 6.079956 | K30: 2020-02-15T17:20:39
A31: HAL | B31: Halliburton Company (HAL) -NYSE (Daily) | C31: 2020-09-17 | D31: 11:11:00 | E31: 14.73 | F31: 14.945 | G31: 14.57 | H31: 14.91 | I31: 4265279 | J31: -0.16 | K31: 2020-09-17T11:11:52
A32: HD | B32: The Home Depot, Inc. (HD) -NYSE (Daily) | C32: 2020-03-13 | D32: 11:54:00 | E32: 200.449997 | F32: 201.179993 | G32: 192.270096 | H32: 193.449997 | I32: 3274582 | J32: 2.860001 | K32: 2020-03-13T11:54:29
A33: HSY | B33: The Hershey Company (HSY) -NYSE (Daily) | C33: 2021-01-15 | D33: 16:00:00 | E33: 147.089996 | F33: 149.490005 | G33: 146.880005 | H33: 148.460007 | I33: 1193700 | J33: 1.040009 | K33: 2021-01-17T18:06:10
A34: HTLD | B34: Heartland Express, Inc. (HTLD) -NasdaqGS (Daily) | C34: 2020-03-09 | D34: 16:00:00 | E34: 17.33 | F34: 17.690001 | G34: 16.82 | H34: 16.879999 | I34: 284762 | J34: -1.280001 | K34: 2020-03-09T17:00:56
A35: IDEX | B35: Ideanomics, Inc. (IDEX) -NasdaqGS (Daily) | C35: 2021-02-19 | D35: 10:11:00 | E35: 3.99 | F35: 4.15 | G35: 3.88 | H35: 3.92 | I35: 8623006 | J35: 0.19 | K35: 2021-02-19T10:11:40
A36: IBM | B36: International Business Machines Corporation (IBM) -NYSE (Daily) | C36: 2021-02-09 | D36: 16:00:00 | E36: 121.900002 | F36: 122.565002 | G36: 121.050003 | H36: 122.099998 | I36: 4173266 | J36: -1.510003 | K36: 2021-02-09T17:01:49
A37: INTC | B37: Intel Corporation (INTC) -NasdaqGS (Daily) | C37: 2020-02-14 | D37: 16:00:00 | E37: 67.519997 | F37: 67.860001 | G37: 66.82 | H37: 67.269997 | I37: 13402800 | J37: -0.170005 | K37: 2020-02-15T17:21:41
A38: JAH | B38: Jarden Corporation Common Stock (JAH) -NYQ (Daily) | C38: 2016-01-08 | D38: 16:02:00 | E38: 53.82 | F38: 53.88 | G38: 52.65 | H38: 52.73 | I38: 4519480 | J38: -0.81
A39: JNJ | B39: Johnson & Johnson (JNJ) -NYSE (Daily) | C39: 2019-08-14 | D39: 10:33:00 | E39: 132.529999 | F39: 132.539993 | G39: 131.419998 | H39: 131.759995 | I39: 870520 | J39: -0.169998
A40: KO | B40: The Coca-Cola Company (KO) -NYSE (Daily) | C40: 2020-03-09 | D40: 16:07:00 | E40: 52.049999 | F40: 53.580002 | G40: 51.474998 | H40: 51.860001 | I40: 27771279 | J40: -3.399997 | K40: 2020-03-09T17:05:43
A41: LOW | B41: Lowe's Companies, Inc. (LOW) -NYSE (Daily) | C41: 2020-03-09 | D41: 16:03:00 | E41: 97.82 | F41: 99.82 | G41: 93.150101 | H41: 94.220001 | I41: 8167579 | J41: -11.089997 | K41: 2020-03-09T16:57:19
A42: LMT | B42: Lockheed Martin Corporation (LMT) -NYSE (Daily) | C42: 2021-02-09 | D42: 16:04:00 | E42: 338.540009 | F42: 344.48999 | G42: 336.570007 | H42: 342.339996 | I42: 1545066 | J42: 4.5 | K42: 2021-02-09T16:56:05
A43: MCD | B43: McDonald's Corporation (MCD) -NYSE (Daily) | C43: 2020-03-09 | D43: 16:01:00 | E43: 187.669998 | F43: 194.470001 | G43: 184.100006 | H43: 186.860001 | I43: 7601343 | J43: -12 | K43: 2020-03-09T16:58:16
A44: MDT | B44: Medtronic plc (MDT) -NYSE (Daily) | C44: 2020-03-09 | D44: 16:07:00 | E44: 94.019997 | F44: 95.470001 | G44: 91.709999 | H44: 92.400002 | I44: 9000931 | J44: -6.659996 | K44: 2020-03-09T17:48:45
A45: MGM | B45: MGM Resorts International (MGM) -NYSE (Daily) | C45: 2020-03-09 | D45: 16:02:00 | E45: 18.6 | F45: 19.58 | G45: 17.530001 | H45: 17.879999 | I45: 26050818 | J45: -2.51 | K45: 2020-03-09T17:13:53
A46: MO | B46: Altria Group, Inc. (MO) -NYSE (Daily) | C46: 2020-01-31 | D46: 16:05:00 | E46: 48.25 | F46: 48.799999 | G46: 47.240002 | H46: 47.529999 | I46: 11790800 | J46: -0.470001 | K46: 2020-02-02T15:20:55
A47: MSFT | B47: Microsoft Corporation (MSFT) -NasdaqGS (Daily) | C47: 2020-03-09 | D47: 16:00:00 | E47: 151 | F47: 157.75 | G47: 150 | H47: 150.619995 | I47: 69167627 | J47: -10.950012 | K47: 2020-03-09T17:06:41
A48: NFLX | B48: Netflix, Inc. (NFLX) -NasdaqGS (Daily) | C48: 2020-03-09 | D48: 16:00:00 | E48: 343.859985 | F48: 357.470001 | G48: 341.720886 | H48: 346.48999 | I48: 6746188 | J48: -22.480011 | K48: 2020-03-09T17:23:37
A49: NUGT | B49: Direxion Daily Gold Miners Index Bull 3X Shares (NUGT) -NYSEArca (Daily) | C49: 2020-01-31 | D49: 16:00:00 | E49: 32.439999 | F49: 33.830002 | G49: 32.240002 | H49: 33.02 | I49: 11325200 | J49: 0.84 | K49: 2020-02-02T15:21:51
